Workbook

Sheet Notes
A2: Maternity Friends and Family Test (FFT) Data - May 2017

Sheet Summary
B7: FFT | C7: Number of organisations submitting | D7: Total responses to date | E7: Responses | G7: Response Rate | I7: Score (% recommend) | K7: Score (% not recommend)
C8: 2017-05-01 | D8: 2017-05-01 | E8: 2017-05-01 | F8: 2017-04-26 | G8: 2017-05-01 | H8: 2017-04-26 | I8: 2017-05-01 | J8: 2017-04-26 | K8: 2017-05-01 | L8: 2017-04-26
B9: Maternity Total | C9: NA | D9: 1637596 | E9: 37593 | F9: 34498 | G9: NA | H9: NA | I9: 0.961641795 | J9: 0.9616789379 | K9: 0.01497619238 | L9: 0.0136239782
B10: Maternity NHS Total | C10: NA | D10: 1637074 | E10: 37475 | F10: 34367 | G10: NA | H10: NA | I10: 0.9615743829 | J10: 0.9616201589 | K10: 0.0150233489 | L10: 0.01364681235
B11: Maternity IS Total | C11: NA | D11: 522 | E11: 118 | F11: 131 | G11: NA | H11: NA | I11: 0.9830508475 | J11: 0.9770992366 | K11: 0 | L11: 0.007633587786
B12: Antenatal Total | C12: 135 | D12: 320495 | E12: 7043 | F12: 6296 | G12: NA | H12: NA | I12: 0.9649297174 | J12: 0.9666454892 | K12: 0.01235269061 | L12: 0.0165184244
B13: Antenatal NHS | C13: 134 | D13: 320290 | E13: 6995 | F13: 6239 | G13: NA | H13: NA | I13: 0.9646890636 | J13: 0.9665010418 | K13: 0.01243745533 | L13: 0.01650905594
B14: Antenatal IS | C14: 1 | D14: 205 | E14: 48 | F14: 57 | G14: NA | H14: NA | I14: 1 | J14: 0.9824561404 | K14: 0 | L14: 0.01754385965
B15: Birth Total | C15: 135 | D15: 514261 | E15: 12482 | F15: 11601 | G15: 0.2393113233 | H15: 0.2390184605 | I15: 0.9655503926 | J15: 0.9636238255 | K15: 0.01482134273 | L15: 0.01043013533
B16: Birth NHS | C16: 134 | D16: 514196 | E16: 12468 | F16: 11580 | G16: 0.2391713025 | H16: 0.2387382744 | I16: 0.9656721206 | J16: 0.9635578584 | K16: 0.01483798524 | L16: 0.01044905009
B17: Birth IS | C17: 1 | D17: 65 | E17: 14 | F17: 21 | G17: 0.5 | H17: 0.6774193548 | I17: 0.8571428571 | J17: 1 | K17: 0 | L17: 0
B18: Postnatal Ward Total | C18: 134 | D18: 549095 | E18: 12541 | F18: 11535 | G18: NA | H18: NA | I18: 0.9468941871 | J18: 0.9505851756 | K18: 0.01985487601 | L18: 0.01863892501
B19: Postnatal Ward Total NHS | C19: 134 | D19: 549095 | E19: 12541 | F19: 11535 | G19: NA | H19: NA | I19: 0.9468941871 | J19: 0.9505851756 | K19: 0.01985487601 | L19: 0.01863892501
B20: Postnatal Ward Total IS | C20: NA | D20: NA | E20: NA | F20: NA | G20: NA | H20: NA | I20: NA | J20: NA | K20: NA | L20: NA
B21: Postnatal Community Total | C21: 135 | D21: 253745 | E21: 5527 | F21: 5066 | G21: NA | H21: NA | I21: 0.982087932 | J21: 0.9763126727 | K21: 0.007599059164 | L21: 0.00592183182
B22: Postnatal Community NHS | C22: 134 | D22: 253493 | E22: 5471 | F22: 5013 | G22: NA | H22: NA | I22: 0.9819045878 | J22: 0.9764612009 | K22: 0.007676841528 | L22: 0.005984440455
B23: Postnatal Community IS | C23: 1 | D23: 252 | E23: 56 | F23: 53 | G23: NA | H23: NA | I23: 1 | J23: 0.9622641509 | K23: 0 | L23: 0

Sheet Region (Local Office) Q1
B6: Sort data by:
A9: Region (LO) Code | B9: Region (Local Office) | C9: Total Responses | D9: Percentage Recommended | E9: Percentage Not Recommended | F9: Breakdown of Responses
F10: Extremely Likely | G10: Likely | H10: Neither | I10: Unlikely | J10: Extremely Unlikely | K10: Don't Know
B11: England (including Independent Sector providers) | C11: 7043 | D11: 0.9649297174 | E11: 0.01235269061 | F11: 5321 | G11: 1475 | H11: 113 | I11: 41 | J11: 46 | K11: 47
B12: England (excluding Independent Sector providers) | C12: 6995 | D12: 0.9646890636 | E12: 0.01243745533 | F12: 5278 | G12: 1470 | H12: 113 | I12: 41 | J12: 46 | K12: 47
B13: Selection (excluding suppressed data) | C13: =SUBTOTAL(9,C14:C40) -> 7043 | D13: =IFERROR((F13+G13)/SUM(F13:K13), "-") -> 0.9649297174 | E13: =IFERROR((I13+J13)/SUM(F13:K13), "-") -> 0.01235269061 | F13: =SUBTOTAL(9,F14:F40) -> 5321 | G13: 1475 | H13: 113 | I13: 41 | J13: 46 | K13: 47
A14: Q70 | B14: NHS England Wessex | C14: 379 | D14: 0.9419525066 | E14: 0.02110817942 | F14: 277 | G14: 80 | H14: 9 | I14: 4 | J14: 4 | K14: 5
A15: Q71 | B15: NHS England London | C15: 1235 | D15: 0.9522267206 | E15: 0.01457489879 | F15: 863 | G15: 313 | H15: 26 | I15: 7 | J15: 11 | K15: 15
A16: Q72 | B16: NHS England Yorkshire & Humber | C16: 688 | D16: 0.9709302326 | E16: 0.005813953488 | F16: 517 | G16: 151 | H16: 14 | I16: 1 | J16: 3 | K16: 2
A17: Q74 | B17: NHS England Cumbria & North East | C17: 350 | D17: 0.9914285714 | E17: 0 | F17: 294 | G17: 53 | H17: 2 | I17: 0 | J17: 0 | K17: 1
A18: Q75 | B18: NHS England Cheshire & Merseyside | C18: 181 | D18: 0.9779005525 | E18: 0 | F18: 137 | G18: 40 | H18: 2 | I18: 0 | J18: 0 | K18: 2
A19: Q76 | B19: NHS England North Midlands | C19: 354 | D19: 0.988700565 | E19: 0 | F19: 294 | G19: 56 | H19: 4 | I19: 0 | J19: 0 | K19: 0
A20: Q77 | B20: NHS England West Midlands | C20: 748 | D20: 0.9398395722 | E20: 0.0320855615 | F20: 511 | G20: 192 | H20: 17 | I20: 10 | J20: 14 | K20: 4
A21: Q78 | B21: NHS England Central Midlands | C21: 502 | D21: 0.9621513944 | E21: 0.00796812749 | F21: 368 | G21: 115 | H21: 9 | I21: 2 | J21: 2 | K21: 6
A22: Q79 | B22: NHS England East | C22: 952 | D22: 0.9789915966 | E22: 0.006302521008 | F22: 767 | G22: 165 | H22: 8 | I22: 5 | J22: 1 | K22: 6
A23: Q80 | B23: NHS England South West | C23: 356 | D23: 0.9803370787 | E23: 0.005617977528 | F23: 278 | G23: 71 | H23: 3 | I23: 2 | J23: 0 | K23: 2
A24: Q81 | B24: NHS England South East | C24: 340 | D24: 0.9558823529 | E24: 0.02647058824 | F24: 277 | G24: 48 | H24: 5 | I24: 4 | J24: 5 | K24: 1
A25: Q82 | B25: NHS England South Central | C25: 336 | D25: 0.9642857143 | E25: 0.01488095238 | F25: 251 | G25: 73 | H25: 7 | I25: 4 | J25: 1 | K25: 0
A26: Q83 | B26: NHS England Greater Manchester | C26: 360 | D26: 0.9694444444 | E26: 0.01388888889 | F26: 272 | G26: 77 | H26: 4 | I26: 1 | J26: 4 | K26: 2
A27: Q84 | B27: NHS England Lancashire | C27: 214 | D27: 0.9719626168 | E27: 0.009345794393 | F27: 172 | G27: 36 | H27: 3 | I27: 1 | J27: 1 | K27: 1
A28: zIS1 | B28: Independent Sector Provider | C28: 48 | D28: 1 | E28: 0 | F28: 43 | G28: 5 | H28: 0 | I28: 0 | J28: 0 | K28: 0

Sheet Trusts Q1
B6: Sort data by:
A9: Region (LO) Code | B9: Trust Code | C9: Trust Name | D9: Total Responses | E9: Percentage Recommended | F9: Percentage Not Recommended | G9: Breakdown of Responses | M9: Mode of Collection
G10: Extremely Likely | H10: Likely | I10: Neither | J10: Unlikely | K10: Extremely Unlikely | L10: Don't Know | M10: SMS/Text / Smartphone App | N10: Electronic tablet/kiosk at point of discharge | O10: Paper / postcard at point of discharge | P10: Paper survey sent to the patients home | Q10: Telephone survey once patient is home | R10: Online survey once patient is home | S10: Other
C11: England (including Independent Sector providers) | D11: 7043 | E11: 0.9649297174 | F11: 0.01235269061 | G11: 5321 | H11: 1475 | I11: 113 | J11: 41 | K11: 46 | L11: 47 | M11: 213 | N11: 927 | O11: 5574 | P11: 188 | Q11: 3 | R11: 88 | S11: 50
C12: England (excluding Independent Sector providers) | D12: 6995 | E12: 0.9646890636 | F12: 0.01243745533 | G12: 5278 | H12: 1470 | I12: 113 | J12: 41 | K12: 46 | L12: 47 | M12: 213 | N12: 879 | O12: 5574 | P12: 188 | Q12: 3 | R12: 88 | S12: 50
C13: Selection (excluding suppressed data) | D13: =SUBTOTAL(9,D14:D298) -> 7043 | E13: =IFERROR((G13+H13)/SUM(G13:L13), "-") -> 0.9649348791 | F13: =IFERROR((J13+K13)/SUM(G13:L13), "-") -> 0.01245169601 | G13: =SUBTOTAL(9,G14:G298) -> 5276 | H13: 1466 | I13: 111 | J13: 41 | K13: 46 | L13: 47 | M13: 203 | N13: 926 | O13: 5531 | P13: 186 | Q13: 3 | R13: 88 | S13: 50
A14: Q70 | B14: RBD | C14: DORSET COUNTY HOSPITAL NHS FOUNDATION TRUST | D14: 25 | E14: 0.88 | F14: 0.04 | G14: 19 | H14: 3 | I14: 0 | J14: 1 | K14: 0 | L14: 2 | M14: 25 | N14: 0 | O14: 0 | P14: 0 | Q14: 0 | R14: 0 | S14: 0
A15: Q70 | B15: RN5 | C15: HAMPSHIRE HOSPITALS NHS FOUNDATION TRUST | D15: 55 | E15: 0.9636363636 | F15: 0 | G15: 46 | H15: 7 | I15: 2 | J15: 0 | K15: 0 | L15: 0 | M15: 6 | N15: 0 | O15: 49 | P15: 0 | Q15: 0 | R15: 0 | S15: 0
A16: Q70 | B16: R1F | C16: ISLE OF WIGHT NHS TRUST | D16: 1 | E16: * | F16: * | G16: * | H16: * | I16: * | J16: * | K16: * | L16: * | M16: * | N16: * | O16: * | P16: * | Q16: * | R16: * | S16: *
A17: Q70 | B17: RD3 | C17: POOLE HOSPITAL NHS FOUNDATION TRUST | D17: 9 | E17: 0.8888888889 | F17: 0 | G17: * | H17: * | I17: * | J17: * | K17: * | L17: * | M17: * | N17: * | O17: * | P17: * | Q17: * | R17: * | S17: *
A18: Q70 | B18: RHU | C18: PORTSMOUTH HOSPITALS NHS TRUST | D18: 34 | E18: 0.9411764706 | F18: 0 | G18: 29 | H18: 3 | I18: 2 | J18: 0 | K18: 0 | L18: 0 | M18: 0 | N18: 0 | O18: 34 | P18: 0 | Q18: 0 | R18: 0 | S18: 0
A19: Q70 | B19: RDZ | C19: THE ROYAL BOURNEMOUTH AND CHRISTCHURCH HOSPITALS NHS FOUNDATION TRUST | D19: 104 | E19: 0.9230769231 | F19: 0.04807692308 | G19: 67 | H19: 29 | I19: 3 | J19: 3 | K19: 2 | L19: 0 | M19: 0 | N19: 0 | O19: 104 | P19: 0 | Q19: 0 | R19: 0 | S19: 0
A20: Q70 | B20: RHM | C20: UNIVERSITY HOSPITAL SOUTHAMPTON NHS FOUNDATION TRUST | D20: 151 | E20: 0.9602649007 | F20: 0.01324503311 | G20: 108 | H20: 37 | I20: 1 | J20: 0 | K20: 2 | L20: 3 | M20: 0 | N20: 0 | O20: 149 | P20: 0 | Q20: 0 | R20: 0 | S20: 2
A21: Q71 | B21: RF4 | C21: BARKING, HAVERING AND REDBRIDGE UNIVERSITY HOSPITALS NHS TRUST | D21: 221 | E21: 0.9864253394 | F21: 0.004524886878 | G21: 179 | H21: 39 | I21: 0 | J21: 0 | K21: 1 | L21: 2 | M21: 0 | N21: 10 | O21: 211 | P21: 0 | Q21: 0 | R21: 0 | S21: 0
A22: Q71 | B22: R1H | C22: BARTS HEALTH NHS TRUST | D22: 90 | E22: 0.9666666667 | F22: 0 | G22: 60 | H22: 27 | I22: 1 | J22: 0 | K22: 0 | L22: 2 | M22: 0 | N22: 2 | O22: 87 | P22: 0 | Q22: 0 | R22: 1 | S22: 0
A23: Q71 | B23: RQM | C23: CHELSEA AND WESTMINSTER HOSPITAL NHS FOUNDATION TRUST | D23: 100 | E23: 0.88 | F23: 0.07 | G23: 71 | H23: 17 | I23: 5 | J23: 2 | K23: 5 | L23: 0 | M23: 85 | N23: 0 | O23: 12 | P23: 0 | Q23: 1 | R23: 2 | S23: 0
A24: Q71 | B24: RJ6 | C24: CROYDON HEALTH SERVICES NHS TRUST | D24: 25 | E24: 1 | F24: 0 | G24: 17 | H24: 8 | I24: 0 | J24: 0 | K24: 0 | L24: 0 | M24: 0 | N24: 0 | O24: 25 | P24: 0 | Q24: 0 | R24: 0 | S24: 0
A25: Q71 | B25: RVR | C25: EPSOM AND ST HELIER UNIVERSITY HOSPITALS NHS TRUST | D25: 11 | E25: 1 | F25: 0 | G25: 11 | H25: 0 | I25: 0 | J25: 0 | K25: 0 | L25: 0 | M25: 0 | N25: 0 | O25: 10 | P25: 0 | Q25: 0 | R25: 1 | S25: 0
A26: Q71 | B26: RJ1 | C26: GUY'S AND ST THOMAS' NHS FOUNDATION TRUST | D26: 0 | E26: NA | F26: NA | G26: 0 | H26: 0 | I26: 0 | J26: 0 | K26: 0 | L26: 0 | M26: 0 | N26: 0 | O26: 0 | P26: 0 | Q26: 0 | R26: 0 | S26: 0
A27: Q71 | B27: RQX | C27: HOMERTON UNIVERSITY HOSPITAL NHS FOUNDATION TRUST | D27: 107 | E27: 0.9345794393 | F27: 0.01869158879 | G27: 80 | H27: 20 | I27: 3 | J27: 1 | K27: 1 | L27: 2 | M27: 0 | N27: 33 | O27: 72 | P27: 0 | Q27: 0 | R27: 2 | S27: 0
A28: Q71 | B28: RYJ | C28: IMPERIAL COLLEGE HEALTHCARE NHS TRUST | D28: 83 | E28: 0.9638554217 | F28: 0 | G28: 44 | H28: 36 | I28: 2 | J28: 0 | K28: 0 | L28: 1 | M28: 1 | N28: 26 | O28: 56 | P28: 0 | Q28: 0 | R28: 0 | S28: 0
A29: Q71 | B29: RJZ | C29: KING'S COLLEGE HOSPITAL NHS FOUNDATION TRUST | D29: 35 | E29: 0.8857142857 | F29: 0.02857142857 | G29: 23 | H29: 8 | I29: 3 | J29: 0 | K29: 1 | L29: 0 | M29: 0 | N29: 35 | O29: 0 | P29: 0 | Q29: 0 | R29: 0 | S29: 0
A30: Q71 | B30: RAX | C30: KINGSTON HOSPITAL NHS FOUNDATION TRUST | D30: 29 | E30: 1 | F30: 0 | G30: 19 | H30: 10 | I30: 0 | J30: 0 | K30: 0 | L30: 0 | M30: 0 | N30: 29 | O30: 0 | P30: 0 | Q30: 0 | R30: 0 | S30: 0
A31: Q71 | B31: RJ2 | C31: LEWISHAM AND GREENWICH NHS TRUST | D31: 101 | E31: 1 | F31: 0 | G31: 64 | H31: 37 | I31: 0 | J31: 0 | K31: 0 | L31: 0 | M31: 0 | N31: 0 | O31: 101 | P31: 0 | Q31: 0 | R31: 0 | S31: 0
A32: Q71 | B32: R1K | C32: LONDON NORTH WEST HEALTHCARE NHS TRUST | D32: 77 | E32: 0.9090909091 | F32: 0.01298701299 | G32: 40 | H32: 30 | I32: 4 | J32: 1 | K32: 0 | L32: 2 | M32: 0 | N32: 7 | O32: 70 | P32: 0 | Q32: 0 | R32: 0 | S32: 0
A33: Q71 | B33: RAP | C33: NORTH MIDDLESEX UNIVERSITY HOSPITAL NHS TRUST | D33: 13 | E33: 1 | F33: 0 | G33: 10 | H33: 3 | I33: 0 | J33: 0 | K33: 0 | L33: 0 | M33: 0 | N33: 13 | O33: 0 | P33: 0 | Q33: 0 | R33: 0 | S33: 0
A34: Q71 | B34: RAL | C34: ROYAL FREE LONDON NHS FOUNDATION TRUST | D34: 50 | E34: 0.98 | F34: 0 | G34: 28 | H34: 21 | I34: 1 | J34: 0 | K34: 0 | L34: 0 | M34: 0 | N34: 0 | O34: 50 | P34: 0 | Q34: 0 | R34: 0 | S34: 0
A35: Q71 | B35: RJ7 | C35: ST GEORGE'S UNIVERSITY HOSPITALS NHS FOUNDATION TRUST | D35: 7 | E35: 0.8571428571 | F35: 0 | G35: 3 | H35: 3 | I35: 0 | J35: 0 | K35: 0 | L35: 1 | M35: 0 | N35: 7 | O35: 0 | P35: 0 | Q35: 0 | R35: 0 | S35: 0
A36: Q71 | B36: RAS | C36: THE HILLINGDON HOSPITALS NHS FOUNDATION TRUST | D36: 61 | E36: 0.9672131148 | F36: 0 | G36: 53 | H36: 6 | I36: 1 | J36: 0 | K36: 0 | L36: 1 | M36: 0 | N36: 0 | O36: 60 | P36: 0 | Q36: 0 | R36: 1 | S36: 0
A37: Q71 | B37: RKE | C37: THE WHITTINGTON HOSPITAL NHS TRUST | D37: 21 | E37: 0.9047619048 | F37: 0.09523809524 | G37: 19 | H37: 0 | I37: 0 | J37: 2 | K37: 0 | L37: 0 | M37: 0 | N37: 8 | O37: 13 | P37: 0 | Q37: 0 | R37: 0 | S37: 0
A38: Q71 | B38: RRV | C38: UNIVERSITY COLLEGE LONDON HOSPITALS NHS FOUNDATION TRUST | D38: 204 | E38: 0.931372549 | F38: 0.01960784314 | G38: 142 | H38: 48 | I38: 6 | J38: 1 | K38: 3 | L38: 4 | M38: 0 | N38: 0 | O38: 203 | P38: 0 | Q38: 0 | R38: 1 | S38: 0
A39: Q72 | B39: RCF | C39: AIREDALE NHS FOUNDATION TRUST | D39: 5 | E39: 1 | F39: 0 | G39: 4 | H39: 1 | I39: 0 | J39: 0 | K39: 0 | L39: 0 | M39: 0 | N39: 0 | O39: 5 | P39: 0 | Q39: 0 | R39: 0 | S39: 0
A40: Q72 | B40: RFF | C40: BARNSLEY HOSPITAL NHS FOUNDATION TRUST | D40: 55 | E40: 0.9818181818 | F40: 0 | G40: 46 | H40: 8 | I40: 1 | J40: 0 | K40: 0 | L40: 0 | M40: 0 | N40: 0 | O40: 55 | P40: 0 | Q40: 0 | R40: 0 | S40: 0
A41: Q72 | B41: RAE | C41: BRADFORD TEACHING HOSPITALS NHS FOUNDATION TRUST | D41: 8 | E41: 0.75 | F41: 0 | G41: 5 | H41: 1 | I41: 2 | J41: 0 | K41: 0 | L41: 0 | M41: 0 | N41: 0 | O41: 8 | P41: 0 | Q41: 0 | R41: 0 | S41: 0
A42: Q72 | B42: RWY | C42: CALDERDALE AND HUDDERSFIELD NHS FOUNDATION TRUST | D42: 126 | E42: 0.9761904762 | F42: 0.007936507937 | G42: 96 | H42: 27 | I42: 2 | J42: 0 | K42: 1 | L42: 0 | M42: 0 | N42: 126 | O42: 0 | P42: 0 | Q42: 0 | R42: 0 | S42: 0
A43: Q72 | B43: RP5 | C43: DONCASTER AND BASSETLAW TEACHING HOSPITALS NHS FOUNDATION TRUST | D43: 38 | E43: 1 | F43: 0 | G43: 32 | H43: 6 | I43: 0 | J43: 0 | K43: 0 | L43: 0 | M43: 0 | N43: 0 | O43: 38 | P43: 0 | Q43: 0 | R43: 0 | S43: 0
A44: Q72 | B44: RCD | C44: HARROGATE AND DISTRICT NHS FOUNDATION TRUST | D44: 51 | E44: 0.9607843137 | F44: 0 | G44: 38 | H44: 11 | I44: 2 | J44: 0 | K44: 0 | L44: 0 | M44: 0 | N44: 0 | O44: 51 | P44: 0 | Q44: 0 | R44: 0 | S44: 0
A45: Q72 | B45: RWA | C45: HULL AND EAST YORKSHIRE HOSPITALS NHS TRUST | D45: 48 | E45: 0.9583333333 | F45: 0 | G45: 31 | H45: 15 | I45: 2 | J45: 0 | K45: 0 | L45: 0 | M45: 0 | N45: 0 | O45: 48 | P45: 0 | Q45: 0 | R45: 0 | S45: 0
A46: Q72 | B46: RR8 | C46: LEEDS TEACHING HOSPITALS NHS TRUST | D46: 0 | E46: NA | F46: NA | G46: 0 | H46: 0 | I46: 0 | J46: 0 | K46: 0 | L46: 0 | M46: 0 | N46: 0 | O46: 0 | P46: 0 | Q46: 0 | R46: 0 | S46: 0
A47: Q72 | B47: RXF | C47: MID YORKSHIRE HOSPITALS NHS TRUST | D47: 110 | E47: 0.9818181818 | F47: 0.009090909091 | G47: 84 | H47: 24 | I47: 1 | J47: 0 | K47: 1 | L47: 0 | M47: 0 | N47: 0 | O47: 110 | P47: 0 | Q47: 0 | R47: 0 | S47: 0
A48: Q72 | B48: RJL | C48: NORTHERN LINCOLNSHIRE AND GOOLE NHS FOUNDATION TRUST | D48: 9 | E48: 1 | F48: 0 | G48: 5 | H48: 4 | I48: 0 | J48: 0 | K48: 0 | L48: 0 | M48: 0 | N48: 0 | O48: 0 | P48: 9 | Q48: 0 | R48: 0 | S48: 0
A49: Q72 | B49: RHQ | C49: SHEFFIELD TEACHING HOSPITALS NHS FOUNDATION TRUST | D49: 100 | E49: 0.95 | F49: 0.01 | G49: 64 | H49: 31 | I49: 2 | J49: 0 | K49: 1 | L49: 2 | M49: 0 | N49: 0 | O49: 100 | P49: 0 | Q49: 0 | R49: 0 | S49: 0
A50: Q72 | B50: RFR | C50: THE ROTHERHAM NHS FOUNDATION TRUST | D50: 57 | E50: 0.9824561404 | F50: 0.01754385965 | G50: 46 | H50: 10 | I50: 0 | J50: 1 | K50: 0 | L50: 0 | M50: 0 | N50: 0 | O50: 57 | P50: 0 | Q50: 0 | R50: 0 | S50: 0
A51: Q72 | B51: RCB | C51: YORK TEACHING HOSPITAL NHS FOUNDATION TRUST | D51: 81 | E51: 0.975308642 | F51: 0 | G51: 66 | H51: 13 | I51: 2 | J51: 0 | K51: 0 | L51: 0 | M51: 0 | N51: 0 | O51: 81 | P51: 0 | Q51: 0 | R51: 0 | S51: 0
A52: Q74 | B52: RLN | C52: CITY HOSPITALS SUNDERLAND NHS FOUNDATION TRUST | D52: 21 | E52: 1 | F52: 0 | G52: 14 | H52: 7 | I52: 0 | J52: 0 | K52: 0 | L52: 0 | M52: 0 | N52: 0 | O52: 21 | P52: 0 | Q52: 0 | R52: 0 | S52: 0
A53: Q74 | B53: RXP | C53: COUNTY DURHAM AND DARLINGTON NHS FOUNDATION TRUST | D53: 41 | E53: 1 | F53: 0 | G53: 34 | H53: 7 | I53: 0 | J53: 0 | K53: 0 | L53: 0 | M53: 0 | N53: 0 | O53: 41 | P53: 0 | Q53: 0 | R53: 0 | S53: 0
A54: Q74 | B54: RR7 | C54: GATESHEAD HEALTH NHS FOUNDATION TRUST | D54: 2 | E54: * | F54: * | G54: * | H54: * | I54: * | J54: * | K54: * | L54: * | M54: * | N54: * | O54: * | P54: * | Q54: * | R54: * | S54: *
A55: Q74 | B55: RNL | C55: NORTH CUMBRIA UNIVERSITY HOSPITALS NHS TRUST | D55: 57 | E55: 1 | F55: 0 | G55: 50 | H55: 7 | I55: 0 | J55: 0 | K55: 0 | L55: 0 | M55: 0 | N55: 0 | O55: 57 | P55: 0 | Q55: 0 | R55: 0 | S55: 0
A56: Q74 | B56: RVW | C56: NORTH TEES AND HARTLEPOOL NHS FOUNDATION TRUST | D56: 33 | E56: 0.9696969697 | F56: 0 | G56: 29 | H56: 3 | I56: 1 | J56: 0 | K56: 0 | L56: 0 | M56: 0 | N56: 0 | O56: 33 | P56: 0 | Q56: 0 | R56: 0 | S56: 0
A57: Q74 | B57: RTF | C57: NORTHUMBRIA HEALTHCARE NHS FOUNDATION TRUST | D57: 138 | E57: 0.9927536232 | F57: 0 | G57: 127 | H57: 10 | I57: 1 | J57: 0 | K57: 0 | L57: 0 | M57: 0 | N57: 0 | O57: 138 | P57: 0 | Q57: 0 | R57: 0 | S57: 0
A58: Q74 | B58: RTR | C58: SOUTH TEES HOSPITALS NHS FOUNDATION TRUST | D58: 8 | E58: 1 | F58: 0 | G58: * | H58: * | I58: * | J58: * | K58: * | L58: * | M58: * | N58: * | O58: * | P58: * | Q58: * | R58: * | S58: *
A59: Q74 | B59: RE9 | C59: SOUTH TYNESIDE NHS FOUNDATION TRUST | D59: 23 | E59: 0.9565217391 | F59: 0 | G59: 10 | H59: 12 | I59: 0 | J59: 0 | K59: 0 | L59: 1 | M59: 0 | N59: 0 | O59: 23 | P59: 0 | Q59: 0 | R59: 0 | S59: 0
A60: Q74 | B60: RTD | C60: THE NEWCASTLE UPON TYNE HOSPITALS NHS FOUNDATION TRUST | D60: 0 | E60: NA | F60: NA | G60: 0 | H60: 0 | I60: 0 | J60: 0 | K60: 0 | L60: 0 | M60: 0 | N60: 0 | O60: 0 | P60: 0 | Q60: 0 | R60: 0 | S60: 0
A61: Q74 | B61: RTX | C61: UNIVERSITY HOSPITALS OF MORECAMBE BAY NHS FOUNDATION TRUST | D61: 27 | E61: 1 | F61: 0 | G61: 23 | H61: 4 | I61: 0 | J61: 0 | K61: 0 | L61: 0 | M61: 0 | N61: 0 | O61: 27 | P61: 0 | Q61: 0 | R61: 0 | S61: 0
A62: Q75 | B62: RJR | C62: COUNTESS OF CHESTER HOSPITAL NHS FOUNDATION TRUST | D62: 21 | E62: 0.9047619048 | F62: 0 | G62: 17 | H62: 2 | I62: 0 | J62: 0 | K62: 0 | L62: 2 | M62: 6 | N62: 0 | O62: 15 | P62: 0 | Q62: 0 | R62: 0 | S62: 0
A63: Q75 | B63: RJN | C63: EAST CHESHIRE NHS TRUST | D63: 17 | E63: 1 | F63: 0 | G63: 15 | H63: 2 | I63: 0 | J63: 0 | K63: 0 | L63: 0 | M63: 0 | N63: 0 | O63: 17 | P63: 0 | Q63: 0 | R63: 0 | S63: 0
A64: Q75 | B64: REP | C64: LIVERPOOL WOMEN'S NHS FOUNDATION TRUST | D64: 4 | E64: * | F64: * | G64: * | H64: * | I64: * | J64: * | K64: * | L64: * | M64: * | N64: * | O64: * | P64: * | Q64: * | R64: * | S64: *
A65: Q75 | B65: RBT | C65: MID CHESHIRE HOSPITALS NHS FOUNDATION TRUST | D65: 75 | E65: 0.9733333333 | F65: 0 | G65: 42 | H65: 31 | I65: 2 | J65: 0 | K65: 0 | L65: 0 | M65: 0 | N65: 0 | O65: 75 | P65: 0 | Q65: 0 | R65: 0 | S65: 0
A66: Q75 | B66: RVY | C66: SOUTHPORT AND ORMSKIRK HOSPITAL NHS TRUST | D66: 0 | E66: NA | F66: NA | G66: 0 | H66: 0 | I66: 0 | J66: 0 | K66: 0 | L66: 0 | M66: 0 | N66: 0 | O66: 0 | P66: 0 | Q66: 0 | R66: 0 | S66: 0
A67: Q75 | B67: RBN | C67: ST HELENS AND KNOWSLEY HOSPITAL SERVICES NHS TRUST | D67: 1 | E67: * | F67: * | G67: * | H67: * | I67: * | J67: * | K67: * | L67: * | M67: * | N67: * | O67: * | P67: * | Q67: * | R67: * | S67: *
A68: Q75 | B68: RWW | C68: WARRINGTON AND HALTON HOSPITALS NHS FOUNDATION TRUST | D68: 59 | E68: 1 | F68: 0 | G68: 55 | H68: 4 | I68: 0 | J68: 0 | K68: 0 | L68: 0 | M68: 0 | N68: 0 | O68: 59 | P68: 0 | Q68: 0 | R68: 0 | S68: 0
A69: Q75 | B69: RBL | C69: WIRRAL UNIVERSITY TEACHING HOSPITAL NHS FOUNDATION TRUST | D69: 4 | E69: * | F69: * | G69: * | H69: * | I69: * | J69: * | K69: * | L69: * | M69: * | N69: * | O69: * | P69: * | Q69: * | R69: * | S69: *
A70: Q76 | B70: RJF | C70: BURTON HOSPITALS NHS FOUNDATION TRUST | D70: 13 | E70: 1 | F70: 0 | G70: 8 | H70: 5 | I70: 0 | J70: 0 | K70: 0 | L70: 0 | M70: 0 | N70: 0 | O70: 13 | P70: 0 | Q70: 0 | R70: 0 | S70: 0
A71: Q76 | B71: RFS | C71: CHESTERFIELD ROYAL HOSPITAL NHS FOUNDATION TRUST | D71: 67 | E71: 0.9701492537 | F71: 0 | G71: 48 | H71: 17 | I71: 2 | J71: 0 | K71: 0 | L71: 0 | M71: 0 | N71: 0 | O71: 67 | P71: 0 | Q71: 0 | R71: 0 | S71: 0
A72: Q76 | B72: RTG | C72: DERBY TEACHING HOSPITALS NHS FOUNDATION TRUST | D72: 95 | E72: 1 | F72: 0 | G72: 81 | H72: 14 | I72: 0 | J72: 0 | K72: 0 | L72: 0 | M72: 1 | N72: 0 | O72: 94 | P72: 0 | Q72: 0 | R72: 0 | S72: 0
A73: Q76 | B73: RX1 | C73: NOTTINGHAM UNIVERSITY HOSPITALS NHS TRUST | D73: 108 | E73: 1 | F73: 0 | G73: 101 | H73: 7 | I73: 0 | J73: 0 | K73: 0 | L73: 0 | M73: 0 | N73: 0 | O73: 108 | P73: 0 | Q73: 0 | R73: 0 | S73: 0
A74: Q76 | B74: RK5 | C74: SHERWOOD FOREST HOSPITALS NHS FOUNDATION TRUST | D74: 20 | E74: 0.9 | F74: 0 | G74: 12 | H74: 6 | I74: 2 | J74: 0 | K74: 0 | L74: 0 | M74: 0 | N74: 0 | O74: 20 | P74: 0 | Q74: 0 | R74: 0 | S74: 0
A75: Q76 | B75: RXW | C75: SHREWSBURY AND TELFORD HOSPITAL NHS TRUST | D75: 5 | E75: 1 | F75: 0 | G75: 4 | H75: 1 | I75: 0 | J75: 0 | K75: 0 | L75: 0 | M75: 0 | N75: 0 | O75: 5 | P75: 0 | Q75: 0 | R75: 0 | S75: 0
A76: Q76 | B76: RJE | C76: UNIVERSITY HOSPITALS OF NORTH MIDLANDS NHS TRUST | D76: 46 | E76: 1 | F76: 0 | G76: 40 | H76: 6 | I76: 0 | J76: 0 | K76: 0 | L76: 0 | M76: 0 | N76: 0 | O76: 46 | P76: 0 | Q76: 0 | R76: 0 | S76: 0
A77: Q77 | B77: RQ3 | C77: BIRMINGHAM WOMEN'S AND CHILDREN'S NHS FOUNDATION TRUST | D77: 280 | E77: 0.9035714286 | F77: 0.075 | G77: 186 | H77: 67 | I77: 6 | J77: 8 | K77: 13 | L77: 0 | M77: 0 | N77: 0 | O77: 278 | P77: 0 | Q77: 0 | R77: 2 | S77: 0
A78: Q77 | B78: RLT | C78: GEORGE ELIOT HOSPITAL NHS TRUST | D78: 32 | E78: 0.96875 | F78: 0 | G78: 21 | H78: 10 | I78: 1 | J78: 0 | K78: 0 | L78: 0 | M78: 18 | N78: 0 | O78: 14 | P78: 0 | Q78: 0 | R78: 0 | S78: 0
A79: Q77 | B79: RR1 | C79: HEART OF ENGLAND NHS FOUNDATION TRUST | D79: 8 | E79: 0.75 | F79: 0 | G79: 5 | H79: 1 | I79: 2 | J79: 0 | K79: 0 | L79: 0 | M79: 0 | N79: 0 | O79: 8 | P79: 0 | Q79: 0 | R79: 0 | S79: 0
A80: Q77 | B80: RXK | C80: SANDWELL AND WEST BIRMINGHAM HOSPITALS NHS TRUST | D80: 42 | E80: 0.9047619048 | F80: 0 | G80: 17 | H80: 21 | I80: 3 | J80: 0 | K80: 0 | L80: 1 | M80: 0 | N80: 42 | O80: 0 | P80: 0 | Q80: 0 | R80: 0 | S80: 0
A81: Q77 | B81: RJC | C81: SOUTH WARWICKSHIRE NHS FOUNDATION TRUST | D81: 26 | E81: 1 | F81: 0 | G81: 20 | H81: 6 | I81: 0 | J81: 0 | K81: 0 | L81: 0 | M81: 0 | N81: 0 | O81: 25 | P81: 0 | Q81: 0 | R81: 1 | S81: 0
A82: Q77 | B82: RNA | C82: THE DUDLEY GROUP NHS FOUNDATION TRUST | D82: 141 | E82: 0.9858156028 | F82: 0.007092198582 | G82: 98 | H82: 41 | I82: 0 | J82: 1 | K82: 0 | L82: 1 | M82: 4 | N82: 0 | O82: 137 | P82: 0 | Q82: 0 | R82: 0 | S82: 0
A83: Q77 | B83: RL4 | C83: THE ROYAL WOLVERHAMPTON NHS TRUST | D83: 6 | E83: 1 | F83: 0 | G83: 3 | H83: 3 | I83: 0 | J83: 0 | K83: 0 | L83: 0 | M83: 0 | N83: 0 | O83: 6 | P83: 0 | Q83: 0 | R83: 0 | S83: 0
A84: Q77 | B84: RKB | C84: UNIVERSITY HOSPITALS COVENTRY AND WARWICKSHIRE NHS TRUST | D84: 89 | E84: 0.9887640449 | F84: 0 | G84: 63 | H84: 25 | I84: 0 | J84: 0 | K84: 0 | L84: 1 | M84: 0 | N84: 0 | O84: 89 | P84: 0 | Q84: 0 | R84: 0 | S84: 0
A85: Q77 | B85: RBK | C85: WALSALL HEALTHCARE NHS TRUST | D85: 24 | E85: 0.7083333333 | F85: 0.08333333333 | G85: 9 | H85: 8 | I85: 4 | J85: 1 | K85: 1 | L85: 1 | M85: 24 | N85: 0 | O85: 0 | P85: 0 | Q85: 0 | R85: 0 | S85: 0
A86: Q77 | B86: RWP | C86: WORCESTERSHIRE ACUTE HOSPITALS NHS TRUST | D86: 74 | E86: 1 | F86: 0 | G86: 67 | H86: 7 | I86: 0 | J86: 0 | K86: 0 | L86: 0 | M86: 0 | N86: 0 | O86: 74 | P86: 0 | Q86: 0 | R86: 0 | S86: 0
A87: Q77 | B87: RLQ | C87: WYE VALLEY NHS TRUST | D87: 26 | E87: 0.9615384615 | F87: 0 | G87: 22 | H87: 3 | I87: 1 | J87: 0 | K87: 0 | L87: 0 | M87: 0 | N87: 26 | O87: 0 | P87: 0 | Q87: 0 | R87: 0 | S87: 0
A88: Q78 | B88: RC1 | C88: BEDFORD HOSPITAL NHS TRUST | D88: 2 | E88: * | F88: * | G88: * | H88: * | I88: * | J88: * | K88: * | L88: * | M88: * | N88: * | O88: * | P88: * | Q88: * | R88: * | S88: *
A89: Q78 | B89: RWH | C89: EAST AND NORTH HERTFORDSHIRE NHS TRUST | D89: 31 | E89: 0.935483871 | F89: 0.03225806452 | G89: 16 | H89: 13 | I89: 0 | J89: 1 | K89: 0 | L89: 1 | M89: 0 | N89: 31 | O89: 0 | P89: 0 | Q89: 0 | R89: 0 | S89: 0
A90: Q78 | B90: RNQ | C90: KETTERING GENERAL HOSPITAL NHS FOUNDATION TRUST | D90: 43 | E90: 1 | F90: 0 | G90: 35 | H90: 8 | I90: 0 | J90: 0 | K90: 0 | L90: 0 | M90: 0 | N90: 0 | O90: 43 | P90: 0 | Q90: 0 | R90: 0 | S90: 0
A91: Q78 | B91: RC9 | C91: LUTON AND DUNSTABLE UNIVERSITY HOSPITAL NHS FOUNDATION TRUST | D91: 53 | E91: 0.9622641509 | F91: 0 | G91: 36 | H91: 15 | I91: 0 | J91: 0 | K91: 0 | L91: 2 | M91: 0 | N91: 42 | O91: 11 | P91: 0 | Q91: 0 | R91: 0 | S91: 0
A92: Q78 | B92: RD8 | C92: MILTON KEYNES UNIVERSITY HOSPITAL NHS FOUNDATION TRUST | D92: 12 | E92: 0.9166666667 | F92: 0 | G92: * | H92: * | I92: * | J92: * | K92: * | L92: * | M92: * | N92: * | O92: * | P92: * | Q92: * | R92: * | S92: *
A93: Q78 | B93: RNS | C93: NORTHAMPTON GENERAL HOSPITAL NHS TRUST | D93: 66 | E93: 0.9393939394 | F93: 0.0303030303 | G93: 54 | H93: 8 | I93: 0 | J93: 0 | K93: 2 | L93: 2 | M93: 0 | N93: 0 | O93: 2 | P93: 0 | Q93: 0 | R93: 64 | S93: 0
A94: Q78 | B94: RWD | C94: UNITED LINCOLNSHIRE HOSPITALS NHS TRUST | D94: 20 | E94: 0.95 | F94: 0 | G94: 16 | H94: 3 | I94: 1 | J94: 0 | K94: 0 | L94: 0 | M94: 0 | N94: 0 | O94: 20 | P94: 0 | Q94: 0 | R94: 0 | S94: 0
A95: Q78 | B95: RWE | C95: UNIVERSITY HOSPITALS OF LEICESTER NHS TRUST | D95: 216 | E95: 0.9768518519 | F95: 0.00462962963 | G95: 167 | H95: 44 | I95: 3 | J95: 1 | K95: 0 | L95: 1 | M95: 0 | N95: 91 | O95: 125 | P95: 0 | Q95: 0 | R95: 0 | S95: 0
A96: Q78 | B96: RWG | C96: WEST HERTFORDSHIRE HOSPITALS NHS TRUST | D96: 59 | E96: 0.9322033898 | F96: 0 | G96: 34 | H96: 21 | I96: 4 | J96: 0 | K96: 0 | L96: 0 | M96: 0 | N96: 0 | O96: 59 | P96: 0 | Q96: 0 | R96: 0 | S96: 0
A97: Q79 | B97: RDD | C97: BASILDON AND THURROCK UNIVERSITY HOSPITALS NHS FOUNDATION TRUST | D97: 86 | E97: 1 | F97: 0 | G97: 78 | H97: 8 | I97: 0 | J97: 0 | K97: 0 | L97: 0 | M97: 0 | N97: 0 | O97: 86 | P97: 0 | Q97: 0 | R97: 0 | S97: 0
A98: Q79 | B98: RGT | C98: CAMBRIDGE UNIVERSITY HOSPITALS NHS FOUNDATION TRUST | D98: 42 | E98: 0.9761904762 | F98: 0.02380952381 | G98: 22 | H98: 19 | I98: 0 | J98: 1 | K98: 0 | L98: 0 | M98: 0 | N98: 42 | O98: 0 | P98: 0 | Q98: 0 | R98: 0 | S98: 0
A99: Q79 | B99: RDE | C99: COLCHESTER HOSPITAL UNIVERSITY NHS FOUNDATION TRUST | D99: 0 | E99: NA | F99: NA | G99: 0 | H99: 0 | I99: 0 | J99: 0 | K99: 0 | L99: 0 | M99: 0 | N99: 0 | O99: 0 | P99: 0 | Q99: 0 | R99: 0 | S99: 0
A100: Q79 | B100: RGQ | C100: IPSWICH HOSPITAL NHS TRUST | D100: 129 | E100: 0.992248062 | F100: 0.007751937984 | G100: 110 | H100: 18 | I100: 0 | J100: 1 | K100: 0 | L100: 0 | M100: 0 | N100: 129 | O100: 0 | P100: 0 | Q100: 0 | R100: 0 | S100: 0
A101: Q79 | B101: RGP | C101: JAMES PAGET UNIVERSITY HOSPITALS NHS FOUNDATION TRUST | D101: 47 | E101: 0.9787234043 | F101: 0 | G101: 42 | H101: 4 | I101: 1 | J101: 0 | K101: 0 | L101: 0 | M101: 0 | N101: 0 | O101: 47 | P101: 0 | Q101: 0 | R101: 0 | S101: 0
A102: Q79 | B102: RQ8 | C102: MID ESSEX HOSPITAL SERVICES NHS TRUST | D102: 3 | E102: * | F102: * | G102: * | H102: * | I102: * | J102: * | K102: * | L102: * | M102: * | N102: * | O102: * | P102: * | Q102: * | R102: * | S102: *
A103: Q79 | B103: RM1 | C103: NORFOLK AND NORWICH UNIVERSITY HOSPITALS NHS FOUNDATION TRUST | D103: 24 | E103: 0.9583333333 | F103: 0 | G103: 16 | H103: 7 | I103: 1 | J103: 0 | K103: 0 | L103: 0 | M103: 0 | N103: 0 | O103: 24 | P103: 0 | Q103: 0 | R103: 0 | S103: 0
A104: Q79 | B104: RGN | C104: NORTH WEST ANGLIA NHS FOUNDATION TRUST | D104: 315 | E104: 0.9746031746 | F104: 0.003174603175 | G104: 252 | H104: 55 | I104: 3 | J104: 1 | K104: 0 | L104: 4 | M104: 0 | N104: 0 | O104: 315 | P104: 0 | Q104: 0 | R104: 0 | S104: 0
A105: Q79 | B105: RAJ | C105: SOUTHEND UNIVERSITY HOSPITAL NHS FOUNDATION TRUST | D105: 3 | E105: * | F105: * | G105: * | H105: * | I105: * | J105: * | K105: * | L105: * | M105: * | N105: * | O105: * | P105: * | Q105: * | R105: * | S105: *
A106: Q79 | B106: RQW | C106: THE PRINCESS ALEXANDRA HOSPITAL NHS TRUST | D106: 48 | E106: 1 | F106: 0 | G106: 48 | H106: 0 | I106: 0 | J106: 0 | K106: 0 | L106: 0 | M106: 0 | N106: 0 | O106: 0 | P106: 0 | Q106: 0 | R106: 0 | S106: 48
A107: Q79 | B107: RCX | C107: THE QUEEN ELIZABETH HOSPITAL, KING'S LYNN, NHS FOUNDATION TRUST | D107: 196 | E107: 0.9642857143 | F107: 0.01020408163 | G107: 146 | H107: 43 | I107: 3 | J107: 2 | K107: 0 | L107: 2 | M107: 0 | N107: 39 | O107: 157 | P107: 0 | Q107: 0 | R107: 0 | S107: 0
A108: Q79 | B108: RGR | C108: WEST SUFFOLK NHS FOUNDATION TRUST | D108: 59 | E108: 0.9830508475 | F108: 0.01694915254 | G108: 47 | H108: 11 | I108: 0 | J108: 0 | K108: 1 | L108: 0 | M108: 0 | N108: 59 | O108: 0 | P108: 0 | Q108: 0 | R108: 0 | S108: 0
A109: Q80 | B109: RVJ | C109: NORTH BRISTOL NHS TRUST | D109: 11 | E109: 1 | F109: 0 | G109: 8 | H109: 3 | I109: 0 | J109: 0 | K109: 0 | L109: 0 | M109: 0 | N109: 0 | O109: 11 | P109: 0 | Q109: 0 | R109: 0 | S109: 0
A110: Q80 | B110: RBZ | C110: NORTHERN DEVON HEALTHCARE NHS TRUST | D110: 1 | E110: * | F110: * | G110: * | H110: * | I110: * | J110: * | K110: * | L110: * | M110: * | N110: * | O110: * | P110: * | Q110: * | R110: * | S110: *
A111: Q80 | B111: RK9 | C111: PLYMOUTH HOSPITALS NHS TRUST | D111: 107 | E111: 0.953271028 | F111: 0.009345794393 | G111: 80 | H111: 22 | I111: 3 | J111: 1 | K111: 0 | L111: 1 | M111: 0 | N111: 1 | O111: 106 | P111: 0 | Q111: 0 | R111: 0 | S111: 0
A112: Q80 | B112: REF | C112: ROYAL CORNWALL HOSPITALS NHS TRUST | D112: 22 | E112: 0.9545454545 | F112: 0.04545454545 | G112: 16 | H112: 5 | I112: 0 | J112: 1 | K112: 0 | L112: 0 | M112: 0 | N112: 0 | O112: 22 | P112: 0 | Q112: 0 | R112: 0 | S112: 0
A113: Q80 | B113: RH8 | C113: ROYAL DEVON AND EXETER NHS FOUNDATION TRUST | D113: 1 | E113: * | F113: * | G113: * | H113: * | I113: * | J113: * | K113: * | L113: * | M113: * | N113: * | O113: * | P113: * | Q113: * | R113: * | S113: *
A114: Q80 | B114: RBA | C114: TAUNTON AND SOMERSET NHS FOUNDATION TRUST | D114: 3 | E114: * | F114: * | G114: * | H114: * | I114: * | J114: * | K114: * | L114: * | M114: * | N114: * | O114: * | P114: * | Q114: * | R114: * | S114: *
A115: Q80 | B115: RA9 | C115: TORBAY AND SOUTH DEVON NHS FOUNDATION TRUST | D115: 21 | E115: 1 | F115: 0 | G115: 20 | H115: 1 | I115: 0 | J115: 0 | K115: 0 | L115: 0 | M115: 0 | N115: 0 | O115: 21 | P115: 0 | Q115: 0 | R115: 0 | S115: 0
A116: Q80 | B116: RA7 | C116: UNIVERSITY HOSPITALS BRISTOL NHS FOUNDATION TRUST | D116: 74 | E116: 1 | F116: 0 | G116: 57 | H116: 17 | I116: 0 | J116: 0 | K116: 0 | L116: 0 | M116: 0 | N116: 0 | O116: 74 | P116: 0 | Q116: 0 | R116: 0 | S116: 0
A117: Q80 | B117: RA3 | C117: WESTON AREA HEALTH NHS TRUST | D117: 21 | E117: 1 | F117: 0 | G117: 18 | H117: 3 | I117: 0 | J117: 0 | K117: 0 | L117: 0 | M117: 0 | N117: 0 | O117: 21 | P117: 0 | Q117: 0 | R117: 0 | S117: 0
A118: Q80 | B118: RA4 | C118: YEOVIL DISTRICT HOSPITAL NHS FOUNDATION TRUST | D118: 95 | E118: 0.9894736842 | F118: 0 | G118: 75 | H118: 19 | I118: 0 | J118: 0 | K118: 0 | L118: 1 | M118: 0 | N118: 0 | O118: 95 | P118: 0 | Q118: 0 | R118: 0 | S118: 0
A119: Q81 | B119: RTK | C119: ASHFORD AND ST PETER'S HOSPITALS NHS FOUNDATION TRUST | D119: 0 | E119: NA | F119: NA | G119: 0 | H119: 0 | I119: 0 | J119: 0 | K119: 0 | L119: 0 | M119: 0 | N119: 0 | O119: 0 | P119: 0 | Q119: 0 | R119: 0 | S119: 0
A120: Q81 | B120: RXH | C120: BRIGHTON AND SUSSEX UNIVERSITY HOSPITALS NHS TRUST | D120: 1 | E120: * | F120: * | G120: * | H120: * | I120: * | J120: * | K120: * | L120: * | M120: * | N120: * | O120: * | P120: * | Q120: * | R120: * | S120: *
A121: Q81 | B121: RN7 | C121: DARTFORD AND GRAVESHAM NHS TRUST | D121: 1 | E121: * | F121: * | G121: * | H121: * | I121: * | J121: * | K121: * | L121: * | M121: * | N121: * | O121: * | P121: * | Q121: * | R121: * | S121: *
A122: Q81 | B122: RVV | C122: EAST KENT HOSPITALS UNIVERSITY NHS FOUNDATION TRUST | D122: 6 | E122: 1 | F122: 0 | G122: 6 | H122: 0 | I122: 0 | J122: 0 | K122: 0 | L122: 0 | M122: 0 | N122: 0 | O122: 0 | P122: 6 | Q122: 0 | R122: 0 | S122: 0
A123: Q81 | B123: RXC | C123: EAST SUSSEX HEALTHCARE NHS TRUST | D123: 10 | E123: 1 | F123: 0 | G123: 8 | H123: 2 | I123: 0 | J123: 0 | K123: 0 | L123: 0 | M123: 0 | N123: 10 | O123: 0 | P123: 0 | Q123: 0 | R123: 0 | S123: 0
A124: Q81 | B124: RDU | C124: FRIMLEY HEALTH NHS FOUNDATION TRUST | D124: 103 | E124: 0.9223300971 | F124: 0.04854368932 | G124: 74 | H124: 21 | I124: 3 | J124: 1 | K124: 4 | L124: 0 | M124: 0 | N124: 0 | O124: 38 | P124: 64 | Q124: 0 | R124: 1 | S124: 0
A125: Q81 | B125: RWF | C125: MAIDSTONE AND TUNBRIDGE WELLS NHS TRUST | D125: 13 | E125: 0.9230769231 | F125: 0.07692307692 | G125: 10 | H125: 2 | I125: 0 | J125: 1 | K125: 0 | L125: 0 | M125: 0 | N125: 0 | O125: 12 | P125: 0 | Q125: 0 | R125: 1 | S125: 0
A126: Q81 | B126: RPA | C126: MEDWAY NHS FOUNDATION TRUST | D126: 82 | E126: 1 | F126: 0 | G126: 77 | H126: 5 | I126: 0 | J126: 0 | K126: 0 | L126: 0 | M126: 0 | N126: 0 | O126: 82 | P126: 0 | Q126: 0 | R126: 0 | S126: 0
A127: Q81 | B127: RA2 | C127: ROYAL SURREY COUNTY HOSPITAL NHS FOUNDATION TRUST | D127: 65 | E127: 0.9538461538 | F127: 0.01538461538 | G127: 54 | H127: 8 | I127: 1 | J127: 1 | K127: 0 | L127: 1 | M127: 0 | N127: 0 | O127: 65 | P127: 0 | Q127: 0 | R127: 0 | S127: 0
A128: Q81 | B128: RTP | C128: SURREY AND SUSSEX HEALTHCARE NHS TRUST | D128: 38 | E128: 0.9473684211 | F128: 0.02631578947 | G128: 29 | H128: 7 | I128: 1 | J128: 1 | K128: 0 | L128: 0 | M128: 0 | N128: 0 | O128: 35 | P128: 0 | Q128: 0 | R128: 3 | S128: 0
A129: Q81 | B129: RYR | C129: WESTERN SUSSEX HOSPITALS NHS FOUNDATION TRUST | D129: 21 | E129: 0.9523809524 | F129: 0.04761904762 | G129: 17 | H129: 3 | I129: 0 | J129: 0 | K129: 1 | L129: 0 | M129: 0 | N129: 0 | O129: 21 | P129: 0 | Q129: 0 | R129: 0 | S129: 0
A130: Q82 | B130: RXQ | C130: BUCKINGHAMSHIRE HEALTHCARE NHS TRUST | D130: 31 | E130: 1 | F130: 0 | G130: 28 | H130: 3 | I130: 0 | J130: 0 | K130: 0 | L130: 0 | M130: 0 | N130: 0 | O130: 31 | P130: 0 | Q130: 0 | R130: 0 | S130: 0
A131: Q82 | B131: RTE | C131: GLOUCESTERSHIRE HOSPITALS NHS FOUNDATION TRUST | D131: 0 | E131: NA | F131: NA | G131: 0 | H131: 0 | I131: 0 | J131: 0 | K131: 0 | L131: 0 | M131: 0 | N131: 0 | O131: 0 | P131: 0 | Q131: 0 | R131: 0 | S131: 0
A132: Q82 | B132: RN3 | C132: GREAT WESTERN HOSPITALS NHS FOUNDATION TRUST | D132: 13 | E132: 1 | F132: 0 | G132: 10 | H132: 3 | I132: 0 | J132: 0 | K132: 0 | L132: 0 | M132: 0 | N132: 0 | O132: 13 | P132: 0 | Q132: 0 | R132: 0 | S132: 0
A133: Q82 | B133: RTH | C133: OXFORD UNIVERSITY HOSPITALS NHS FOUNDATION TRUST | D133: 68 | E133: 0.9411764706 | F133: 0.02941176471 | G133: 38 | H133: 26 | I133: 2 | J133: 2 | K133: 0 | L133: 0 | M133: 0 | N133: 0 | O133: 68 | P133: 0 | Q133: 0 | R133: 0 | S133: 0
A134: Q82 | B134: RHW | C134: ROYAL BERKSHIRE NHS FOUNDATION TRUST | D134: 104 | E134: 0.9807692308 | F134: 0 | G134: 77 | H134: 25 | I134: 2 | J134: 0 | K134: 0 | L134: 0 | M134: 0 | N134: 0 | O134: 103 | P134: 0 | Q134: 0 | R134: 1 | S134: 0
A135: Q82 | B135: RD1 | C135: ROYAL UNITED HOSPITALS BATH NHS FOUNDATION TRUST | D135: 110 | E135: 0.9545454545 | F135: 0.02727272727 | G135: 90 | H135: 15 | I135: 2 | J135: 2 | K135: 1 | L135: 0 | M135: 0 | N135: 0 | O135: 110 | P135: 0 | Q135: 0 | R135: 0 | S135: 0
A136: Q82 | B136: RNZ | C136: SALISBURY NHS FOUNDATION TRUST | D136: 10 | E136: 0.9 | F136: 0 | G136: 8 | H136: 1 | I136: 1 | J136: 0 | K136: 0 | L136: 0 | M136: 0 | N136: 0 | O136: 10 | P136: 0 | Q136: 0 | R136: 0 | S136: 0
A137: Q83 | B137: RMC | C137: BOLTON NHS FOUNDATION TRUST | D137: 107 | E137: 0.9906542056 | F137: 0 | G137: 88 | H137: 18 | I137: 1 | J137: 0 | K137: 0 | L137: 0 | M137: 0 | N137: 0 | O137: 0 | P137: 107 | Q137: 0 | R137: 0 | S137: 0
A138: Q83 | B138: RY2 | C138: BRIDGEWATER COMMUNITY HEALTHCARE NHS FOUNDATION TRUST | D138: 24 | E138: 1 | F138: 0 | G138: 24 | H138: 0 | I138: 0 | J138: 0 | K138: 0 | L138: 0 | M138: 0 | N138: 0 | O138: 24 | P138: 0 | Q138: 0 | R138: 0 | S138: 0
A139: Q83 | B139: RW3 | C139: CENTRAL MANCHESTER UNIVERSITY HOSPITALS NHS FOUNDATION TRUST | D139: 130 | E139: 0.9615384615 | F139: 0.01538461538 | G139: 91 | H139: 34 | I139: 2 | J139: 1 | K139: 1 | L139: 1 | M139: 0 | N139: 4 | O139: 119 | P139: 0 | Q139: 0 | R139: 7 | S139: 0
A140: Q83 | B140: RW6 | C140: PENNINE ACUTE HOSPITALS NHS TRUST | D140: 23 | E140: 0.9130434783 | F140: 0.04347826087 | G140: 17 | H140: 4 | I140: 0 | J140: 0 | K140: 1 | L140: 1 | M140: 0 | N140: 0 | O140: 23 | P140: 0 | Q140: 0 | R140: 0 | S140: 0
A141: Q83 | B141: RWJ | C141: STOCKPORT NHS FOUNDATION TRUST | D141: 29 | E141: 0.9310344828 | F141: 0.03448275862 | G141: 17 | H141: 10 | I141: 1 | J141: 0 | K141: 1 | L141: 0 | M141: 0 | N141: 0 | O141: 29 | P141: 0 | Q141: 0 | R141: 0 | S141: 0
A142: Q83 | B142: RMP | C142: TAMESIDE AND GLOSSOP INTEGRATED CARE NHS FOUNDATION TRUST | D142: 8 | E142: 1 | F142: 0 | G142: 4 | H142: 4 | I142: 0 | J142: 0 | K142: 0 | L142: 0 | M142: 0 | N142: 0 | O142: 8 | P142: 0 | Q142: 0 | R142: 0 | S142: 0
A143: Q83 | B143: RM2 | C143: UNIVERSITY HOSPITAL OF SOUTH MANCHESTER NHS FOUNDATION TRUST | D143: 34 | E143: 0.9705882353 | F143: 0.02941176471 | G143: 28 | H143: 5 | I143: 0 | J143: 0 | K143: 1 | L143: 0 | M143: 0 | N143: 0 | O143: 34 | P143: 0 | Q143: 0 | R143: 0 | S143: 0
A144: Q83 | B144: RRF | C144: WRIGHTINGTON, WIGAN AND LEIGH NHS FOUNDATION TRUST | D144: 5 | E144: 1 | F144: 0 | G144: 3 | H144: 2 | I144: 0 | J144: 0 | K144: 0 | L144: 0 | M144: 2 | N144: 0 | O144: 3 | P144: 0 | Q144: 0 | R144: 0 | S144: 0
A145: Q84 | B145: RXL | C145: BLACKPOOL TEACHING HOSPITALS NHS FOUNDATION TRUST | D145: 88 | E145: 0.9545454545 | F145: 0.01136363636 | G145: 62 | H145: 22 | I145: 2 | J145: 1 | K145: 0 | L145: 1 | M145: 0 | N145: 66 | O145: 22 | P145: 0 | Q145: 0 | R145: 0 | S145: 0
A146: Q84 | B146: RXR | C146: EAST LANCASHIRE HOSPITALS NHS TRUST | D146: 93 | E146: 1 | F146: 0 | G146: 85 | H146: 8 | I146: 0 | J146: 0 | K146: 0 | L146: 0 | M146: 0 | N146: 0 | O146: 93 | P146: 0 | Q146: 0 | R146: 0 | S146: 0
A147: Q84 | B147: RXN | C147: LANCASHIRE TEACHING HOSPITALS NHS FOUNDATION TRUST | D147: 33 | E147: 0.9393939394 | F147: 0.0303030303 | G147: 25 | H147: 6 | I147: 1 | J147: 0 | K147: 1 | L147: 0 | M147: 31 | N147: 0 | O147: 0 | P147: 0 | Q147: 2 | R147: 0 | S147: 0
A148: zIS1 | B148: NDE | C148: ONE TO ONE (NORTH WEST) LIMITED | D148: 48 | E148: 1 | F148: 0 | G148: 43 | H148: 5 | I148: 0 | J148: 0 | K148: 0 | L148: 0 | M148: 0 | N148: 48 | O148: 0 | P148: 0 | Q148: 0 | R148: 0 | S148: 0

Sheet Sites Q1
B6: Sort data by:
A9: Region (LO) Code | B9: Trust Code | C9: Trust Name | D9: Site Code | E9: Site Name | F9: Total Responses | G9: Percentage Recommended | H9: Percentage Not Recommended | I9: Breakdown of Responses
I10: Extremely Likely | J10: Likely | K10: Neither | L10: Unlikely | M10: Extremely Unlikely | N10: Don't Know
E11: England (including Independent Sector providers) | F11: 7043 | G11: 0.9649297174 | H11: 0.01235269061 | I11: 5321 | J11: 1475 | K11: 113 | L11: 41 | M11: 46 | N11: 47
E12: England (excluding Independent Sector providers) | F12: 6995 | G12: 0.9646890636 | H12: 0.01243745533 | I12: 5278 | J12: 1470 | K12: 113 | L12: 41 | M12: 46 | N12: 47
E13: Selection (excluding suppressed data) | F13: =SUBTOTAL(9,F14:F297) -> 7043 | G13: =IFERROR((I13+J13)/SUM(I13:N13), "-") -> 0.9653076353 | H13: =IFERROR((L13+M13)/SUM(I13:N13), "-") -> 0.01245366938 | I13: =SUBTOTAL(9,I14:I297) -> 5110 | J13: 1401 | K13: 104 | L13: 38 | M13: 46 | N13: 46
A14: Q70 | B14: RN5 | C14: HAMPSHIRE HOSPITALS NHS FOUNDATION TRUST | D14: RN542 | E14: Andover War Memorial Hospital - RN542 | F14: 13 | G14: 1 | H14: 0 | I14: 12 | J14: 1 | K14: 0 | L14: 0 | M14: 0 | N14: 0
A15: Q70 | B15: RN5 | C15: HAMPSHIRE HOSPITALS NHS FOUNDATION TRUST | D15: RN506 | E15: Basingstoke and North Hampshire Hospital - RN506 | F15: 27 | G15: 0.962962963 | H15: 0 | I15: 22 | J15: 4 | K15: 1 | L15: 0 | M15: 0 | N15: 0
A16: Q70 | B16: RBD | C16: DORSET COUNTY HOSPITAL NHS FOUNDATION TRUST | D16: RBD01 | E16: Dorset County Hospital - RBD01 | F16: 25 | G16: 0.88 | H16: 0.04 | I16: 19 | J16: 3 | K16: 0 | L16: 1 | M16: 0 | N16: 2
A17: Q70 | B17: RHU | C17: PORTSMOUTH HOSPITALS NHS TRUST | D17: RHU10 | E17: Gosport War Memorial Hospital - RHU10 | F17: 23 | G17: 0.9565217391 | H17: 0 | I17: 21 | J17: 1 | K17: 1 | L17: 0 | M17: 0 | N17: 0
A18: Q70 | B18: RHU | C18: PORTSMOUTH HOSPITALS NHS TRUST | D18: RHU04 | E18: Petersfield Community Hospital - RHU04 | F18: 8 | G18: 0.875 | H18: 0 | I18: 5 | J18: 2 | K18: 1 | L18: 0 | M18: 0 | N18: 0
A19: Q70 | B19: RD3 | C19: POOLE HOSPITAL NHS FOUNDATION TRUST | D19: RD304 | E19: Poole General Hospital NHS Trust HQ - RD304 | F19: 9 | G19: 0.8888888889 | H19: 0 | I19: * | J19: * | K19: * | L19: * | M19: * | N19: *
A20: Q70 | B20: RHU | C20: PORTSMOUTH HOSPITALS NHS TRUST | D20: RHU03 | E20: Queen Alexandra Hospital - RHU03 | F20: 1 | G20: * | H20: * | I20: * | J20: * | K20: * | L20: * | M20: * | N20: *
A21: Q70 | B21: RDZ | C21: THE ROYAL BOURNEMOUTH AND CHRISTCHURCH HOSPITALS NHS FOUNDATION TRUST | D21: RDZ20 | E21: Royal Bournemouth General Hospital - RDZ20 | F21: 104 | G21: 0.9230769231 | H21: 0.04807692308 | I21: 67 | J21: 29 | K21: 3 | L21: 3 | M21: 2 | N21: 0
A22: Q70 | B22: RN5 | C22: HAMPSHIRE HOSPITALS NHS FOUNDATION TRUST | D22: RN541 | E22: Royal Hampshire County Hospital - RN541 | F22: 15 | G22: 0.9333333333 | H22: 0 | I22: 12 | J22: 2 | K22: 1 | L22: 0 | M22: 0 | N22: 0
A23: Q70 | B23: RHM | C23: UNIVERSITY HOSPITAL SOUTHAMPTON NHS FOUNDATION TRUST | D23: RHM01 | E23: Southampton General Hospital - RHM01 | F23: 151 | G23: 0.9602649007 | H23: 0.01324503311 | I23: 108 | J23: 37 | K23: 1 | L23: 0 | M23: 2 | N23: 3
A24: Q70 | B24: R1F | C24: ISLE OF WIGHT NHS TRUST | D24: R1F01 | E24: St Mary's Hospital - R1F01 | F24: 1 | G24: * | H24: * | I24: * | J24: * | K24: * | L24: * | M24: * | N24: *
A25: Q70 | B25: RHU | C25: PORTSMOUTH HOSPITALS NHS TRUST | D25: RHU02 | E25: St Mary's Hospital - RHU02 | F25: 2 | G25: * | H25: * | I25: * | J25: * | K25: * | L25: * | M25: * | N25: *
A26: Q71 | B26: RAL | C26: ROYAL FREE LONDON NHS FOUNDATION TRUST | D26: RAL26 | E26: Barnet Hospital - RAL26 | F26: 38 | G26: 0.9736842105 | H26: 0 | I26: 24 | J26: 13 | K26: 1 | L26: 0 | M26: 0 | N26: 0
A27: Q71 | B27: R1K | C27: LONDON NORTH WEST HEALTHCARE NHS TRUST | D27: R1K02 | E27: Central Middlesex Hospital - R1K02 | F27: 2 | G27: * | H27: * | I27: * | J27: * | K27: * | L27: * | M27: * | N27: *
A28: Q71 | B28: RQM | C28: CHELSEA AND WESTMINSTER HOSPITAL NHS FOUNDATION TRUST | D28: RQM01 | E28: Chelsea and Westminster Hospital - RQM01 | F28: 42 | G28: 0.8333333333 | H28: 0.09523809524 | I28: 27 | J28: 8 | K28: 3 | L28: 2 | M28: 2 | N28: 0
A29: Q71 | B29: RJ6 | C29: CROYDON HEALTH SERVICES NHS TRUST | D29: RJ611 | E29: Croydon University Hospital - RJ611 | F29: 25 | G29: 1 | H29: 0 | I29: 17 | J29: 8 | K29: 0 | L29: 0 | M29: 0 | N29: 0
A30: Q71 | B30: R1K | C30: LONDON NORTH WEST HEALTHCARE NHS TRUST | D30: R1K04 | E30: Ealing Hospital - R1K04 | F30: 1 | G30: * | H30: * | I30: * | J30: * | K30: * | L30: * | M30: * | N30: *
A31: Q71 | B31: RVR | C31: EPSOM AND ST HELIER UNIVERSITY HOSPITALS NHS TRUST | D31: RVR50 | E31: Epsom Hospital - RVR50 | F31: 4 | G31: * | H31: * | I31: * | J31: * | K31: * | L31: * | M31: * | N31: *
A32: Q71 | B32: RAS | C32: THE HILLINGDON HOSPITALS NHS FOUNDATION TRUST | D32: RAS01 | E32: Hillingdon Hospital - RAS01 | F32: 61 | G32: 0.9672131148 | H32: 0 | I32: 53 | J32: 6 | K32: 1 | L32: 0 | M32: 0 | N32: 1
A33: Q71 | B33: RQX | C33: HOMERTON UNIVERSITY HOSPITAL NHS FOUNDATION TRUST | D33: RQXM1 | E33: Homerton University Hospital - RQXM1 | F33: 107 | G33: 0.9345794393 | H33: 0.01869158879 | I33: 80 | J33: 20 | K33: 3 | L33: 1 | M33: 1 | N33: 2
A34: Q71 | B34: RJZ | C34: KING'S COLLEGE HOSPITAL NHS FOUNDATION TRUST | D34: RJZ01 | E34: King's College Hospital (Denmark Hill) - RJZ01 | F34: 30 | G34: 0.9 | H34: 0 | I34: 19 | J34: 8 | K34: 3 | L34: 0 | M34: 0 | N34: 0
A35: Q71 | B35: RAX | C35: KINGSTON HOSPITAL NHS FOUNDATION TRUST | D35: RAX01 | E35: Kingston Hospital - RAX01 | F35: 17 | G35: 1 | H35: 0 | I35: 10 | J35: 7 | K35: 0 | L35: 0 | M35: 0 | N35: 0
A36: Q71 | B36: R1H | C36: BARTS HEALTH NHS TRUST | D36: R1HNH | E36: Newham General Hospital - R1HNH | F36: 10 | G36: 1 | H36: 0 | I36: 8 | J36: 2 | K36: 0 | L36: 0 | M36: 0 | N36: 0
A37: Q71 | B37: R1K | C37: LONDON NORTH WEST HEALTHCARE NHS TRUST | D37: R1KXXX | E37: Non-hospital site - R1KXXX | F37: 13 | G37: 1 | H37: 0 | I37: 11 | J37: 2 | K37: 0 | L37: 0 | M37: 0 | N37: 0
A38: Q71 | B38: RAX | C38: KINGSTON HOSPITAL NHS FOUNDATION TRUST | D38: RAXXXX | E38: Non-hospital site - RAXXXX | F38: 12 | G38: 1 | H38: 0 | I38: 9 | J38: 3 | K38: 0 | L38: 0 | M38: 0 | N38: 0
A39: Q71 | B39: RJ2 | C39: LEWISHAM AND GREENWICH NHS TRUST | D39: RJ2XXX | E39: Non-hospital site - RJ2XXX | F39: 84 | G39: 1 | H39: 0 | I39: 56 | J39: 28 | K39: 0 | L39: 0 | M39: 0 | N39: 0
A40: Q71 | B40: RJ7 | C40: ST GEORGE'S UNIVERSITY HOSPITALS NHS FOUNDATION TRUST | D40: RJ7XXX | E40: Non-hospital site - RJ7XXX | F40: 0 | G40: NA | H40: NA | I40: 0 | J40: 0 | K40: 0 | L40: 0 | M40: 0 | N40: 0
A41: Q71 | B41: RKE | C41: THE WHITTINGTON HOSPITAL NHS TRUST | D41: RKEXXX | E41: Non-hospital site - RKEXXX | F41: 20 | G41: 0.95 | H41: 0.05 | I41: * | J41: * | K41: * | L41: * | M41: * | N41: *
A42: Q71 | B42: RVR | C42: EPSOM AND ST HELIER UNIVERSITY HOSPITALS NHS TRUST | D42: RVRXXX | E42: Non-hospital site - RVRXXX | F42: 2 | G42: * | H42: * | I42: * | J42: * | K42: * | L42: * | M42: * | N42: *
A43: Q71 | B43: RAP | C43: NORTH MIDDLESEX UNIVERSITY HOSPITAL NHS TRUST | D43: RAPNM | E43: North Middlesex Hospital - RAPNM | F43: 13 | G43: 1 | H43: 0 | I43: 10 | J43: 3 | K43: 0 | L43: 0 | M43: 0 | N43: 0
A44: Q71 | B44: R1K | C44: LONDON NORTH WEST HEALTHCARE NHS TRUST | D44: R1K01 | E44: Northwick Park Hospital - R1K01 | F44: 61 | G44: 0.8852459016 | H44: 0.01639344262 | I44: 28 | J44: 26 | K44: 4 | L44: 1 | M44: 0 | N44: 2
A45: Q71 | B45: RJZ | C45: KING'S COLLEGE HOSPITAL NHS FOUNDATION TRUST | D45: RJZ30 | E45: Princess Royal University Hospital - RJZ30 | F45: 5 | G45: 0.8 | H45: 0.2 | I45: 4 | J45: 0 | K45: 0 | L45: 0 | M45: 1 | N45: 0
A46: Q71 | B46: RYJ | C46: IMPERIAL COLLEGE HEALTHCARE NHS TRUST | D46: RYJ04 | E46: Queen Charlotte's Hospital - RYJ04 | F46: 56 | G46: 0.9464285714 | H46: 0 | I46: 32 | J46: 21 | K46: 2 | L46: 0 | M46: 0 | N46: 1
A47: Q71 | B47: RJ2 | C47: LEWISHAM AND GREENWICH NHS TRUST | D47: RJ231 | E47: Queen Elizabeth Hospital - RJ231 | F47: 2 | G47: * | H47: * | I47: * | J47: * | K47: * | L47: * | M47: * | N47: *
A48: Q71 | B48: RF4 | C48: BARKING, HAVERING AND REDBRIDGE UNIVERSITY HOSPITALS NHS TRUST | D48: RF4QH | E48: Queen's Hospital - RF4QH | F48: 221 | G48: 0.9864253394 | H48: 0.004524886878 | I48: 179 | J48: 39 | K48: 0 | L48: 0 | M48: 1 | N48: 2
A49: Q71 | B49: RAL | C49: ROYAL FREE LONDON NHS FOUNDATION TRUST | D49: RAL01 | E49: Royal Free Hospital - RAL01 | F49: 12 | G49: 1 | H49: 0 | I49: 4 | J49: 8 | K49: 0 | L49: 0 | M49: 0 | N49: 0
A50: Q71 | B50: RJ7 | C50: ST GEORGE'S UNIVERSITY HOSPITALS NHS FOUNDATION TRUST | D50: RJ701 | E50: St George's Hospital (Tooting) - RJ701 | F50: 7 | G50: 0.8571428571 | H50: 0 | I50: 3 | J50: 3 | K50: 0 | L50: 0 | M50: 0 | N50: 1
A51: Q71 | B51: RVR | C51: EPSOM AND ST HELIER UNIVERSITY HOSPITALS NHS TRUST | D51: RVR05 | E51: St Helier Hospital - RVR05 | F51: 5 | G51: 1 | H51: 0 | I51: 5 | J51: 0 | K51: 0 | L51: 0 | M51: 0 | N51: 0
A52: Q71 | B52: RYJ | C52: IMPERIAL COLLEGE HEALTHCARE NHS TRUST | D52: RYJ01 | E52: St Mary's Hospital (HQ) - RYJ01 | F52: 27 | G52: 1 | H52: 0 | I52: 12 | J52: 15 | K52: 0 | L52: 0 | M52: 0 | N52: 0
A53: Q71 | B53: RJ1 | C53: GUY'S AND ST THOMAS' NHS FOUNDATION TRUST | D53: RJ122 | E53: St Thomas' Hospital - RJ122 | F53: 0 | G53: NA | H53: NA | I53: 0 | J53: 0 | K53: 0 | L53: 0 | M53: 0 | N53: 0
A54: Q71 | B54: R1H | C54: BARTS HEALTH NHS TRUST | D54: R1H12 | E54: The Royal London Hospital - R1H12 | F54: 80 | G54: 0.9625 | H54: 0 | I54: 52 | J54: 25 | K54: 1 | L54: 0 | M54: 0 | N54: 2
A55: Q71 | B55: RKE | C55: THE WHITTINGTON HOSPITAL NHS TRUST | D55: RKEQ4 | E55: The Whittington Hospital - RKEQ4 | F55: 1 | G55: * | H55: * | I55: * | J55: * | K55: * | L55: * | M55: * | N55: *
A56: Q71 | B56: RRV | C56: UNIVERSITY COLLEGE LONDON HOSPITALS NHS FOUNDATION TRUST | D56: RRV03 | E56: University College Hospital - RRV03 | F56: 204 | G56: 0.931372549 | H56: 0.01960784314 | I56: 142 | J56: 48 | K56: 6 | L56: 1 | M56: 3 | N56: 4
A57: Q71 | B57: RJ2 | C57: LEWISHAM AND GREENWICH NHS TRUST | D57: RJ224 | E57: University Hospital Lewisham - RJ224 | F57: 15 | G57: 1 | H57: 0 | I57: * | J57: * | K57: * | L57: * | M57: * | N57: *
A58: Q71 | B58: RQM | C58: CHELSEA AND WESTMINSTER HOSPITAL NHS FOUNDATION TRUST | D58: RQM91 | E58: West Middlesex University Hospital - RQM91 | F58: 58 | G58: 0.9137931034 | H58: 0.05172413793 | I58: 44 | J58: 9 | K58: 2 | L58: 0 | M58: 3 | N58: 0
A59: Q71 | B59: R1H | C59: BARTS HEALTH NHS TRUST | D59: R1HKH | E59: Whipps Cross University Hospital - R1HKH | F59: 0 | G59: NA | H59: NA | I59: 0 | J59: 0 | K59: 0 | L59: 0 | M59: 0 | N59: 0
A60: Q72 | B60: RCF | C60: AIREDALE NHS FOUNDATION TRUST | D60: RCF22 | E60: Airedale General Hospital - RCF22 | F60: 5 | G60: 1 | H60: 0 | I60: 4 | J60: 1 | K60: 0 | L60: 0 | M60: 0 | N60: 0
A61: Q72 | B61: RFF | C61: BARNSLEY HOSPITAL NHS FOUNDATION TRUST | D61: RFFAA | E61: Barnsley Hospital NHS Foundation Trust HQ - RFFAA | F61: 55 | G61: 0.9818181818 | H61: 0 | I61: 46 | J61: 8 | K61: 1 | L61: 0 | M61: 0 | N61: 0
A62: Q72 | B62: RP5 | C62: DONCASTER AND BASSETLAW TEACHING HOSPITALS NHS FOUNDATION TRUST | D62: RP5BA | E62: Bassetlaw Hospital - RP5BA | F62: 0 | G62: NA | H62: NA | I62: 0 | J62: 0 | K62: 0 | L62: 0 | M62: 0 | N62: 0
A63: Q72 | B63: RAE | C63: BRADFORD TEACHING HOSPITALS NHS FOUNDATION TRUST | D63: RAE01 | E63: Bradford Royal Infirmary - RAE01 | F63: 8 | G63: 0.75 | H63: 0 | I63: 5 | J63: 1 | K63: 2 | L63: 0 | M63: 0 | N63: 0
A64: Q72 | B64: RXF | C64: MID YORKSHIRE HOSPITALS NHS TRUST | D64: RXF10 | E64: Dewsbury and District Hospital - RXF10 | F64: 8 | G64: 1 | H64: 0 | I64: 5 | J64: 3 | K64: 0 | L64: 0 | M64: 0 | N64: 0
A65: Q72 | B65: RJL | C65: NORTHERN LINCOLNSHIRE AND GOOLE NHS FOUNDATION TRUST | D65: RJL30 | E65: Diana, Princess Of Wales Hospital - RJL30 | F65: 9 | G65: 1 | H65: 0 | I65: 5 | J65: 4 | K65: 0 | L65: 0 | M65: 0 | N65: 0
A66: Q72 | B66: RP5 | C66: DONCASTER AND BASSETLAW TEACHING HOSPITALS NHS FOUNDATION TRUST | D66: RP5DR | E66: Doncaster Royal Infirmary - RP5DR | F66: 11 | G66: 1 | H66: 0 | I66: 9 | J66: 2 | K66: 0 | L66: 0 | M66: 0 | N66: 0
A67: Q72 | B67: RCD | C67: HARROGATE AND DISTRICT NHS FOUNDATION TRUST | D67: RCD01 | E67: Harrogate District Hospital - RCD01 | F67: 10 | G67: 1 | H67: 0 | I67: 9 | J67: 1 | K67: 0 | L67: 0 | M67: 0 | N67: 0
A68: Q72 | B68: RWA | C68: HULL AND EAST YORKSHIRE HOSPITALS NHS TRUST | D68: RWA01 | E68: Hull Royal Infirmary - RWA01 | F68: 48 | G68: 0.9583333333 | H68: 0 | I68: 31 | J68: 15 | K68: 2 | L68: 0 | M68: 0 | N68: 0
A69: Q72 | B69: RR8 | C69: LEEDS TEACHING HOSPITALS NHS TRUST | D69: RR801 | E69: Leeds General Infirmary - RR801 | F69: 0 | G69: NA | H69: NA | I69: 0 | J69: 0 | K69: 0 | L69: 0 | M69: 0 | N69: 0
A70: Q72 | B70: RAE | C70: BRADFORD TEACHING HOSPITALS NHS FOUNDATION TRUST | D70: RAEXXX | E70: Non-hospital site - RAEXXX | F70: 0 | G70: NA | H70: NA | I70: 0 | J70: 0 | K70: 0 | L70: 0 | M70: 0 | N70: 0
A71: Q72 | B71: RCD | C71: HARROGATE AND DISTRICT NHS FOUNDATION TRUST | D71: RCDXXX | E71: Non-hospital site - RCDXXX | F71: 41 | G71: 0.9512195122 | H71: 0 | I71: 29 | J71: 10 | K71: 2 | L71: 0 | M71: 0 | N71: 0
A72: Q72 | B72: RP5 | C72: DONCASTER AND BASSETLAW TEACHING HOSPITALS NHS FOUNDATION TRUST | D72: RP5XXX | E72: Non-hospital site - RP5XXX | F72: 27 | G72: 1 | H72: 0 | I72: 23 | J72: 4 | K72: 0 | L72: 0 | M72: 0 | N72: 0
A73: Q72 | B73: RR8 | C73: LEEDS TEACHING HOSPITALS NHS TRUST | D73: RR8XXX | E73: Non-Hospital Site - RR8XXX | F73: 0 | G73: NA | H73: NA | I73: 0 | J73: 0 | K73: 0 | L73: 0 | M73: 0 | N73: 0
A74: Q72 | B74: RWY | C74: CALDERDALE AND HUDDERSFIELD NHS FOUNDATION TRUST | D74: RWYXXX | E74: Non-hospital site - RWYXXX | F74: 126 | G74: 0.9761904762 | H74: 0.007936507937 | I74: 96 | J74: 27 | K74: 2 | L74: 0 | M74: 1 | N74: 0
A75: Q72 | B75: RXF | C75: MID YORKSHIRE HOSPITALS NHS TRUST | D75: RXFXXX | E75: Non-hospital site - RXFXXX | F75: 59 | G75: 0.9830508475 | H75: 0.01694915254 | I75: 52 | J75: 6 | K75: 0 | L75: 0 | M75: 1 | N75: 0
A76: Q72 | B76: RXF | C76: MID YORKSHIRE HOSPITALS NHS TRUST | D76: RXF05 | E76: Pinderfields General Hospital - RXF05 | F76: 31 | G76: 0.9677419355 | H76: 0 | I76: 18 | J76: 12 | K76: 1 | L76: 0 | M76: 0 | N76: 0
A77: Q72 | B77: RXF | C77: MID YORKSHIRE HOSPITALS NHS TRUST | D77: RXF03 | E77: Pontefract General Infirmary - RXF03 | F77: 12 | G77: 1 | H77: 0 | I77: 9 | J77: 3 | K77: 0 | L77: 0 | M77: 0 | N77: 0
A78: Q72 | B78: RFR | C78: THE ROTHERHAM NHS FOUNDATION TRUST | D78: RFRPA | E78: Rotherham District General Hospital - RFRPA | F78: 57 | G78: 0.9824561404 | H78: 0.01754385965 | I78: 46 | J78: 10 | K78: 0 | L78: 1 | M78: 0 | N78: 0
A79: Q72 | B79: RHQ | C79: SHEFFIELD TEACHING HOSPITALS NHS FOUNDATION TRUST | D79: RHQHH | E79: Royal Hallamshire Hospital - RHQHH | F79: 100 | G79: 0.95 | H79: 0.01 | I79: 64 | J79: 31 | K79: 2 | L79: 0 | M79: 1 | N79: 2
A80: Q72 | B80: RCB | C80: YORK TEACHING HOSPITAL NHS FOUNDATION TRUST | D80: RCBCA | E80: Scarborough General Hospital - RCBCA | F80: 49 | G80: 1 | H80: 0 | I80: 45 | J80: 4 | K80: 0 | L80: 0 | M80: 0 | N80: 0
A81: Q72 | B81: RJL | C81: NORTHERN LINCOLNSHIRE AND GOOLE NHS FOUNDATION TRUST | D81: RJL32 | E81: Scunthorpe General Hospital - RJL32 | F81: 0 | G81: NA | H81: NA | I81: 0 | J81: 0 | K81: 0 | L81: 0 | M81: 0 | N81: 0
A82: Q72 | B82: RR8 | C82: LEEDS TEACHING HOSPITALS NHS TRUST | D82: RR813 | E82: St James's University Hospital - RR813 | F82: 0 | G82: NA | H82: NA | I82: 0 | J82: 0 | K82: 0 | L82: 0 | M82: 0 | N82: 0
A83: Q72 | B83: RCB | C83: YORK TEACHING HOSPITAL NHS FOUNDATION TRUST | D83: RCB55 | E83: York Hospital - RCB55 | F83: 32 | G83: 0.9375 | H83: 0 | I83: 21 | J83: 9 | K83: 2 | L83: 0 | M83: 0 | N83: 0
A84: Q74 | B84: RXP | C84: COUNTY DURHAM AND DARLINGTON NHS FOUNDATION TRUST | D84: RXPDA | E84: Darlington Memorial Hospital - RXPDA | F84: 4 | G84: * | H84: * | I84: * | J84: * | K84: * | L84: * | M84: * | N84: *
A85: Q74 | B85: RTX | C85: UNIVERSITY HOSPITALS OF MORECAMBE BAY NHS FOUNDATION TRUST | D85: RTXBU | E85: Furness General Hospital - RTXBU | F85: 13 | G85: 1 | H85: 0 | I85: 12 | J85: 1 | K85: 0 | L85: 0 | M85: 0 | N85: 0
A86: Q74 | B86: RNL | C86: NORTH CUMBRIA UNIVERSITY HOSPITALS NHS TRUST | D86: RNLXXX | E86: Non-hospital site - RNLXXX | F86: 57 | G86: 1 | H86: 0 | I86: 50 | J86: 7 | K86: 0 | L86: 0 | M86: 0 | N86: 0
A87: Q74 | B87: RTF | C87: NORTHUMBRIA HEALTHCARE NHS FOUNDATION TRUST | D87: RTFXXX | E87: Non-hospital site - RTFXXX | F87: 138 | G87: 0.9927536232 | H87: 0 | I87: 127 | J87: 10 | K87: 1 | L87: 0 | M87: 0 | N87: 0
A88: Q74 | B88: RTR | C88: SOUTH TEES HOSPITALS NHS FOUNDATION TRUST | D88: RTRXXX | E88: Non-hospital site - RTRXXX | F88: 8 | G88: 1 | H88: 0 | I88: * | J88: * | K88: * | L88: * | M88: * | N88: *
A89: Q74 | B89: RVW | C89: NORTH TEES AND HARTLEPOOL NHS FOUNDATION TRUST | D89: RVWXXX | E89: Non-hospital site - RVWXXX | F89: 33 | G89: 0.9696969697 | H89: 0 | I89: 29 | J89: 3 | K89: 1 | L89: 0 | M89: 0 | N89: 0
A90: Q74 | B90: RR7 | C90: GATESHEAD HEALTH NHS FOUNDATION TRUST | D90: RR7EN | E90: Queen Elizabeth Hospital - RR7EN | F90: 2 | G90: * | H90: * | I90: * | J90: * | K90: * | L90: * | M90: * | N90: *
A91: Q74 | B91: RTX | C91: UNIVERSITY HOSPITALS OF MORECAMBE BAY NHS FOUNDATION TRUST | D91: RTX02 | E91: Royal Lancaster Infirmary - RTX02 | F91: 14 | G91: 1 | H91: 0 | I91: 11 | J91: 3 | K91: 0 | L91: 0 | M91: 0 | N91: 0
A92: Q74 | B92: RE9 | C92: SOUTH TYNESIDE NHS FOUNDATION TRUST | D92: RE9GA | E92: South Tyneside District Hospital - RE9GA | F92: 23 | G92: 0.9565217391 | H92: 0 | I92: 10 | J92: 12 | K92: 0 | L92: 0 | M92: 0 | N92: 1
A93: Q74 | B93: RLN | C93: CITY HOSPITALS SUNDERLAND NHS FOUNDATION TRUST | D93: RLNGL | E93: Sunderland Royal Hospital - RLNGL | F93: 21 | G93: 1 | H93: 0 | I93: 14 | J93: 7 | K93: 0 | L93: 0 | M93: 0 | N93: 0
A94: Q74 | B94: RTD | C94: THE NEWCASTLE UPON TYNE HOSPITALS NHS FOUNDATION TRUST | D94: RTD02 | E94: The Royal Victoria Infirmary - RTD02 | F94: 0 | G94: NA | H94: NA | I94: 0 | J94: 0 | K94: 0 | L94: 0 | M94: 0 | N94: 0
A95: Q74 | B95: RXP | C95: COUNTY DURHAM AND DARLINGTON NHS FOUNDATION TRUST | D95: RXPCP | E95: University Hospital Of North Durham - RXPCP | F95: 37 | G95: 1 | H95: 0 | I95: * | J95: * | K95: * | L95: * | M95: * | N95: *
A96: Q75 | B96: RBL | C96: WIRRAL UNIVERSITY TEACHING HOSPITAL NHS FOUNDATION TRUST | D96: RBL14 | E96: Arrowe Park Hospital - RBL14 | F96: 4 | G96: * | H96: * | I96: * | J96: * | K96: * | L96: * | M96: * | N96: *
A97: Q75 | B97: RJR | C97: COUNTESS OF CHESTER HOSPITAL NHS FOUNDATION TRUST | D97: RJR05 | E97: Countess Of Chester Hospital - RJR05 | F97: 21 | G97: 0.9047619048 | H97: 0 | I97: 17 | J97: 2 | K97: 0 | L97: 0 | M97: 0 | N97: 2
A98: Q75 | B98: RBT | C98: MID CHESHIRE HOSPITALS NHS FOUNDATION TRUST | D98: RBT20 | E98: Leighton Hospital - RBT20 | F98: 75 | G98: 0.9733333333 | H98: 0 | I98: 42 | J98: 31 | K98: 2 | L98: 0 | M98: 0 | N98: 0
A99: Q75 | B99: REP | C99: LIVERPOOL WOMEN'S NHS FOUNDATION TRUST | D99: REP01 | E99: Liverpool Womens Hospital - REP01 | F99: 4 | G99: * | H99: * | I99: * | J99: * | K99: * | L99: * | M99: * | N99: *
A100: Q75 | B100: RJN | C100: EAST CHESHIRE NHS TRUST | D100: RJN71 | E100: Macclesfield District General Hospital - RJN71 | F100: 17 | G100: 1 | H100: 0 | I100: 15 | J100: 2 | K100: 0 | L100: 0 | M100: 0 | N100: 0
A101: Q75 | B101: RJR | C101: COUNTESS OF CHESTER HOSPITAL NHS FOUNDATION TRUST | D101: RJRXXX | E101: Non-hospital site - RJRXXX | F101: 0 | G101: NA | H101: NA | I101: 0 | J101: 0 | K101: 0 | L101: 0 | M101: 0 | N101: 0
A102: Q75 | B102: RVY | C102: SOUTHPORT AND ORMSKIRK HOSPITAL NHS TRUST | D102: RVYXXX | E102: Non-hospital site - RVYXXX | F102: 0 | G102: NA | H102: NA | I102: 0 | J102: 0 | K102: 0 | L102: 0 | M102: 0 | N102: 0
A103: Q75 | B103: RWW | C103: WARRINGTON AND HALTON HOSPITALS NHS FOUNDATION TRUST | D103: RWWWH | E103: Warrington Hospital - RWWWH | F103: 59 | G103: 1 | H103: 0 | I103: 55 | J103: 4 | K103: 0 | L103: 0 | M103: 0 | N103: 0
A104: Q75 | B104: RBN | C104: ST HELENS AND KNOWSLEY HOSPITAL SERVICES NHS TRUST | D104: RBN01 | E104: Whiston Hospital - RBN01 | F104: 1 | G104: * | H104: * | I104: * | J104: * | K104: * | L104: * | M104: * | N104: *
A105: Q76 | B105: RFS | C105: CHESTERFIELD ROYAL HOSPITAL NHS FOUNDATION TRUST | D105: RFSDA | E105: Chesterfield Royal Hospital - RFSDA | F105: 67 | G105: 0.9701492537 | H105: 0 | I105: 48 | J105: 17 | K105: 2 | L105: 0 | M105: 0 | N105: 0
A106: Q76 | B106: RJE | C106: UNIVERSITY HOSPITALS OF NORTH MIDLANDS NHS TRUST | D106: RJE09 | E106: County Hospital - RJE09 | F106: 24 | G106: 1 | H106: 0 | I106: 22 | J106: 2 | K106: 0 | L106: 0 | M106: 0 | N106: 0
A107: Q76 | B107: RK5 | C107: SHERWOOD FOREST HOSPITALS NHS FOUNDATION TRUST | D107: RK5BC | E107: King's Mill Hospital - RK5BC | F107: 20 | G107: 0.9 | H107: 0 | I107: 12 | J107: 6 | K107: 2 | L107: 0 | M107: 0 | N107: 0
A108: Q76 | B108: RX1 | C108: NOTTINGHAM UNIVERSITY HOSPITALS NHS TRUST | D108: RX1XXX | E108: Non-hospital site - RX1XXX | F108: 108 | G108: 1 | H108: 0 | I108: 101 | J108: 7 | K108: 0 | L108: 0 | M108: 0 | N108: 0
A109: Q76 | B109: RXW | C109: SHREWSBURY AND TELFORD HOSPITAL NHS TRUST | D109: RXWXXX | E109: Non-hospital site - RXWXXX | F109: 5 | G109: 1 | H109: 0 | I109: 4 | J109: 1 | K109: 0 | L109: 0 | M109: 0 | N109: 0
A110: Q76 | B110: RJF | C110: BURTON HOSPITALS NHS FOUNDATION TRUST | D110: RJF02 | E110: Queen's Hospital, Burton Upon Trent - RJF02 | F110: 13 | G110: 1 | H110: 0 | I110: 8 | J110: 5 | K110: 0 | L110: 0 | M110: 0 | N110: 0
A111: Q76 | B111: RTG | C111: DERBY TEACHING HOSPITALS NHS FOUNDATION TRUST | D111: RTGFG | E111: Royal Derby Hospital - RTGFG | F111: 95 | G111: 1 | H111: 0 | I111: 81 | J111: 14 | K111: 0 | L111: 0 | M111: 0 | N111: 0
A112: Q76 | B112: RJE | C112: UNIVERSITY HOSPITALS OF NORTH MIDLANDS NHS TRUST | D112: RJE01 | E112: Royal Stoke University Hospital - RJE01 | F112: 22 | G112: 1 | H112: 0 | I112: 18 | J112: 4 | K112: 0 | L112: 0 | M112: 0 | N112: 0
A113: Q77 | B113: RWP | C113: WORCESTERSHIRE ACUTE HOSPITALS NHS TRUST | D113: RWP01 | E113: Alexandra Hospital - RWP01 | F113: 24 | G113: 1 | H113: 0 | I113: 22 | J113: 2 | K113: 0 | L113: 0 | M113: 0 | N113: 0
A114: Q77 | B114: RQ3 | C114: BIRMINGHAM WOMEN'S AND CHILDREN'S NHS FOUNDATION TRUST | D114: RQ370 | E114: Birmingham Women's Hospital - RQ370 | F114: 280 | G114: 0.9035714286 | H114: 0.075 | I114: 186 | J114: 67 | K114: 6 | L114: 8 | M114: 13 | N114: 0
A115: Q77 | B115: RXK | C115: SANDWELL AND WEST BIRMINGHAM HOSPITALS NHS TRUST | D115: RXK02 | E115: City Hospital - RXK02 | F115: 41 | G115: 0.9024390244 | H115: 0 | I115: * | J115: * | K115: * | L115: * | M115: * | N115: *
A116: Q77 | B116: RLT | C116: GEORGE ELIOT HOSPITAL NHS TRUST | D116: RLT01 | E116: George Eliot Hospital - Acute Services - RLT01 | F116: 32 | G116: 0.96875 | H116: 0 | I116: 21 | J116: 10 | K116: 1 | L116: 0 | M116: 0 | N116: 0
A117: Q77 | B117: RR1 | C117: HEART OF ENGLAND NHS FOUNDATION TRUST | D117: RR105 | E117: Good Hope Hospital - RR105 | F117: 8 | G117: 0.75 | H117: 0 | I117: 5 | J117: 1 | K117: 2 | L117: 0 | M117: 0 | N117: 0
A118: Q77 | B118: RR1 | C118: HEART OF ENGLAND NHS FOUNDATION TRUST | D118: RR101 | E118: Heartlands Hospital - RR101 | F118: 0 | G118: NA | H118: NA | I118: 0 | J118: 0 | K118: 0 | L118: 0 | M118: 0 | N118: 0
A119: Q77 | B119: RLQ | C119: WYE VALLEY NHS TRUST | D119: RLQ01 | E119: Hereford County Hospital - RLQ01 | F119: 26 | G119: 0.9615384615 | H119: 0 | I119: 22 | J119: 3 | K119: 1 | L119: 0 | M119: 0 | N119: 0
A120: Q77 | B120: RKB | C120: UNIVERSITY HOSPITALS COVENTRY AND WARWICKSHIRE NHS TRUST | D120: RKB03 | E120: Hospital Of St Cross - RKB03 | F120: 0 | G120: NA | H120: NA | I120: 0 | J120: 0 | K120: 0 | L120: 0 | M120: 0 | N120: 0
A121: Q77 | B121: RWP | C121: WORCESTERSHIRE ACUTE HOSPITALS NHS TRUST | D121: RWP31 | E121: Kidderminster Hospital - RWP31 | F121: 13 | G121: 1 | H121: 0 | I121: 11 | J121: 2 | K121: 0 | L121: 0 | M121: 0 | N121: 0
A122: Q77 | B122: RBK | C122: WALSALL HEALTHCARE NHS TRUST | D122: RBK02 | E122: Manor Hospital - RBK02 | F122: 24 | G122: 0.7083333333 | H122: 0.08333333333 | I122: 9 | J122: 8 | K122: 4 | L122: 1 | M122: 1 | N122: 1
A123: Q77 | B123: RL4 | C123: THE ROYAL WOLVERHAMPTON NHS TRUST | D123: RL403 | E123: New Cross Hospital - RL403 | F123: 6 | G123: 1 | H123: 0 | I123: 3 | J123: 3 | K123: 0 | L123: 0 | M123: 0 | N123: 0
A124: Q77 | B124: RJC | C124: SOUTH WARWICKSHIRE NHS FOUNDATION TRUST | D124: RJCXXX | E124: Non-hospital site - RJCXXX | F124: 26 | G124: 1 | H124: 0 | I124: 20 | J124: 6 | K124: 0 | L124: 0 | M124: 0 | N124: 0
A125: Q77 | B125: RKB | C125: UNIVERSITY HOSPITALS COVENTRY AND WARWICKSHIRE NHS TRUST | D125: RKBXXX | E125: Non-hospital site - RKBXXX | F125: 78 | G125: 0.9871794872 | H125: 0 | I125: 55 | J125: 22 | K125: 0 | L125: 0 | M125: 0 | N125: 1
A126: Q77 | B126: RNA | C126: THE DUDLEY GROUP NHS FOUNDATION TRUST | D126: RNAXXX | E126: Non-hospital site - RNAXXX | F126: 28 | G126: 1 | H126: 0 | I126: 23 | J126: 5 | K126: 0 | L126: 0 | M126: 0 | N126: 0
A127: Q77 | B127: RNA | C127: THE DUDLEY GROUP NHS FOUNDATION TRUST | D127: RNA01 | E127: Russells Hall Hospital - RNA01 | F127: 113 | G127: 0.982300885 | H127: 0.008849557522 | I127: 75 | J127: 36 | K127: 0 | L127: 1 | M127: 0 | N127: 1
A128: Q77 | B128: RXK | C128: SANDWELL AND WEST BIRMINGHAM HOSPITALS NHS TRUST | D128: RXK01 | E128: Sandwell General Hospital - RXK01 | F128: 1 | G128: * | H128: * | I128: * | J128: * | K128: * | L128: * | M128: * | N128: *
A129: Q77 | B129: RR1 | C129: HEART OF ENGLAND NHS FOUNDATION TRUST | D129: RR109 | E129: Solihull Hospital - RR109 | F129: 0 | G129: NA | H129: NA | I129: 0 | J129: 0 | K129: 0 | L129: 0 | M129: 0 | N129: 0
A130: Q77 | B130: RKB | C130: UNIVERSITY HOSPITALS COVENTRY AND WARWICKSHIRE NHS TRUST | D130: RKB01 | E130: University Hospital (Coventry) - RKB01 | F130: 11 | G130: 1 | H130: 0 | I130: 8 | J130: 3 | K130: 0 | L130: 0 | M130: 0 | N130: 0
A131: Q77 | B131: RWP | C131: WORCESTERSHIRE ACUTE HOSPITALS NHS TRUST | D131: RWP50 | E131: Worcestershire Royal Hospital - RWP50 | F131: 37 | G131: 1 | H131: 0 | I131: 34 | J131: 3 | K131: 0 | L131: 0 | M131: 0 | N131: 0
A132: Q78 | B132: RC1 | C132: BEDFORD HOSPITAL NHS TRUST | D132: RC110 | E132: Bedford Hospital South Wing - RC110 | F132: 2 | G132: * | H132: * | I132: * | J132: * | K132: * | L132: * | M132: * | N132: *
A133: Q78 | B133: RWD | C133: UNITED LINCOLNSHIRE HOSPITALS NHS TRUST | D133: RWDLP | E133: Grantham and District Hospital - RWDLP | F133: 0 | G133: NA | H133: NA | I133: 0 | J133: 0 | K133: 0 | L133: 0 | M133: 0 | N133: 0
A134: Q78 | B134: RNQ | C134: KETTERING GENERAL HOSPITAL NHS FOUNDATION TRUST | D134: RNQ51 | E134: Kettering General Hospital - RNQ51 | F134: 43 | G134: 1 | H134: 0 | I134: 35 | J134: 8 | K134: 0 | L134: 0 | M134: 0 | N134: 0
A135: Q78 | B135: RWE | C135: UNIVERSITY HOSPITALS OF LEICESTER NHS TRUST | D135: RWEAK | E135: Leicester General Hospital - RWEAK | F135: 39 | G135: 0.9487179487 | H135: 0 | I135: 29 | J135: 8 | K135: 2 | L135: 0 | M135: 0 | N135: 0
A136: Q78 | B136: RWE | C136: UNIVERSITY HOSPITALS OF LEICESTER NHS TRUST | D136: RWEAA | E136: Leicester Royal Infirmary - RWEAA | F136: 41 | G136: 0.9512195122 | H136: 0.0243902439 | I136: 28 | J136: 11 | K136: 0 | L136: 1 | M136: 0 | N136: 1
A137: Q78 | B137: RWD | C137: UNITED LINCOLNSHIRE HOSPITALS NHS TRUST | D137: RWDDA | E137: Lincoln County Hospital - RWDDA | F137: 20 | G137: 0.95 | H137: 0 | I137: 16 | J137: 3 | K137: 1 | L137: 0 | M137: 0 | N137: 0
A138: Q78 | B138: RWH | C138: EAST AND NORTH HERTFORDSHIRE NHS TRUST | D138: RWH01 | E138: Lister Hospital - RWH01 | F138: 31 | G138: 0.935483871 | H138: 0.03225806452 | I138: 16 | J138: 13 | K138: 0 | L138: 1 | M138: 0 | N138: 1
A139: Q78 | B139: RC9 | C139: LUTON AND DUNSTABLE UNIVERSITY HOSPITAL NHS FOUNDATION TRUST | D139: RC971 | E139: Luton and Dunstable Hospital - RC971 | F139: 53 | G139: 0.9622641509 | H139: 0 | I139: 36 | J139: 15 | K139: 0 | L139: 0 | M139: 0 | N139: 2
A140: Q78 | B140: RD8 | C140: MILTON KEYNES UNIVERSITY HOSPITAL NHS FOUNDATION TRUST | D140: RD816 | E140: Milton Keynes Hospital - RD816 | F140: 12 | G140: 0.9166666667 | H140: 0 | I140: * | J140: * | K140: * | L140: * | M140: * | N140: *
A141: Q78 | B141: RWD | C141: UNITED LINCOLNSHIRE HOSPITALS NHS TRUST | D141: RWDXXX | E141: Non-hospital site - RWDXXX | F141: 0 | G141: NA | H141: NA | I141: 0 | J141: 0 | K141: 0 | L141: 0 | M141: 0 | N141: 0
A142: Q78 | B142: RWE | C142: UNIVERSITY HOSPITALS OF LEICESTER NHS TRUST | D142: RWEXXX | E142: Non-hospital site - RWEXXX | F142: 136 | G142: 0.9926470588 | H142: 0 | I142: 110 | J142: 25 | K142: 1 | L142: 0 | M142: 0 | N142: 0
A143: Q78 | B143: RWH | C143: EAST AND NORTH HERTFORDSHIRE NHS TRUST | D143: RWHXXX | E143: Non-hospital site - RWHXXX | F143: 0 | G143: NA | H143: NA | I143: 0 | J143: 0 | K143: 0 | L143: 0 | M143: 0 | N143: 0
A144: Q78 | B144: RNS | C144: NORTHAMPTON GENERAL HOSPITAL NHS TRUST | D144: RNS01 | E144: Northampton General Hospital (Acute) - RNS01 | F144: 66 | G144: 0.9393939394 | H144: 0.0303030303 | I144: 54 | J144: 8 | K144: 0 | L144: 0 | M144: 2 | N144: 2
A145: Q78 | B145: RWD | C145: UNITED LINCOLNSHIRE HOSPITALS NHS TRUST | D145: RWDLA | E145: Pilgrim Hospital - RWDLA | F145: 0 | G145: NA | H145: NA | I145: 0 | J145: 0 | K145: 0 | L145: 0 | M145: 0 | N145: 0
A146: Q78 | B146: RWG | C146: WEST HERTFORDSHIRE HOSPITALS NHS TRUST | D146: RWG03 | E146: St Albans City Hospital - RWG03 | F146: 1 | G146: * | H146: * | I146: * | J146: * | K146: * | L146: * | M146: * | N146: *
A147: Q78 | B147: RWG | C147: WEST HERTFORDSHIRE HOSPITALS NHS TRUST | D147: RWG02 | E147: Watford General Hospital - RWG02 | F147: 58 | G147: 0.9482758621 | H147: 0 | I147: * | J147: * | K147: * | L147: * | M147: * | N147: *
A148: Q79 | B148: RDD | C148: BASILDON AND THURROCK UNIVERSITY HOSPITALS NHS FOUNDATION TRUST | D148: RDDH0 | E148: Basildon University Hospital - RDDH0 | F148: 86 | G148: 1 | H148: 0 | I148: 78 | J148: 8 | K148: 0 | L148: 0 | M148: 0 | N148: 0
A149: Q79 | B149: RQ8 | C149: MID ESSEX HOSPITAL SERVICES NHS TRUST | D149: RQ8L0 | E149: Broomfield Hospital - RQ8L0 | F149: 3 | G149: * | H149: * | I149: * | J149: * | K149: * | L149: * | M149: * | N149: *
A150: Q79 | B150: RDE | C150: COLCHESTER HOSPITAL UNIVERSITY NHS FOUNDATION TRUST | D150: RDEE2 | E150: Clacton and District Hospital - RDEE2 | F150: 0 | G150: NA | H150: NA | I150: 0 | J150: 0 | K150: 0 | L150: 0 | M150: 0 | N150: 0
A151: Q79 | B151: RDE | C151: COLCHESTER HOSPITAL UNIVERSITY NHS FOUNDATION TRUST | D151: RDEE4 | E151: Colchester General Hospital - RDEE4 | F151: 0 | G151: NA | H151: NA | I151: 0 | J151: 0 | K151: 0 | L151: 0 | M151: 0 | N151: 0
A152: Q79 | B152: RDE | C152: COLCHESTER HOSPITAL UNIVERSITY NHS FOUNDATION TRUST | D152: RDEEE | E152: Harwich Maternity - RDEEE | F152: 0 | G152: NA | H152: NA | I152: 0 | J152: 0 | K152: 0 | L152: 0 | M152: 0 | N152: 0
A153: Q79 | B153: RGN | C153: NORTH WEST ANGLIA NHS FOUNDATION TRUST | D153: RGN90 | E153: Hinchingbrooke Hospital - RGN90 | F153: 7 | G153: 1 | H153: 0 | I153: 7 | J153: 0 | K153: 0 | L153: 0 | M153: 0 | N153: 0
A154: Q79 | B154: RGP | C154: JAMES PAGET UNIVERSITY HOSPITALS NHS FOUNDATION TRUST | D154: RGP75 | E154: James Paget University Hospital - RGP75 | F154: 47 | G154: 0.9787234043 | H154: 0 | I154: 42 | J154: 4 | K154: 1 | L154: 0 | M154: 0 | N154: 0
A155: Q79 | B155: RCX | C155: THE QUEEN ELIZABETH HOSPITAL, KING'S LYNN, NHS FOUNDATION TRUST | D155: RCXXXX | E155: Non-hospital site - RCXXXX | F155: 30 | G155: 1 | H155: 0 | I155: 25 | J155: 5 | K155: 0 | L155: 0 | M155: 0 | N155: 0
A156: Q79 | B156: RDE | C156: COLCHESTER HOSPITAL UNIVERSITY NHS FOUNDATION TRUST | D156: RDEXXX | E156: Non-hospital site - RDEXXX | F156: 0 | G156: NA | H156: NA | I156: 0 | J156: 0 | K156: 0 | L156: 0 | M156: 0 | N156: 0
A157: Q79 | B157: RM1 | C157: NORFOLK AND NORWICH UNIVERSITY HOSPITALS NHS FOUNDATION TRUST | D157: RM102 | E157: Norfolk and Norwich University Hospital - RM102 | F157: 24 | G157: 0.9583333333 | H157: 0 | I157: 16 | J157: 7 | K157: 1 | L157: 0 | M157: 0 | N157: 0
A158: Q79 | B158: RCX | C158: THE QUEEN ELIZABETH HOSPITAL, KING'S LYNN, NHS FOUNDATION TRUST | D158: RCX66 | E158: North Cambridgeshire Hospital - RCX66 | F158: 14 | G158: 1 | H158: 0 | I158: 11 | J158: 3 | K158: 0 | L158: 0 | M158: 0 | N158: 0
A159: Q79 | B159: RGN | C159: NORTH WEST ANGLIA NHS FOUNDATION TRUST | D159: RGN80 | E159: Peterborough City Hospital - RGN80 | F159: 308 | G159: 0.974025974 | H159: 0.003246753247 | I159: 245 | J159: 55 | K159: 3 | L159: 1 | M159: 0 | N159: 4
A160: Q79 | B160: RQW | C160: THE PRINCESS ALEXANDRA HOSPITAL NHS TRUST | D160: RQWG0 | E160: Princess Alexandra Hospital - RQWG0 | F160: 48 | G160: 1 | H160: 0 | I160: 48 | J160: 0 | K160: 0 | L160: 0 | M160: 0 | N160: 0
A161: Q79 | B161: RGT | C161: CAMBRIDGE UNIVERSITY HOSPITALS NHS FOUNDATION TRUST | D161: RGT32 | E161: Rosie Hospital - RGT32 | F161: 42 | G161: 0.9761904762 | H161: 0.02380952381 | I161: 22 | J161: 19 | K161: 0 | L161: 1 | M161: 0 | N161: 0
A162: Q79 | B162: RAJ | C162: SOUTHEND UNIVERSITY HOSPITAL NHS FOUNDATION TRUST | D162: RAJ01 | E162: Southend Hospital - RAJ01 | F162: 3 | G162: * | H162: * | I162: * | J162: * | K162: * | L162: * | M162: * | N162: *
A163: Q79 | B163: RGQ | C163: IPSWICH HOSPITAL NHS TRUST | D163: RGQ02 | E163: The Ipswich Hospital NHS Trust - RGQ02 | F163: 129 | G163: 0.992248062 | H163: 0.007751937984 | I163: 110 | J163: 18 | K163: 0 | L163: 1 | M163: 0 | N163: 0
A164: Q79 | B164: RCX | C164: THE QUEEN ELIZABETH HOSPITAL, KING'S LYNN, NHS FOUNDATION TRUST | D164: RCX70 | E164: The Queen Elizabeth Hospital - RCX70 | F164: 152 | G164: 0.9539473684 | H164: 0.01315789474 | I164: 110 | J164: 35 | K164: 3 | L164: 2 | M164: 0 | N164: 2
A165: Q79 | B165: RGR | C165: WEST SUFFOLK NHS FOUNDATION TRUST | D165: RGR50 | E165: West Suffolk Hospital - RGR50 | F165: 59 | G165: 0.9830508475 | H165: 0.01694915254 | I165: 47 | J165: 11 | K165: 0 | L165: 0 | M165: 1 | N165: 0
A166: Q80 | B166: RBA | C166: TAUNTON AND SOMERSET NHS FOUNDATION TRUST | D166: RBAC3 | E166: Bridgwater Hospital - RBAC3 | F166: 0 | G166: NA | H166: NA | I166: 0 | J166: 0 | K166: 0 | L166: 0 | M166: 0 | N166: 0
A167: Q80 | B167: RK9 | C167: PLYMOUTH HOSPITALS NHS TRUST | D167: RK950 | E167: Derriford Hospital - RK950 | F167: 6 | G167: 0.8333333333 | H167: 0 | I167: 2 | J167: 3 | K167: 1 | L167: 0 | M167: 0 | N167: 0
A168: Q80 | B168: RH8 | C168: ROYAL DEVON AND EXETER NHS FOUNDATION TRUST | D168: RH854 | E168: Honiton Hospital - RH 854 | F168: 0 | G168: NA | H168: NA | I168: 0 | J168: 0 | K168: 0 | L168: 0 | M168: 0 | N168: 0
A169: Q80 | B169: RBA | C169: TAUNTON AND SOMERSET NHS FOUNDATION TRUST | D169: RBA11 | E169: Musgrove Park Hospital - RBA11 | F169: 3 | G169: * | H169: * | I169: * | J169: * | K169: * | L169: * | M169: * | N169: *
A170: Q80 | B170: RBA | C170: TAUNTON AND SOMERSET NHS FOUNDATION TRUST | D170: RBAXXX | E170: Non-hospital site - RBAXXX | F170: 0 | G170: NA | H170: NA | I170: 0 | J170: 0 | K170: 0 | L170: 0 | M170: 0 | N170: 0
A171: Q80 | B171: RK9 | C171: PLYMOUTH HOSPITALS NHS TRUST | D171: RK9XXX | E171: Non-hospital site - RK9XXX | F171: 101 | G171: 0.9603960396 | H171: 0.009900990099 | I171: 78 | J171: 19 | K171: 2 | L171: 1 | M171: 0 | N171: 1
A172: Q80 | B172: RBZ | C172: NORTHERN DEVON HEALTHCARE NHS TRUST | D172: RBZ12 | E172: North Devon District Hospital - RBZ12 | F172: 1 | G172: * | H172: * | I172: * | J172: * | K172: * | L172: * | M172: * | N172: *
A173: Q80 | B173: RH8 | C173: ROYAL DEVON AND EXETER NHS FOUNDATION TRUST | D173: RH833 | E173: Okehampton Community Hospital - RH833 | F173: 0 | G173: NA | H173: NA | I173: 0 | J173: 0 | K173: 0 | L173: 0 | M173: 0 | N173: 0
A174: Q80 | B174: REF | C174: ROYAL CORNWALL HOSPITALS NHS TRUST | D174: REF12 | E174: Royal Cornwall Hospital (Treliske) - REF12 | F174: 22 | G174: 0.9545454545 | H174: 0.04545454545 | I174: 16 | J174: 5 | K174: 0 | L174: 1 | M174: 0 | N174: 0
A175: Q80 | B175: RH8 | C175: ROYAL DEVON AND EXETER NHS FOUNDATION TRUST | D175: RH801 | E175: Royal Devon and Exeter Hospital (Wonford) - RH801 | F175: 1 | G175: * | H175: * | I175: * | J175: * | K175: * | L175: * | M175: * | N175: *
A176: Q80 | B176: RVJ | C176: NORTH BRISTOL NHS TRUST | D176: RVJ01 | E176: Southmead Hospital - RVJ01 | F176: 11 | G176: 1 | H176: 0 | I176: 8 | J176: 3 | K176: 0 | L176: 0 | M176: 0 | N176: 0
A177: Q80 | B177: RA7 | C177: UNIVERSITY HOSPITALS BRISTOL NHS FOUNDATION TRUST | D177: RA707 | E177: St Michael's Hospital - RA707 | F177: 74 | G177: 1 | H177: 0 | I177: 57 | J177: 17 | K177: 0 | L177: 0 | M177: 0 | N177: 0
A178: Q80 | B178: RH8 | C178: ROYAL DEVON AND EXETER NHS FOUNDATION TRUST | D178: RH853 | E178: Tiverton and District Hospital - RH853 | F178: 0 | G178: NA | H178: NA | I178: 0 | J178: 0 | K178: 0 | L178: 0 | M178: 0 | N178: 0
A179: Q80 | B179: RA9 | C179: TORBAY AND SOUTH DEVON NHS FOUNDATION TRUST | D179: RA901 | E179: Torbay Hospital - RA901 | F179: 21 | G179: 1 | H179: 0 | I179: 20 | J179: 1 | K179: 0 | L179: 0 | M179: 0 | N179: 0
A180: Q80 | B180: RA3 | C180: WESTON AREA HEALTH NHS TRUST | D180: RA301 | E180: Weston General Hospital - RA301 | F180: 21 | G180: 1 | H180: 0 | I180: 18 | J180: 3 | K180: 0 | L180: 0 | M180: 0 | N180: 0
A181: Q80 | B181: RA4 | C181: YEOVIL DISTRICT HOSPITAL NHS FOUNDATION TRUST | D181: RA430 | E181: Yeovil District Hospital - RA430 | F181: 95 | G181: 0.9894736842 | H181: 0 | I181: 75 | J181: 19 | K181: 0 | L181: 0 | M181: 0 | N181: 1
A182: Q81 | B182: RTK | C182: ASHFORD AND ST PETER'S HOSPITALS NHS FOUNDATION TRUST | D182: RTK02 | E182: Ashford Hospital - RTK02 | F182: 0 | G182: NA | H182: NA | I182: 0 | J182: 0 | K182: 0 | L182: 0 | M182: 0 | N182: 0
A183: Q81 | B183: RXC | C183: EAST SUSSEX HEALTHCARE NHS TRUST | D183: RXC01 | E183: Conquest Hospital - RXC01 | F183: 0 | G183: NA | H183: NA | I183: 0 | J183: 0 | K183: 0 | L183: 0 | M183: 0 | N183: 0
A184: Q81 | B184: RXC | C184: EAST SUSSEX HEALTHCARE NHS TRUST | D184: RXC14 | E184: Crowborough Birthing Centre - RXC14 | F184: 0 | G184: NA | H184: NA | I184: 0 | J184: 0 | K184: 0 | L184: 0 | M184: 0 | N184: 0
A185: Q81 | B185: RN7 | C185: DARTFORD AND GRAVESHAM NHS TRUST | D185: RN707 | E185: Darent Valley Hospital - RN707 | F185: 1 | G185: * | H185: * | I185: * | J185: * | K185: * | L185: * | M185: * | N185: *
A186: Q81 | B186: RTP | C186: SURREY AND SUSSEX HEALTHCARE NHS TRUST | D186: RTP04 | E186: East Surrey Hospital - RTP04 | F186: 38 | G186: 0.9473684211 | H186: 0.02631578947 | I186: 29 | J186: 7 | K186: 1 | L186: 1 | M186: 0 | N186: 0
A187: Q81 | B187: RXC | C187: EAST SUSSEX HEALTHCARE NHS TRUST | D187: RXC02 | E187: Eastbourne District General Hospital - RXC02 | F187: 10 | G187: 1 | H187: 0 | I187: 8 | J187: 2 | K187: 0 | L187: 0 | M187: 0 | N187: 0
A188: Q81 | B188: RDU | C188: FRIMLEY HEALTH NHS FOUNDATION TRUST | D188: RDU01 | E188: Frimley Park Hospital - RDU01 | F188: 51 | G188: 0.9803921569 | H188: 0 | I188: 41 | J188: 9 | K188: 1 | L188: 0 | M188: 0 | N188: 0
A189: Q81 | B189: RWF | C189: MAIDSTONE AND TUNBRIDGE WELLS NHS TRUST | D189: RWF03 | E189: Maidstone District General Hospital - RWF03 | F189: 3 | G189: * | H189: * | I189: * | J189: * | K189: * | L189: * | M189: * | N189: *
A190: Q81 | B190: RPA | C190: MEDWAY NHS FOUNDATION TRUST | D190: RPA02 | E190: Medway Maritime Hospital - RPA02 | F190: 82 | G190: 1 | H190: 0 | I190: 77 | J190: 5 | K190: 0 | L190: 0 | M190: 0 | N190: 0
A191: Q81 | B191: RDU | C191: FRIMLEY HEALTH NHS FOUNDATION TRUST | D191: RDUXXX | E191: Non-hospital site - RDUXXX | F191: 13 | G191: 1 | H191: 0 | I191: 12 | J191: 1 | K191: 0 | L191: 0 | M191: 0 | N191: 0
A192: Q81 | B192: RVV | C192: EAST KENT HOSPITALS UNIVERSITY NHS FOUNDATION TRUST | D192: RVVXXX | E192: Non-hospital site - RVVXXX | F192: 6 | G192: 1 | H192: 0 | I192: 6 | J192: 0 | K192: 0 | L192: 0 | M192: 0 | N192: 0
A193: Q81 | B193: RWF | C193: MAIDSTONE AND TUNBRIDGE WELLS NHS TRUST | D193: RWFXXX | E193: Non-hospital site - RWFXXX | F193: 10 | G193: 1 | H193: 0 | I193: * | J193: * | K193: * | L193: * | M193: * | N193: *
A194: Q81 | B194: RXC | C194: EAST SUSSEX HEALTHCARE NHS TRUST | D194: RXCXXX | E194: Non-hospital site - RXCXXX | F194: 0 | G194: NA | H194: NA | I194: 0 | J194: 0 | K194: 0 | L194: 0 | M194: 0 | N194: 0
A195: Q81 | B195: RA2 | C195: ROYAL SURREY COUNTY HOSPITAL NHS FOUNDATION TRUST | D195: RA201 | E195: Royal Surrey County Hospital - RA201 | F195: 65 | G195: 0.9538461538 | H195: 0.01538461538 | I195: 54 | J195: 8 | K195: 1 | L195: 1 | M195: 0 | N195: 1
A196: Q81 | B196: RYR | C196: WESTERN SUSSEX HOSPITALS NHS FOUNDATION TRUST | D196: RYR16 | E196: St Richard's Hospital - RYR16 | F196: 13 | G196: 0.9230769231 | H196: 0.07692307692 | I196: 10 | J196: 2 | K196: 0 | L196: 0 | M196: 1 | N196: 0
A197: Q81 | B197: RXH | C197: BRIGHTON AND SUSSEX UNIVERSITY HOSPITALS NHS TRUST | D197: RXH07 | E197: Sussex Eye Hospital - RXH07 | F197: 1 | G197: * | H197: * | I197: * | J197: * | K197: * | L197: * | M197: * | N197: *
A198: Q81 | B198: RWF | C198: MAIDSTONE AND TUNBRIDGE WELLS NHS TRUST | D198: RWFTW | E198: The Tunbridge Wells Hospital - RWFTW | F198: 0 | G198: NA | H198: NA | I198: 0 | J198: 0 | K198: 0 | L198: 0 | M198: 0 | N198: 0
A199: Q81 | B199: RDU | C199: FRIMLEY HEALTH NHS FOUNDATION TRUST | D199: RDU50 | E199: Wexham Park Hospital - RDU50 | F199: 39 | G199: 0.8205128205 | H199: 0.1282051282 | I199: 21 | J199: 11 | K199: 2 | L199: 1 | M199: 4 | N199: 0
A200: Q81 | B200: RYR | C200: WESTERN SUSSEX HOSPITALS NHS FOUNDATION TRUST | D200: RYR18 | E200: Worthing Hospital - RYR18 | F200: 8 | G200: 1 | H200: 0 | I200: 7 | J200: 1 | K200: 0 | L200: 0 | M200: 0 | N200: 0
A201: Q82 | B201: RTE | C201: GLOUCESTERSHIRE HOSPITALS NHS FOUNDATION TRUST | D201: RTE01 | E201: Cheltenham General Hospital - RTE01 | F201: 0 | G201: NA | H201: NA | I201: 0 | J201: 0 | K201: 0 | L201: 0 | M201: 0 | N201: 0
A202: Q82 | B202: RD1 | C202: ROYAL UNITED HOSPITALS BATH NHS FOUNDATION TRUST | D202: RD102 | E202: Chippenham Community Hospital -RD102 | F202: 36 | G202: 1 | H202: 0 | I202: 33 | J202: 3 | K202: 0 | L202: 0 | M202: 0 | N202: 0
A203: Q82 | B203: RD1 | C203: ROYAL UNITED HOSPITALS BATH NHS FOUNDATION TRUST | D203: RD121 | E203: Frome Community Hospital - RD121 | F203: 9 | G203: 1 | H203: 0 | I203: 7 | J203: 2 | K203: 0 | L203: 0 | M203: 0 | N203: 0
A204: Q82 | B204: RTE | C204: GLOUCESTERSHIRE HOSPITALS NHS FOUNDATION TRUST | D204: RTE03 | E204: Gloucestershire Royal Hospital - RTE03 | F204: 0 | G204: NA | H204: NA | I204: 0 | J204: 0 | K204: 0 | L204: 0 | M204: 0 | N204: 0
A205: Q82 | B205: RTH | C205: OXFORD UNIVERSITY HOSPITALS NHS FOUNDATION TRUST | D205: RTH08 | E205: John Radcliffe Hospital - RTH08 | F205: 68 | G205: 0.9411764706 | H205: 0.02941176471 | I205: 38 | J205: 26 | K205: 2 | L205: 2 | M205: 0 | N205: 0
A206: Q82 | B206: RN3 | C206: GREAT WESTERN HOSPITALS NHS FOUNDATION TRUST | D206: RN3XXX | E206: Non-hospital site - RN3XXX | F206: 3 | G206: * | H206: * | I206: * | J206: * | K206: * | L206: * | M206: * | N206: *
A207: Q82 | B207: RTE | C207: GLOUCESTERSHIRE HOSPITALS NHS FOUNDATION TRUST | D207: RTEXXX | E207: Non-hospital site - RTEXXX | F207: 0 | G207: NA | H207: NA | I207: 0 | J207: 0 | K207: 0 | L207: 0 | M207: 0 | N207: 0
... 24 more rows

Sheet Region (Local Office) Q2
B6: Sort data by:
A9: Region (LO) Code | B9: Region (Local Office) | C9: Total Responses | D9: Total Eligible | E9: Response Rate | F9: Percentage Recommended | G9: Percentage Not Recommended | H9: Breakdown of Responses
H10: Extremely Likely | I10: Likely | J10: Neither | K10: Unlikely | L10: Extremely Unlikely | M10: Don't Know
B11: England (including Independent Sector providers) | C11: 12482 | D11: 52158 | E11: 0.2393113233 | F11: 0.9655503926 | G11: 0.01482134273 | H11: 10050 | I11: 2002 | J11: 170 | K11: 81 | L11: 104 | M11: 75
B12: England (excluding Independent Sector providers) | C12: 12468 | D12: 52130 | E12: 0.2391713025 | F12: 0.9656721206 | G12: 0.01483798524 | H12: 10039 | I12: 2001 | J12: 170 | K12: 81 | L12: 104 | M12: 73
B13: Selection (excluding suppressed data) | C13: =SUBTOTAL(9,C14:C40) -> 12482 | D13: =SUBTOTAL(9,D14:D40) -> 52158 | E13: =IFERROR(C13/D13, "NA") -> 0.2393113233 | F13: =IFERROR((H13+I13)/SUM(H13:M13), "-") -> 0.9655503926 | G13: =IFERROR((K13+L13)/SUM(H13:M13), "-") -> 0.01482134273 | H13: =SUBTOTAL(9,H14:H40) -> 10050 | I13: 2002 | J13: 170 | K13: 81 | L13: 104 | M13: 75
A14: Q70 | B14: NHS England Wessex | C14: 603 | D14: 2023 | E14: 0.29807217 | F14: 0.9751243781 | G14: 0.01160862355 | H14: 515 | I14: 73 | J14: 7 | K14: 3 | L14: 4 | M14: 1
A15: Q71 | B15: NHS England London | C15: 2901 | D15: 10457 | E15: 0.2774218227 | F15: 0.9420889349 | G15: 0.02481902792 | H15: 2003 | I15: 730 | J15: 71 | K15: 35 | L15: 37 | M15: 25
A16: Q72 | B16: NHS England Yorkshire & Humber | C16: 1329 | D16: 5230 | E16: 0.2541108987 | F16: 0.9729119639 | G16: 0.01203912716 | H16: 1140 | I16: 153 | J16: 19 | K16: 6 | L16: 10 | M16: 1
A17: Q74 | B17: NHS England Cumbria & North East | C17: 642 | D17: 2774 | E17: 0.2314347513 | F17: 0.9875389408 | G17: 0.007788161994 | H17: 549 | I17: 85 | J17: 2 | K17: 4 | L17: 1 | M17: 1
A18: Q75 | B18: NHS England Cheshire & Merseyside | C18: 306 | D18: 2439 | E18: 0.1254612546 | F18: 0.9803921569 | G18: 0.006535947712 | H18: 267 | I18: 33 | J18: 1 | K18: 1 | L18: 1 | M18: 3
A19: Q76 | B19: NHS England North Midlands | C19: 704 | D19: 3029 | E19: 0.2324199406 | F19: 0.9744318182 | G19: 0.01136363636 | H19: 591 | I19: 95 | J19: 7 | K19: 6 | L19: 2 | M19: 3
A20: Q77 | B20: NHS England West Midlands | C20: 739 | D20: 4188 | E20: 0.1764565425 | F20: 0.9607577808 | G20: 0.01623815968 | H20: 600 | I20: 110 | J20: 11 | K20: 5 | L20: 7 | M20: 6
A21: Q78 | B21: NHS England Central Midlands | C21: 1101 | D21: 3602 | E21: 0.3056635203 | F21: 0.957311535 | G21: 0.02089009991 | H21: 854 | I21: 200 | J21: 12 | K21: 7 | L21: 16 | M21: 12
A22: Q79 | B22: NHS England East | C22: 932 | D22: 3831 | E22: 0.2432785174 | F22: 0.9860515021 | G22: 0.00321888412 | H22: 832 | I22: 87 | J22: 4 | K22: 0 | L22: 3 | M22: 6
A23: Q80 | B23: NHS England South West | C23: 400 | D23: 2731 | E23: 0.1464664958 | F23: 0.97 | G23: 0.0125 | H23: 336 | I23: 52 | J23: 2 | K23: 0 | L23: 5 | M23: 5
A24: Q81 | B24: NHS England South East | C24: 1209 | D24: 4692 | E24: 0.2576726343 | F24: 0.9727047146 | G24: 0.01075268817 | H24: 994 | I24: 182 | J24: 13 | K24: 5 | L24: 8 | M24: 7
A25: Q82 | B25: NHS England South Central | C25: 694 | D25: 2856 | E25: 0.2429971989 | F25: 0.9755043228 | G25: 0.01008645533 | H25: 584 | I25: 93 | J25: 10 | K25: 2 | L25: 5 | M25: 0
A26: Q83 | B26: NHS England Greater Manchester | C26: 639 | D26: 3206 | E26: 0.1993137867 | F26: 0.9687010955 | G26: 0.0172143975 | H26: 533 | I26: 86 | J26: 8 | K26: 6 | L26: 5 | M26: 1
A27: Q84 | B27: NHS England Lancashire | C27: 269 | D27: 1072 | E27: 0.2509328358 | F27: 0.9776951673 | G27: 0.003717472119 | H27: 241 | I27: 22 | J27: 3 | K27: 1 | L27: 0 | M27: 2
A28: zIS1 | B28: Independent Sector Provider | C28: 14 | D28: 28 | E28: 0.5 | F28: 0.8571428571 | G28: 0 | H28: 11 | I28: 1 | J28: 0 | K28: 0 | L28: 0 | M28: 2

Sheet Trusts Q2
B6: Sort data by:
A9: Region (LO) Code | B9: Trust Code | C9: Trust Name | D9: Total Responses | E9: Total Eligible | F9: Response Rate | G9: Percentage Recommended | H9: Percentage Not Recommended | I9: Breakdown of Responses | O9: Mode of Collection
I10: Extremely Likely | J10: Likely | K10: Neither | L10: Unlikely | M10: Extremely Unlikely | N10: Don't Know | O10: SMS/Text / Smartphone App | P10: Electronic tablet/kiosk at point of discharge | Q10: Paper / postcard at point of discharge | R10: Paper survey sent to the patients home | S10: Telephone survey once patient is home | T10: Online survey once patient is home | U10: Other
C11: England (including Independent Sector providers) | D11: 12482 | E11: 52158 | F11: 0.2393113233 | G11: 0.9655503926 | H11: 0.01482134273 | I11: 10050 | J11: 2002 | K11: 170 | L11: 81 | M11: 104 | N11: 75 | O11: 1419 | P11: 2991 | Q11: 7609 | R11: 231 | S11: 7 | T11: 58 | U11: 167
C12: England (excluding Independent Sector providers) | D12: 12468 | E12: 52130 | F12: 0.2391713025 | G12: 0.9656721206 | H12: 0.01483798524 | I12: 10039 | J12: 2001 | K12: 170 | L12: 81 | M12: 104 | N12: 73 | O12: 1419 | P12: 2977 | Q12: 7609 | R12: 231 | S12: 7 | T12: 58 | U12: 167
C13: Selection (excluding suppressed data) | D13: =SUBTOTAL(9,D14:D299) -> 12482 | E13: =SUBTOTAL(9,E14:E299) -> 52158 | F13: =IFERROR(D13/E13, "NA") -> 0.2393113233 | G13: =IFERROR((I13+J13)/SUM(I13:N13), "-") -> 0.9654644985 | H13: =IFERROR((L13+M13)/SUM(I13:N13), "-") -> 0.01481242956 | I13: =SUBTOTAL(9,I14:I299) -> 9998 | J13: 1995 | K13: 170 | L13: 80 | M13: 104 | N13: 75 | O13: =SUBTOTAL(9,O14:O299) -> 1419 | P13: 2987 | Q13: 7554 | R13: 231 | S13: 7 | T13: 57 | U13: =SUBTOTAL(9,U14:U299) -> 167
A14: Q70 | B14: RBD | C14: DORSET COUNTY HOSPITAL NHS FOUNDATION TRUST | D14: 55 | E14: 148 | F14: 0.3716216216 | G14: 0.9818181818 | H14: 0.01818181818 | I14: 52 | J14: 2 | K14: 0 | L14: 1 | M14: 0 | N14: 0 | O14: 55 | P14: 0 | Q14: 0 | R14: 0 | S14: 0 | T14: 0 | U14: 0
A15: Q70 | B15: RN5 | C15: HAMPSHIRE HOSPITALS NHS FOUNDATION TRUST | D15: 177 | E15: 438 | F15: 0.404109589 | G15: 0.988700565 | H15: 0 | I15: 157 | J15: 18 | K15: 2 | L15: 0 | M15: 0 | N15: 0 | O15: 0 | P15: 0 | Q15: 177 | R15: 0 | S15: 0 | T15: 0 | U15: 0
A16: Q70 | B16: R1F | C16: ISLE OF WIGHT NHS TRUST | D16: 18 | E16: 99 | F16: 0.1818181818 | G16: 1 | H16: 0 | I16: 16 | J16: 2 | K16: 0 | L16: 0 | M16: 0 | N16: 0 | O16: 0 | P16: 0 | Q16: 18 | R16: 0 | S16: 0 | T16: 0 | U16: 0
A17: Q70 | B17: RD3 | C17: POOLE HOSPITAL NHS FOUNDATION TRUST | D17: 102 | E17: 357 | F17: 0.2857142857 | G17: 0.9215686275 | H17: 0.03921568627 | I17: 91 | J17: 3 | K17: 3 | L17: 1 | M17: 3 | N17: 1 | O17: 66 | P17: 0 | Q17: 36 | R17: 0 | S17: 0 | T17: 0 | U17: 0
A18: Q70 | B18: RHU | C18: PORTSMOUTH HOSPITALS NHS TRUST | D18: 90 | E18: 473 | F18: 0.1902748414 | G18: 0.9888888889 | H18: 0 | I18: 77 | J18: 12 | K18: 1 | L18: 0 | M18: 0 | N18: 0 | O18: 0 | P18: 0 | Q18: 90 | R18: 0 | S18: 0 | T18: 0 | U18: 0
A19: Q70 | B19: RDZ | C19: THE ROYAL BOURNEMOUTH AND CHRISTCHURCH HOSPITALS NHS FOUNDATION TRUST | D19: 11 | E19: 24 | F19: 0.4583333333 | G19: 1 | H19: 0 | I19: 11 | J19: 0 | K19: 0 | L19: 0 | M19: 0 | N19: 0 | O19: 0 | P19: 0 | Q19: 11 | R19: 0 | S19: 0 | T19: 0 | U19: 0
A20: Q70 | B20: RHM | C20: UNIVERSITY HOSPITAL SOUTHAMPTON NHS FOUNDATION TRUST | D20: 150 | E20: 484 | F20: 0.3099173554 | G20: 0.98 | H20: 0.01333333333 | I20: 111 | J20: 36 | K20: 1 | L20: 1 | M20: 1 | N20: 0 | O20: 0 | P20: 0 | Q20: 148 | R20: 0 | S20: 0 | T20: 0 | U20: 2
A21: Q71 | B21: RF4 | C21: BARKING, HAVERING AND REDBRIDGE UNIVERSITY HOSPITALS NHS TRUST | D21: 258 | E21: 696 | F21: 0.3706896552 | G21: 0.984496124 | H21: 0.003875968992 | I21: 217 | J21: 37 | K21: 0 | L21: 0 | M21: 1 | N21: 3 | O21: 0 | P21: 38 | Q21: 220 | R21: 0 | S21: 0 | T21: 0 | U21: 0
A22: Q71 | B22: R1H | C22: BARTS HEALTH NHS TRUST | D22: 439 | E22: 1382 | F22: 0.3176555716 | G22: 0.9293849658 | H22: 0.02961275626 | I22: 284 | J22: 124 | K22: 15 | L22: 8 | M22: 5 | N22: 3 | O22: 0 | P22: 292 | Q22: 144 | R22: 0 | S22: 0 | T22: 3 | U22: 0
A23: Q71 | B23: RQM | C23: CHELSEA AND WESTMINSTER HOSPITAL NHS FOUNDATION TRUST | D23: 178 | E23: 744 | F23: 0.2392473118 | G23: 0.9494382022 | H23: 0.04494382022 | I23: 146 | J23: 23 | K23: 1 | L23: 4 | M23: 4 | N23: 0 | O23: 141 | P23: 0 | Q23: 30 | R23: 0 | S23: 0 | T23: 7 | U23: 0
A24: Q71 | B24: RJ6 | C24: CROYDON HEALTH SERVICES NHS TRUST | D24: 45 | E24: 348 | F24: 0.1293103448 | G24: 0.9333333333 | H24: 0.04444444444 | I24: 39 | J24: 3 | K24: 1 | L24: 1 | M24: 1 | N24: 0 | O24: 0 | P24: 0 | Q24: 45 | R24: 0 | S24: 0 | T24: 0 | U24: 0
A25: Q71 | B25: RVR | C25: EPSOM AND ST HELIER UNIVERSITY HOSPITALS NHS TRUST | D25: 85 | E25: 405 | F25: 0.2098765432 | G25: 0.9882352941 | H25: 0.01176470588 | I25: 75 | J25: 9 | K25: 0 | L25: 1 | M25: 0 | N25: 0 | O25: 42 | P25: 0 | Q25: 42 | R25: 0 | S25: 0 | T25: 1 | U25: 0
A26: Q71 | B26: RJ1 | C26: GUY'S AND ST THOMAS' NHS FOUNDATION TRUST | D26: 37 | E26: 542 | F26: 0.06826568266 | G26: 0.9459459459 | H26: 0 | I26: 29 | J26: 6 | K26: 1 | L26: 0 | M26: 0 | N26: 1 | O26: 0 | P26: 0 | Q26: 37 | R26: 0 | S26: 0 | T26: 0 | U26: 0
A27: Q71 | B27: RQX | C27: HOMERTON UNIVERSITY HOSPITAL NHS FOUNDATION TRUST | D27: 27 | E27: 500 | F27: 0.054 | G27: 0.9259259259 | H27: 0.07407407407 | I27: 22 | J27: 3 | K27: 0 | L27: 0 | M27: 2 | N27: 0 | O27: 0 | P27: 24 | Q27: 2 | R27: 0 | S27: 0 | T27: 1 | U27: 0
A28: Q71 | B28: RYJ | C28: IMPERIAL COLLEGE HEALTHCARE NHS TRUST | D28: 239 | E28: 765 | F28: 0.3124183007 | G28: 0.9330543933 | H28: 0.02928870293 | I28: 162 | J28: 61 | K28: 5 | L28: 3 | M28: 4 | N28: 4 | O28: 0 | P28: 212 | Q28: 27 | R28: 0 | S28: 0 | T28: 0 | U28: 0
A29: Q71 | B29: RJZ | C29: KING'S COLLEGE HOSPITAL NHS FOUNDATION TRUST | D29: 62 | E29: 623 | F29: 0.09951845907 | G29: 0.9032258065 | H29: 0.06451612903 | I29: 40 | J29: 16 | K29: 2 | L29: 3 | M29: 1 | N29: 0 | O29: 0 | P29: 62 | Q29: 0 | R29: 0 | S29: 0 | T29: 0 | U29: 0
A30: Q71 | B30: RAX | C30: KINGSTON HOSPITAL NHS FOUNDATION TRUST | D30: 54 | E30: 476 | F30: 0.1134453782 | G30: 1 | H30: 0 | I30: 43 | J30: 11 | K30: 0 | L30: 0 | M30: 0 | N30: 0 | O30: 0 | P30: 54 | Q30: 0 | R30: 0 | S30: 0 | T30: 0 | U30: 0
A31: Q71 | B31: RJ2 | C31: LEWISHAM AND GREENWICH NHS TRUST | D31: 395 | E31: 723 | F31: 0.5463347165 | G31: 0.9341772152 | H31: 0.01772151899 | I31: 277 | J31: 92 | K31: 13 | L31: 6 | M31: 1 | N31: 6 | O31: 0 | P31: 0 | Q31: 395 | R31: 0 | S31: 0 | T31: 0 | U31: 0
A32: Q71 | B32: R1K | C32: LONDON NORTH WEST HEALTHCARE NHS TRUST | D32: 354 | E32: 436 | F32: 0.8119266055 | G32: 0.9011299435 | H32: 0.0395480226 | I32: 169 | J32: 150 | K32: 18 | L32: 6 | M32: 8 | N32: 3 | O32: 0 | P32: 86 | Q32: 268 | R32: 0 | S32: 0 | T32: 0 | U32: 0
A33: Q71 | B33: RAP | C33: NORTH MIDDLESEX UNIVERSITY HOSPITAL NHS TRUST | D33: 165 | E33: 405 | F33: 0.4074074074 | G33: 0.8787878788 | H33: 0.06060606061 | I33: 97 | J33: 48 | K33: 6 | L33: 2 | M33: 8 | N33: 4 | O33: 0 | P33: 165 | Q33: 0 | R33: 0 | S33: 0 | T33: 0 | U33: 0
A34: Q71 | B34: RAL | C34: ROYAL FREE LONDON NHS FOUNDATION TRUST | D34: 178 | E34: 726 | F34: 0.2451790634 | G34: 0.9775280899 | H34: 0 | I34: 121 | J34: 53 | K34: 3 | L34: 0 | M34: 0 | N34: 1 | O34: 0 | P34: 0 | Q34: 178 | R34: 0 | S34: 0 | T34: 0 | U34: 0
A35: Q71 | B35: RJ7 | C35: ST GEORGE'S UNIVERSITY HOSPITALS NHS FOUNDATION TRUST | D35: 10 | E35: 432 | F35: 0.02314814815 | G35: 1 | H35: 0 | I35: 8 | J35: 2 | K35: 0 | L35: 0 | M35: 0 | N35: 0 | O35: 0 | P35: 10 | Q35: 0 | R35: 0 | S35: 0 | T35: 0 | U35: 0
A36: Q71 | B36: RAS | C36: THE HILLINGDON HOSPITALS NHS FOUNDATION TRUST | D36: 166 | E36: 420 | F36: 0.3952380952 | G36: 0.9819277108 | H36: 0.006024096386 | I36: 119 | J36: 44 | K36: 2 | L36: 0 | M36: 1 | N36: 0 | O36: 0 | P36: 0 | Q36: 166 | R36: 0 | S36: 0 | T36: 0 | U36: 0
A37: Q71 | B37: RKE | C37: THE WHITTINGTON HOSPITAL NHS TRUST | D37: 108 | E37: 321 | F37: 0.3364485981 | G37: 0.9537037037 | H37: 0.009259259259 | I37: 68 | J37: 35 | K37: 4 | L37: 1 | M37: 0 | N37: 0 | O37: 0 | P37: 108 | Q37: 0 | R37: 0 | S37: 0 | T37: 0 | U37: 0
A38: Q71 | B38: RRV | C38: UNIVERSITY COLLEGE LONDON HOSPITALS NHS FOUNDATION TRUST | D38: 101 | E38: 513 | F38: 0.1968810916 | G38: 0.9900990099 | H38: 0.009900990099 | I38: 87 | J38: 13 | K38: 0 | L38: 0 | M38: 1 | N38: 0 | O38: 0 | P38: 0 | Q38: 100 | R38: 0 | S38: 0 | T38: 1 | U38: 0
A39: Q72 | B39: RCF | C39: AIREDALE NHS FOUNDATION TRUST | D39: 34 | E39: 176 | F39: 0.1931818182 | G39: 0.9117647059 | H39: 0.02941176471 | I39: 29 | J39: 2 | K39: 2 | L39: 1 | M39: 0 | N39: 0 | O39: 1 | P39: 1 | Q39: 30 | R39: 0 | S39: 0 | T39: 2 | U39: 0
A40: Q72 | B40: RFF | C40: BARNSLEY HOSPITAL NHS FOUNDATION TRUST | D40: 46 | E40: 250 | F40: 0.184 | G40: 1 | H40: 0 | I40: 43 | J40: 3 | K40: 0 | L40: 0 | M40: 0 | N40: 0 | O40: 0 | P40: 0 | Q40: 46 | R40: 0 | S40: 0 | T40: 0 | U40: 0
A41: Q72 | B41: RAE | C41: BRADFORD TEACHING HOSPITALS NHS FOUNDATION TRUST | D41: 63 | E41: 449 | F41: 0.140311804 | G41: 1 | H41: 0 | I41: 63 | J41: 0 | K41: 0 | L41: 0 | M41: 0 | N41: 0 | O41: 0 | P41: 2 | Q41: 61 | R41: 0 | S41: 0 | T41: 0 | U41: 0
A42: Q72 | B42: RWY | C42: CALDERDALE AND HUDDERSFIELD NHS FOUNDATION TRUST | D42: 171 | E42: 445 | F42: 0.3842696629 | G42: 0.9824561404 | H42: 0.005847953216 | I42: 142 | J42: 26 | K42: 2 | L42: 1 | M42: 0 | N42: 0 | O42: 0 | P42: 171 | Q42: 0 | R42: 0 | S42: 0 | T42: 0 | U42: 0
A43: Q72 | B43: RP5 | C43: DONCASTER AND BASSETLAW TEACHING HOSPITALS NHS FOUNDATION TRUST | D43: 113 | E43: 442 | F43: 0.2556561086 | G43: 0.9734513274 | H43: 0.008849557522 | I43: 101 | J43: 9 | K43: 1 | L43: 1 | M43: 0 | N43: 1 | O43: 0 | P43: 0 | Q43: 113 | R43: 0 | S43: 0 | T43: 0 | U43: 0
A44: Q72 | B44: RCD | C44: HARROGATE AND DISTRICT NHS FOUNDATION TRUST | D44: 55 | E44: 165 | F44: 0.3333333333 | G44: 0.9818181818 | H44: 0 | I44: 51 | J44: 3 | K44: 1 | L44: 0 | M44: 0 | N44: 0 | O44: 0 | P44: 0 | Q44: 55 | R44: 0 | S44: 0 | T44: 0 | U44: 0
A45: Q72 | B45: RWA | C45: HULL AND EAST YORKSHIRE HOSPITALS NHS TRUST | D45: 5 | E45: 432 | F45: 0.01157407407 | G45: 0.8 | H45: 0 | I45: 3 | J45: 1 | K45: 1 | L45: 0 | M45: 0 | N45: 0 | O45: 0 | P45: 0 | Q45: 5 | R45: 0 | S45: 0 | T45: 0 | U45: 0
A46: Q72 | B46: RR8 | C46: LEEDS TEACHING HOSPITALS NHS TRUST | D46: 259 | E46: 853 | F46: 0.3036342321 | G46: 0.9536679537 | H46: 0.03088803089 | I46: 209 | J46: 38 | K46: 4 | L46: 0 | M46: 8 | N46: 0 | O46: 199 | P46: 0 | Q46: 60 | R46: 0 | S46: 0 | T46: 0 | U46: 0
A47: Q72 | B47: RXF | C47: MID YORKSHIRE HOSPITALS NHS TRUST | D47: 209 | E47: 511 | F47: 0.4090019569 | G47: 0.976076555 | H47: 0.00956937799 | I47: 176 | J47: 28 | K47: 3 | L47: 2 | M47: 0 | N47: 0 | O47: 176 | P47: 28 | Q47: 3 | R47: 2 | S47: 0 | T47: 0 | U47: 0
A48: Q72 | B48: RJL | C48: NORTHERN LINCOLNSHIRE AND GOOLE NHS FOUNDATION TRUST | D48: 24 | E48: 354 | F48: 0.06779661017 | G48: 1 | H48: 0 | I48: 24 | J48: 0 | K48: 0 | L48: 0 | M48: 0 | N48: 0 | O48: 0 | P48: 0 | Q48: 0 | R48: 24 | S48: 0 | T48: 0 | U48: 0
A49: Q72 | B49: RHQ | C49: SHEFFIELD TEACHING HOSPITALS NHS FOUNDATION TRUST | D49: 182 | E49: 569 | F49: 0.3198594025 | G49: 0.956043956 | H49: 0.01648351648 | I49: 143 | J49: 31 | K49: 5 | L49: 1 | M49: 2 | N49: 0 | O49: 0 | P49: 0 | Q49: 181 | R49: 0 | S49: 0 | T49: 1 | U49: 0
A50: Q72 | B50: RFR | C50: THE ROTHERHAM NHS FOUNDATION TRUST | D50: 70 | E50: 210 | F50: 0.3333333333 | G50: 1 | H50: 0 | I50: 66 | J50: 4 | K50: 0 | L50: 0 | M50: 0 | N50: 0 | O50: 0 | P50: 0 | Q50: 70 | R50: 0 | S50: 0 | T50: 0 | U50: 0
A51: Q72 | B51: RCB | C51: YORK TEACHING HOSPITAL NHS FOUNDATION TRUST | D51: 98 | E51: 374 | F51: 0.2620320856 | G51: 1 | H51: 0 | I51: 90 | J51: 8 | K51: 0 | L51: 0 | M51: 0 | N51: 0 | O51: 0 | P51: 0 | Q51: 98 | R51: 0 | S51: 0 | T51: 0 | U51: 0
A52: Q74 | B52: RLN | C52: CITY HOSPITALS SUNDERLAND NHS FOUNDATION TRUST | D52: 108 | E52: 252 | F52: 0.4285714286 | G52: 1 | H52: 0 | I52: 97 | J52: 11 | K52: 0 | L52: 0 | M52: 0 | N52: 0 | O52: 0 | P52: 0 | Q52: 108 | R52: 0 | S52: 0 | T52: 0 | U52: 0
A53: Q74 | B53: RXP | C53: COUNTY DURHAM AND DARLINGTON NHS FOUNDATION TRUST | D53: 70 | E53: 424 | F53: 0.1650943396 | G53: 1 | H53: 0 | I53: 52 | J53: 18 | K53: 0 | L53: 0 | M53: 0 | N53: 0 | O53: 0 | P53: 0 | Q53: 70 | R53: 0 | S53: 0 | T53: 0 | U53: 0
A54: Q74 | B54: RR7 | C54: GATESHEAD HEALTH NHS FOUNDATION TRUST | D54: 48 | E54: 149 | F54: 0.322147651 | G54: 0.9791666667 | H54: 0 | I54: 40 | J54: 7 | K54: 1 | L54: 0 | M54: 0 | N54: 0 | O54: 0 | P54: 13 | Q54: 35 | R54: 0 | S54: 0 | T54: 0 | U54: 0
A55: Q74 | B55: RNL | C55: NORTH CUMBRIA UNIVERSITY HOSPITALS NHS TRUST | D55: 86 | E55: 224 | F55: 0.3839285714 | G55: 1 | H55: 0 | I55: 70 | J55: 16 | K55: 0 | L55: 0 | M55: 0 | N55: 0 | O55: 0 | P55: 0 | Q55: 86 | R55: 0 | S55: 0 | T55: 0 | U55: 0
A56: Q74 | B56: RVW | C56: NORTH TEES AND HARTLEPOOL NHS FOUNDATION TRUST | D56: 12 | E56: 228 | F56: 0.05263157895 | G56: 0.9166666667 | H56: 0.08333333333 | I56: 8 | J56: 3 | K56: 0 | L56: 1 | M56: 0 | N56: 0 | O56: 0 | P56: 0 | Q56: 12 | R56: 0 | S56: 0 | T56: 0 | U56: 0
A57: Q74 | B57: RTF | C57: NORTHUMBRIA HEALTHCARE NHS FOUNDATION TRUST | D57: 47 | E57: 188 | F57: 0.25 | G57: 0.9574468085 | H57: 0.04255319149 | I57: 38 | J57: 7 | K57: 0 | L57: 2 | M57: 0 | N57: 0 | O57: 0 | P57: 0 | Q57: 47 | R57: 0 | S57: 0 | T57: 0 | U57: 0
A58: Q74 | B58: RTR | C58: SOUTH TEES HOSPITALS NHS FOUNDATION TRUST | D58: 45 | E58: 432 | F58: 0.1041666667 | G58: 0.9777777778 | H58: 0.02222222222 | I58: 38 | J58: 6 | K58: 0 | L58: 0 | M58: 1 | N58: 0 | O58: 0 | P58: 0 | Q58: 45 | R58: 0 | S58: 0 | T58: 0 | U58: 0
A59: Q74 | B59: RE9 | C59: SOUTH TYNESIDE NHS FOUNDATION TRUST | D59: 26 | E59: 93 | F59: 0.2795698925 | G59: 1 | H59: 0 | I59: 25 | J59: 1 | K59: 0 | L59: 0 | M59: 0 | N59: 0 | O59: 0 | P59: 0 | Q59: 26 | R59: 0 | S59: 0 | T59: 0 | U59: 0
A60: Q74 | B60: RTD | C60: THE NEWCASTLE UPON TYNE HOSPITALS NHS FOUNDATION TRUST | D60: 170 | E60: 536 | F60: 0.3171641791 | G60: 0.9823529412 | H60: 0.005882352941 | I60: 155 | J60: 12 | K60: 1 | L60: 1 | M60: 0 | N60: 1 | O60: 0 | P60: 1 | Q60: 169 | R60: 0 | S60: 0 | T60: 0 | U60: 0
A61: Q74 | B61: RTX | C61: UNIVERSITY HOSPITALS OF MORECAMBE BAY NHS FOUNDATION TRUST | D61: 30 | E61: 248 | F61: 0.1209677419 | G61: 1 | H61: 0 | I61: 26 | J61: 4 | K61: 0 | L61: 0 | M61: 0 | N61: 0 | O61: 0 | P61: 0 | Q61: 30 | R61: 0 | S61: 0 | T61: 0 | U61: 0
A62: Q75 | B62: RJR | C62: COUNTESS OF CHESTER HOSPITAL NHS FOUNDATION TRUST | D62: 77 | E62: 267 | F62: 0.2883895131 | G62: 0.9350649351 | H62: 0.02597402597 | I62: 66 | J62: 6 | K62: 1 | L62: 1 | M62: 1 | N62: 2 | O62: 40 | P62: 0 | Q62: 37 | R62: 0 | S62: 0 | T62: 0 | U62: 0
A63: Q75 | B63: RJN | C63: EAST CHESHIRE NHS TRUST | D63: 49 | E63: 130 | F63: 0.3769230769 | G63: 0.9795918367 | H63: 0 | I63: 44 | J63: 4 | K63: 0 | L63: 0 | M63: 0 | N63: 1 | O63: 0 | P63: 0 | Q63: 49 | R63: 0 | S63: 0 | T63: 0 | U63: 0
A64: Q75 | B64: REP | C64: LIVERPOOL WOMEN'S NHS FOUNDATION TRUST | D64: 1 | E64: 770 | F64: 0.001298701299 | G64: * | H64: * | I64: * | J64: * | K64: * | L64: * | M64: * | N64: * | O64: * | P64: * | Q64: * | R64: * | S64: * | T64: * | U64: *
A65: Q75 | B65: RBT | C65: MID CHESHIRE HOSPITALS NHS FOUNDATION TRUST | D65: 27 | E65: 240 | F65: 0.1125 | G65: 1 | H65: 0 | I65: 24 | J65: 3 | K65: 0 | L65: 0 | M65: 0 | N65: 0 | O65: 0 | P65: 0 | Q65: 27 | R65: 0 | S65: 0 | T65: 0 | U65: 0
A66: Q75 | B66: RVY | C66: SOUTHPORT AND ORMSKIRK HOSPITAL NHS TRUST | D66: 13 | E66: 207 | F66: 0.06280193237 | G66: 1 | H66: 0 | I66: * | J66: * | K66: * | L66: * | M66: * | N66: * | O66: * | P66: * | Q66: * | R66: * | S66: * | T66: * | U66: *
A67: Q75 | B67: RBN | C67: ST HELENS AND KNOWSLEY HOSPITAL SERVICES NHS TRUST | D67: 32 | E67: 319 | F67: 0.1003134796 | G67: 1 | H67: 0 | I67: 27 | J67: 5 | K67: 0 | L67: 0 | M67: 0 | N67: 0 | O67: 0 | P67: 0 | Q67: 32 | R67: 0 | S67: 0 | T67: 0 | U67: 0
A68: Q75 | B68: RWW | C68: WARRINGTON AND HALTON HOSPITALS NHS FOUNDATION TRUST | D68: 26 | E68: 213 | F68: 0.1220657277 | G68: 1 | H68: 0 | I68: 25 | J68: 1 | K68: 0 | L68: 0 | M68: 0 | N68: 0 | O68: 0 | P68: 0 | Q68: 26 | R68: 0 | S68: 0 | T68: 0 | U68: 0
A69: Q75 | B69: RBL | C69: WIRRAL UNIVERSITY TEACHING HOSPITAL NHS FOUNDATION TRUST | D69: 81 | E69: 293 | F69: 0.2764505119 | G69: 1 | H69: 0 | I69: 70 | J69: 11 | K69: 0 | L69: 0 | M69: 0 | N69: 0 | O69: 0 | P69: 0 | Q69: 81 | R69: 0 | S69: 0 | T69: 0 | U69: 0
A70: Q76 | B70: RJF | C70: BURTON HOSPITALS NHS FOUNDATION TRUST | D70: 91 | E70: 247 | F70: 0.3684210526 | G70: 0.989010989 | H70: 0.01098901099 | I70: 86 | J70: 4 | K70: 0 | L70: 1 | M70: 0 | N70: 0 | O70: 1 | P70: 0 | Q70: 90 | R70: 0 | S70: 0 | T70: 0 | U70: 0
A71: Q76 | B71: RFS | C71: CHESTERFIELD ROYAL HOSPITAL NHS FOUNDATION TRUST | D71: 61 | E71: 246 | F71: 0.2479674797 | G71: 0.9508196721 | H71: 0.01639344262 | I71: 41 | J71: 17 | K71: 0 | L71: 1 | M71: 0 | N71: 2 | O71: 0 | P71: 61 | Q71: 0 | R71: 0 | S71: 0 | T71: 0 | U71: 0
A72: Q76 | B72: RTG | C72: DERBY TEACHING HOSPITALS NHS FOUNDATION TRUST | D72: 238 | E72: 478 | F72: 0.4979079498 | G72: 0.9789915966 | H72: 0.008403361345 | I72: 181 | J72: 52 | K72: 2 | L72: 1 | M72: 1 | N72: 1 | O72: 0 | P72: 0 | Q72: 238 | R72: 0 | S72: 0 | T72: 0 | U72: 0
A73: Q76 | B73: RX1 | C73: NOTTINGHAM UNIVERSITY HOSPITALS NHS TRUST | D73: 108 | E73: 801 | F73: 0.1348314607 | G73: 0.9814814815 | H73: 0 | I73: 96 | J73: 10 | K73: 2 | L73: 0 | M73: 0 | N73: 0 | O73: 0 | P73: 0 | Q73: 108 | R73: 0 | S73: 0 | T73: 0 | U73: 0
A74: Q76 | B74: RK5 | C74: SHERWOOD FOREST HOSPITALS NHS FOUNDATION TRUST | D74: 81 | E74: 288 | F74: 0.28125 | G74: 0.9259259259 | H74: 0.04938271605 | I74: 65 | J74: 10 | K74: 2 | L74: 3 | M74: 1 | N74: 0 | O74: 0 | P74: 0 | Q74: 80 | R74: 0 | S74: 0 | T74: 1 | U74: 0
A75: Q76 | B75: RXW | C75: SHREWSBURY AND TELFORD HOSPITAL NHS TRUST | D75: 40 | E75: 429 | F75: 0.09324009324 | G75: 1 | H75: 0 | I75: 39 | J75: 1 | K75: 0 | L75: 0 | M75: 0 | N75: 0 | O75: 0 | P75: 0 | Q75: 40 | R75: 0 | S75: 0 | T75: 0 | U75: 0
A76: Q76 | B76: RJE | C76: UNIVERSITY HOSPITALS OF NORTH MIDLANDS NHS TRUST | D76: 85 | E76: 540 | F76: 0.1574074074 | G76: 0.9882352941 | H76: 0 | I76: 83 | J76: 1 | K76: 1 | L76: 0 | M76: 0 | N76: 0 | O76: 0 | P76: 0 | Q76: 85 | R76: 0 | S76: 0 | T76: 0 | U76: 0
A77: Q77 | B77: RQ3 | C77: BIRMINGHAM WOMEN'S AND CHILDREN'S NHS FOUNDATION TRUST | D77: 80 | E77: 647 | F77: 0.1236476043 | G77: 0.95 | H77: 0.025 | I77: 59 | J77: 17 | K77: 1 | L77: 0 | M77: 2 | N77: 1 | O77: 0 | P77: 0 | Q77: 77 | R77: 0 | S77: 0 | T77: 3 | U77: 0
A78: Q77 | B78: RLT | C78: GEORGE ELIOT HOSPITAL NHS TRUST | D78: 83 | E78: 159 | F78: 0.5220125786 | G78: 0.9638554217 | H78: 0.03614457831 | I78: 69 | J78: 11 | K78: 0 | L78: 1 | M78: 2 | N78: 0 | O78: 55 | P78: 0 | Q78: 28 | R78: 0 | S78: 0 | T78: 0 | U78: 0
A79: Q77 | B79: RR1 | C79: HEART OF ENGLAND NHS FOUNDATION TRUST | D79: 34 | E79: 843 | F79: 0.04033214709 | G79: 1 | H79: 0 | I79: 32 | J79: 2 | K79: 0 | L79: 0 | M79: 0 | N79: 0 | O79: 0 | P79: 0 | Q79: 34 | R79: 0 | S79: 0 | T79: 0 | U79: 0
A80: Q77 | B80: RXK | C80: SANDWELL AND WEST BIRMINGHAM HOSPITALS NHS TRUST | D80: 65 | E80: 497 | F80: 0.1307847082 | G80: 0.8307692308 | H80: 0.06153846154 | I80: 30 | J80: 24 | K80: 7 | L80: 2 | M80: 2 | N80: 0 | O80: 0 | P80: 65 | Q80: 0 | R80: 0 | S80: 0 | T80: 0 | U80: 0
A81: Q77 | B81: RJC | C81: SOUTH WARWICKSHIRE NHS FOUNDATION TRUST | D81: 42 | E81: 264 | F81: 0.1590909091 | G81: 0.9047619048 | H81: 0 | I81: 27 | J81: 11 | K81: 0 | L81: 0 | M81: 0 | N81: 4 | O81: 0 | P81: 0 | Q81: 41 | R81: 0 | S81: 0 | T81: 1 | U81: 0
A82: Q77 | B82: RNA | C82: THE DUDLEY GROUP NHS FOUNDATION TRUST | D82: 171 | E82: 338 | F82: 0.5059171598 | G82: 0.9883040936 | H82: 0.005847953216 | I82: 145 | J82: 24 | K82: 1 | L82: 0 | M82: 1 | N82: 0 | O82: 0 | P82: 0 | Q82: 171 | R82: 0 | S82: 0 | T82: 0 | U82: 0
A83: Q77 | B83: RL4 | C83: THE ROYAL WOLVERHAMPTON NHS TRUST | D83: 45 | E83: 380 | F83: 0.1184210526 | G83: 1 | H83: 0 | I83: 44 | J83: 1 | K83: 0 | L83: 0 | M83: 0 | N83: 0 | O83: 0 | P83: 0 | Q83: 45 | R83: 0 | S83: 0 | T83: 0 | U83: 0
A84: Q77 | B84: RKB | C84: UNIVERSITY HOSPITALS COVENTRY AND WARWICKSHIRE NHS TRUST | D84: 76 | E84: 519 | F84: 0.1464354528 | G84: 0.9868421053 | H84: 0 | I84: 72 | J84: 3 | K84: 0 | L84: 0 | M84: 0 | N84: 1 | O84: 0 | P84: 0 | Q84: 76 | R84: 0 | S84: 0 | T84: 0 | U84: 0
A85: Q77 | B85: RBK | C85: WALSALL HEALTHCARE NHS TRUST | D85: 20 | E85: 196 | F85: 0.1020408163 | G85: 0.95 | H85: 0.05 | I85: 18 | J85: 1 | K85: 0 | L85: 1 | M85: 0 | N85: 0 | O85: 20 | P85: 0 | Q85: 0 | R85: 0 | S85: 0 | T85: 0 | U85: 0
A86: Q77 | B86: RWP | C86: WORCESTERSHIRE ACUTE HOSPITALS NHS TRUST | D86: 61 | E86: 200 | F86: 0.305 | G86: 1 | H86: 0 | I86: 58 | J86: 3 | K86: 0 | L86: 0 | M86: 0 | N86: 0 | O86: 0 | P86: 0 | Q86: 61 | R86: 0 | S86: 0 | T86: 0 | U86: 0
A87: Q77 | B87: RLQ | C87: WYE VALLEY NHS TRUST | D87: 62 | E87: 145 | F87: 0.4275862069 | G87: 0.9516129032 | H87: 0.01612903226 | I87: 46 | J87: 13 | K87: 2 | L87: 1 | M87: 0 | N87: 0 | O87: 0 | P87: 62 | Q87: 0 | R87: 0 | S87: 0 | T87: 0 | U87: 0
A88: Q78 | B88: RC1 | C88: BEDFORD HOSPITAL NHS TRUST | D88: 43 | E88: 86 | F88: 0.5 | G88: 1 | H88: 0 | I88: 40 | J88: 3 | K88: 0 | L88: 0 | M88: 0 | N88: 0 | O88: 43 | P88: 0 | Q88: 0 | R88: 0 | S88: 0 | T88: 0 | U88: 0
A89: Q78 | B89: RWH | C89: EAST AND NORTH HERTFORDSHIRE NHS TRUST | D89: 232 | E89: 477 | F89: 0.4863731656 | G89: 0.974137931 | H89: 0.008620689655 | I89: 169 | J89: 57 | K89: 4 | L89: 1 | M89: 1 | N89: 0 | O89: 0 | P89: 232 | Q89: 0 | R89: 0 | S89: 0 | T89: 0 | U89: 0
A90: Q78 | B90: RNQ | C90: KETTERING GENERAL HOSPITAL NHS FOUNDATION TRUST | D90: 67 | E90: 270 | F90: 0.2481481481 | G90: 1 | H90: 0 | I90: 62 | J90: 5 | K90: 0 | L90: 0 | M90: 0 | N90: 0 | O90: 0 | P90: 0 | Q90: 67 | R90: 0 | S90: 0 | T90: 0 | U90: 0
A91: Q78 | B91: RC9 | C91: LUTON AND DUNSTABLE UNIVERSITY HOSPITAL NHS FOUNDATION TRUST | D91: 50 | E91: 389 | F91: 0.1285347044 | G91: 0.96 | H91: 0.02 | I91: 33 | J91: 15 | K91: 0 | L91: 0 | M91: 1 | N91: 1 | O91: 0 | P91: 34 | Q91: 16 | R91: 0 | S91: 0 | T91: 0 | U91: 0
A92: Q78 | B92: RD8 | C92: MILTON KEYNES UNIVERSITY HOSPITAL NHS FOUNDATION TRUST | D92: 5 | E92: 295 | F92: 0.01694915254 | G92: 1 | H92: 0 | I92: 4 | J92: 1 | K92: 0 | L92: 0 | M92: 0 | N92: 0 | O92: 0 | P92: 0 | Q92: 2 | R92: 0 | S92: 0 | T92: 3 | U92: 0
A93: Q78 | B93: RNS | C93: NORTHAMPTON GENERAL HOSPITAL NHS TRUST | D93: 39 | E93: 389 | F93: 0.1002570694 | G93: 1 | H93: 0 | I93: 36 | J93: 3 | K93: 0 | L93: 0 | M93: 0 | N93: 0 | O93: 0 | P93: 0 | Q93: 37 | R93: 0 | S93: 0 | T93: 2 | U93: 0
A94: Q78 | B94: RWD | C94: UNITED LINCOLNSHIRE HOSPITALS NHS TRUST | D94: 62 | E94: 445 | F94: 0.1393258427 | G94: 0.9677419355 | H94: 0.03225806452 | I94: 52 | J94: 8 | K94: 0 | L94: 0 | M94: 2 | N94: 0 | O94: 0 | P94: 0 | Q94: 62 | R94: 0 | S94: 0 | T94: 0 | U94: 0
A95: Q78 | B95: RWE | C95: UNIVERSITY HOSPITALS OF LEICESTER NHS TRUST | D95: 479 | E95: 823 | F95: 0.5820170109 | G95: 0.9311064718 | H95: 0.03549060543 | I95: 367 | J95: 79 | K95: 5 | L95: 5 | M95: 12 | N95: 11 | O95: 0 | P95: 479 | Q95: 0 | R95: 0 | S95: 0 | T95: 0 | U95: 0
A96: Q78 | B96: RWG | C96: WEST HERTFORDSHIRE HOSPITALS NHS TRUST | D96: 124 | E96: 428 | F96: 0.2897196262 | G96: 0.9677419355 | H96: 0.008064516129 | I96: 91 | J96: 29 | K96: 3 | L96: 1 | M96: 0 | N96: 0 | O96: 0 | P96: 0 | Q96: 123 | R96: 0 | S96: 0 | T96: 1 | U96: 0
A97: Q79 | B97: RDD | C97: BASILDON AND THURROCK UNIVERSITY HOSPITALS NHS FOUNDATION TRUST | D97: 15 | E97: 169 | F97: 0.08875739645 | G97: 1 | H97: 0 | I97: 15 | J97: 0 | K97: 0 | L97: 0 | M97: 0 | N97: 0 | O97: 0 | P97: 0 | Q97: 15 | R97: 0 | S97: 0 | T97: 0 | U97: 0
A98: Q79 | B98: RGT | C98: CAMBRIDGE UNIVERSITY HOSPITALS NHS FOUNDATION TRUST | D98: 268 | E98: 429 | F98: 0.6247086247 | G98: 0.9962686567 | H98: 0 | I98: 230 | J98: 37 | K98: 1 | L98: 0 | M98: 0 | N98: 0 | O98: 0 | P98: 252 | Q98: 16 | R98: 0 | S98: 0 | T98: 0 | U98: 0
A99: Q79 | B99: RDE | C99: COLCHESTER HOSPITAL UNIVERSITY NHS FOUNDATION TRUST | D99: 29 | E99: 273 | F99: 0.1062271062 | G99: 1 | H99: 0 | I99: 25 | J99: 4 | K99: 0 | L99: 0 | M99: 0 | N99: 0 | O99: 0 | P99: 0 | Q99: 29 | R99: 0 | S99: 0 | T99: 0 | U99: 0
A100: Q79 | B100: RGQ | C100: IPSWICH HOSPITAL NHS TRUST | D100: 131 | E100: 308 | F100: 0.4253246753 | G100: 0.9618320611 | H100: 0.007633587786 | I100: 107 | J100: 19 | K100: 3 | L100: 0 | M100: 1 | N100: 1 | O100: 0 | P100: 129 | Q100: 1 | R100: 0 | S100: 0 | T100: 1 | U100: 0
A101: Q79 | B101: RGP | C101: JAMES PAGET UNIVERSITY HOSPITALS NHS FOUNDATION TRUST | D101: 36 | E101: 189 | F101: 0.1904761905 | G101: 1 | H101: 0 | I101: 35 | J101: 1 | K101: 0 | L101: 0 | M101: 0 | N101: 0 | O101: 0 | P101: 0 | Q101: 36 | R101: 0 | S101: 0 | T101: 0 | U101: 0
A102: Q79 | B102: RQ8 | C102: MID ESSEX HOSPITAL SERVICES NHS TRUST | D102: 59 | E102: 363 | F102: 0.1625344353 | G102: 0.9830508475 | H102: 0.01694915254 | I102: 51 | J102: 7 | K102: 0 | L102: 0 | M102: 1 | N102: 0 | O102: 54 | P102: 0 | Q102: 0 | R102: 0 | S102: 5 | T102: 0 | U102: 0
A103: Q79 | B103: RM1 | C103: NORFOLK AND NORWICH UNIVERSITY HOSPITALS NHS FOUNDATION TRUST | D103: 29 | E103: 459 | F103: 0.06318082789 | G103: 1 | H103: 0 | I103: 27 | J103: 2 | K103: 0 | L103: 0 | M103: 0 | N103: 0 | O103: 0 | P103: 27 | Q103: 2 | R103: 0 | S103: 0 | T103: 0 | U103: 0
A104: Q79 | B104: RGN | C104: NORTH WEST ANGLIA NHS FOUNDATION TRUST | D104: 106 | E104: 573 | F104: 0.184991274 | G104: 0.9811320755 | H104: 0 | I104: 96 | J104: 8 | K104: 0 | L104: 0 | M104: 0 | N104: 2 | O104: 0 | P104: 0 | Q104: 106 | R104: 0 | S104: 0 | T104: 0 | U104: 0
A105: Q79 | B105: RAJ | C105: SOUTHEND UNIVERSITY HOSPITAL NHS FOUNDATION TRUST | D105: 31 | E105: 322 | F105: 0.09627329193 | G105: 1 | H105: 0 | I105: 31 | J105: 0 | K105: 0 | L105: 0 | M105: 0 | N105: 0 | O105: 0 | P105: 0 | Q105: 30 | R105: 0 | S105: 0 | T105: 1 | U105: 0
A106: Q79 | B106: RQW | C106: THE PRINCESS ALEXANDRA HOSPITAL NHS TRUST | D106: 165 | E106: 360 | F106: 0.4583333333 | G106: 0.9757575758 | H106: 0.006060606061 | I106: 155 | J106: 6 | K106: 0 | L106: 0 | M106: 1 | N106: 3 | O106: 0 | P106: 0 | Q106: 0 | R106: 0 | S106: 0 | T106: 0 | U106: 165
A107: Q79 | B107: RCX | C107: THE QUEEN ELIZABETH HOSPITAL, KING'S LYNN, NHS FOUNDATION TRUST | D107: 32 | E107: 177 | F107: 0.1807909605 | G107: 1 | H107: 0 | I107: 29 | J107: 3 | K107: 0 | L107: 0 | M107: 0 | N107: 0 | O107: 0 | P107: 0 | Q107: 31 | R107: 0 | S107: 0 | T107: 1 | U107: 0
A108: Q79 | B108: RGR | C108: WEST SUFFOLK NHS FOUNDATION TRUST | D108: 31 | E108: 209 | F108: 0.1483253589 | G108: 1 | H108: 0 | I108: 31 | J108: 0 | K108: 0 | L108: 0 | M108: 0 | N108: 0 | O108: 0 | P108: 0 | Q108: 31 | R108: 0 | S108: 0 | T108: 0 | U108: 0
A109: Q80 | B109: RVJ | C109: NORTH BRISTOL NHS TRUST | D109: 76 | E109: 527 | F109: 0.1442125237 | G109: 0.9473684211 | H109: 0.03947368421 | I109: 62 | J109: 10 | K109: 0 | L109: 0 | M109: 3 | N109: 1 | O109: 76 | P109: 0 | Q109: 0 | R109: 0 | S109: 0 | T109: 0 | U109: 0
A110: Q80 | B110: RBZ | C110: NORTHERN DEVON HEALTHCARE NHS TRUST | D110: 3 | E110: 110 | F110: 0.02727272727 | G110: * | H110: * | I110: * | J110: * | K110: * | L110: * | M110: * | N110: * | O110: * | P110: * | Q110: * | R110: * | S110: * | T110: * | U110: *
A111: Q80 | B111: RK9 | C111: PLYMOUTH HOSPITALS NHS TRUST | D111: 124 | E111: 350 | F111: 0.3542857143 | G111: 0.9919354839 | H111: 0 | I111: 107 | J111: 16 | K111: 1 | L111: 0 | M111: 0 | N111: 0 | O111: 0 | P111: 87 | Q111: 37 | R111: 0 | S111: 0 | T111: 0 | U111: 0
A112: Q80 | B112: REF | C112: ROYAL CORNWALL HOSPITALS NHS TRUST | D112: 66 | E112: 358 | F112: 0.1843575419 | G112: 0.9696969697 | H112: 0.01515151515 | I112: 54 | J112: 10 | K112: 1 | L112: 0 | M112: 1 | N112: 0 | O112: 0 | P112: 0 | Q112: 66 | R112: 0 | S112: 0 | T112: 0 | U112: 0
A113: Q80 | B113: RH8 | C113: ROYAL DEVON AND EXETER NHS FOUNDATION TRUST | D113: 1 | E113: 324 | F113: 0.003086419753 | G113: * | H113: * | I113: * | J113: * | K113: * | L113: * | M113: * | N113: * | O113: * | P113: * | Q113: * | R113: * | S113: * | T113: * | U113: *
A114: Q80 | B114: RBA | C114: TAUNTON AND SOMERSET NHS FOUNDATION TRUST | D114: 33 | E114: 261 | F114: 0.1264367816 | G114: 1 | H114: 0 | I114: 30 | J114: 3 | K114: 0 | L114: 0 | M114: 0 | N114: 0 | O114: 0 | P114: 0 | Q114: 33 | R114: 0 | S114: 0 | T114: 0 | U114: 0
A115: Q80 | B115: RA9 | C115: TORBAY AND SOUTH DEVON NHS FOUNDATION TRUST | D115: 17 | E115: 199 | F115: 0.08542713568 | G115: 1 | H115: 0 | I115: 15 | J115: 2 | K115: 0 | L115: 0 | M115: 0 | N115: 0 | O115: 0 | P115: 0 | Q115: 17 | R115: 0 | S115: 0 | T115: 0 | U115: 0
A116: Q80 | B116: RA7 | C116: UNIVERSITY HOSPITALS BRISTOL NHS FOUNDATION TRUST | D116: 70 | E116: 448 | F116: 0.15625 | G116: 0.9285714286 | H116: 0.01428571429 | I116: 57 | J116: 8 | K116: 0 | L116: 0 | M116: 1 | N116: 4 | O116: 0 | P116: 0 | Q116: 70 | R116: 0 | S116: 0 | T116: 0 | U116: 0
A117: Q80 | B117: RA3 | C117: WESTON AREA HEALTH NHS TRUST | D117: 6 | E117: 14 | F117: 0.4285714286 | G117: 1 | H117: 0 | I117: 5 | J117: 1 | K117: 0 | L117: 0 | M117: 0 | N117: 0 | O117: 0 | P117: 0 | Q117: 6 | R117: 0 | S117: 0 | T117: 0 | U117: 0
A118: Q80 | B118: RA4 | C118: YEOVIL DISTRICT HOSPITAL NHS FOUNDATION TRUST | D118: 4 | E118: 140 | F118: 0.02857142857 | G118: * | H118: * | I118: * | J118: * | K118: * | L118: * | M118: * | N118: * | O118: * | P118: * | Q118: * | R118: * | S118: * | T118: * | U118: *
A119: Q81 | B119: RTK | C119: ASHFORD AND ST PETER'S HOSPITALS NHS FOUNDATION TRUST | D119: 138 | E119: 308 | F119: 0.4480519481 | G119: 0.9130434783 | H119: 0.03623188406 | I119: 87 | J119: 39 | K119: 4 | L119: 0 | M119: 5 | N119: 3 | O119: 0 | P119: 0 | Q119: 137 | R119: 0 | S119: 0 | T119: 1 | U119: 0
A120: Q81 | B120: RXH | C120: BRIGHTON AND SUSSEX UNIVERSITY HOSPITALS NHS TRUST | D120: 111 | E120: 462 | F120: 0.2402597403 | G120: 0.981981982 | H120: 0.009009009009 | I120: 95 | J120: 14 | K120: 0 | L120: 0 | M120: 1 | N120: 1 | O120: 111 | P120: 0 | Q120: 0 | R120: 0 | S120: 0 | T120: 0 | U120: 0
A121: Q81 | B121: RN7 | C121: DARTFORD AND GRAVESHAM NHS TRUST | D121: 69 | E121: 375 | F121: 0.184 | G121: 1 | H121: 0 | I121: 66 | J121: 3 | K121: 0 | L121: 0 | M121: 0 | N121: 0 | O121: 0 | P121: 0 | Q121: 69 | R121: 0 | S121: 0 | T121: 0 | U121: 0
A122: Q81 | B122: RVV | C122: EAST KENT HOSPITALS UNIVERSITY NHS FOUNDATION TRUST | D122: 135 | E122: 577 | F122: 0.2339688042 | G122: 0.9777777778 | H122: 0.007407407407 | I122: 119 | J122: 13 | K122: 1 | L122: 1 | M122: 0 | N122: 1 | O122: 0 | P122: 0 | Q122: 0 | R122: 135 | S122: 0 | T122: 0 | U122: 0
A123: Q81 | B123: RXC | C123: EAST SUSSEX HEALTHCARE NHS TRUST | D123: 115 | E123: 274 | F123: 0.4197080292 | G123: 0.9913043478 | H123: 0 | I123: 82 | J123: 32 | K123: 1 | L123: 0 | M123: 0 | N123: 0 | O123: 0 | P123: 115 | Q123: 0 | R123: 0 | S123: 0 | T123: 0 | U123: 0
A124: Q81 | B124: RDU | C124: FRIMLEY HEALTH NHS FOUNDATION TRUST | D124: 173 | E124: 800 | F124: 0.21625 | G124: 0.9537572254 | H124: 0.01734104046 | I124: 142 | J124: 23 | K124: 4 | L124: 3 | M124: 0 | N124: 1 | O124: 0 | P124: 0 | Q124: 172 | R124: 0 | S124: 0 | T124: 1 | U124: 0
A125: Q81 | B125: RWF | C125: MAIDSTONE AND TUNBRIDGE WELLS NHS TRUST | D125: 66 | E125: 519 | F125: 0.1271676301 | G125: 0.9545454545 | H125: 0.01515151515 | I125: 55 | J125: 8 | K125: 1 | L125: 1 | M125: 0 | N125: 1 | O125: 0 | P125: 0 | Q125: 65 | R125: 0 | S125: 0 | T125: 1 | U125: 0
A126: Q81 | B126: RPA | C126: MEDWAY NHS FOUNDATION TRUST | D126: 117 | E126: 302 | F126: 0.3874172185 | G126: 1 | H126: 0 | I126: 114 | J126: 3 | K126: 0 | L126: 0 | M126: 0 | N126: 0 | O126: 0 | P126: 0 | Q126: 117 | R126: 0 | S126: 0 | T126: 0 | U126: 0
A127: Q81 | B127: RA2 | C127: ROYAL SURREY COUNTY HOSPITAL NHS FOUNDATION TRUST | D127: 46 | E127: 244 | F127: 0.1885245902 | G127: 1 | H127: 0 | I127: 44 | J127: 2 | K127: 0 | L127: 0 | M127: 0 | N127: 0 | O127: 11 | P127: 0 | Q127: 35 | R127: 0 | S127: 0 | T127: 0 | U127: 0
A128: Q81 | B128: RTP | C128: SURREY AND SUSSEX HEALTHCARE NHS TRUST | D128: 22 | E128: 376 | F128: 0.0585106383 | G128: 1 | H128: 0 | I128: 21 | J128: 1 | K128: 0 | L128: 0 | M128: 0 | N128: 0 | O128: 0 | P128: 0 | Q128: 18 | R128: 0 | S128: 0 | T128: 4 | U128: 0
A129: Q81 | B129: RYR | C129: WESTERN SUSSEX HOSPITALS NHS FOUNDATION TRUST | D129: 217 | E129: 455 | F129: 0.4769230769 | G129: 0.9815668203 | H129: 0.009216589862 | I129: 169 | J129: 44 | K129: 2 | L129: 0 | M129: 2 | N129: 0 | O129: 0 | P129: 3 | Q129: 198 | R129: 0 | S129: 0 | T129: 16 | U129: 0
A130: Q82 | B130: RXQ | C130: BUCKINGHAMSHIRE HEALTHCARE NHS TRUST | D130: 209 | E130: 519 | F130: 0.4026974952 | G130: 0.976076555 | H130: 0.00956937799 | I130: 171 | J130: 33 | K130: 3 | L130: 0 | M130: 2 | N130: 0 | O130: 0 | P130: 0 | Q130: 209 | R130: 0 | S130: 0 | T130: 0 | U130: 0
A131: Q82 | B131: RTE | C131: GLOUCESTERSHIRE HOSPITALS NHS FOUNDATION TRUST | D131: 124 | E131: 441 | F131: 0.2811791383 | G131: 0.9677419355 | H131: 0.01612903226 | I131: 116 | J131: 4 | K131: 2 | L131: 0 | M131: 2 | N131: 0 | O131: 122 | P131: 0 | Q131: 0 | R131: 0 | S131: 2 | T131: 0 | U131: 0
A132: Q82 | B132: RN3 | C132: GREAT WESTERN HOSPITALS NHS FOUNDATION TRUST | D132: 24 | E132: 371 | F132: 0.06469002695 | G132: 1 | H132: 0 | I132: 23 | J132: 1 | K132: 0 | L132: 0 | M132: 0 | N132: 0 | O132: 0 | P132: 0 | Q132: 24 | R132: 0 | S132: 0 | T132: 0 | U132: 0
A133: Q82 | B133: RTH | C133: OXFORD UNIVERSITY HOSPITALS NHS FOUNDATION TRUST | D133: 59 | E133: 537 | F133: 0.1098696462 | G133: 0.9661016949 | H133: 0.01694915254 | I133: 48 | J133: 9 | K133: 1 | L133: 1 | M133: 0 | N133: 0 | O133: 0 | P133: 0 | Q133: 58 | R133: 0 | S133: 0 | T133: 1 | U133: 0
A134: Q82 | B134: RHW | C134: ROYAL BERKSHIRE NHS FOUNDATION TRUST | D134: 193 | E134: 421 | F134: 0.458432304 | G134: 0.9792746114 | H134: 0.00518134715 | I134: 149 | J134: 40 | K134: 3 | L134: 1 | M134: 0 | N134: 0 | O134: 0 | P134: 69 | Q134: 123 | R134: 0 | S134: 0 | T134: 1 | U134: 0
A135: Q82 | B135: RD1 | C135: ROYAL UNITED HOSPITALS BATH NHS FOUNDATION TRUST | D135: 73 | E135: 378 | F135: 0.1931216931 | G135: 0.9863013699 | H135: 0.01369863014 | I135: 68 | J135: 4 | K135: 0 | L135: 0 | M135: 1 | N135: 0 | O135: 0 | P135: 0 | Q135: 73 | R135: 0 | S135: 0 | T135: 0 | U135: 0
A136: Q82 | B136: RNZ | C136: SALISBURY NHS FOUNDATION TRUST | D136: 12 | E136: 189 | F136: 0.06349206349 | G136: 0.9166666667 | H136: 0 | I136: 9 | J136: 2 | K136: 1 | L136: 0 | M136: 0 | N136: 0 | O136: 0 | P136: 0 | Q136: 12 | R136: 0 | S136: 0 | T136: 0 | U136: 0
A137: Q83 | B137: RMC | C137: BOLTON NHS FOUNDATION TRUST | D137: 131 | E137: 572 | F137: 0.229020979 | G137: 0.9618320611 | H137: 0.01526717557 | I137: 116 | J137: 10 | K137: 3 | L137: 1 | M137: 1 | N137: 0 | O137: 61 | P137: 0 | Q137: 0 | R137: 70 | S137: 0 | T137: 0 | U137: 0
A138: Q83 | B138: RY2 | C138: BRIDGEWATER COMMUNITY HEALTHCARE NHS FOUNDATION TRUST | D138: 0 | E138: 0 | F138: NA | G138: NA | H138: NA | I138: 0 | J138: 0 | K138: 0 | L138: 0 | M138: 0 | N138: 0 | O138: 0 | P138: 0 | Q138: 0 | R138: 0 | S138: 0 | T138: 0 | U138: 0
A139: Q83 | B139: RW3 | C139: CENTRAL MANCHESTER UNIVERSITY HOSPITALS NHS FOUNDATION TRUST | D139: 1 | E139: 800 | F139: 0.00125 | G139: * | H139: * | I139: * | J139: * | K139: * | L139: * | M139: * | N139: * | O139: * | P139: * | Q139: * | R139: * | S139: * | T139: * | U139: *
A140: Q83 | B140: RW6 | C140: PENNINE ACUTE HOSPITALS NHS TRUST | D140: 134 | E140: 736 | F140: 0.1820652174 | G140: 0.9626865672 | H140: 0.0223880597 | I140: 108 | J140: 21 | K140: 2 | L140: 0 | M140: 3 | N140: 0 | O140: 30 | P140: 0 | Q140: 104 | R140: 0 | S140: 0 | T140: 0 | U140: 0
A141: Q83 | B141: RWJ | C141: STOCKPORT NHS FOUNDATION TRUST | D141: 136 | E141: 305 | F141: 0.4459016393 | G141: 0.9705882353 | H141: 0.02205882353 | I141: 110 | J141: 22 | K141: 0 | L141: 2 | M141: 1 | N141: 1 | O141: 0 | P141: 0 | Q141: 136 | R141: 0 | S141: 0 | T141: 0 | U141: 0
A142: Q83 | B142: RMP | C142: TAMESIDE AND GLOSSOP INTEGRATED CARE NHS FOUNDATION TRUST | D142: 59 | E142: 192 | F142: 0.3072916667 | G142: 0.9830508475 | H142: 0.01694915254 | I142: 41 | J142: 17 | K142: 0 | L142: 1 | M142: 0 | N142: 0 | O142: 0 | P142: 51 | Q142: 8 | R142: 0 | S142: 0 | T142: 0 | U142: 0
A143: Q83 | B143: RM2 | C143: UNIVERSITY HOSPITAL OF SOUTH MANCHESTER NHS FOUNDATION TRUST | D143: 37 | E143: 362 | F143: 0.1022099448 | G143: 1 | H143: 0 | I143: * | J143: * | K143: * | L143: * | M143: * | N143: * | O143: * | P143: * | Q143: * | R143: * | S143: * | T143: * | U143: *
A144: Q83 | B144: RRF | C144: WRIGHTINGTON, WIGAN AND LEIGH NHS FOUNDATION TRUST | D144: 141 | E144: 239 | F144: 0.589958159 | G144: 0.9716312057 | H144: 0.007092198582 | I144: 123 | J144: 14 | K144: 3 | L144: 1 | M144: 0 | N144: 0 | O144: 0 | P144: 0 | Q144: 139 | R144: 0 | S144: 0 | T144: 2 | U144: 0
A145: Q84 | B145: RXL | C145: BLACKPOOL TEACHING HOSPITALS NHS FOUNDATION TRUST | D145: 83 | E145: 264 | F145: 0.3143939394 | G145: 0.9518072289 | H145: 0.01204819277 | I145: 66 | J145: 13 | K145: 2 | L145: 1 | M145: 0 | N145: 1 | O145: 0 | P145: 40 | Q145: 43 | R145: 0 | S145: 0 | T145: 0 | U145: 0
A146: Q84 | B146: RXR | C146: EAST LANCASHIRE HOSPITALS NHS TRUST | D146: 148 | E146: 565 | F146: 0.2619469027 | G146: 0.9864864865 | H146: 0 | I146: 140 | J146: 6 | K146: 1 | L146: 0 | M146: 0 | N146: 1 | O146: 77 | P146: 0 | Q146: 71 | R146: 0 | S146: 0 | T146: 0 | U146: 0
A147: Q84 | B147: RXN | C147: LANCASHIRE TEACHING HOSPITALS NHS FOUNDATION TRUST | D147: 38 | E147: 243 | F147: 0.1563786008 | G147: 1 | H147: 0 | I147: 35 | J147: 3 | K147: 0 | L147: 0 | M147: 0 | N147: 0 | O147: 38 | P147: 0 | Q147: 0 | R147: 0 | S147: 0 | T147: 0 | U147: 0
A148: zIS1 | B148: NDE | C148: ONE TO ONE (NORTH WEST) LIMITED | D148: 14 | E148: 28 | F148: 0.5 | G148: 0.8571428571 | H148: 0 | I148: 11 | J148: 1 | K148: 0 | L148: 0 | M148: 0 | N148: 2 | O148: 0 | P148: 14 | Q148: 0 | R148: 0 | S148: 0 | T148: 0 | U148: 0

Sheet Sites Q2
B6: Sort data by:
A9: Region (LO) Code | B9: Trust Code | C9: Trust Name | D9: Site Code | E9: Site Name | F9: Total Responses | G9: Total Eligible | H9: Response Rate | I9: Percentage Recommended | J9: Percentage Not Recommended | K9: Breakdown of Responses
K10: Extremely Likely | L10: Likely | M10: Neither | N10: Unlikely | O10: Extremely Unlikely | P10: Don't Know
E11: England (including Independent Sector providers) | F11: 12482 | G11: 52158 | H11: 0.2393113233 | I11: 0.9655503926 | J11: 0.01482134273 | K11: 10050 | L11: 2002 | M11: 170 | N11: 81 | O11: 104 | P11: 75
E12: England (excluding Independent Sector providers) | F12: 12468 | G12: 52130 | H12: 0.2391713025 | I12: 0.9656721206 | J12: 0.01483798524 | K12: 10039 | L12: 2001 | M12: 170 | N12: 81 | O12: 104 | P12: 73
E13: Selection (excluding suppressed data) | F13: =SUBTOTAL(9,F14:F299) -> 12482 | G13: =SUBTOTAL(9,G14:G299) -> 52158 | H13: =IFERROR(F13/G13, "NA") -> 0.2393113233 | I13: =IFERROR((K13+L13)/SUM(K13:P13), "-") -> 0.9647152458 | J13: =IFERROR((N13+O13)/SUM(K13:P13), "-") -> 0.01503360453 | K13: =SUBTOTAL(9,K14:K299) -> 9081 | L13: =SUBTOTAL(9,L14:L299) -> 1828 | M13: 156 | N13: 69 | O13: 101 | P13: 73
A14: Q70 | B14: RBD | C14: DORSET COUNTY HOSPITAL NHS FOUNDATION TRUST | D14: RBD01 | E14: Dorset County Hospital - RBD01 | F14: 55 | G14: 148 | H14: 0.3716216216 | I14: 0.9818181818 | J14: 0.01818181818 | K14: 52 | L14: 2 | M14: 0 | N14: 1 | O14: 0 | P14: 0
A15: Q70 | B15: RN5 | C15: HAMPSHIRE HOSPITALS NHS FOUNDATION TRUST | D15: RN542 | E15: Andover War Memorial Hospital - RN542 | F15: 4 | G15: 4 | H15: 1 | I15: * | J15: * | K15: * | L15: * | M15: * | N15: * | O15: * | P15: *
A16: Q70 | B16: RN5 | C16: HAMPSHIRE HOSPITALS NHS FOUNDATION TRUST | D16: RN506 | E16: Basingstoke and North Hampshire Hospital - RN506 | F16: 127 | G16: 238 | H16: 0.5336134454 | I16: 0.9842519685 | J16: 0 | K16: 109 | L16: 16 | M16: 2 | N16: 0 | O16: 0 | P16: 0
A17: Q70 | B17: RN5 | C17: HAMPSHIRE HOSPITALS NHS FOUNDATION TRUST | D17: RN541 | E17: Royal Hampshire County Hospital - RN541 | F17: 46 | G17: 196 | H17: 0.2346938776 | I17: 1 | J17: 0 | K17: * | L17: * | M17: * | N17: * | O17: * | P17: *
A18: Q70 | B18: R1F | C18: ISLE OF WIGHT NHS TRUST | D18: R1F01 | E18: St Mary's Hospital - R1F01 | F18: 18 | G18: 99 | H18: 0.1818181818 | I18: 1 | J18: 0 | K18: 16 | L18: 2 | M18: 0 | N18: 0 | O18: 0 | P18: 0
A19: Q70 | B19: RD3 | C19: POOLE HOSPITAL NHS FOUNDATION TRUST | D19: RD304 | E19: Poole General Hospital NHS Trust HQ - RD304 | F19: 102 | G19: 357 | H19: 0.2857142857 | I19: 0.9215686275 | J19: 0.03921568627 | K19: 91 | L19: 3 | M19: 3 | N19: 1 | O19: 3 | P19: 1
A20: Q70 | B20: RHU | C20: PORTSMOUTH HOSPITALS NHS TRUST | D20: RHU10 | E20: Gosport War Memorial Hospital - RHU10 | F20: 0 | G20: 2 | H20: 0 | I20: NA | J20: NA | K20: 0 | L20: 0 | M20: 0 | N20: 0 | O20: 0 | P20: 0
A21: Q70 | B21: RHU | C21: PORTSMOUTH HOSPITALS NHS TRUST | D21: RHU04 | E21: Petersfield Community Hospital - RHU04 | F21: 0 | G21: 4 | H21: 0 | I21: NA | J21: NA | K21: 0 | L21: 0 | M21: 0 | N21: 0 | O21: 0 | P21: 0
A22: Q70 | B22: RHU | C22: PORTSMOUTH HOSPITALS NHS TRUST | D22: RHU03 | E22: Queen Alexandra Hospital - RHU03 | F22: 89 | G22: 464 | H22: 0.1918103448 | I22: 0.9887640449 | J22: 0 | K22: * | L22: * | M22: * | N22: * | O22: * | P22: *
A23: Q70 | B23: RHU | C23: PORTSMOUTH HOSPITALS NHS TRUST | D23: RHU02 | E23: St Mary's Hospital - RHU02 | F23: 1 | G23: 3 | H23: 0.3333333333 | I23: * | J23: * | K23: * | L23: * | M23: * | N23: * | O23: * | P23: *
A24: Q70 | B24: RDZ | C24: THE ROYAL BOURNEMOUTH AND CHRISTCHURCH HOSPITALS NHS FOUNDATION TRUST | D24: RDZ20 | E24: Royal Bournemouth General Hospital - RDZ20 | F24: 11 | G24: 24 | H24: 0.4583333333 | I24: 1 | J24: 0 | K24: 11 | L24: 0 | M24: 0 | N24: 0 | O24: 0 | P24: 0
A25: Q70 | B25: RHM | C25: UNIVERSITY HOSPITAL SOUTHAMPTON NHS FOUNDATION TRUST | D25: RHM01 | E25: Southampton General Hospital - RHM01 | F25: 150 | G25: 484 | H25: 0.3099173554 | I25: 0.98 | J25: 0.01333333333 | K25: 111 | L25: 36 | M25: 1 | N25: 1 | O25: 1 | P25: 0
A26: Q71 | B26: RF4 | C26: BARKING, HAVERING AND REDBRIDGE UNIVERSITY HOSPITALS NHS TRUST | D26: RF4QH | E26: Queen's Hospital - RF4QH | F26: 258 | G26: 696 | H26: 0.3706896552 | I26: 0.984496124 | J26: 0.003875968992 | K26: 217 | L26: 37 | M26: 0 | N26: 0 | O26: 1 | P26: 3
A27: Q71 | B27: R1H | C27: BARTS HEALTH NHS TRUST | D27: R1HNH | E27: Newham General Hospital - R1HNH | F27: 340 | G27: 516 | H27: 0.6589147287 | I27: 0.9235294118 | J27: 0.03529411765 | K27: 213 | L27: 101 | M27: 13 | N27: 8 | O27: 4 | P27: 1
A28: Q71 | B28: R1H | C28: BARTS HEALTH NHS TRUST | D28: R1H12 | E28: The Royal London Hospital - R1H12 | F28: 55 | G28: 431 | H28: 0.1276102088 | I28: 0.9090909091 | J28: 0.01818181818 | K28: 36 | L28: 14 | M28: 2 | N28: 0 | O28: 1 | P28: 2
A29: Q71 | B29: R1H | C29: BARTS HEALTH NHS TRUST | D29: R1HKH | E29: Whipps Cross University Hospital - R1HKH | F29: 44 | G29: 435 | H29: 0.1011494253 | I29: 1 | J29: 0 | K29: 35 | L29: 9 | M29: 0 | N29: 0 | O29: 0 | P29: 0
A30: Q71 | B30: RQM | C30: CHELSEA AND WESTMINSTER HOSPITAL NHS FOUNDATION TRUST | D30: RQM01 | E30: Chelsea and Westminster Hospital - RQM01 | F30: 81 | G30: 285 | H30: 0.2842105263 | I30: 0.962962963 | J30: 0.03703703704 | K30: 69 | L30: 9 | M30: 0 | N30: 2 | O30: 1 | P30: 0
A31: Q71 | B31: RQM | C31: CHELSEA AND WESTMINSTER HOSPITAL NHS FOUNDATION TRUST | D31: RQM91 | E31: West Middlesex University Hospital - RQM91 | F31: 97 | G31: 459 | H31: 0.211328976 | I31: 0.9381443299 | J31: 0.05154639175 | K31: 77 | L31: 14 | M31: 1 | N31: 2 | O31: 3 | P31: 0
A32: Q71 | B32: RJ6 | C32: CROYDON HEALTH SERVICES NHS TRUST | D32: RJ611 | E32: Croydon University Hospital - RJ611 | F32: 45 | G32: 348 | H32: 0.1293103448 | I32: 0.9333333333 | J32: 0.04444444444 | K32: 39 | L32: 3 | M32: 1 | N32: 1 | O32: 1 | P32: 0
A33: Q71 | B33: RVR | C33: EPSOM AND ST HELIER UNIVERSITY HOSPITALS NHS TRUST | D33: RVR50 | E33: Epsom Hospital - RVR50 | F33: 22 | G33: 173 | H33: 0.1271676301 | I33: 1 | J33: 0 | K33: * | L33: * | M33: * | N33: * | O33: * | P33: *
A34: Q71 | B34: RVR | C34: EPSOM AND ST HELIER UNIVERSITY HOSPITALS NHS TRUST | D34: RVRXXX | E34: Non-hospital site - RVRXXX | F34: 1 | G34: 8 | H34: 0.125 | I34: * | J34: * | K34: * | L34: * | M34: * | N34: * | O34: * | P34: *
A35: Q71 | B35: RVR | C35: EPSOM AND ST HELIER UNIVERSITY HOSPITALS NHS TRUST | D35: RVR05 | E35: St Helier Hospital - RVR05 | F35: 62 | G35: 224 | H35: 0.2767857143 | I35: 0.9838709677 | J35: 0.01612903226 | K35: 55 | L35: 6 | M35: 0 | N35: 1 | O35: 0 | P35: 0
A36: Q71 | B36: RJ1 | C36: GUY'S AND ST THOMAS' NHS FOUNDATION TRUST | D36: RJ1XXX | E36: Non-hospital site - RJ1XXX | F36: 0 | G36: 7 | H36: 0 | I36: NA | J36: NA | K36: 0 | L36: 0 | M36: 0 | N36: 0 | O36: 0 | P36: 0
A37: Q71 | B37: RJ1 | C37: GUY'S AND ST THOMAS' NHS FOUNDATION TRUST | D37: RJ122 | E37: St Thomas' Hospital - RJ122 | F37: 37 | G37: 535 | H37: 0.0691588785 | I37: 0.9459459459 | J37: 0 | K37: 29 | L37: 6 | M37: 1 | N37: 0 | O37: 0 | P37: 1
A38: Q71 | B38: RQX | C38: HOMERTON UNIVERSITY HOSPITAL NHS FOUNDATION TRUST | D38: RQXM1 | E38: Homerton University Hospital - RQXM1 | F38: 27 | G38: 500 | H38: 0.054 | I38: 0.9259259259 | J38: 0.07407407407 | K38: 22 | L38: 3 | M38: 0 | N38: 0 | O38: 2 | P38: 0
A39: Q71 | B39: RYJ | C39: IMPERIAL COLLEGE HEALTHCARE NHS TRUST | D39: RYJ04 | E39: Queen Charlotte's Hospital - RYJ04 | F39: 90 | G39: 475 | H39: 0.1894736842 | I39: 0.9777777778 | J39: 0 | K39: 78 | L39: 10 | M39: 1 | N39: 0 | O39: 0 | P39: 1
A40: Q71 | B40: RYJ | C40: IMPERIAL COLLEGE HEALTHCARE NHS TRUST | D40: RYJ01 | E40: St Mary's Hospital (HQ) - RYJ01 | F40: 149 | G40: 290 | H40: 0.5137931034 | I40: 0.9060402685 | J40: 0.04697986577 | K40: 84 | L40: 51 | M40: 4 | N40: 3 | O40: 4 | P40: 3
A41: Q71 | B41: RJZ | C41: KING'S COLLEGE HOSPITAL NHS FOUNDATION TRUST | D41: RJZ01 | E41: King's College Hospital (Denmark Hill) - RJZ01 | F41: 3 | G41: 480 | H41: 0.00625 | I41: * | J41: * | K41: * | L41: * | M41: * | N41: * | O41: * | P41: *
A42: Q71 | B42: RJZ | C42: KING'S COLLEGE HOSPITAL NHS FOUNDATION TRUST | D42: RJZ30 | E42: Princess Royal University Hospital - RJZ30 | F42: 59 | G42: 143 | H42: 0.4125874126 | I42: 0.9322033898 | J42: 0.03389830508 | K42: * | L42: * | M42: * | N42: * | O42: * | P42: *
A43: Q71 | B43: RAX | C43: KINGSTON HOSPITAL NHS FOUNDATION TRUST | D43: RAX01 | E43: Kingston Hospital - RAX01 | F43: 54 | G43: 476 | H43: 0.1134453782 | I43: 1 | J43: 0 | K43: 43 | L43: 11 | M43: 0 | N43: 0 | O43: 0 | P43: 0
A44: Q71 | B44: RJ2 | C44: LEWISHAM AND GREENWICH NHS TRUST | D44: RJ2XXX | E44: Non-hospital site - RJ2XXX | F44: 1 | G44: 16 | H44: 0.0625 | I44: * | J44: * | K44: * | L44: * | M44: * | N44: * | O44: * | P44: *
A45: Q71 | B45: RJ2 | C45: LEWISHAM AND GREENWICH NHS TRUST | D45: RJ231 | E45: Queen Elizabeth Hospital - RJ231 | F45: 142 | G45: 393 | H45: 0.3613231552 | I45: 0.9507042254 | J45: 0.01408450704 | K45: * | L45: * | M45: * | N45: * | O45: * | P45: *
A46: Q71 | B46: RJ2 | C46: LEWISHAM AND GREENWICH NHS TRUST | D46: RJ224 | E46: University Hospital Lewisham - RJ224 | F46: 252 | G46: 314 | H46: 0.8025477707 | I46: 0.9246031746 | J46: 0.01984126984 | K46: 175 | L46: 58 | M46: 9 | N46: 4 | O46: 1 | P46: 5
A47: Q71 | B47: R1K | C47: LONDON NORTH WEST HEALTHCARE NHS TRUST | D47: R1K04 | E47: Ealing Hospital - R1K04 | F47: 0 | G47: 0 | H47: NA | I47: NA | J47: NA | K47: 0 | L47: 0 | M47: 0 | N47: 0 | O47: 0 | P47: 0
A48: Q71 | B48: R1K | C48: LONDON NORTH WEST HEALTHCARE NHS TRUST | D48: R1KXXX | E48: Non-hospital site - R1KXXX | F48: 0 | G48: 5 | H48: 0 | I48: NA | J48: NA | K48: 0 | L48: 0 | M48: 0 | N48: 0 | O48: 0 | P48: 0
A49: Q71 | B49: R1K | C49: LONDON NORTH WEST HEALTHCARE NHS TRUST | D49: R1K01 | E49: Northwick Park Hospital - R1K01 | F49: 354 | G49: 431 | H49: 0.8213457077 | I49: 0.9011299435 | J49: 0.0395480226 | K49: 169 | L49: 150 | M49: 18 | N49: 6 | O49: 8 | P49: 3
A50: Q71 | B50: RAP | C50: NORTH MIDDLESEX UNIVERSITY HOSPITAL NHS TRUST | D50: RAPNM | E50: North Middlesex Hospital - RAPNM | F50: 165 | G50: 405 | H50: 0.4074074074 | I50: 0.8787878788 | J50: 0.06060606061 | K50: 97 | L50: 48 | M50: 6 | N50: 2 | O50: 8 | P50: 4
A51: Q71 | B51: RAL | C51: ROYAL FREE LONDON NHS FOUNDATION TRUST | D51: RAL26 | E51: Barnet Hospital - RAL26 | F51: 102 | G51: 485 | H51: 0.2103092784 | I51: 0.9705882353 | J51: 0 | K51: 58 | L51: 41 | M51: 2 | N51: 0 | O51: 0 | P51: 1
A52: Q71 | B52: RAL | C52: ROYAL FREE LONDON NHS FOUNDATION TRUST | D52: RAL01 | E52: Royal Free Hospital - RAL01 | F52: 76 | G52: 241 | H52: 0.3153526971 | I52: 0.9868421053 | J52: 0 | K52: 63 | L52: 12 | M52: 1 | N52: 0 | O52: 0 | P52: 0
A53: Q71 | B53: RJ7 | C53: ST GEORGE'S UNIVERSITY HOSPITALS NHS FOUNDATION TRUST | D53: RJ7XXX | E53: Non-hospital site - RJ7XXX | F53: 0 | G53: 0 | H53: NA | I53: NA | J53: NA | K53: 0 | L53: 0 | M53: 0 | N53: 0 | O53: 0 | P53: 0
A54: Q71 | B54: RJ7 | C54: ST GEORGE'S UNIVERSITY HOSPITALS NHS FOUNDATION TRUST | D54: RJ701 | E54: St George's Hospital (Tooting) - RJ701 | F54: 10 | G54: 432 | H54: 0.02314814815 | I54: 1 | J54: 0 | K54: 8 | L54: 2 | M54: 0 | N54: 0 | O54: 0 | P54: 0
A55: Q71 | B55: RAS | C55: THE HILLINGDON HOSPITALS NHS FOUNDATION TRUST | D55: RAS01 | E55: Hillingdon Hospital - RAS01 | F55: 165 | G55: 417 | H55: 0.3956834532 | I55: 0.9818181818 | J55: 0.006060606061 | K55: * | L55: * | M55: * | N55: * | O55: * | P55: *
A56: Q71 | B56: RAS | C56: THE HILLINGDON HOSPITALS NHS FOUNDATION TRUST | D56: RASXXX | E56: Non-hospital site - RASXXX | F56: 1 | G56: 3 | H56: 0.3333333333 | I56: * | J56: * | K56: * | L56: * | M56: * | N56: * | O56: * | P56: *
A57: Q71 | B57: RKE | C57: THE WHITTINGTON HOSPITAL NHS TRUST | D57: RKEXXX | E57: Non-hospital site - RKEXXX | F57: 0 | G57: 4 | H57: 0 | I57: NA | J57: NA | K57: 0 | L57: 0 | M57: 0 | N57: 0 | O57: 0 | P57: 0
A58: Q71 | B58: RKE | C58: THE WHITTINGTON HOSPITAL NHS TRUST | D58: RKEQ4 | E58: The Whittington Hospital - RKEQ4 | F58: 108 | G58: 317 | H58: 0.3406940063 | I58: 0.9537037037 | J58: 0.009259259259 | K58: 68 | L58: 35 | M58: 4 | N58: 1 | O58: 0 | P58: 0
A59: Q71 | B59: RRV | C59: UNIVERSITY COLLEGE LONDON HOSPITALS NHS FOUNDATION TRUST | D59: RRV03 | E59: University College Hospital - RRV03 | F59: 101 | G59: 513 | H59: 0.1968810916 | I59: 0.9900990099 | J59: 0.009900990099 | K59: 87 | L59: 13 | M59: 0 | N59: 0 | O59: 1 | P59: 0
A60: Q72 | B60: RCF | C60: AIREDALE NHS FOUNDATION TRUST | D60: RCF22 | E60: Airedale General Hospital - RCF22 | F60: 34 | G60: 176 | H60: 0.1931818182 | I60: 0.9117647059 | J60: 0.02941176471 | K60: 29 | L60: 2 | M60: 2 | N60: 1 | O60: 0 | P60: 0
A61: Q72 | B61: RFF | C61: BARNSLEY HOSPITAL NHS FOUNDATION TRUST | D61: RFFAA | E61: Barnsley Hospital NHS Foundation Trust HQ - RFFAA | F61: 46 | G61: 250 | H61: 0.184 | I61: 1 | J61: 0 | K61: 43 | L61: 3 | M61: 0 | N61: 0 | O61: 0 | P61: 0
A62: Q72 | B62: RAE | C62: BRADFORD TEACHING HOSPITALS NHS FOUNDATION TRUST | D62: RAE01 | E62: Bradford Royal Infirmary - RAE01 | F62: 63 | G62: 449 | H62: 0.140311804 | I62: 1 | J62: 0 | K62: 63 | L62: 0 | M62: 0 | N62: 0 | O62: 0 | P62: 0
A63: Q72 | B63: RWY | C63: CALDERDALE AND HUDDERSFIELD NHS FOUNDATION TRUST | D63: RWY02 | E63: Calderdale Royal Hospital - RWY02 | F63: 151 | G63: 410 | H63: 0.3682926829 | I63: 0.9867549669 | J63: 0.006622516556 | K63: 124 | L63: 25 | M63: 1 | N63: 1 | O63: 0 | P63: 0
A64: Q72 | B64: RWY | C64: CALDERDALE AND HUDDERSFIELD NHS FOUNDATION TRUST | D64: RWY01 | E64: Huddersfield Royal Infirmary - RWY01 | F64: 20 | G64: 35 | H64: 0.5714285714 | I64: 0.95 | J64: 0 | K64: 18 | L64: 1 | M64: 1 | N64: 0 | O64: 0 | P64: 0
A65: Q72 | B65: RWY | C65: CALDERDALE AND HUDDERSFIELD NHS FOUNDATION TRUST | D65: RWYXXX | E65: Non-hospital site - RWYXXX | F65: 0 | G65: 0 | H65: NA | I65: NA | J65: NA | K65: 0 | L65: 0 | M65: 0 | N65: 0 | O65: 0 | P65: 0
A66: Q72 | B66: RP5 | C66: DONCASTER AND BASSETLAW TEACHING HOSPITALS NHS FOUNDATION TRUST | D66: RP5BA | E66: Bassetlaw Hospital - RP5BA | F66: 47 | G66: 152 | H66: 0.3092105263 | I66: 1 | J66: 0 | K66: 43 | L66: 4 | M66: 0 | N66: 0 | O66: 0 | P66: 0
A67: Q72 | B67: RP5 | C67: DONCASTER AND BASSETLAW TEACHING HOSPITALS NHS FOUNDATION TRUST | D67: RP5DR | E67: Doncaster Royal Infirmary - RP5DR | F67: 66 | G67: 290 | H67: 0.2275862069 | I67: 0.9545454545 | J67: 0.01515151515 | K67: 58 | L67: 5 | M67: 1 | N67: 1 | O67: 0 | P67: 1
A68: Q72 | B68: RP5 | C68: DONCASTER AND BASSETLAW TEACHING HOSPITALS NHS FOUNDATION TRUST | D68: RP5XXX | E68: Non-hospital site - RP5XXX | F68: 0 | G68: 0 | H68: NA | I68: NA | J68: NA | K68: 0 | L68: 0 | M68: 0 | N68: 0 | O68: 0 | P68: 0
A69: Q72 | B69: RCD | C69: HARROGATE AND DISTRICT NHS FOUNDATION TRUST | D69: RCD01 | E69: Harrogate District Hospital - RCD01 | F69: 55 | G69: 165 | H69: 0.3333333333 | I69: 0.9818181818 | J69: 0 | K69: 51 | L69: 3 | M69: 1 | N69: 0 | O69: 0 | P69: 0
A70: Q72 | B70: RWA | C70: HULL AND EAST YORKSHIRE HOSPITALS NHS TRUST | D70: RWA01 | E70: Hull Royal Infirmary - RWA01 | F70: 5 | G70: 432 | H70: 0.01157407407 | I70: 0.8 | J70: 0 | K70: 3 | L70: 1 | M70: 1 | N70: 0 | O70: 0 | P70: 0
A71: Q72 | B71: RR8 | C71: LEEDS TEACHING HOSPITALS NHS TRUST | D71: RR801 | E71: Leeds General Infirmary - RR801 | F71: 147 | G71: 433 | H71: 0.3394919169 | I71: 0.9659863946 | J71: 0.02721088435 | K71: 122 | L71: 20 | M71: 1 | N71: 0 | O71: 4 | P71: 0
A72: Q72 | B72: RR8 | C72: LEEDS TEACHING HOSPITALS NHS TRUST | D72: RR8XXX | E72: Non-Hospital Site - RR8XXX | F72: 0 | G72: 12 | H72: 0 | I72: NA | J72: NA | K72: 0 | L72: 0 | M72: 0 | N72: 0 | O72: 0 | P72: 0
A73: Q72 | B73: RR8 | C73: LEEDS TEACHING HOSPITALS NHS TRUST | D73: RR813 | E73: St James's University Hospital - RR813 | F73: 112 | G73: 408 | H73: 0.2745098039 | I73: 0.9375 | J73: 0.03571428571 | K73: 87 | L73: 18 | M73: 3 | N73: 0 | O73: 4 | P73: 0
A74: Q72 | B74: RXF | C74: MID YORKSHIRE HOSPITALS NHS TRUST | D74: RXF10 | E74: Dewsbury and District Hospital - RXF10 | F74: 25 | G74: 29 | H74: 0.8620689655 | I74: 1 | J74: 0 | K74: 21 | L74: 4 | M74: 0 | N74: 0 | O74: 0 | P74: 0
A75: Q72 | B75: RXF | C75: MID YORKSHIRE HOSPITALS NHS TRUST | D75: RXFXXX | E75: Non-hospital site - RXFXXX | F75: 1 | G75: 5 | H75: 0.2 | I75: * | J75: * | K75: * | L75: * | M75: * | N75: * | O75: * | P75: *
A76: Q72 | B76: RXF | C76: MID YORKSHIRE HOSPITALS NHS TRUST | D76: RXF05 | E76: Pinderfields General Hospital - RXF05 | F76: 169 | G76: 459 | H76: 0.3681917211 | I76: 0.9704142012 | J76: 0.01183431953 | K76: 140 | L76: 24 | M76: 3 | N76: 2 | O76: 0 | P76: 0
A77: Q72 | B77: RXF | C77: MID YORKSHIRE HOSPITALS NHS TRUST | D77: RXF03 | E77: Pontefract General Infirmary - RXF03 | F77: 14 | G77: 18 | H77: 0.7777777778 | I77: 1 | J77: 0 | K77: * | L77: * | M77: * | N77: * | O77: * | P77: *
A78: Q72 | B78: RJL | C78: NORTHERN LINCOLNSHIRE AND GOOLE NHS FOUNDATION TRUST | D78: RJL30 | E78: Diana, Princess Of Wales Hospital - RJL30 | F78: 23 | G78: 219 | H78: 0.1050228311 | I78: 1 | J78: 0 | K78: * | L78: * | M78: * | N78: * | O78: * | P78: *
A79: Q72 | B79: RJL | C79: NORTHERN LINCOLNSHIRE AND GOOLE NHS FOUNDATION TRUST | D79: RJL32 | E79: Scunthorpe General Hospital - RJL32 | F79: 1 | G79: 135 | H79: 0.007407407407 | I79: * | J79: * | K79: * | L79: * | M79: * | N79: * | O79: * | P79: *
A80: Q72 | B80: RHQ | C80: SHEFFIELD TEACHING HOSPITALS NHS FOUNDATION TRUST | D80: RHQHH | E80: Royal Hallamshire Hospital - RHQHH | F80: 182 | G80: 569 | H80: 0.3198594025 | I80: 0.956043956 | J80: 0.01648351648 | K80: 143 | L80: 31 | M80: 5 | N80: 1 | O80: 2 | P80: 0
A81: Q72 | B81: RFR | C81: THE ROTHERHAM NHS FOUNDATION TRUST | D81: RFRPA | E81: Rotherham District General Hospital - RFRPA | F81: 70 | G81: 210 | H81: 0.3333333333 | I81: 1 | J81: 0 | K81: 66 | L81: 4 | M81: 0 | N81: 0 | O81: 0 | P81: 0
A82: Q72 | B82: RCB | C82: YORK TEACHING HOSPITAL NHS FOUNDATION TRUST | D82: RCBCA | E82: Scarborough General Hospital - RCBCA | F82: 4 | G82: 118 | H82: 0.03389830508 | I82: * | J82: * | K82: * | L82: * | M82: * | N82: * | O82: * | P82: *
A83: Q72 | B83: RCB | C83: YORK TEACHING HOSPITAL NHS FOUNDATION TRUST | D83: RCB55 | E83: York Hospital - RCB55 | F83: 94 | G83: 256 | H83: 0.3671875 | I83: 1 | J83: 0 | K83: * | L83: * | M83: * | N83: * | O83: * | P83: *
A84: Q74 | B84: RLN | C84: CITY HOSPITALS SUNDERLAND NHS FOUNDATION TRUST | D84: RLNGL | E84: Sunderland Royal Hospital - RLNGL | F84: 108 | G84: 252 | H84: 0.4285714286 | I84: 1 | J84: 0 | K84: 97 | L84: 11 | M84: 0 | N84: 0 | O84: 0 | P84: 0
A85: Q74 | B85: RXP | C85: COUNTY DURHAM AND DARLINGTON NHS FOUNDATION TRUST | D85: RXPDA | E85: Darlington Memorial Hospital - RXPDA | F85: 66 | G85: 164 | H85: 0.4024390244 | I85: 1 | J85: 0 | K85: 48 | L85: 18 | M85: 0 | N85: 0 | O85: 0 | P85: 0
A86: Q74 | B86: RXP | C86: COUNTY DURHAM AND DARLINGTON NHS FOUNDATION TRUST | D86: RXPXXX | E86: Non-hospital site - RXPXXX | F86: 2 | G86: 6 | H86: 0.3333333333 | I86: * | J86: * | K86: * | L86: * | M86: * | N86: * | O86: * | P86: *
A87: Q74 | B87: RXP | C87: COUNTY DURHAM AND DARLINGTON NHS FOUNDATION TRUST | D87: RXPCP | E87: University Hospital Of North Durham - RXPCP | F87: 2 | G87: 254 | H87: 0.007874015748 | I87: * | J87: * | K87: * | L87: * | M87: * | N87: * | O87: * | P87: *
A88: Q74 | B88: RR7 | C88: GATESHEAD HEALTH NHS FOUNDATION TRUST | D88: RR7EN | E88: Queen Elizabeth Hospital - RR7EN | F88: 48 | G88: 149 | H88: 0.322147651 | I88: 0.9791666667 | J88: 0 | K88: 40 | L88: 7 | M88: 1 | N88: 0 | O88: 0 | P88: 0
A89: Q74 | B89: RNL | C89: NORTH CUMBRIA UNIVERSITY HOSPITALS NHS TRUST | D89: RNLAY | E89: Cumberland Infirmary - RNLAY | F89: 14 | G89: 123 | H89: 0.1138211382 | I89: 1 | J89: 0 | K89: * | L89: * | M89: * | N89: * | O89: * | P89: *
A90: Q74 | B90: RNL | C90: NORTH CUMBRIA UNIVERSITY HOSPITALS NHS TRUST | D90: RNLBE | E90: Penrith Hospital - RNLBE | F90: 1 | G90: 2 | H90: 0.5 | I90: * | J90: * | K90: * | L90: * | M90: * | N90: * | O90: * | P90: *
A91: Q74 | B91: RNL | C91: NORTH CUMBRIA UNIVERSITY HOSPITALS NHS TRUST | D91: RNLBX | E91: West Cumberland Hospital - RNLBX | F91: 71 | G91: 99 | H91: 0.7171717172 | I91: 1 | J91: 0 | K91: 58 | L91: 13 | M91: 0 | N91: 0 | O91: 0 | P91: 0
A92: Q74 | B92: RVW | C92: NORTH TEES AND HARTLEPOOL NHS FOUNDATION TRUST | D92: RVWAE | E92: University Hospital Of North Tees - RVWAE | F92: 12 | G92: 228 | H92: 0.05263157895 | I92: 0.9166666667 | J92: 0.08333333333 | K92: 8 | L92: 3 | M92: 0 | N92: 1 | O92: 0 | P92: 0
A93: Q74 | B93: RTF | C93: NORTHUMBRIA HEALTHCARE NHS FOUNDATION TRUST | D93: RTFDJ | E93: Alnwick Infirmary - RTFDJ | F93: 0 | G93: 0 | H93: NA | I93: NA | J93: NA | K93: 0 | L93: 0 | M93: 0 | N93: 0 | O93: 0 | P93: 0
A94: Q74 | B94: RTF | C94: NORTHUMBRIA HEALTHCARE NHS FOUNDATION TRUST | D94: RTFDH | E94: Berwick Infirmary - RTFDH | F94: 0 | G94: 0 | H94: NA | I94: NA | J94: NA | K94: 0 | L94: 0 | M94: 0 | N94: 0 | O94: 0 | P94: 0
A95: Q74 | B95: RTF | C95: NORTHUMBRIA HEALTHCARE NHS FOUNDATION TRUST | D95: RTFDR | E95: Hexham General Hospital - RTFDR | F95: 2 | G95: 0 | H95: NA | I95: * | J95: * | K95: * | L95: * | M95: * | N95: * | O95: * | P95: *
A96: Q74 | B96: RTF | C96: NORTHUMBRIA HEALTHCARE NHS FOUNDATION TRUST | D96: RTFXXX | E96: Non-hospital site - RTFXXX | F96: 0 | G96: 0 | H96: NA | I96: NA | J96: NA | K96: 0 | L96: 0 | M96: 0 | N96: 0 | O96: 0 | P96: 0
A97: Q74 | B97: RTF | C97: NORTHUMBRIA HEALTHCARE NHS FOUNDATION TRUST | D97: RTF86 | E97: The Northumbria - RTF86 | F97: 45 | G97: 188 | H97: 0.2393617021 | I97: 0.9555555556 | J97: 0.04444444444 | K97: * | L97: * | M97: * | N97: * | O97: * | P97: *
A98: Q74 | B98: RTR | C98: SOUTH TEES HOSPITALS NHS FOUNDATION TRUST | D98: RTR45 | E98: Friarage Hospital Site - RTR45 | F98: 0 | G98: 22 | H98: 0 | I98: NA | J98: NA | K98: 0 | L98: 0 | M98: 0 | N98: 0 | O98: 0 | P98: 0
A99: Q74 | B99: RTR | C99: SOUTH TEES HOSPITALS NHS FOUNDATION TRUST | D99: RTRAT | E99: The James Cook University Hospital - RTRAT | F99: 45 | G99: 410 | H99: 0.1097560976 | I99: 0.9777777778 | J99: 0.02222222222 | K99: 38 | L99: 6 | M99: 0 | N99: 0 | O99: 1 | P99: 0
A100: Q74 | B100: RE9 | C100: SOUTH TYNESIDE NHS FOUNDATION TRUST | D100: RE9GA | E100: South Tyneside District Hospital - RE9GA | F100: 26 | G100: 93 | H100: 0.2795698925 | I100: 1 | J100: 0 | K100: 25 | L100: 1 | M100: 0 | N100: 0 | O100: 0 | P100: 0
A101: Q74 | B101: RTD | C101: THE NEWCASTLE UPON TYNE HOSPITALS NHS FOUNDATION TRUST | D101: RTD02 | E101: The Royal Victoria Infirmary - RTD02 | F101: 170 | G101: 536 | H101: 0.3171641791 | I101: 0.9823529412 | J101: 0.005882352941 | K101: 155 | L101: 12 | M101: 1 | N101: 1 | O101: 0 | P101: 1
A102: Q74 | B102: RTX | C102: UNIVERSITY HOSPITALS OF MORECAMBE BAY NHS FOUNDATION TRUST | D102: RTXBU | E102: Furness General Hospital - RTXBU | F102: 28 | G102: 81 | H102: 0.3456790123 | I102: 1 | J102: 0 | K102: * | L102: * | M102: * | N102: * | O102: * | P102: *
A103: Q74 | B103: RTX | C103: UNIVERSITY HOSPITALS OF MORECAMBE BAY NHS FOUNDATION TRUST | D103: RTX02 | E103: Royal Lancaster Infirmary - RTX02 | F103: 2 | G103: 166 | H103: 0.01204819277 | I103: * | J103: * | K103: * | L103: * | M103: * | N103: * | O103: * | P103: *
A104: Q74 | B104: RTX | C104: UNIVERSITY HOSPITALS OF MORECAMBE BAY NHS FOUNDATION TRUST | D104: RTXBW | E104: Westmorland General Hospital - RTXBW | F104: 0 | G104: 1 | H104: 0 | I104: NA | J104: NA | K104: 0 | L104: 0 | M104: 0 | N104: 0 | O104: 0 | P104: 0
A105: Q75 | B105: RJR | C105: COUNTESS OF CHESTER HOSPITAL NHS FOUNDATION TRUST | D105: RJR05 | E105: Countess Of Chester Hospital - RJR05 | F105: 77 | G105: 267 | H105: 0.2883895131 | I105: 0.9350649351 | J105: 0.02597402597 | K105: 66 | L105: 6 | M105: 1 | N105: 1 | O105: 1 | P105: 2
A106: Q75 | B106: RJN | C106: EAST CHESHIRE NHS TRUST | D106: RJN71 | E106: Macclesfield District General Hospital - RJN71 | F106: 49 | G106: 130 | H106: 0.3769230769 | I106: 0.9795918367 | J106: 0 | K106: 44 | L106: 4 | M106: 0 | N106: 0 | O106: 0 | P106: 1
A107: Q75 | B107: REP | C107: LIVERPOOL WOMEN'S NHS FOUNDATION TRUST | D107: REP01 | E107: Liverpool Womens Hospital - REP01 | F107: 1 | G107: 770 | H107: 0.001298701299 | I107: * | J107: * | K107: * | L107: * | M107: * | N107: * | O107: * | P107: *
A108: Q75 | B108: RBT | C108: MID CHESHIRE HOSPITALS NHS FOUNDATION TRUST | D108: RBT20 | E108: Leighton Hospital - RBT20 | F108: 27 | G108: 240 | H108: 0.1125 | I108: 1 | J108: 0 | K108: 24 | L108: 3 | M108: 0 | N108: 0 | O108: 0 | P108: 0
A109: Q75 | B109: RVY | C109: SOUTHPORT AND ORMSKIRK HOSPITAL NHS TRUST | D109: RVY02 | E109: Ormskirk and District General Hospital - RVY02 | F109: 13 | G109: 207 | H109: 0.06280193237 | I109: 1 | J109: 0 | K109: * | L109: * | M109: * | N109: * | O109: * | P109: *
A110: Q75 | B110: RBN | C110: ST HELENS AND KNOWSLEY HOSPITAL SERVICES NHS TRUST | D110: RBN01 | E110: Whiston Hospital - RBN01 | F110: 32 | G110: 319 | H110: 0.1003134796 | I110: 1 | J110: 0 | K110: 27 | L110: 5 | M110: 0 | N110: 0 | O110: 0 | P110: 0
A111: Q75 | B111: RWW | C111: WARRINGTON AND HALTON HOSPITALS NHS FOUNDATION TRUST | D111: RWWWH | E111: Warrington Hospital - RWWWH | F111: 26 | G111: 213 | H111: 0.1220657277 | I111: 1 | J111: 0 | K111: 25 | L111: 1 | M111: 0 | N111: 0 | O111: 0 | P111: 0
A112: Q75 | B112: RBL | C112: WIRRAL UNIVERSITY TEACHING HOSPITAL NHS FOUNDATION TRUST | D112: RBL14 | E112: Arrowe Park Hospital - RBL14 | F112: 81 | G112: 293 | H112: 0.2764505119 | I112: 1 | J112: 0 | K112: 70 | L112: 11 | M112: 0 | N112: 0 | O112: 0 | P112: 0
A113: Q76 | B113: RJF | C113: BURTON HOSPITALS NHS FOUNDATION TRUST | D113: RJF02 | E113: Queen's Hospital, Burton Upon Trent - RJF02 | F113: 91 | G113: 247 | H113: 0.3684210526 | I113: 0.989010989 | J113: 0.01098901099 | K113: 86 | L113: 4 | M113: 0 | N113: 1 | O113: 0 | P113: 0
A114: Q76 | B114: RFS | C114: CHESTERFIELD ROYAL HOSPITAL NHS FOUNDATION TRUST | D114: RFSDA | E114: Chesterfield Royal Hospital - RFSDA | F114: 61 | G114: 246 | H114: 0.2479674797 | I114: 0.9508196721 | J114: 0.01639344262 | K114: 41 | L114: 17 | M114: 0 | N114: 1 | O114: 0 | P114: 2
A115: Q76 | B115: RTG | C115: DERBY TEACHING HOSPITALS NHS FOUNDATION TRUST | D115: RTGFG | E115: Royal Derby Hospital - RTGFG | F115: 238 | G115: 478 | H115: 0.4979079498 | I115: 0.9789915966 | J115: 0.008403361345 | K115: 181 | L115: 52 | M115: 2 | N115: 1 | O115: 1 | P115: 1
A116: Q76 | B116: RX1 | C116: NOTTINGHAM UNIVERSITY HOSPITALS NHS TRUST | D116: RX1XXX | E116: Non-hospital site - RX1XXX | F116: 0 | G116: 14 | H116: 0 | I116: NA | J116: NA | K116: 0 | L116: 0 | M116: 0 | N116: 0 | O116: 0 | P116: 0
A117: Q76 | B117: RX1 | C117: NOTTINGHAM UNIVERSITY HOSPITALS NHS TRUST | D117: RX1CC | E117: Nottingham University Hospitals NHS Trust - City Campus - RX1CC | F117: 92 | G117: 417 | H117: 0.2206235012 | I117: 0.9891304348 | J117: 0 | K117: 83 | L117: 8 | M117: 1 | N117: 0 | O117: 0 | P117: 0
A118: Q76 | B118: RX1 | C118: NOTTINGHAM UNIVERSITY HOSPITALS NHS TRUST | D118: RX1RA | E118: Nottingham University Hospitals NHS Trust - Queen's Medical Centre Campus - RX1RA | F118: 16 | G118: 370 | H118: 0.04324324324 | I118: 0.9375 | J118: 0 | K118: 13 | L118: 2 | M118: 1 | N118: 0 | O118: 0 | P118: 0
A119: Q76 | B119: RK5 | C119: SHERWOOD FOREST HOSPITALS NHS FOUNDATION TRUST | D119: RK5BC | E119: King's Mill Hospital - RK5BC | F119: 81 | G119: 280 | H119: 0.2892857143 | I119: 0.9259259259 | J119: 0.04938271605 | K119: 65 | L119: 10 | M119: 2 | N119: 3 | O119: 1 | P119: 0
A120: Q76 | B120: RK5 | C120: SHERWOOD FOREST HOSPITALS NHS FOUNDATION TRUST | D120: RK5XXX | E120: Non-hospital site - RK5XXX | F120: 0 | G120: 8 | H120: 0 | I120: NA | J120: NA | K120: 0 | L120: 0 | M120: 0 | N120: 0 | O120: 0 | P120: 0
A121: Q76 | B121: RXW | C121: SHREWSBURY AND TELFORD HOSPITAL NHS TRUST | D121: RXWMB | E121: Bridgnorth Hospital (Maternity) - RXWMB | F121: 5 | G121: 7 | H121: 0.7142857143 | I121: 1 | J121: 0 | K121: 5 | L121: 0 | M121: 0 | N121: 0 | O121: 0 | P121: 0
A122: Q76 | B122: RXW | C122: SHREWSBURY AND TELFORD HOSPITAL NHS TRUST | D122: RXWML | E122: Ludlow Hospital (Maternity) - RXWML | F122: 2 | G122: 3 | H122: 0.6666666667 | I122: * | J122: * | K122: * | L122: * | M122: * | N122: * | O122: * | P122: *
A123: Q76 | B123: RXW | C123: SHREWSBURY AND TELFORD HOSPITAL NHS TRUST | D123: RXWXXX | E123: Non-hospital site - RXWXXX | F123: 0 | G123: 8 | H123: 0 | I123: NA | J123: NA | K123: 0 | L123: 0 | M123: 0 | N123: 0 | O123: 0 | P123: 0
A124: Q76 | B124: RXW | C124: SHREWSBURY AND TELFORD HOSPITAL NHS TRUST | D124: RXWMJ | E124: Robert Jones & Agnes Hunt Orthopaedic & District Hospital - RXWMJ | F124: 4 | G124: 4 | H124: 1 | I124: * | J124: * | K124: * | L124: * | M124: * | N124: * | O124: * | P124: *
A125: Q76 | B125: RXW | C125: SHREWSBURY AND TELFORD HOSPITAL NHS TRUST | D125: RXWAS | E125: Royal Shrewsbury Hospital - RXWAS | F125: 4 | G125: 15 | H125: 0.2666666667 | I125: * | J125: * | K125: * | L125: * | M125: * | N125: * | O125: * | P125: *
A126: Q76 | B126: RXW | C126: SHREWSBURY AND TELFORD HOSPITAL NHS TRUST | D126: RXWAT | E126: The Princess Royal Hospital - RXWAT | F126: 25 | G126: 392 | H126: 0.0637755102 | I126: 1 | J126: 0 | K126: 24 | L126: 1 | M126: 0 | N126: 0 | O126: 0 | P126: 0
A127: Q76 | B127: RJE | C127: UNIVERSITY HOSPITALS OF NORTH MIDLANDS NHS TRUST | D127: RJE09 | E127: County Hospital - RJE09 | F127: 13 | G127: 15 | H127: 0.8666666667 | I127: 1 | J127: 0 | K127: 13 | L127: 0 | M127: 0 | N127: 0 | O127: 0 | P127: 0
A128: Q76 | B128: RJE | C128: UNIVERSITY HOSPITALS OF NORTH MIDLANDS NHS TRUST | D128: RJEXXX | E128: Non-hospital site - RJEXXX | F128: 0 | G128: 7 | H128: 0 | I128: NA | J128: NA | K128: 0 | L128: 0 | M128: 0 | N128: 0 | O128: 0 | P128: 0
A129: Q76 | B129: RJE | C129: UNIVERSITY HOSPITALS OF NORTH MIDLANDS NHS TRUST | D129: RJE01 | E129: Royal Stoke University Hospital - RJE01 | F129: 72 | G129: 518 | H129: 0.138996139 | I129: 0.9861111111 | J129: 0 | K129: 70 | L129: 1 | M129: 1 | N129: 0 | O129: 0 | P129: 0
A130: Q77 | B130: RQ3 | C130: BIRMINGHAM WOMEN'S AND CHILDREN'S NHS FOUNDATION TRUST | D130: RQ370 | E130: Birmingham Women's Hospital - RQ370 | F130: 80 | G130: 647 | H130: 0.1236476043 | I130: 0.95 | J130: 0.025 | K130: 59 | L130: 17 | M130: 1 | N130: 0 | O130: 2 | P130: 1
A131: Q77 | B131: RLT | C131: GEORGE ELIOT HOSPITAL NHS TRUST | D131: RLT01 | E131: George Eliot Hospital - Acute Services - RLT01 | F131: 83 | G131: 159 | H131: 0.5220125786 | I131: 0.9638554217 | J131: 0.03614457831 | K131: 69 | L131: 11 | M131: 0 | N131: 1 | O131: 2 | P131: 0
A132: Q77 | B132: RR1 | C132: HEART OF ENGLAND NHS FOUNDATION TRUST | D132: RR105 | E132: Good Hope Hospital - RR105 | F132: 14 | G132: 305 | H132: 0.04590163934 | I132: 1 | J132: 0 | K132: * | L132: * | M132: * | N132: * | O132: * | P132: *
A133: Q77 | B133: RR1 | C133: HEART OF ENGLAND NHS FOUNDATION TRUST | D133: RR101 | E133: Heartlands Hospital - RR101 | F133: 4 | G133: 507 | H133: 0.007889546351 | I133: * | J133: * | K133: * | L133: * | M133: * | N133: * | O133: * | P133: *
A134: Q77 | B134: RR1 | C134: HEART OF ENGLAND NHS FOUNDATION TRUST | D134: RR109 | E134: Solihull Hospital - RR109 | F134: 16 | G134: 31 | H134: 0.5161290323 | I134: 1 | J134: 0 | K134: 16 | L134: 0 | M134: 0 | N134: 0 | O134: 0 | P134: 0
A135: Q77 | B135: RXK | C135: SANDWELL AND WEST BIRMINGHAM HOSPITALS NHS TRUST | D135: RXK02 | E135: City Hospital - RXK02 | F135: 65 | G135: 497 | H135: 0.1307847082 | I135: 0.8307692308 | J135: 0.06153846154 | K135: 30 | L135: 24 | M135: 7 | N135: 2 | O135: 2 | P135: 0
A136: Q77 | B136: RJC | C136: SOUTH WARWICKSHIRE NHS FOUNDATION TRUST | D136: RJCXXX | E136: Non-hospital site - RJCXXX | F136: 0 | G136: 5 | H136: 0 | I136: NA | J136: NA | K136: 0 | L136: 0 | M136: 0 | N136: 0 | O136: 0 | P136: 0
A137: Q77 | B137: RJC | C137: SOUTH WARWICKSHIRE NHS FOUNDATION TRUST | D137: RJC02 | E137: Warwick Hospital - RJC02 | F137: 42 | G137: 259 | H137: 0.1621621622 | I137: 0.9047619048 | J137: 0 | K137: 27 | L137: 11 | M137: 0 | N137: 0 | O137: 0 | P137: 4
A138: Q77 | B138: RNA | C138: THE DUDLEY GROUP NHS FOUNDATION TRUST | D138: RNA01 | E138: Russells Hall Hospital - RNA01 | F138: 171 | G138: 338 | H138: 0.5059171598 | I138: 0.9883040936 | J138: 0.005847953216 | K138: 145 | L138: 24 | M138: 1 | N138: 0 | O138: 1 | P138: 0
A139: Q77 | B139: RL4 | C139: THE ROYAL WOLVERHAMPTON NHS TRUST | D139: RL403 | E139: New Cross Hospital - RL403 | F139: 45 | G139: 380 | H139: 0.1184210526 | I139: 1 | J139: 0 | K139: 44 | L139: 1 | M139: 0 | N139: 0 | O139: 0 | P139: 0
A140: Q77 | B140: RKB | C140: UNIVERSITY HOSPITALS COVENTRY AND WARWICKSHIRE NHS TRUST | D140: RKB03 | E140: Hospital Of St Cross - RKB03 | F140: 0 | G140: 0 | H140: NA | I140: NA | J140: NA | K140: 0 | L140: 0 | M140: 0 | N140: 0 | O140: 0 | P140: 0
A141: Q77 | B141: RKB | C141: UNIVERSITY HOSPITALS COVENTRY AND WARWICKSHIRE NHS TRUST | D141: RKBXXX | E141: Non-hospital site - RKBXXX | F141: 1 | G141: 3 | H141: 0.3333333333 | I141: * | J141: * | K141: * | L141: * | M141: * | N141: * | O141: * | P141: *
A142: Q77 | B142: RKB | C142: UNIVERSITY HOSPITALS COVENTRY AND WARWICKSHIRE NHS TRUST | D142: RKB01 | E142: University Hospital (Coventry) - RKB01 | F142: 75 | G142: 516 | H142: 0.1453488372 | I142: 0.9866666667 | J142: 0 | K142: * | L142: * | M142: * | N142: * | O142: * | P142: *
A143: Q77 | B143: RBK | C143: WALSALL HEALTHCARE NHS TRUST | D143: RBK02 | E143: Manor Hospital - RBK02 | F143: 20 | G143: 196 | H143: 0.1020408163 | I143: 0.95 | J143: 0.05 | K143: 18 | L143: 1 | M143: 0 | N143: 1 | O143: 0 | P143: 0
A144: Q77 | B144: RWP | C144: WORCESTERSHIRE ACUTE HOSPITALS NHS TRUST | D144: RWP50 | E144: Worcestershire Royal Hospital - RWP50 | F144: 61 | G144: 200 | H144: 0.305 | I144: 1 | J144: 0 | K144: 58 | L144: 3 | M144: 0 | N144: 0 | O144: 0 | P144: 0
A145: Q77 | B145: RLQ | C145: WYE VALLEY NHS TRUST | D145: RLQ01 | E145: Hereford County Hospital - RLQ01 | F145: 62 | G145: 145 | H145: 0.4275862069 | I145: 0.9516129032 | J145: 0.01612903226 | K145: 46 | L145: 13 | M145: 2 | N145: 1 | O145: 0 | P145: 0
A146: Q78 | B146: RC1 | C146: BEDFORD HOSPITAL NHS TRUST | D146: RC110 | E146: Bedford Hospital South Wing - RC110 | F146: 43 | G146: 86 | H146: 0.5 | I146: 1 | J146: 0 | K146: 40 | L146: 3 | M146: 0 | N146: 0 | O146: 0 | P146: 0
A147: Q78 | B147: RWH | C147: EAST AND NORTH HERTFORDSHIRE NHS TRUST | D147: RWH01 | E147: Lister Hospital - RWH01 | F147: 232 | G147: 463 | H147: 0.5010799136 | I147: 0.974137931 | J147: 0.008620689655 | K147: 169 | L147: 57 | M147: 4 | N147: 1 | O147: 1 | P147: 0
A148: Q78 | B148: RWH | C148: EAST AND NORTH HERTFORDSHIRE NHS TRUST | D148: RWHXXX | E148: Non-hospital site - RWHXXX | F148: 0 | G148: 14 | H148: 0 | I148: NA | J148: NA | K148: 0 | L148: 0 | M148: 0 | N148: 0 | O148: 0 | P148: 0
A149: Q78 | B149: RNQ | C149: KETTERING GENERAL HOSPITAL NHS FOUNDATION TRUST | D149: RNQ51 | E149: Kettering General Hospital - RNQ51 | F149: 67 | G149: 270 | H149: 0.2481481481 | I149: 1 | J149: 0 | K149: 62 | L149: 5 | M149: 0 | N149: 0 | O149: 0 | P149: 0
A150: Q78 | B150: RC9 | C150: LUTON AND DUNSTABLE UNIVERSITY HOSPITAL NHS FOUNDATION TRUST | D150: RC971 | E150: Luton and Dunstable Hospital - RC971 | F150: 50 | G150: 389 | H150: 0.1285347044 | I150: 0.96 | J150: 0.02 | K150: 33 | L150: 15 | M150: 0 | N150: 0 | O150: 1 | P150: 1
A151: Q78 | B151: RD8 | C151: MILTON KEYNES UNIVERSITY HOSPITAL NHS FOUNDATION TRUST | D151: RD816 | E151: Milton Keynes Hospital - RD816 | F151: 5 | G151: 295 | H151: 0.01694915254 | I151: 1 | J151: 0 | K151: 4 | L151: 1 | M151: 0 | N151: 0 | O151: 0 | P151: 0
A152: Q78 | B152: RNS | C152: NORTHAMPTON GENERAL HOSPITAL NHS TRUST | D152: RNS01 | E152: Northampton General Hospital (Acute) - RNS01 | F152: 39 | G152: 389 | H152: 0.1002570694 | I152: 1 | J152: 0 | K152: 36 | L152: 3 | M152: 0 | N152: 0 | O152: 0 | P152: 0
A153: Q78 | B153: RWD | C153: UNITED LINCOLNSHIRE HOSPITALS NHS TRUST | D153: RWDLP | E153: Grantham and District Hospital - RWDLP | F153: 0 | G153: 6 | H153: 0 | I153: NA | J153: NA | K153: 0 | L153: 0 | M153: 0 | N153: 0 | O153: 0 | P153: 0
A154: Q78 | B154: RWD | C154: UNITED LINCOLNSHIRE HOSPITALS NHS TRUST | D154: RWDDA | E154: Lincoln County Hospital - RWDDA | F154: 40 | G154: 260 | H154: 0.1538461538 | I154: 0.95 | J154: 0.05 | K154: 34 | L154: 4 | M154: 0 | N154: 0 | O154: 2 | P154: 0
A155: Q78 | B155: RWD | C155: UNITED LINCOLNSHIRE HOSPITALS NHS TRUST | D155: RWDXXX | E155: Non-hospital site - RWDXXX | F155: 0 | G155: 0 | H155: NA | I155: NA | J155: NA | K155: 0 | L155: 0 | M155: 0 | N155: 0 | O155: 0 | P155: 0
A156: Q78 | B156: RWD | C156: UNITED LINCOLNSHIRE HOSPITALS NHS TRUST | D156: RWDLA | E156: Pilgrim Hospital - RWDLA | F156: 22 | G156: 179 | H156: 0.1229050279 | I156: 1 | J156: 0 | K156: 18 | L156: 4 | M156: 0 | N156: 0 | O156: 0 | P156: 0
A157: Q78 | B157: RWE | C157: UNIVERSITY HOSPITALS OF LEICESTER NHS TRUST | D157: RWEAK | E157: Leicester General Hospital - RWEAK | F157: 172 | G157: 305 | H157: 0.5639344262 | I157: 0.9244186047 | J157: 0.03488372093 | K157: 143 | L157: 16 | M157: 3 | N157: 1 | O157: 5 | P157: 4
A158: Q78 | B158: RWE | C158: UNIVERSITY HOSPITALS OF LEICESTER NHS TRUST | D158: RWEAA | E158: Leicester Royal Infirmary - RWEAA | F158: 271 | G158: 478 | H158: 0.5669456067 | I158: 0.9520295203 | J158: 0.0295202952 | K158: 203 | L158: 55 | M158: 2 | N158: 3 | O158: 5 | P158: 3
A159: Q78 | B159: RWE | C159: UNIVERSITY HOSPITALS OF LEICESTER NHS TRUST | D159: RWEXXX | E159: Non-hospital site - RWEXXX | F159: 21 | G159: 26 | H159: 0.8076923077 | I159: 0.7142857143 | J159: 0.09523809524 | K159: 9 | L159: 6 | M159: 0 | N159: 0 | O159: 2 | P159: 4
A160: Q78 | B160: RWE | C160: UNIVERSITY HOSPITALS OF LEICESTER NHS TRUST | D160: RWE10 | E160: St Mary's Hospital - RWE10 | F160: 15 | G160: 14 | H160: 1.071428571 | I160: 0.9333333333 | J160: 0.06666666667 | K160: 12 | L160: 2 | M160: 0 | N160: 1 | O160: 0 | P160: 0
A161: Q78 | B161: RWG | C161: WEST HERTFORDSHIRE HOSPITALS NHS TRUST | D161: RWG02 | E161: Watford General Hospital - RWG02 | F161: 124 | G161: 428 | H161: 0.2897196262 | I161: 0.9677419355 | J161: 0.008064516129 | K161: 91 | L161: 29 | M161: 3 | N161: 1 | O161: 0 | P161: 0
A162: Q79 | B162: RDD | C162: BASILDON AND THURROCK UNIVERSITY HOSPITALS NHS FOUNDATION TRUST | D162: RDDH0 | E162: Basildon University Hospital - RDDH0 | F162: 15 | G162: 169 | H162: 0.08875739645 | I162: 1 | J162: 0 | K162: 15 | L162: 0 | M162: 0 | N162: 0 | O162: 0 | P162: 0
A163: Q79 | B163: RGT | C163: CAMBRIDGE UNIVERSITY HOSPITALS NHS FOUNDATION TRUST | D163: RGT32 | E163: Rosie Hospital - RGT32 | F163: 268 | G163: 429 | H163: 0.6247086247 | I163: 0.9962686567 | J163: 0 | K163: 230 | L163: 37 | M163: 1 | N163: 0 | O163: 0 | P163: 0
A164: Q79 | B164: RDE | C164: COLCHESTER HOSPITAL UNIVERSITY NHS FOUNDATION TRUST | D164: RDEE2 | E164: Clacton and District Hospital - RDEE2 | F164: 0 | G164: 4 | H164: 0 | I164: NA | J164: NA | K164: 0 | L164: 0 | M164: 0 | N164: 0 | O164: 0 | P164: 0
A165: Q79 | B165: RDE | C165: COLCHESTER HOSPITAL UNIVERSITY NHS FOUNDATION TRUST | D165: RDEE4 | E165: Colchester General Hospital - RDEE4 | F165: 29 | G165: 262 | H165: 0.1106870229 | I165: 1 | J165: 0 | K165: 25 | L165: 4 | M165: 0 | N165: 0 | O165: 0 | P165: 0
A166: Q79 | B166: RDE | C166: COLCHESTER HOSPITAL UNIVERSITY NHS FOUNDATION TRUST | D166: RDEEE | E166: Harwich Maternity - RDEEE | F166: 0 | G166: 0 | H166: NA | I166: NA | J166: NA | K166: 0 | L166: 0 | M166: 0 | N166: 0 | O166: 0 | P166: 0
A167: Q79 | B167: RDE | C167: COLCHESTER HOSPITAL UNIVERSITY NHS FOUNDATION TRUST | D167: RDEXXX | E167: Non-hospital site - RDEXXX | F167: 0 | G167: 7 | H167: 0 | I167: NA | J167: NA | K167: 0 | L167: 0 | M167: 0 | N167: 0 | O167: 0 | P167: 0
A168: Q79 | B168: RGQ | C168: IPSWICH HOSPITAL NHS TRUST | D168: RGQ02 | E168: The Ipswich Hospital NHS Trust - RGQ02 | F168: 131 | G168: 308 | H168: 0.4253246753 | I168: 0.9618320611 | J168: 0.007633587786 | K168: 107 | L168: 19 | M168: 3 | N168: 0 | O168: 1 | P168: 1
A169: Q79 | B169: RGP | C169: JAMES PAGET UNIVERSITY HOSPITALS NHS FOUNDATION TRUST | D169: RGP75 | E169: James Paget University Hospital - RGP75 | F169: 36 | G169: 189 | H169: 0.1904761905 | I169: 1 | J169: 0 | K169: 35 | L169: 1 | M169: 0 | N169: 0 | O169: 0 | P169: 0
A170: Q79 | B170: RQ8 | C170: MID ESSEX HOSPITAL SERVICES NHS TRUST | D170: RQ8L0 | E170: Broomfield Hospital - RQ8L0 | F170: 59 | G170: 363 | H170: 0.1625344353 | I170: 0.9830508475 | J170: 0.01694915254 | K170: 51 | L170: 7 | M170: 0 | N170: 0 | O170: 1 | P170: 0
A171: Q79 | B171: RM1 | C171: NORFOLK AND NORWICH UNIVERSITY HOSPITALS NHS FOUNDATION TRUST | D171: RM102 | E171: Norfolk and Norwich University Hospital - RM102 | F171: 29 | G171: 459 | H171: 0.06318082789 | I171: 1 | J171: 0 | K171: 27 | L171: 2 | M171: 0 | N171: 0 | O171: 0 | P171: 0
A172: Q79 | B172: RGN | C172: NORTH WEST ANGLIA NHS FOUNDATION TRUST | D172: RGN90 | E172: Hinchingbrooke Hospital - RGN90 | F172: 44 | G172: 162 | H172: 0.2716049383 | I172: 0.9772727273 | J172: 0 | K172: 41 | L172: 2 | M172: 0 | N172: 0 | O172: 0 | P172: 1
A173: Q79 | B173: RGN | C173: NORTH WEST ANGLIA NHS FOUNDATION TRUST | D173: RGN80 | E173: Peterborough City Hospital - RGN80 | F173: 62 | G173: 411 | H173: 0.1508515815 | I173: 0.9838709677 | J173: 0 | K173: 55 | L173: 6 | M173: 0 | N173: 0 | O173: 0 | P173: 1
A174: Q79 | B174: RAJ | C174: SOUTHEND UNIVERSITY HOSPITAL NHS FOUNDATION TRUST | D174: RAJ01 | E174: Southend Hospital - RAJ01 | F174: 31 | G174: 322 | H174: 0.09627329193 | I174: 1 | J174: 0 | K174: 31 | L174: 0 | M174: 0 | N174: 0 | O174: 0 | P174: 0
A175: Q79 | B175: RQW | C175: THE PRINCESS ALEXANDRA HOSPITAL NHS TRUST | D175: RQWG0 | E175: Princess Alexandra Hospital - RQWG0 | F175: 165 | G175: 360 | H175: 0.4583333333 | I175: 0.9757575758 | J175: 0.006060606061 | K175: 155 | L175: 6 | M175: 0 | N175: 0 | O175: 1 | P175: 3
A176: Q79 | B176: RCX | C176: THE QUEEN ELIZABETH HOSPITAL, KING'S LYNN, NHS FOUNDATION TRUST | D176: RCXXXX | E176: Non-hospital site - RCXXXX | F176: 0 | G176: 4 | H176: 0 | I176: NA | J176: NA | K176: 0 | L176: 0 | M176: 0 | N176: 0 | O176: 0 | P176: 0
A177: Q79 | B177: RCX | C177: THE QUEEN ELIZABETH HOSPITAL, KING'S LYNN, NHS FOUNDATION TRUST | D177: RCX70 | E177: The Queen Elizabeth Hospital - RCX70 | F177: 32 | G177: 173 | H177: 0.1849710983 | I177: 1 | J177: 0 | K177: 29 | L177: 3 | M177: 0 | N177: 0 | O177: 0 | P177: 0
A178: Q79 | B178: RGR | C178: WEST SUFFOLK NHS FOUNDATION TRUST | D178: RGR50 | E178: West Suffolk Hospital - RGR50 | F178: 31 | G178: 209 | H178: 0.1483253589 | I178: 1 | J178: 0 | K178: 31 | L178: 0 | M178: 0 | N178: 0 | O178: 0 | P178: 0
A179: Q80 | B179: RVJ | C179: NORTH BRISTOL NHS TRUST | D179: RVJ21 | E179: Cossham Hospital - RVJ21 | F179: 6 | G179: 39 | H179: 0.1538461538 | I179: 0.8333333333 | J179: 0 | K179: 5 | L179: 0 | M179: 0 | N179: 0 | O179: 0 | P179: 1
A180: Q80 | B180: RVJ | C180: NORTH BRISTOL NHS TRUST | D180: RVJXXX | E180: Non-hospital site - RVJXXX | F180: 0 | G180: 2 | H180: 0 | I180: NA | J180: NA | K180: 0 | L180: 0 | M180: 0 | N180: 0 | O180: 0 | P180: 0
A181: Q80 | B181: RVJ | C181: NORTH BRISTOL NHS TRUST | D181: RVJ01 | E181: Southmead Hospital - RVJ01 | F181: 70 | G181: 486 | H181: 0.1440329218 | I181: 0.9571428571 | J181: 0.04285714286 | K181: 57 | L181: 10 | M181: 0 | N181: 0 | O181: 3 | P181: 0
A182: Q80 | B182: RBZ | C182: NORTHERN DEVON HEALTHCARE NHS TRUST | D182: RBZ12 | E182: North Devon District Hospital - RBZ12 | F182: 3 | G182: 110 | H182: 0.02727272727 | I182: * | J182: * | K182: * | L182: * | M182: * | N182: * | O182: * | P182: *
A183: Q80 | B183: RK9 | C183: PLYMOUTH HOSPITALS NHS TRUST | D183: RK950 | E183: Derriford Hospital - RK950 | F183: 111 | G183: 332 | H183: 0.3343373494 | I183: 0.990990991 | J183: 0 | K183: 95 | L183: 15 | M183: 1 | N183: 0 | O183: 0 | P183: 0
A184: Q80 | B184: RK9 | C184: PLYMOUTH HOSPITALS NHS TRUST | D184: RK9XXX | E184: Non-hospital site - RK9XXX | F184: 13 | G184: 18 | H184: 0.7222222222 | I184: 1 | J184: 0 | K184: 12 | L184: 1 | M184: 0 | N184: 0 | O184: 0 | P184: 0
A185: Q80 | B185: REF | C185: ROYAL CORNWALL HOSPITALS NHS TRUST | D185: REFXXX | E185: Non-hospital site - REFXXX | F185: 1 | G185: 39 | H185: 0.02564102564 | I185: * | J185: * | K185: * | L185: * | M185: * | N185: * | O185: * | P185: *
A186: Q80 | B186: REF | C186: ROYAL CORNWALL HOSPITALS NHS TRUST | D186: REF12 | E186: Royal Cornwall Hospital (Treliske) - REF12 | F186: 65 | G186: 319 | H186: 0.2037617555 | I186: 0.9692307692 | J186: 0.01538461538 | K186: * | L186: * | M186: * | N186: * | O186: * | P186: *
A187: Q80 | B187: RH8 | C187: ROYAL DEVON AND EXETER NHS FOUNDATION TRUST | D187: RH854 | E187: Honiton Hospital - RH 854 | F187: 0 | G187: 4 | H187: 0 | I187: NA | J187: NA | K187: 0 | L187: 0 | M187: 0 | N187: 0 | O187: 0 | P187: 0
A188: Q80 | B188: RH8 | C188: ROYAL DEVON AND EXETER NHS FOUNDATION TRUST | D188: RH833 | E188: Okehampton Community Hospital - RH833 | F188: 0 | G188: 3 | H188: 0 | I188: NA | J188: NA | K188: 0 | L188: 0 | M188: 0 | N188: 0 | O188: 0 | P188: 0
A189: Q80 | B189: RH8 | C189: ROYAL DEVON AND EXETER NHS FOUNDATION TRUST | D189: RH801 | E189: Royal Devon and Exeter Hospital (Wonford) - RH801 | F189: 1 | G189: 309 | H189: 0.003236245955 | I189: * | J189: * | K189: * | L189: * | M189: * | N189: * | O189: * | P189: *
A190: Q80 | B190: RH8 | C190: ROYAL DEVON AND EXETER NHS FOUNDATION TRUST | D190: RH853 | E190: Tiverton and District Hospital - RH853 | F190: 0 | G190: 8 | H190: 0 | I190: NA | J190: NA | K190: 0 | L190: 0 | M190: 0 | N190: 0 | O190: 0 | P190: 0
A191: Q80 | B191: RBA | C191: TAUNTON AND SOMERSET NHS FOUNDATION TRUST | D191: RBAC3 | E191: Bridgwater Hospital - RBAC3 | F191: 7 | G191: 6 | H191: 1.166666667 | I191: 1 | J191: 0 | K191: 5 | L191: 2 | M191: 0 | N191: 0 | O191: 0 | P191: 0
A192: Q80 | B192: RBA | C192: TAUNTON AND SOMERSET NHS FOUNDATION TRUST | D192: RBA11 | E192: Musgrove Park Hospital - RBA11 | F192: 26 | G192: 244 | H192: 0.106557377 | I192: 1 | J192: 0 | K192: 25 | L192: 1 | M192: 0 | N192: 0 | O192: 0 | P192: 0
A193: Q80 | B193: RBA | C193: TAUNTON AND SOMERSET NHS FOUNDATION TRUST | D193: RBAXXX | E193: Non-hospital site - RBAXXX | F193: 0 | G193: 11 | H193: 0 | I193: NA | J193: NA | K193: 0 | L193: 0 | M193: 0 | N193: 0 | O193: 0 | P193: 0
A194: Q80 | B194: RA9 | C194: TORBAY AND SOUTH DEVON NHS FOUNDATION TRUST | D194: RA957 | E194: Newton Abbot Community Hospital - RA957 | F194: 0 | G194: 0 | H194: NA | I194: NA | J194: NA | K194: 0 | L194: 0 | M194: 0 | N194: 0 | O194: 0 | P194: 0
A195: Q80 | B195: RA9 | C195: TORBAY AND SOUTH DEVON NHS FOUNDATION TRUST | D195: RA9XXX | E195: Non-hospital site - RA9XXX | F195: 1 | G195: 12 | H195: 0.08333333333 | I195: * | J195: * | K195: * | L195: * | M195: * | N195: * | O195: * | P195: *
A196: Q80 | B196: RA9 | C196: TORBAY AND SOUTH DEVON NHS FOUNDATION TRUST | D196: RA901 | E196: Torbay Hospital - RA901 | F196: 16 | G196: 187 | H196: 0.08556149733 | I196: 1 | J196: 0 | K196: * | L196: * | M196: * | N196: * | O196: * | P196: *
A197: Q80 | B197: RA7 | C197: UNIVERSITY HOSPITALS BRISTOL NHS FOUNDATION TRUST | D197: RA707 | E197: St Michael's Hospital - RA707 | F197: 70 | G197: 448 | H197: 0.15625 | I197: 0.9285714286 | J197: 0.01428571429 | K197: 57 | L197: 8 | M197: 0 | N197: 0 | O197: 1 | P197: 4
A198: Q80 | B198: RA3 | C198: WESTON AREA HEALTH NHS TRUST | D198: RA301 | E198: Weston General Hospital - RA301 | F198: 6 | G198: 14 | H198: 0.4285714286 | I198: 1 | J198: 0 | K198: 5 | L198: 1 | M198: 0 | N198: 0 | O198: 0 | P198: 0
A199: Q80 | B199: RA4 | C199: YEOVIL DISTRICT HOSPITAL NHS FOUNDATION TRUST | D199: RA430 | E199: Yeovil District Hospital - RA430 | F199: 4 | G199: 140 | H199: 0.02857142857 | I199: * | J199: * | K199: * | L199: * | M199: * | N199: * | O199: * | P199: *
A200: Q81 | B200: RTK | C200: ASHFORD AND ST PETER'S HOSPITALS NHS FOUNDATION TRUST | D200: RTK01 | E200: St Peter's Hospital - RTK01 | F200: 138 | G200: 308 | H200: 0.4480519481 | I200: 0.9130434783 | J200: 0.03623188406 | K200: 87 | L200: 39 | M200: 4 | N200: 0 | O200: 5 | P200: 3
A201: Q81 | B201: RXH | C201: BRIGHTON AND SUSSEX UNIVERSITY HOSPITALS NHS TRUST | D201: RXHXXX | E201: Non-hospital site - RXHXXX | F201: 0 | G201: 23 | H201: 0 | I201: NA | J201: NA | K201: 0 | L201: 0 | M201: 0 | N201: 0 | O201: 0 | P201: 0
A202: Q81 | B202: RXH | C202: BRIGHTON AND SUSSEX UNIVERSITY HOSPITALS NHS TRUST | D202: RXH09 | E202: Princess Royal Hospital - RXH09 | F202: 42 | G202: 179 | H202: 0.2346368715 | I202: 1 | J202: 0 | K202: 35 | L202: 7 | M202: 0 | N202: 0 | O202: 0 | P202: 0
A203: Q81 | B203: RXH | C203: BRIGHTON AND SUSSEX UNIVERSITY HOSPITALS NHS TRUST | D203: RXH01 | E203: Royal Sussex County Hospital - RXH01 | F203: 69 | G203: 260 | H203: 0.2653846154 | I203: 0.9710144928 | J203: 0.01449275362 | K203: 60 | L203: 7 | M203: 0 | N203: 0 | O203: 1 | P203: 1
A204: Q81 | B204: RN7 | C204: DARTFORD AND GRAVESHAM NHS TRUST | D204: RN707 | E204: Darent Valley Hospital - RN707 | F204: 69 | G204: 375 | H204: 0.184 | I204: 1 | J204: 0 | K204: 66 | L204: 3 | M204: 0 | N204: 0 | O204: 0 | P204: 0
A205: Q81 | B205: RVV | C205: EAST KENT HOSPITALS UNIVERSITY NHS FOUNDATION TRUST | D205: RVVXXX | E205: Non-hospital site - RVVXXX | F205: 0 | G205: 24 | H205: 0 | I205: NA | J205: NA | K205: 0 | L205: 0 | M205: 0 | N205: 0 | O205: 0 | P205: 0
A206: Q81 | B206: RVV | C206: EAST KENT HOSPITALS UNIVERSITY NHS FOUNDATION TRUST | D206: RVV09 | E206: Queen Elizabeth The Queen Mother Hospital - RVV09 | F206: 51 | G206: 213 | H206: 0.2394366197 | I206: 0.9803921569 | J206: 0 | K206: 48 | L206: 2 | M206: 1 | N206: 0 | O206: 0 | P206: 0
A207: Q81 | B207: RVV | C207: EAST KENT HOSPITALS UNIVERSITY NHS FOUNDATION TRUST | D207: RVV01 | E207: William Harvey Hospital (Ashford) - RVV01 | F207: 84 | G207: 340 | H207: 0.2470588235 | I207: 0.9761904762 | J207: 0.0119047619 | K207: 71 | L207: 11 | M207: 0 | N207: 1 | O207: 0 | P207: 1
... 55 more rows

Sheet Region (Local Office) Q3
B6: Sort data by:
A9: Region (LO) Code | B9: Region (Local Office) | C9: Total Responses | D9: Percentage Recommended | E9: Percentage Not Recommended | F9: Breakdown of Responses
F10: Extremely Likely | G10: Likely | H10: Neither | I10: Unlikely | J10: Extremely Unlikely | K10: Don't Know
B11: England (including Independent Sector providers) | C11: 12541 | D11: 0.9468941871 | E11: 0.01985487601 | F11: 9189 | G11: 2686 | H11: 284 | I11: 146 | J11: 103 | K11: 133
B12: England (excluding Independent Sector providers) | C12: 12541 | D12: 0.9468941871 | E12: 0.01985487601 | F12: 9189 | G12: 2686 | H12: 284 | I12: 146 | J12: 103 | K12: 133
B13: Selection (excluding suppressed data) | C13: =SUBTOTAL(9,C14:C40) -> 12541 | D13: =IFERROR((F13+G13)/SUM(F13:K13), "-") -> 0.9468941871 | E13: =IFERROR((I13+J13)/SUM(F13:K13), "-") -> 0.01985487601 | F13: =SUBTOTAL(9,F14:F40) -> 9189 | G13: 2686 | H13: 284 | I13: 146 | J13: 103 | K13: 133
A14: Q70 | B14: NHS England Wessex | C14: 498 | D14: 0.9638554217 | E14: 0.008032128514 | F14: 380 | G14: 100 | H14: 9 | I14: 2 | J14: 2 | K14: 5
A15: Q71 | B15: NHS England London | C15: 2332 | D15: 0.9009433962 | E15: 0.03687821612 | F15: 1390 | G15: 711 | H15: 103 | I15: 49 | J15: 37 | K15: 42
A16: Q72 | B16: NHS England Yorkshire & Humber | C16: 1066 | D16: 0.9615384615 | E16: 0.01031894934 | F16: 833 | G16: 192 | H16: 22 | I16: 7 | J16: 4 | K16: 8
A17: Q74 | B17: NHS England Cumbria & North East | C17: 688 | D17: 0.9840116279 | E17: 0.005813953488 | F17: 572 | G17: 105 | H17: 3 | I17: 2 | J17: 2 | K17: 4
A18: Q75 | B18: NHS England Cheshire & Merseyside | C18: 361 | D18: 0.9667590028 | E18: 0.01108033241 | F18: 300 | G18: 49 | H18: 5 | I18: 3 | J18: 1 | K18: 3
A19: Q76 | B19: NHS England North Midlands | C19: 662 | D19: 0.9728096677 | E19: 0.01057401813 | F19: 514 | G19: 130 | H19: 7 | I19: 5 | J19: 2 | K19: 4
A20: Q77 | B20: NHS England West Midlands | C20: 1278 | D20: 0.9420970266 | E20: 0.01956181534 | F20: 914 | G20: 290 | H20: 33 | I20: 14 | J20: 11 | K20: 16
A21: Q78 | B21: NHS England Central Midlands | C21: 1107 | D21: 0.9376693767 | E21: 0.0243902439 | F21: 771 | G21: 267 | H21: 29 | I21: 15 | J21: 12 | K21: 13
A22: Q79 | B22: NHS England East | C22: 1142 | D22: 0.9684763573 | E22: 0.01576182137 | F22: 906 | G22: 200 | H22: 11 | I22: 12 | J22: 6 | K22: 7
A23: Q80 | B23: NHS England South West | C23: 565 | D23: 0.9522123894 | E23: 0.02831858407 | F23: 413 | G23: 125 | H23: 8 | I23: 9 | J23: 7 | K23: 3
A24: Q81 | B24: NHS England South East | C24: 1190 | D24: 0.9537815126 | E24: 0.01596638655 | F24: 942 | G24: 193 | H24: 20 | I24: 12 | J24: 7 | K24: 16
A25: Q82 | B25: NHS England South Central | C25: 521 | D25: 0.9654510557 | E25: 0.00575815739 | F25: 374 | G25: 129 | H25: 9 | I25: 3 | J25: 0 | K25: 6
A26: Q83 | B26: NHS England Greater Manchester | C26: 915 | D26: 0.949726776 | E26: 0.0218579235 | F26: 705 | G26: 164 | H26: 21 | I26: 11 | J26: 9 | K26: 5
A27: Q84 | B27: NHS England Lancashire | C27: 216 | D27: 0.9537037037 | E27: 0.02314814815 | F27: 175 | G27: 31 | H27: 4 | I27: 2 | J27: 3 | K27: 1
A28: zIS1 | B28: Independent Sector Provider | C28: 0 | D28: NA | E28: NA | F28: 0 | G28: 0 | H28: 0 | I28: 0 | J28: 0 | K28: 0

Sheet Trusts Q3
B6: Sort data by:
A9: Region (LO) Code | B9: Trust Code | C9: Trust Name | D9: Total Responses | E9: Percentage Recommended | F9: Percentage Not Recommended | G9: Breakdown of Responses | M9: Mode of Collection
G10: Extremely Likely | H10: Likely | I10: Neither | J10: Unlikely | K10: Extremely Unlikely | L10: Don't Know | M10: SMS/Text / Smartphone App | N10: Electronic tablet/kiosk at point of discharge | O10: Paper / postcard at point of discharge | P10: Paper survey sent to the patients home | Q10: Telephone survey once patient is home | R10: Online survey once patient is home | S10: Other
C11: England (including Independent Sector providers) | D11: 12541 | E11: 0.9468941871 | F11: 0.01985487601 | G11: 9189 | H11: 2686 | I11: 284 | J11: 146 | K11: 103 | L11: 133 | M11: 927 | N11: 2830 | O11: 8049 | P11: 381 | Q11: 1 | R11: 168 | S11: 185
C12: England (excluding Independent Sector providers) | D12: 12541 | E12: 0.9468941871 | F12: 0.01985487601 | G12: 9189 | H12: 2686 | I12: 284 | J12: 146 | K12: 103 | L12: 133 | M12: 927 | N12: 2830 | O12: 8049 | P12: 381 | Q12: 1 | R12: 168 | S12: 185
C13: Selection (excluding suppressed data) | D13: =SUBTOTAL(9,D14:D299) -> 12541 | E13: =IFERROR((G13+H13)/SUM(G13:L13), "-") -> 0.9467232815 | F13: =IFERROR((J13+K13)/SUM(G13:L13), "-") -> 0.01994872617 | G13: =SUBTOTAL(9,G14:G299) -> 9138 | H13: 2679 | I13: 283 | J13: 146 | K13: 103 | L13: 133 | M13: 927 | N13: 2828 | O13: 7992 | P13: 381 | Q13: 1 | R13: 168 | S13: 185
A14: Q70 | B14: RDZ | C14: THE ROYAL BOURNEMOUTH AND CHRISTCHURCH HOSPITALS NHS FOUNDATION TRUST | D14: 0 | E14: NA | F14: NA | G14: 0 | H14: 0 | I14: 0 | J14: 0 | K14: 0 | L14: 0 | M14: 0 | N14: 0 | O14: 0 | P14: 0 | Q14: 0 | R14: 0 | S14: 0
A15: Q70 | B15: RD3 | C15: POOLE HOSPITAL NHS FOUNDATION TRUST | D15: 7 | E15: 1 | F15: 0 | G15: 6 | H15: 1 | I15: 0 | J15: 0 | K15: 0 | L15: 0 | M15: 0 | N15: 0 | O15: 7 | P15: 0 | Q15: 0 | R15: 0 | S15: 0
A16: Q70 | B16: R1F | C16: ISLE OF WIGHT NHS TRUST | D16: 18 | E16: 1 | F16: 0 | G16: 16 | H16: 2 | I16: 0 | J16: 0 | K16: 0 | L16: 0 | M16: 0 | N16: 0 | O16: 18 | P16: 0 | Q16: 0 | R16: 0 | S16: 0
A17: Q70 | B17: RBD | C17: DORSET COUNTY HOSPITAL NHS FOUNDATION TRUST | D17: 43 | E17: 0.9069767442 | F17: 0 | G17: 34 | H17: 5 | I17: 3 | J17: 0 | K17: 0 | L17: 1 | M17: 43 | N17: 0 | O17: 0 | P17: 0 | Q17: 0 | R17: 0 | S17: 0
A18: Q70 | B18: RHU | C18: PORTSMOUTH HOSPITALS NHS TRUST | D18: 106 | E18: 0.9905660377 | F18: 0.009433962264 | G18: 84 | H18: 21 | I18: 0 | J18: 1 | K18: 0 | L18: 0 | M18: 0 | N18: 0 | O18: 104 | P18: 0 | Q18: 0 | R18: 2 | S18: 0
A19: Q70 | B19: RHM | C19: UNIVERSITY HOSPITAL SOUTHAMPTON NHS FOUNDATION TRUST | D19: 149 | E19: 0.9463087248 | F19: 0.006711409396 | G19: 100 | H19: 41 | I19: 3 | J19: 0 | K19: 1 | L19: 4 | M19: 0 | N19: 0 | O19: 147 | P19: 0 | Q19: 0 | R19: 0 | S19: 2
A20: Q70 | B20: RN5 | C20: HAMPSHIRE HOSPITALS NHS FOUNDATION TRUST | D20: 175 | E20: 0.9714285714 | F20: 0.01142857143 | G20: 140 | H20: 30 | I20: 3 | J20: 1 | K20: 1 | L20: 0 | M20: 0 | N20: 0 | O20: 175 | P20: 0 | Q20: 0 | R20: 0 | S20: 0
A21: Q71 | B21: R1K | C21: LONDON NORTH WEST HEALTHCARE NHS TRUST | D21: 0 | E21: NA | F21: NA | G21: 0 | H21: 0 | I21: 0 | J21: 0 | K21: 0 | L21: 0 | M21: 0 | N21: 0 | O21: 0 | P21: 0 | Q21: 0 | R21: 0 | S21: 0
A22: Q71 | B22: RJ1 | C22: GUY'S AND ST THOMAS' NHS FOUNDATION TRUST | D22: 30 | E22: 0.8666666667 | F22: 0.03333333333 | G22: 14 | H22: 12 | I22: 3 | J22: 0 | K22: 1 | L22: 0 | M22: 0 | N22: 0 | O22: 30 | P22: 0 | Q22: 0 | R22: 0 | S22: 0
A23: Q71 | B23: RVR | C23: EPSOM AND ST HELIER UNIVERSITY HOSPITALS NHS TRUST | D23: 38 | E23: 1 | F23: 0 | G23: 33 | H23: 5 | I23: 0 | J23: 0 | K23: 0 | L23: 0 | M23: 0 | N23: 0 | O23: 35 | P23: 0 | Q23: 0 | R23: 3 | S23: 0
A24: Q71 | B24: RAX | C24: KINGSTON HOSPITAL NHS FOUNDATION TRUST | D24: 42 | E24: 1 | F24: 0 | G24: 30 | H24: 12 | I24: 0 | J24: 0 | K24: 0 | L24: 0 | M24: 0 | N24: 42 | O24: 0 | P24: 0 | Q24: 0 | R24: 0 | S24: 0
A25: Q71 | B25: RJ7 | C25: ST GEORGE'S UNIVERSITY HOSPITALS NHS FOUNDATION TRUST | D25: 48 | E25: 0.9791666667 | F25: 0 | G25: 26 | H25: 21 | I25: 1 | J25: 0 | K25: 0 | L25: 0 | M25: 0 | N25: 48 | O25: 0 | P25: 0 | Q25: 0 | R25: 0 | S25: 0
A26: Q71 | B26: RJZ | C26: KING'S COLLEGE HOSPITAL NHS FOUNDATION TRUST | D26: 62 | E26: 0.8709677419 | F26: 0.06451612903 | G26: 38 | H26: 16 | I26: 3 | J26: 2 | K26: 2 | L26: 1 | M26: 0 | N26: 60 | O26: 2 | P26: 0 | Q26: 0 | R26: 0 | S26: 0
A27: Q71 | B27: RAP | C27: NORTH MIDDLESEX UNIVERSITY HOSPITAL NHS TRUST | D27: 74 | E27: 0.8918918919 | F27: 0.05405405405 | G27: 41 | H27: 25 | I27: 3 | J27: 2 | K27: 2 | L27: 1 | M27: 0 | N27: 74 | O27: 0 | P27: 0 | Q27: 0 | R27: 0 | S27: 0
A28: Q71 | B28: RQX | C28: HOMERTON UNIVERSITY HOSPITAL NHS FOUNDATION TRUST | D28: 107 | E28: 0.8971962617 | F28: 0.009345794393 | G28: 54 | H28: 42 | I28: 9 | J28: 1 | K28: 0 | L28: 1 | M28: 0 | N28: 107 | O28: 0 | P28: 0 | Q28: 0 | R28: 0 | S28: 0
A29: Q71 | B29: RKE | C29: THE WHITTINGTON HOSPITAL NHS TRUST | D29: 108 | E29: 0.8055555556 | F29: 0.03703703704 | G29: 47 | H29: 40 | I29: 8 | J29: 2 | K29: 2 | L29: 9 | M29: 0 | N29: 108 | O29: 0 | P29: 0 | Q29: 0 | R29: 0 | S29: 0
A30: Q71 | B30: RAS | C30: THE HILLINGDON HOSPITALS NHS FOUNDATION TRUST | D30: 139 | E30: 0.964028777 | F30: 0.01438848921 | G30: 95 | H30: 39 | I30: 0 | J30: 1 | K30: 1 | L30: 3 | M30: 0 | N30: 0 | O30: 139 | P30: 0 | Q30: 0 | R30: 0 | S30: 0
A31: Q71 | B31: RJ6 | C31: CROYDON HEALTH SERVICES NHS TRUST | D31: 143 | E31: 0.8881118881 | F31: 0.04195804196 | G31: 83 | H31: 44 | I31: 7 | J31: 4 | K31: 2 | L31: 3 | M31: 0 | N31: 0 | O31: 143 | P31: 0 | Q31: 0 | R31: 0 | S31: 0
A32: Q71 | B32: R1H | C32: BARTS HEALTH NHS TRUST | D32: 168 | E32: 0.8214285714 | F32: 0.1011904762 | G32: 71 | H32: 67 | I32: 10 | J32: 6 | K32: 11 | L32: 3 | M32: 0 | N32: 124 | O32: 42 | P32: 0 | Q32: 0 | R32: 2 | S32: 0
A33: Q71 | B33: RQM | C33: CHELSEA AND WESTMINSTER HOSPITAL NHS FOUNDATION TRUST | D33: 168 | E33: 0.880952381 | F33: 0.07142857143 | G33: 120 | H33: 28 | I33: 7 | J33: 6 | K33: 6 | L33: 1 | M33: 132 | N33: 0 | O33: 35 | P33: 0 | Q33: 0 | R33: 1 | S33: 0
A34: Q71 | B34: RAL | C34: ROYAL FREE LONDON NHS FOUNDATION TRUST | D34: 189 | E34: 0.9470899471 | F34: 0.01587301587 | G34: 122 | H34: 57 | I34: 6 | J34: 2 | K34: 1 | L34: 1 | M34: 0 | N34: 0 | O34: 189 | P34: 0 | Q34: 0 | R34: 0 | S34: 0
A35: Q71 | B35: RF4 | C35: BARKING, HAVERING AND REDBRIDGE UNIVERSITY HOSPITALS NHS TRUST | D35: 220 | E35: 0.9772727273 | F35: 0.009090909091 | G35: 153 | H35: 62 | I35: 2 | J35: 2 | K35: 0 | L35: 1 | M35: 0 | N35: 8 | O35: 211 | P35: 0 | Q35: 0 | R35: 1 | S35: 0
A36: Q71 | B36: RYJ | C36: IMPERIAL COLLEGE HEALTHCARE NHS TRUST | D36: 225 | E36: 0.8844444444 | F36: 0.03111111111 | G36: 119 | H36: 80 | I36: 14 | J36: 4 | K36: 3 | L36: 5 | M36: 0 | N36: 207 | O36: 18 | P36: 0 | Q36: 0 | R36: 0 | S36: 0
A37: Q71 | B37: RRV | C37: UNIVERSITY COLLEGE LONDON HOSPITALS NHS FOUNDATION TRUST | D37: 264 | E37: 0.8787878788 | F37: 0.03787878788 | G37: 182 | H37: 50 | I37: 13 | J37: 8 | K37: 2 | L37: 9 | M37: 0 | N37: 0 | O37: 264 | P37: 0 | Q37: 0 | R37: 0 | S37: 0
A38: Q71 | B38: RJ2 | C38: LEWISHAM AND GREENWICH NHS TRUST | D38: 307 | E38: 0.8892508143 | F38: 0.04234527687 | G38: 162 | H38: 111 | I38: 17 | J38: 9 | K38: 4 | L38: 4 | M38: 0 | N38: 0 | O38: 307 | P38: 0 | Q38: 0 | R38: 0 | S38: 0
A39: Q72 | B39: RCF | C39: AIREDALE NHS FOUNDATION TRUST | D39: 16 | E39: 1 | F39: 0 | G39: 14 | H39: 2 | I39: 0 | J39: 0 | K39: 0 | L39: 0 | M39: 0 | N39: 1 | O39: 15 | P39: 0 | Q39: 0 | R39: 0 | S39: 0
A40: Q72 | B40: RJL | C40: NORTHERN LINCOLNSHIRE AND GOOLE NHS FOUNDATION TRUST | D40: 32 | E40: 0.875 | F40: 0 | G40: 24 | H40: 4 | I40: 4 | J40: 0 | K40: 0 | L40: 0 | M40: 0 | N40: 0 | O40: 0 | P40: 32 | Q40: 0 | R40: 0 | S40: 0
A41: Q72 | B41: RAE | C41: BRADFORD TEACHING HOSPITALS NHS FOUNDATION TRUST | D41: 33 | E41: 1 | F41: 0 | G41: 27 | H41: 6 | I41: 0 | J41: 0 | K41: 0 | L41: 0 | M41: 0 | N41: 13 | O41: 20 | P41: 0 | Q41: 0 | R41: 0 | S41: 0
A42: Q72 | B42: RWA | C42: HULL AND EAST YORKSHIRE HOSPITALS NHS TRUST | D42: 35 | E42: 1 | F42: 0 | G42: 35 | H42: 0 | I42: 0 | J42: 0 | K42: 0 | L42: 0 | M42: 0 | N42: 0 | O42: 35 | P42: 0 | Q42: 0 | R42: 0 | S42: 0
A43: Q72 | B43: RFF | C43: BARNSLEY HOSPITAL NHS FOUNDATION TRUST | D43: 44 | E43: 1 | F43: 0 | G43: 41 | H43: 3 | I43: 0 | J43: 0 | K43: 0 | L43: 0 | M43: 0 | N43: 0 | O43: 44 | P43: 0 | Q43: 0 | R43: 0 | S43: 0
A44: Q72 | B44: RCD | C44: HARROGATE AND DISTRICT NHS FOUNDATION TRUST | D44: 57 | E44: 0.9824561404 | F44: 0.01754385965 | G44: 50 | H44: 6 | I44: 0 | J44: 1 | K44: 0 | L44: 0 | M44: 0 | N44: 0 | O44: 57 | P44: 0 | Q44: 0 | R44: 0 | S44: 0
A45: Q72 | B45: RXF | C45: MID YORKSHIRE HOSPITALS NHS TRUST | D45: 62 | E45: 0.9677419355 | F45: 0.01612903226 | G45: 40 | H45: 20 | I45: 1 | J45: 0 | K45: 1 | L45: 0 | M45: 40 | N45: 20 | O45: 1 | P45: 0 | Q45: 1 | R45: 0 | S45: 0
A46: Q72 | B46: RCB | C46: YORK TEACHING HOSPITAL NHS FOUNDATION TRUST | D46: 94 | E46: 0.9893617021 | F46: 0 | G46: 83 | H46: 10 | I46: 1 | J46: 0 | K46: 0 | L46: 0 | M46: 0 | N46: 0 | O46: 94 | P46: 0 | Q46: 0 | R46: 0 | S46: 0
A47: Q72 | B47: RFR | C47: THE ROTHERHAM NHS FOUNDATION TRUST | D47: 100 | E47: 0.96 | F47: 0.02 | G47: 78 | H47: 18 | I47: 0 | J47: 2 | K47: 0 | L47: 2 | M47: 0 | N47: 0 | O47: 100 | P47: 0 | Q47: 0 | R47: 0 | S47: 0
A48: Q72 | B48: RP5 | C48: DONCASTER AND BASSETLAW TEACHING HOSPITALS NHS FOUNDATION TRUST | D48: 119 | E48: 0.9411764706 | F48: 0.03361344538 | G48: 82 | H48: 30 | I48: 2 | J48: 2 | K48: 2 | L48: 1 | M48: 0 | N48: 0 | O48: 119 | P48: 0 | Q48: 0 | R48: 0 | S48: 0
A49: Q72 | B49: RR8 | C49: LEEDS TEACHING HOSPITALS NHS TRUST | D49: 139 | E49: 0.9712230216 | F49: 0.007194244604 | G49: 107 | H49: 28 | I49: 3 | J49: 1 | K49: 0 | L49: 0 | M49: 0 | N49: 0 | O49: 139 | P49: 0 | Q49: 0 | R49: 0 | S49: 0
A50: Q72 | B50: RWY | C50: CALDERDALE AND HUDDERSFIELD NHS FOUNDATION TRUST | D50: 151 | E50: 0.9801324503 | F50: 0 | G50: 123 | H50: 25 | I50: 3 | J50: 0 | K50: 0 | L50: 0 | M50: 0 | N50: 151 | O50: 0 | P50: 0 | Q50: 0 | R50: 0 | S50: 0
A51: Q72 | B51: RHQ | C51: SHEFFIELD TEACHING HOSPITALS NHS FOUNDATION TRUST | D51: 184 | E51: 0.9184782609 | F51: 0.01086956522 | G51: 129 | H51: 40 | I51: 8 | J51: 1 | K51: 1 | L51: 5 | M51: 0 | N51: 0 | O51: 183 | P51: 0 | Q51: 0 | R51: 1 | S51: 0
A52: Q74 | B52: RVW | C52: NORTH TEES AND HARTLEPOOL NHS FOUNDATION TRUST | D52: 12 | E52: 0.9166666667 | F52: 0 | G52: 8 | H52: 3 | I52: 1 | J52: 0 | K52: 0 | L52: 0 | M52: 0 | N52: 0 | O52: 12 | P52: 0 | Q52: 0 | R52: 0 | S52: 0
A53: Q74 | B53: RE9 | C53: SOUTH TYNESIDE NHS FOUNDATION TRUST | D53: 15 | E53: 0.9333333333 | F53: 0 | G53: 12 | H53: 2 | I53: 0 | J53: 0 | K53: 0 | L53: 1 | M53: 0 | N53: 0 | O53: 15 | P53: 0 | Q53: 0 | R53: 0 | S53: 0
A54: Q74 | B54: RTX | C54: UNIVERSITY HOSPITALS OF MORECAMBE BAY NHS FOUNDATION TRUST | D54: 30 | E54: 1 | F54: 0 | G54: 25 | H54: 5 | I54: 0 | J54: 0 | K54: 0 | L54: 0 | M54: 0 | N54: 0 | O54: 30 | P54: 0 | Q54: 0 | R54: 0 | S54: 0
A55: Q74 | B55: RR7 | C55: GATESHEAD HEALTH NHS FOUNDATION TRUST | D55: 43 | E55: 0.976744186 | F55: 0.02325581395 | G55: 36 | H55: 6 | I55: 0 | J55: 0 | K55: 1 | L55: 0 | M55: 0 | N55: 12 | O55: 31 | P55: 0 | Q55: 0 | R55: 0 | S55: 0
A56: Q74 | B56: RTR | C56: SOUTH TEES HOSPITALS NHS FOUNDATION TRUST | D56: 45 | E56: 0.9777777778 | F56: 0 | G56: 40 | H56: 4 | I56: 0 | J56: 0 | K56: 0 | L56: 1 | M56: 0 | N56: 0 | O56: 45 | P56: 0 | Q56: 0 | R56: 0 | S56: 0
A57: Q74 | B57: RTF | C57: NORTHUMBRIA HEALTHCARE NHS FOUNDATION TRUST | D57: 47 | E57: 0.9574468085 | F57: 0.04255319149 | G57: 38 | H57: 7 | I57: 0 | J57: 2 | K57: 0 | L57: 0 | M57: 0 | N57: 0 | O57: 47 | P57: 0 | Q57: 0 | R57: 0 | S57: 0
A58: Q74 | B58: RNL | C58: NORTH CUMBRIA UNIVERSITY HOSPITALS NHS TRUST | D58: 103 | E58: 1 | F58: 0 | G58: 83 | H58: 20 | I58: 0 | J58: 0 | K58: 0 | L58: 0 | M58: 0 | N58: 0 | O58: 85 | P58: 0 | Q58: 0 | R58: 0 | S58: 18
A59: Q74 | B59: RXP | C59: COUNTY DURHAM AND DARLINGTON NHS FOUNDATION TRUST | D59: 111 | E59: 0.990990991 | F59: 0 | G59: 83 | H59: 27 | I59: 0 | J59: 0 | K59: 0 | L59: 1 | M59: 0 | N59: 0 | O59: 111 | P59: 0 | Q59: 0 | R59: 0 | S59: 0
A60: Q74 | B60: RLN | C60: CITY HOSPITALS SUNDERLAND NHS FOUNDATION TRUST | D60: 113 | E60: 1 | F60: 0 | G60: 102 | H60: 11 | I60: 0 | J60: 0 | K60: 0 | L60: 0 | M60: 0 | N60: 0 | O60: 113 | P60: 0 | Q60: 0 | R60: 0 | S60: 0
A61: Q74 | B61: RTD | C61: THE NEWCASTLE UPON TYNE HOSPITALS NHS FOUNDATION TRUST | D61: 169 | E61: 0.9763313609 | F61: 0.005917159763 | G61: 145 | H61: 20 | I61: 2 | J61: 0 | K61: 1 | L61: 1 | M61: 0 | N61: 0 | O61: 169 | P61: 0 | Q61: 0 | R61: 0 | S61: 0
A62: Q75 | B62: REP | C62: LIVERPOOL WOMEN'S NHS FOUNDATION TRUST | D62: 2 | E62: * | F62: * | G62: * | H62: * | I62: * | J62: * | K62: * | L62: * | M62: * | N62: * | O62: * | P62: * | Q62: * | R62: * | S62: *
A63: Q75 | B63: RBT | C63: MID CHESHIRE HOSPITALS NHS FOUNDATION TRUST | D63: 27 | E63: 0.962962963 | F63: 0 | G63: * | H63: * | I63: * | J63: * | K63: * | L63: * | M63: * | N63: * | O63: * | P63: * | Q63: * | R63: * | S63: *
A64: Q75 | B64: RVY | C64: SOUTHPORT AND ORMSKIRK HOSPITAL NHS TRUST | D64: 28 | E64: 0.9285714286 | F64: 0.03571428571 | G64: 23 | H64: 3 | I64: 1 | J64: 1 | K64: 0 | L64: 0 | M64: 0 | N64: 19 | O64: 9 | P64: 0 | Q64: 0 | R64: 0 | S64: 0
A65: Q75 | B65: RBN | C65: ST HELENS AND KNOWSLEY HOSPITAL SERVICES NHS TRUST | D65: 32 | E65: 0.90625 | F65: 0.03125 | G65: 26 | H65: 3 | I65: 0 | J65: 0 | K65: 1 | L65: 2 | M65: 0 | N65: 0 | O65: 32 | P65: 0 | Q65: 0 | R65: 0 | S65: 0
A66: Q75 | B66: RJR | C66: COUNTESS OF CHESTER HOSPITAL NHS FOUNDATION TRUST | D66: 52 | E66: 0.9423076923 | F66: 0.01923076923 | G66: 39 | H66: 10 | I66: 2 | J66: 1 | K66: 0 | L66: 0 | M66: 29 | N66: 0 | O66: 23 | P66: 0 | Q66: 0 | R66: 0 | S66: 0
A67: Q75 | B67: RJN | C67: EAST CHESHIRE NHS TRUST | D67: 57 | E67: 0.9649122807 | F67: 0 | G67: 51 | H67: 4 | I67: 1 | J67: 0 | K67: 0 | L67: 1 | M67: 0 | N67: 0 | O67: 57 | P67: 0 | Q67: 0 | R67: 0 | S67: 0
A68: Q75 | B68: RWW | C68: WARRINGTON AND HALTON HOSPITALS NHS FOUNDATION TRUST | D68: 81 | E68: 0.987654321 | F68: 0.01234567901 | G68: 70 | H68: 10 | I68: 0 | J68: 1 | K68: 0 | L68: 0 | M68: 0 | N68: 0 | O68: 81 | P68: 0 | Q68: 0 | R68: 0 | S68: 0
A69: Q75 | B69: RBL | C69: WIRRAL UNIVERSITY TEACHING HOSPITAL NHS FOUNDATION TRUST | D69: 82 | E69: 1 | F69: 0 | G69: 67 | H69: 15 | I69: 0 | J69: 0 | K69: 0 | L69: 0 | M69: 0 | N69: 0 | O69: 82 | P69: 0 | Q69: 0 | R69: 0 | S69: 0
A70: Q76 | B70: RJE | C70: UNIVERSITY HOSPITALS OF NORTH MIDLANDS NHS TRUST | D70: 27 | E70: 0.9259259259 | F70: 0 | G70: 22 | H70: 3 | I70: 1 | J70: 0 | K70: 0 | L70: 1 | M70: 0 | N70: 0 | O70: 27 | P70: 0 | Q70: 0 | R70: 0 | S70: 0
A71: Q76 | B71: RFS | C71: CHESTERFIELD ROYAL HOSPITAL NHS FOUNDATION TRUST | D71: 61 | E71: 0.9836065574 | F71: 0 | G71: 40 | H71: 20 | I71: 0 | J71: 0 | K71: 0 | L71: 1 | M71: 0 | N71: 50 | O71: 11 | P71: 0 | Q71: 0 | R71: 0 | S71: 0
A72: Q76 | B72: RK5 | C72: SHERWOOD FOREST HOSPITALS NHS FOUNDATION TRUST | D72: 72 | E72: 0.9444444444 | F72: 0.04166666667 | G72: 56 | H72: 12 | I72: 1 | J72: 3 | K72: 0 | L72: 0 | M72: 0 | N72: 0 | O72: 71 | P72: 0 | Q72: 0 | R72: 1 | S72: 0
A73: Q76 | B73: RJF | C73: BURTON HOSPITALS NHS FOUNDATION TRUST | D73: 94 | E73: 1 | F73: 0 | G73: 85 | H73: 9 | I73: 0 | J73: 0 | K73: 0 | L73: 0 | M73: 1 | N73: 0 | O73: 93 | P73: 0 | Q73: 0 | R73: 0 | S73: 0
A74: Q76 | B74: RXW | C74: SHREWSBURY AND TELFORD HOSPITAL NHS TRUST | D74: 108 | E74: 0.9722222222 | F74: 0.009259259259 | G74: 97 | H74: 8 | I74: 1 | J74: 0 | K74: 1 | L74: 1 | M74: 0 | N74: 0 | O74: 108 | P74: 0 | Q74: 0 | R74: 0 | S74: 0
A75: Q76 | B75: RX1 | C75: NOTTINGHAM UNIVERSITY HOSPITALS NHS TRUST | D75: 123 | E75: 0.9837398374 | F75: 0.008130081301 | G75: 87 | H75: 34 | I75: 1 | J75: 1 | K75: 0 | L75: 0 | M75: 0 | N75: 0 | O75: 0 | P75: 0 | Q75: 0 | R75: 123 | S75: 0
A76: Q76 | B76: RTG | C76: DERBY TEACHING HOSPITALS NHS FOUNDATION TRUST | D76: 177 | E76: 0.9661016949 | F76: 0.01129943503 | G76: 127 | H76: 44 | I76: 3 | J76: 1 | K76: 1 | L76: 1 | M76: 0 | N76: 0 | O76: 177 | P76: 0 | Q76: 0 | R76: 0 | S76: 0
A77: Q77 | B77: RBK | C77: WALSALL HEALTHCARE NHS TRUST | D77: 35 | E77: 0.9142857143 | F77: 0.08571428571 | G77: 26 | H77: 6 | I77: 0 | J77: 3 | K77: 0 | L77: 0 | M77: 21 | N77: 0 | O77: 14 | P77: 0 | Q77: 0 | R77: 0 | S77: 0
A78: Q77 | B78: RLQ | C78: WYE VALLEY NHS TRUST | D78: 50 | E78: 0.98 | F78: 0 | G78: 40 | H78: 9 | I78: 0 | J78: 0 | K78: 0 | L78: 1 | M78: 0 | N78: 50 | O78: 0 | P78: 0 | Q78: 0 | R78: 0 | S78: 0
A79: Q77 | B79: RJC | C79: SOUTH WARWICKSHIRE NHS FOUNDATION TRUST | D79: 74 | E79: 0.9594594595 | F79: 0.02702702703 | G79: 59 | H79: 12 | I79: 1 | J79: 1 | K79: 1 | L79: 0 | M79: 0 | N79: 0 | O79: 68 | P79: 0 | Q79: 0 | R79: 6 | S79: 0
A80: Q77 | B80: RL4 | C80: THE ROYAL WOLVERHAMPTON NHS TRUST | D80: 89 | E80: 0.9101123596 | F80: 0.06741573034 | G80: 67 | H80: 14 | I80: 1 | J80: 4 | K80: 2 | L80: 1 | M80: 56 | N80: 0 | O80: 33 | P80: 0 | Q80: 0 | R80: 0 | S80: 0
A81: Q77 | B81: RQ3 | C81: BIRMINGHAM WOMEN'S AND CHILDREN'S NHS FOUNDATION TRUST | D81: 90 | E81: 0.9555555556 | F81: 0.01111111111 | G81: 57 | H81: 29 | I81: 2 | J81: 1 | K81: 0 | L81: 1 | M81: 0 | N81: 0 | O81: 90 | P81: 0 | Q81: 0 | R81: 0 | S81: 0
A82: Q77 | B82: RXK | C82: SANDWELL AND WEST BIRMINGHAM HOSPITALS NHS TRUST | D82: 105 | E82: 0.8571428571 | F82: 0.04761904762 | G82: 53 | H82: 37 | I82: 6 | J82: 2 | K82: 3 | L82: 4 | M82: 0 | N82: 105 | O82: 0 | P82: 0 | Q82: 0 | R82: 0 | S82: 0
A83: Q77 | B83: RLT | C83: GEORGE ELIOT HOSPITAL NHS TRUST | D83: 114 | E83: 0.9649122807 | F83: 0.01754385965 | G83: 98 | H83: 12 | I83: 1 | J83: 1 | K83: 1 | L83: 1 | M83: 46 | N83: 0 | O83: 68 | P83: 0 | Q83: 0 | R83: 0 | S83: 0
A84: Q77 | B84: RKB | C84: UNIVERSITY HOSPITALS COVENTRY AND WARWICKSHIRE NHS TRUST | D84: 164 | E84: 0.9512195122 | F84: 0.01829268293 | G84: 105 | H84: 51 | I84: 1 | J84: 1 | K84: 2 | L84: 4 | M84: 0 | N84: 0 | O84: 164 | P84: 0 | Q84: 0 | R84: 0 | S84: 0
A85: Q77 | B85: RNA | C85: THE DUDLEY GROUP NHS FOUNDATION TRUST | D85: 170 | E85: 0.9529411765 | F85: 0.01176470588 | G85: 143 | H85: 19 | I85: 2 | J85: 1 | K85: 1 | L85: 4 | M85: 0 | N85: 0 | O85: 170 | P85: 0 | Q85: 0 | R85: 0 | S85: 0
A86: Q77 | B86: RR1 | C86: HEART OF ENGLAND NHS FOUNDATION TRUST | D86: 173 | E86: 0.9075144509 | F86: 0.005780346821 | G86: 95 | H86: 62 | I86: 15 | J86: 0 | K86: 1 | L86: 0 | M86: 0 | N86: 0 | O86: 173 | P86: 0 | Q86: 0 | R86: 0 | S86: 0
A87: Q77 | B87: RWP | C87: WORCESTERSHIRE ACUTE HOSPITALS NHS TRUST | D87: 214 | E87: 0.9813084112 | F87: 0 | G87: 171 | H87: 39 | I87: 4 | J87: 0 | K87: 0 | L87: 0 | M87: 0 | N87: 0 | O87: 214 | P87: 0 | Q87: 0 | R87: 0 | S87: 0
A88: Q78 | B88: RNQ | C88: KETTERING GENERAL HOSPITAL NHS FOUNDATION TRUST | D88: 18 | E88: 1 | F88: 0 | G88: 15 | H88: 3 | I88: 0 | J88: 0 | K88: 0 | L88: 0 | M88: 0 | N88: 0 | O88: 18 | P88: 0 | Q88: 0 | R88: 0 | S88: 0
A89: Q78 | B89: RD8 | C89: MILTON KEYNES UNIVERSITY HOSPITAL NHS FOUNDATION TRUST | D89: 24 | E89: 0.9583333333 | F89: 0.04166666667 | G89: 14 | H89: 9 | I89: 0 | J89: 0 | K89: 1 | L89: 0 | M89: 0 | N89: 0 | O89: 19 | P89: 0 | Q89: 0 | R89: 5 | S89: 0
A90: Q78 | B90: RWD | C90: UNITED LINCOLNSHIRE HOSPITALS NHS TRUST | D90: 37 | E90: 0.9459459459 | F90: 0.02702702703 | G90: 27 | H90: 8 | I90: 1 | J90: 1 | K90: 0 | L90: 0 | M90: 0 | N90: 0 | O90: 37 | P90: 0 | Q90: 0 | R90: 0 | S90: 0
A91: Q78 | B91: RC1 | C91: BEDFORD HOSPITAL NHS TRUST | D91: 67 | E91: 0.9701492537 | F91: 0 | G91: 57 | H91: 8 | I91: 2 | J91: 0 | K91: 0 | L91: 0 | M91: 67 | N91: 0 | O91: 0 | P91: 0 | Q91: 0 | R91: 0 | S91: 0
A92: Q78 | B92: RNS | C92: NORTHAMPTON GENERAL HOSPITAL NHS TRUST | D92: 83 | E92: 1 | F92: 0 | G92: 69 | H92: 14 | I92: 0 | J92: 0 | K92: 0 | L92: 0 | M92: 0 | N92: 0 | O92: 83 | P92: 0 | Q92: 0 | R92: 0 | S92: 0
A93: Q78 | B93: RWG | C93: WEST HERTFORDSHIRE HOSPITALS NHS TRUST | D93: 103 | E93: 0.9514563107 | F93: 0.009708737864 | G93: 67 | H93: 31 | I93: 3 | J93: 1 | K93: 0 | L93: 1 | M93: 0 | N93: 0 | O93: 103 | P93: 0 | Q93: 0 | R93: 0 | S93: 0
A94: Q78 | B94: RC9 | C94: LUTON AND DUNSTABLE UNIVERSITY HOSPITAL NHS FOUNDATION TRUST | D94: 113 | E94: 0.982300885 | F94: 0 | G94: 81 | H94: 30 | I94: 2 | J94: 0 | K94: 0 | L94: 0 | M94: 0 | N94: 113 | O94: 0 | P94: 0 | Q94: 0 | R94: 0 | S94: 0
A95: Q78 | B95: RWH | C95: EAST AND NORTH HERTFORDSHIRE NHS TRUST | D95: 232 | E95: 0.875 | F95: 0.04310344828 | G95: 130 | H95: 73 | I95: 13 | J95: 8 | K95: 2 | L95: 6 | M95: 0 | N95: 232 | O95: 0 | P95: 0 | Q95: 0 | R95: 0 | S95: 0
A96: Q78 | B96: RWE | C96: UNIVERSITY HOSPITALS OF LEICESTER NHS TRUST | D96: 430 | E96: 0.9348837209 | F96: 0.03255813953 | G96: 311 | H96: 91 | I96: 8 | J96: 5 | K96: 9 | L96: 6 | M96: 0 | N96: 430 | O96: 0 | P96: 0 | Q96: 0 | R96: 0 | S96: 0
A97: Q79 | B97: RGR | C97: WEST SUFFOLK NHS FOUNDATION TRUST | D97: 2 | E97: * | F97: * | G97: * | H97: * | I97: * | J97: * | K97: * | L97: * | M97: * | N97: * | O97: * | P97: * | Q97: * | R97: * | S97: *
A98: Q79 | B98: RAJ | C98: SOUTHEND UNIVERSITY HOSPITAL NHS FOUNDATION TRUST | D98: 20 | E98: 1 | F98: 0 | G98: * | H98: * | I98: * | J98: * | K98: * | L98: * | M98: * | N98: * | O98: * | P98: * | Q98: * | R98: * | S98: *
A99: Q79 | B99: RM1 | C99: NORFOLK AND NORWICH UNIVERSITY HOSPITALS NHS FOUNDATION TRUST | D99: 34 | E99: 0.9705882353 | F99: 0.02941176471 | G99: 31 | H99: 2 | I99: 0 | J99: 1 | K99: 0 | L99: 0 | M99: 0 | N99: 30 | O99: 4 | P99: 0 | Q99: 0 | R99: 0 | S99: 0
A100: Q79 | B100: RGP | C100: JAMES PAGET UNIVERSITY HOSPITALS NHS FOUNDATION TRUST | D100: 40 | E100: 0.975 | F100: 0 | G100: 33 | H100: 6 | I100: 0 | J100: 0 | K100: 0 | L100: 1 | M100: 0 | N100: 0 | O100: 40 | P100: 0 | Q100: 0 | R100: 0 | S100: 0
A101: Q79 | B101: RQ8 | C101: MID ESSEX HOSPITAL SERVICES NHS TRUST | D101: 47 | E101: 0.8936170213 | F101: 0.08510638298 | G101: 37 | H101: 5 | I101: 1 | J101: 3 | K101: 1 | L101: 0 | M101: 47 | N101: 0 | O101: 0 | P101: 0 | Q101: 0 | R101: 0 | S101: 0
A102: Q79 | B102: RDE | C102: COLCHESTER HOSPITAL UNIVERSITY NHS FOUNDATION TRUST | D102: 57 | E102: 0.9824561404 | F102: 0.01754385965 | G102: 42 | H102: 14 | I102: 0 | J102: 0 | K102: 1 | L102: 0 | M102: 0 | N102: 0 | O102: 57 | P102: 0 | Q102: 0 | R102: 0 | S102: 0
A103: Q79 | B103: RCX | C103: THE QUEEN ELIZABETH HOSPITAL, KING'S LYNN, NHS FOUNDATION TRUST | D103: 90 | E103: 0.9888888889 | F103: 0.01111111111 | G103: 62 | H103: 27 | I103: 0 | J103: 1 | K103: 0 | L103: 0 | M103: 0 | N103: 0 | O103: 89 | P103: 0 | Q103: 0 | R103: 1 | S103: 0
A104: Q79 | B104: RGQ | C104: IPSWICH HOSPITAL NHS TRUST | D104: 125 | E104: 0.944 | F104: 0.016 | G104: 99 | H104: 19 | I104: 4 | J104: 2 | K104: 0 | L104: 1 | M104: 0 | N104: 125 | O104: 0 | P104: 0 | Q104: 0 | R104: 0 | S104: 0
A105: Q79 | B105: RDD | C105: BASILDON AND THURROCK UNIVERSITY HOSPITALS NHS FOUNDATION TRUST | D105: 158 | E105: 0.9873417722 | F105: 0.006329113924 | G105: 123 | H105: 33 | I105: 1 | J105: 0 | K105: 1 | L105: 0 | M105: 0 | N105: 0 | O105: 158 | P105: 0 | Q105: 0 | R105: 0 | S105: 0
A106: Q79 | B106: RQW | C106: THE PRINCESS ALEXANDRA HOSPITAL NHS TRUST | D106: 165 | E106: 0.9757575758 | F106: 0.006060606061 | G106: 155 | H106: 6 | I106: 0 | J106: 0 | K106: 1 | L106: 3 | M106: 0 | N106: 0 | O106: 0 | P106: 0 | Q106: 0 | R106: 0 | S106: 165
A107: Q79 | B107: RGN | C107: NORTH WEST ANGLIA NHS FOUNDATION TRUST | D107: 189 | E107: 0.9523809524 | F107: 0.02645502646 | G107: 160 | H107: 20 | I107: 2 | J107: 3 | K107: 2 | L107: 2 | M107: 0 | N107: 0 | O107: 189 | P107: 0 | Q107: 0 | R107: 0 | S107: 0
A108: Q79 | B108: RGT | C108: CAMBRIDGE UNIVERSITY HOSPITALS NHS FOUNDATION TRUST | D108: 215 | E108: 0.976744186 | F108: 0.009302325581 | G108: 143 | H108: 67 | I108: 3 | J108: 2 | K108: 0 | L108: 0 | M108: 0 | N108: 208 | O108: 7 | P108: 0 | Q108: 0 | R108: 0 | S108: 0
A109: Q80 | B109: RH8 | C109: ROYAL DEVON AND EXETER NHS FOUNDATION TRUST | D109: 2 | E109: * | F109: * | G109: * | H109: * | I109: * | J109: * | K109: * | L109: * | M109: * | N109: * | O109: * | P109: * | Q109: * | R109: * | S109: *
A110: Q80 | B110: RA3 | C110: WESTON AREA HEALTH NHS TRUST | D110: 6 | E110: 1 | F110: 0 | G110: * | H110: * | I110: * | J110: * | K110: * | L110: * | M110: * | N110: * | O110: * | P110: * | Q110: * | R110: * | S110: *
A111: Q80 | B111: RA4 | C111: YEOVIL DISTRICT HOSPITAL NHS FOUNDATION TRUST | D111: 11 | E111: 1 | F111: 0 | G111: 11 | H111: 0 | I111: 0 | J111: 0 | K111: 0 | L111: 0 | M111: 0 | N111: 0 | O111: 11 | P111: 0 | Q111: 0 | R111: 0 | S111: 0
A112: Q80 | B112: RA9 | C112: TORBAY AND SOUTH DEVON NHS FOUNDATION TRUST | D112: 14 | E112: 0.8571428571 | F112: 0.07142857143 | G112: 9 | H112: 3 | I112: 1 | J112: 1 | K112: 0 | L112: 0 | M112: 0 | N112: 0 | O112: 14 | P112: 0 | Q112: 0 | R112: 0 | S112: 0
A113: Q80 | B113: RBZ | C113: NORTHERN DEVON HEALTHCARE NHS TRUST | D113: 33 | E113: 1 | F113: 0 | G113: 31 | H113: 2 | I113: 0 | J113: 0 | K113: 0 | L113: 0 | M113: 0 | N113: 0 | O113: 33 | P113: 0 | Q113: 0 | R113: 0 | S113: 0
A114: Q80 | B114: RBA | C114: TAUNTON AND SOMERSET NHS FOUNDATION TRUST | D114: 59 | E114: 0.9491525424 | F114: 0.01694915254 | G114: 37 | H114: 19 | I114: 2 | J114: 1 | K114: 0 | L114: 0 | M114: 0 | N114: 0 | O114: 59 | P114: 0 | Q114: 0 | R114: 0 | S114: 0
A115: Q80 | B115: RA7 | C115: UNIVERSITY HOSPITALS BRISTOL NHS FOUNDATION TRUST | D115: 66 | E115: 0.9090909091 | F115: 0.04545454545 | G115: 46 | H115: 14 | I115: 1 | J115: 0 | K115: 3 | L115: 2 | M115: 0 | N115: 0 | O115: 66 | P115: 0 | Q115: 0 | R115: 0 | S115: 0
A116: Q80 | B116: RVJ | C116: NORTH BRISTOL NHS TRUST | D116: 95 | E116: 0.9052631579 | F116: 0.07368421053 | G116: 73 | H116: 13 | I116: 2 | J116: 4 | K116: 3 | L116: 0 | M116: 95 | N116: 0 | O116: 0 | P116: 0 | Q116: 0 | R116: 0 | S116: 0
A117: Q80 | B117: REF | C117: ROYAL CORNWALL HOSPITALS NHS TRUST | D117: 131 | E117: 0.9541984733 | F117: 0.02290076336 | G117: 96 | H117: 29 | I117: 2 | J117: 2 | K117: 1 | L117: 1 | M117: 0 | N117: 0 | O117: 131 | P117: 0 | Q117: 0 | R117: 0 | S117: 0
A118: Q80 | B118: RK9 | C118: PLYMOUTH HOSPITALS NHS TRUST | D118: 148 | E118: 0.9932432432 | F118: 0.006756756757 | G118: 104 | H118: 43 | I118: 0 | J118: 1 | K118: 0 | L118: 0 | M118: 0 | N118: 136 | O118: 12 | P118: 0 | Q118: 0 | R118: 0 | S118: 0
A119: Q81 | B119: RTK | C119: ASHFORD AND ST PETER'S HOSPITALS NHS FOUNDATION TRUST | D119: 0 | E119: NA | F119: NA | G119: 0 | H119: 0 | I119: 0 | J119: 0 | K119: 0 | L119: 0 | M119: 0 | N119: 0 | O119: 0 | P119: 0 | Q119: 0 | R119: 0 | S119: 0
A120: Q81 | B120: RWF | C120: MAIDSTONE AND TUNBRIDGE WELLS NHS TRUST | D120: 32 | E120: 0.8125 | F120: 0 | G120: 24 | H120: 2 | I120: 0 | J120: 0 | K120: 0 | L120: 6 | M120: 0 | N120: 0 | O120: 31 | P120: 0 | Q120: 0 | R120: 1 | S120: 0
A121: Q81 | B121: RN7 | C121: DARTFORD AND GRAVESHAM NHS TRUST | D121: 69 | E121: 0.9855072464 | F121: 0 | G121: 62 | H121: 6 | I121: 1 | J121: 0 | K121: 0 | L121: 0 | M121: 0 | N121: 0 | O121: 69 | P121: 0 | Q121: 0 | R121: 0 | S121: 0
A122: Q81 | B122: RTP | C122: SURREY AND SUSSEX HEALTHCARE NHS TRUST | D122: 78 | E122: 0.9102564103 | F122: 0.03846153846 | G122: 52 | H122: 19 | I122: 4 | J122: 3 | K122: 0 | L122: 0 | M122: 0 | N122: 0 | O122: 76 | P122: 0 | Q122: 0 | R122: 2 | S122: 0
A123: Q81 | B123: RXH | C123: BRIGHTON AND SUSSEX UNIVERSITY HOSPITALS NHS TRUST | D123: 79 | E123: 0.9493670886 | F123: 0.03797468354 | G123: 67 | H123: 8 | I123: 1 | J123: 2 | K123: 1 | L123: 0 | M123: 79 | N123: 0 | O123: 0 | P123: 0 | Q123: 0 | R123: 0 | S123: 0
A124: Q81 | B124: RXC | C124: EAST SUSSEX HEALTHCARE NHS TRUST | D124: 114 | E124: 0.9736842105 | F124: 0 | G124: 78 | H124: 33 | I124: 3 | J124: 0 | K124: 0 | L124: 0 | M124: 0 | N124: 114 | O124: 0 | P124: 0 | Q124: 0 | R124: 0 | S124: 0
A125: Q81 | B125: RVV | C125: EAST KENT HOSPITALS UNIVERSITY NHS FOUNDATION TRUST | D125: 139 | E125: 0.9712230216 | F125: 0.02158273381 | G125: 118 | H125: 17 | I125: 0 | J125: 2 | K125: 1 | L125: 1 | M125: 0 | N125: 0 | O125: 0 | P125: 139 | Q125: 0 | R125: 0 | S125: 0
A126: Q81 | B126: RA2 | C126: ROYAL SURREY COUNTY HOSPITAL NHS FOUNDATION TRUST | D126: 147 | E126: 0.9727891156 | F126: 0.02040816327 | G126: 130 | H126: 13 | I126: 1 | J126: 1 | K126: 2 | L126: 0 | M126: 79 | N126: 0 | O126: 68 | P126: 0 | Q126: 0 | R126: 0 | S126: 0
A127: Q81 | B127: RDU | C127: FRIMLEY HEALTH NHS FOUNDATION TRUST | D127: 151 | E127: 0.880794702 | F127: 0.02649006623 | G127: 99 | H127: 34 | I127: 6 | J127: 3 | K127: 1 | L127: 8 | M127: 0 | N127: 0 | O127: 151 | P127: 0 | Q127: 0 | R127: 0 | S127: 0
A128: Q81 | B128: RPA | C128: MEDWAY NHS FOUNDATION TRUST | D128: 164 | E128: 0.9756097561 | F128: 0.006097560976 | G128: 143 | H128: 17 | I128: 2 | J128: 1 | K128: 0 | L128: 1 | M128: 0 | N128: 0 | O128: 164 | P128: 0 | Q128: 0 | R128: 0 | S128: 0
A129: Q81 | B129: RYR | C129: WESTERN SUSSEX HOSPITALS NHS FOUNDATION TRUST | D129: 217 | E129: 0.9815668203 | F129: 0.009216589862 | G129: 169 | H129: 44 | I129: 2 | J129: 0 | K129: 2 | L129: 0 | M129: 0 | N129: 3 | O129: 198 | P129: 0 | Q129: 0 | R129: 16 | S129: 0
A130: Q82 | B130: RNZ | C130: SALISBURY NHS FOUNDATION TRUST | D130: 0 | E130: NA | F130: NA | G130: 0 | H130: 0 | I130: 0 | J130: 0 | K130: 0 | L130: 0 | M130: 0 | N130: 0 | O130: 0 | P130: 0 | Q130: 0 | R130: 0 | S130: 0
A131: Q82 | B131: RTE | C131: GLOUCESTERSHIRE HOSPITALS NHS FOUNDATION TRUST | D131: 0 | E131: NA | F131: NA | G131: 0 | H131: 0 | I131: 0 | J131: 0 | K131: 0 | L131: 0 | M131: 0 | N131: 0 | O131: 0 | P131: 0 | Q131: 0 | R131: 0 | S131: 0
A132: Q82 | B132: RN3 | C132: GREAT WESTERN HOSPITALS NHS FOUNDATION TRUST | D132: 13 | E132: 1 | F132: 0 | G132: 10 | H132: 3 | I132: 0 | J132: 0 | K132: 0 | L132: 0 | M132: 0 | N132: 0 | O132: 13 | P132: 0 | Q132: 0 | R132: 0 | S132: 0
A133: Q82 | B133: RTH | C133: OXFORD UNIVERSITY HOSPITALS NHS FOUNDATION TRUST | D133: 67 | E133: 0.9402985075 | F133: 0.01492537313 | G133: 51 | H133: 12 | I133: 1 | J133: 1 | K133: 0 | L133: 2 | M133: 0 | N133: 0 | O133: 66 | P133: 0 | Q133: 0 | R133: 1 | S133: 0
A134: Q82 | B134: RD1 | C134: ROYAL UNITED HOSPITALS BATH NHS FOUNDATION TRUST | D134: 71 | E134: 0.985915493 | F134: 0.01408450704 | G134: 58 | H134: 12 | I134: 0 | J134: 1 | K134: 0 | L134: 0 | M134: 0 | N134: 0 | O134: 71 | P134: 0 | Q134: 0 | R134: 0 | S134: 0
A135: Q82 | B135: RHW | C135: ROYAL BERKSHIRE NHS FOUNDATION TRUST | D135: 175 | E135: 0.9542857143 | F135: 0.005714285714 | G135: 112 | H135: 55 | I135: 4 | J135: 1 | K135: 0 | L135: 3 | M135: 0 | N135: 70 | O135: 105 | P135: 0 | Q135: 0 | R135: 0 | S135: 0
A136: Q82 | B136: RXQ | C136: BUCKINGHAMSHIRE HEALTHCARE NHS TRUST | D136: 195 | E136: 0.9743589744 | F136: 0 | G136: 143 | H136: 47 | I136: 4 | J136: 0 | K136: 0 | L136: 1 | M136: 0 | N136: 0 | O136: 195 | P136: 0 | Q136: 0 | R136: 0 | S136: 0
A137: Q83 | B137: RY2 | C137: BRIDGEWATER COMMUNITY HEALTHCARE NHS FOUNDATION TRUST | D137: 0 | E137: NA | F137: NA | G137: 0 | H137: 0 | I137: 0 | J137: 0 | K137: 0 | L137: 0 | M137: 0 | N137: 0 | O137: 0 | P137: 0 | Q137: 0 | R137: 0 | S137: 0
A138: Q83 | B138: RM2 | C138: UNIVERSITY HOSPITAL OF SOUTH MANCHESTER NHS FOUNDATION TRUST | D138: 16 | E138: 1 | F138: 0 | G138: 15 | H138: 1 | I138: 0 | J138: 0 | K138: 0 | L138: 0 | M138: 0 | N138: 0 | O138: 16 | P138: 0 | Q138: 0 | R138: 0 | S138: 0
A139: Q83 | B139: RRF | C139: WRIGHTINGTON, WIGAN AND LEIGH NHS FOUNDATION TRUST | D139: 44 | E139: 0.9772727273 | F139: 0 | G139: 36 | H139: 7 | I139: 1 | J139: 0 | K139: 0 | L139: 0 | M139: 0 | N139: 0 | O139: 43 | P139: 0 | Q139: 0 | R139: 1 | S139: 0
A140: Q83 | B140: RMP | C140: TAMESIDE AND GLOSSOP INTEGRATED CARE NHS FOUNDATION TRUST | D140: 48 | E140: 0.9583333333 | F140: 0.02083333333 | G140: 29 | H140: 17 | I140: 1 | J140: 0 | K140: 1 | L140: 0 | M140: 0 | N140: 44 | O140: 4 | P140: 0 | Q140: 0 | R140: 0 | S140: 0
A141: Q83 | B141: RWJ | C141: STOCKPORT NHS FOUNDATION TRUST | D141: 97 | E141: 0.9690721649 | F141: 0.0206185567 | G141: 77 | H141: 17 | I141: 1 | J141: 1 | K141: 1 | L141: 0 | M141: 0 | N141: 0 | O141: 0 | P141: 97 | Q141: 0 | R141: 0 | S141: 0
A142: Q83 | B142: RMC | C142: BOLTON NHS FOUNDATION TRUST | D142: 150 | E142: 0.9266666667 | F142: 0.006666666667 | G142: 111 | H142: 28 | I142: 9 | J142: 0 | K142: 1 | L142: 1 | M142: 37 | N142: 0 | O142: 0 | P142: 113 | Q142: 0 | R142: 0 | S142: 0
A143: Q83 | B143: RW6 | C143: PENNINE ACUTE HOSPITALS NHS TRUST | D143: 214 | E143: 0.9392523364 | F143: 0.05140186916 | G143: 166 | H143: 35 | I143: 0 | J143: 6 | K143: 5 | L143: 2 | M143: 72 | N143: 0 | O143: 142 | P143: 0 | Q143: 0 | R143: 0 | S143: 0
A144: Q83 | B144: RW3 | C144: CENTRAL MANCHESTER UNIVERSITY HOSPITALS NHS FOUNDATION TRUST | D144: 346 | E144: 0.9537572254 | F144: 0.01445086705 | G144: 271 | H144: 59 | I144: 9 | J144: 4 | K144: 1 | L144: 2 | M144: 0 | N144: 81 | O144: 264 | P144: 0 | Q144: 0 | R144: 1 | S144: 0
A145: Q84 | B145: RXN | C145: LANCASHIRE TEACHING HOSPITALS NHS FOUNDATION TRUST | D145: 55 | E145: 0.9818181818 | F145: 0.01818181818 | G145: 47 | H145: 7 | I145: 0 | J145: 0 | K145: 1 | L145: 0 | M145: 55 | N145: 0 | O145: 0 | P145: 0 | Q145: 0 | R145: 0 | S145: 0
A146: Q84 | B146: RXR | C146: EAST LANCASHIRE HOSPITALS NHS TRUST | D146: 68 | E146: 0.9705882353 | F146: 0.02941176471 | G146: 64 | H146: 2 | I146: 0 | J146: 1 | K146: 1 | L146: 0 | M146: 28 | N146: 0 | O146: 40 | P146: 0 | Q146: 0 | R146: 0 | S146: 0
A147: Q84 | B147: RXL | C147: BLACKPOOL TEACHING HOSPITALS NHS FOUNDATION TRUST | D147: 93 | E147: 0.9247311828 | F147: 0.02150537634 | G147: 64 | H147: 22 | I147: 4 | J147: 1 | K147: 1 | L147: 1 | M147: 0 | N147: 43 | O147: 50 | P147: 0 | Q147: 0 | R147: 0 | S147: 0

Sheet Sites Q3
B6: Sort data by:
A9: Region (LO) Code | B9: Trust Code | C9: Trust Name | D9: Site Code | E9: Site Name | F9: Total Responses | G9: Percentage Recommended | H9: Percentage Not Recommended | I9: Breakdown of Responses
I10: Extremely Likely | J10: Likely | K10: Neither | L10: Unlikely | M10: Extremely Unlikely | N10: Don't Know
E11: England (including Independent Sector providers) | F11: 12541 | G11: 0.9468941871 | H11: 0.01985487601 | I11: 9189 | J11: 2686 | K11: 284 | L11: 146 | M11: 103 | N11: 133
E12: England (excluding Independent Sector providers) | F12: 12541 | G12: 0.9468941871 | H12: 0.01985487601 | I12: 9189 | J12: 2686 | K12: 284 | L12: 146 | M12: 103 | N12: 133
E13: Selection (excluding suppressed data) | F13: =SUBTOTAL(9,F14:F298) -> 12541 | G13: =IFERROR((I13+J13)/SUM(I13:N13), "-") -> 0.9458748046 | H13: =IFERROR((L13+M13)/SUM(I13:N13), "-") -> 0.02007074114 | I13: =SUBTOTAL(9,I14:I298) -> 8880 | J13: 2619 | K13: 281 | L13: 142 | M13: 102 | N13: 133
A14: Q70 | B14: RBD | C14: DORSET COUNTY HOSPITAL NHS FOUNDATION TRUST | D14: RBD01 | E14: Dorset County Hospital - RBD01 | F14: 43 | G14: 0.9069767442 | H14: 0 | I14: 34 | J14: 5 | K14: 3 | L14: 0 | M14: 0 | N14: 1
A15: Q70 | B15: RN5 | C15: HAMPSHIRE HOSPITALS NHS FOUNDATION TRUST | D15: RN506 | E15: Basingstoke and North Hampshire Hospital - RN506 | F15: 123 | G15: 0.9837398374 | H15: 0.008130081301 | I15: 98 | J15: 23 | K15: 1 | L15: 0 | M15: 1 | N15: 0
A16: Q70 | B16: RN5 | C16: HAMPSHIRE HOSPITALS NHS FOUNDATION TRUST | D16: RN541 | E16: Royal Hampshire County Hospital - RN541 | F16: 52 | G16: 0.9423076923 | H16: 0.01923076923 | I16: 42 | J16: 7 | K16: 2 | L16: 1 | M16: 0 | N16: 0
A17: Q70 | B17: R1F | C17: ISLE OF WIGHT NHS TRUST | D17: R1F01 | E17: St Mary's Hospital - R1F01 | F17: 18 | G17: 1 | H17: 0 | I17: 16 | J17: 2 | K17: 0 | L17: 0 | M17: 0 | N17: 0
A18: Q70 | B18: RD3 | C18: POOLE HOSPITAL NHS FOUNDATION TRUST | D18: RD304 | E18: Poole General Hospital NHS Trust HQ - RD304 | F18: 7 | G18: 1 | H18: 0 | I18: 6 | J18: 1 | K18: 0 | L18: 0 | M18: 0 | N18: 0
A19: Q70 | B19: RHU | C19: PORTSMOUTH HOSPITALS NHS TRUST | D19: RHU10 | E19: Gosport War Memorial Hospital - RHU10 | F19: 0 | G19: NA | H19: NA | I19: 0 | J19: 0 | K19: 0 | L19: 0 | M19: 0 | N19: 0
A20: Q70 | B20: RHU | C20: PORTSMOUTH HOSPITALS NHS TRUST | D20: RHU04 | E20: Petersfield Community Hospital - RHU04 | F20: 4 | G20: * | H20: * | I20: * | J20: * | K20: * | L20: * | M20: * | N20: *
A21: Q70 | B21: RHU | C21: PORTSMOUTH HOSPITALS NHS TRUST | D21: RHU03 | E21: Queen Alexandra Hospital - RHU03 | F21: 102 | G21: 0.9901960784 | H21: 0.009803921569 | I21: * | J21: * | K21: * | L21: * | M21: * | N21: *
A22: Q70 | B22: RHU | C22: PORTSMOUTH HOSPITALS NHS TRUST | D22: RHU02 | E22: St Mary's Hospital - RHU02 | F22: 0 | G22: NA | H22: NA | I22: 0 | J22: 0 | K22: 0 | L22: 0 | M22: 0 | N22: 0
A23: Q70 | B23: RDZ | C23: THE ROYAL BOURNEMOUTH AND CHRISTCHURCH HOSPITALS NHS FOUNDATION TRUST | D23: RDZ20 | E23: Royal Bournemouth General Hospital - RDZ20 | F23: 0 | G23: NA | H23: NA | I23: 0 | J23: 0 | K23: 0 | L23: 0 | M23: 0 | N23: 0
A24: Q70 | B24: RHM | C24: UNIVERSITY HOSPITAL SOUTHAMPTON NHS FOUNDATION TRUST | D24: RHM01 | E24: Southampton General Hospital - RHM01 | F24: 149 | G24: 0.9463087248 | H24: 0.006711409396 | I24: 100 | J24: 41 | K24: 3 | L24: 0 | M24: 1 | N24: 4
A25: Q71 | B25: RF4 | C25: BARKING, HAVERING AND REDBRIDGE UNIVERSITY HOSPITALS NHS TRUST | D25: RF4QH | E25: Queen's Hospital - RF4QH | F25: 220 | G25: 0.9772727273 | H25: 0.009090909091 | I25: 153 | J25: 62 | K25: 2 | L25: 2 | M25: 0 | N25: 1
A26: Q71 | B26: R1H | C26: BARTS HEALTH NHS TRUST | D26: R1HNH | E26: Newham General Hospital - R1HNH | F26: 124 | G26: 0.8225806452 | H26: 0.09677419355 | I26: 50 | J26: 52 | K26: 10 | L26: 3 | M26: 9 | N26: 0
A27: Q71 | B27: R1H | C27: BARTS HEALTH NHS TRUST | D27: R1H12 | E27: The Royal London Hospital - R1H12 | F27: 44 | G27: 0.8181818182 | H27: 0.1136363636 | I27: 21 | J27: 15 | K27: 0 | L27: 3 | M27: 2 | N27: 3
A28: Q71 | B28: R1H | C28: BARTS HEALTH NHS TRUST | D28: R1HKH | E28: Whipps Cross University Hospital - R1HKH | F28: 0 | G28: NA | H28: NA | I28: 0 | J28: 0 | K28: 0 | L28: 0 | M28: 0 | N28: 0
A29: Q71 | B29: RQM | C29: CHELSEA AND WESTMINSTER HOSPITAL NHS FOUNDATION TRUST | D29: RQM01 | E29: Chelsea and Westminster Hospital - RQM01 | F29: 92 | G29: 0.8913043478 | H29: 0.07608695652 | I29: 66 | J29: 16 | K29: 3 | L29: 3 | M29: 4 | N29: 0
A30: Q71 | B30: RQM | C30: CHELSEA AND WESTMINSTER HOSPITAL NHS FOUNDATION TRUST | D30: RQM91 | E30: West Middlesex University Hospital - RQM91 | F30: 76 | G30: 0.8684210526 | H30: 0.06578947368 | I30: 54 | J30: 12 | K30: 4 | L30: 3 | M30: 2 | N30: 1
A31: Q71 | B31: RJ6 | C31: CROYDON HEALTH SERVICES NHS TRUST | D31: RJ611 | E31: Croydon University Hospital - RJ611 | F31: 143 | G31: 0.8881118881 | H31: 0.04195804196 | I31: 83 | J31: 44 | K31: 7 | L31: 4 | M31: 2 | N31: 3
A32: Q71 | B32: RVR | C32: EPSOM AND ST HELIER UNIVERSITY HOSPITALS NHS TRUST | D32: RVR50 | E32: Epsom Hospital - RVR50 | F32: 36 | G32: 1 | H32: 0 | I32: * | J32: * | K32: * | L32: * | M32: * | N32: *
A33: Q71 | B33: RVR | C33: EPSOM AND ST HELIER UNIVERSITY HOSPITALS NHS TRUST | D33: RVR05 | E33: St Helier Hospital - RVR05 | F33: 2 | G33: * | H33: * | I33: * | J33: * | K33: * | L33: * | M33: * | N33: *
A34: Q71 | B34: RJ1 | C34: GUY'S AND ST THOMAS' NHS FOUNDATION TRUST | D34: RJ122 | E34: St Thomas' Hospital - RJ122 | F34: 30 | G34: 0.8666666667 | H34: 0.03333333333 | I34: 14 | J34: 12 | K34: 3 | L34: 0 | M34: 1 | N34: 0
A35: Q71 | B35: RQX | C35: HOMERTON UNIVERSITY HOSPITAL NHS FOUNDATION TRUST | D35: RQXM1 | E35: Homerton University Hospital - RQXM1 | F35: 107 | G35: 0.8971962617 | H35: 0.009345794393 | I35: 54 | J35: 42 | K35: 9 | L35: 1 | M35: 0 | N35: 1
A36: Q71 | B36: RYJ | C36: IMPERIAL COLLEGE HEALTHCARE NHS TRUST | D36: RYJ04 | E36: Queen Charlotte's Hospital - RYJ04 | F36: 105 | G36: 0.9047619048 | H36: 0.009523809524 | I36: 65 | J36: 30 | K36: 6 | L36: 0 | M36: 1 | N36: 3
A37: Q71 | B37: RYJ | C37: IMPERIAL COLLEGE HEALTHCARE NHS TRUST | D37: RYJ01 | E37: St Mary's Hospital (HQ) - RYJ01 | F37: 120 | G37: 0.8666666667 | H37: 0.05 | I37: 54 | J37: 50 | K37: 8 | L37: 4 | M37: 2 | N37: 2
A38: Q71 | B38: RJZ | C38: KING'S COLLEGE HOSPITAL NHS FOUNDATION TRUST | D38: RJZ01 | E38: King's College Hospital (Denmark Hill) - RJZ01 | F38: 7 | G38: 0.7142857143 | H38: 0.1428571429 | I38: 4 | J38: 1 | K38: 1 | L38: 0 | M38: 1 | N38: 0
A39: Q71 | B39: RJZ | C39: KING'S COLLEGE HOSPITAL NHS FOUNDATION TRUST | D39: RJZ30 | E39: Princess Royal University Hospital - RJZ30 | F39: 55 | G39: 0.8909090909 | H39: 0.05454545455 | I39: 34 | J39: 15 | K39: 2 | L39: 2 | M39: 1 | N39: 1
A40: Q71 | B40: RAX | C40: KINGSTON HOSPITAL NHS FOUNDATION TRUST | D40: RAX01 | E40: Kingston Hospital - RAX01 | F40: 42 | G40: 1 | H40: 0 | I40: 30 | J40: 12 | K40: 0 | L40: 0 | M40: 0 | N40: 0
A41: Q71 | B41: RJ2 | C41: LEWISHAM AND GREENWICH NHS TRUST | D41: RJ231 | E41: Queen Elizabeth Hospital - RJ231 | F41: 99 | G41: 0.8888888889 | H41: 0.0303030303 | I41: 56 | J41: 32 | K41: 8 | L41: 3 | M41: 0 | N41: 0
A42: Q71 | B42: RJ2 | C42: LEWISHAM AND GREENWICH NHS TRUST | D42: RJ224 | E42: University Hospital Lewisham - RJ224 | F42: 208 | G42: 0.8894230769 | H42: 0.04807692308 | I42: 106 | J42: 79 | K42: 9 | L42: 6 | M42: 4 | N42: 4
A43: Q71 | B43: R1K | C43: LONDON NORTH WEST HEALTHCARE NHS TRUST | D43: R1K04 | E43: Ealing Hospital - R1K04 | F43: 0 | G43: NA | H43: NA | I43: 0 | J43: 0 | K43: 0 | L43: 0 | M43: 0 | N43: 0
A44: Q71 | B44: RAP | C44: NORTH MIDDLESEX UNIVERSITY HOSPITAL NHS TRUST | D44: RAPNM | E44: North Middlesex Hospital - RAPNM | F44: 74 | G44: 0.8918918919 | H44: 0.05405405405 | I44: 41 | J44: 25 | K44: 3 | L44: 2 | M44: 2 | N44: 1
A45: Q71 | B45: RAL | C45: ROYAL FREE LONDON NHS FOUNDATION TRUST | D45: RAL26 | E45: Barnet Hospital - RAL26 | F45: 112 | G45: 0.9375 | H45: 0.008928571429 | I45: 66 | J45: 39 | K45: 5 | L45: 1 | M45: 0 | N45: 1
A46: Q71 | B46: RAL | C46: ROYAL FREE LONDON NHS FOUNDATION TRUST | D46: RAL01 | E46: Royal Free Hospital - RAL01 | F46: 77 | G46: 0.961038961 | H46: 0.02597402597 | I46: 56 | J46: 18 | K46: 1 | L46: 1 | M46: 1 | N46: 0
A47: Q71 | B47: RJ7 | C47: ST GEORGE'S UNIVERSITY HOSPITALS NHS FOUNDATION TRUST | D47: RJ701 | E47: St George's Hospital (Tooting) - RJ701 | F47: 48 | G47: 0.9791666667 | H47: 0 | I47: 26 | J47: 21 | K47: 1 | L47: 0 | M47: 0 | N47: 0
A48: Q71 | B48: RAS | C48: THE HILLINGDON HOSPITALS NHS FOUNDATION TRUST | D48: RAS01 | E48: Hillingdon Hospital - RAS01 | F48: 139 | G48: 0.964028777 | H48: 0.01438848921 | I48: 95 | J48: 39 | K48: 0 | L48: 1 | M48: 1 | N48: 3
A49: Q71 | B49: RKE | C49: THE WHITTINGTON HOSPITAL NHS TRUST | D49: RKEQ4 | E49: The Whittington Hospital - RKEQ4 | F49: 108 | G49: 0.8055555556 | H49: 0.03703703704 | I49: 47 | J49: 40 | K49: 8 | L49: 2 | M49: 2 | N49: 9
A50: Q71 | B50: RRV | C50: UNIVERSITY COLLEGE LONDON HOSPITALS NHS FOUNDATION TRUST | D50: RRV03 | E50: University College Hospital - RRV03 | F50: 264 | G50: 0.8787878788 | H50: 0.03787878788 | I50: 182 | J50: 50 | K50: 13 | L50: 8 | M50: 2 | N50: 9
A51: Q72 | B51: RCF | C51: AIREDALE NHS FOUNDATION TRUST | D51: RCF22 | E51: Airedale General Hospital - RCF22 | F51: 16 | G51: 1 | H51: 0 | I51: 14 | J51: 2 | K51: 0 | L51: 0 | M51: 0 | N51: 0
A52: Q72 | B52: RFF | C52: BARNSLEY HOSPITAL NHS FOUNDATION TRUST | D52: RFFAA | E52: Barnsley Hospital NHS Foundation Trust HQ - RFFAA | F52: 44 | G52: 1 | H52: 0 | I52: 41 | J52: 3 | K52: 0 | L52: 0 | M52: 0 | N52: 0
A53: Q72 | B53: RAE | C53: BRADFORD TEACHING HOSPITALS NHS FOUNDATION TRUST | D53: RAE01 | E53: Bradford Royal Infirmary - RAE01 | F53: 33 | G53: 1 | H53: 0 | I53: 27 | J53: 6 | K53: 0 | L53: 0 | M53: 0 | N53: 0
A54: Q72 | B54: RWY | C54: CALDERDALE AND HUDDERSFIELD NHS FOUNDATION TRUST | D54: RWY02 | E54: Calderdale Royal Hospital - RWY02 | F54: 131 | G54: 0.9923664122 | H54: 0 | I54: 106 | J54: 24 | K54: 1 | L54: 0 | M54: 0 | N54: 0
A55: Q72 | B55: RWY | C55: CALDERDALE AND HUDDERSFIELD NHS FOUNDATION TRUST | D55: RWY01 | E55: Huddersfield Royal Infirmary - RWY01 | F55: 20 | G55: 0.9 | H55: 0 | I55: 17 | J55: 1 | K55: 2 | L55: 0 | M55: 0 | N55: 0
A56: Q72 | B56: RP5 | C56: DONCASTER AND BASSETLAW TEACHING HOSPITALS NHS FOUNDATION TRUST | D56: RP5BA | E56: Bassetlaw Hospital - RP5BA | F56: 10 | G56: 1 | H56: 0 | I56: 10 | J56: 0 | K56: 0 | L56: 0 | M56: 0 | N56: 0
A57: Q72 | B57: RP5 | C57: DONCASTER AND BASSETLAW TEACHING HOSPITALS NHS FOUNDATION TRUST | D57: RP5DR | E57: Doncaster Royal Infirmary - RP5DR | F57: 109 | G57: 0.9357798165 | H57: 0.03669724771 | I57: 72 | J57: 30 | K57: 2 | L57: 2 | M57: 2 | N57: 1
A58: Q72 | B58: RCD | C58: HARROGATE AND DISTRICT NHS FOUNDATION TRUST | D58: RCD01 | E58: Harrogate District Hospital - RCD01 | F58: 57 | G58: 0.9824561404 | H58: 0.01754385965 | I58: 50 | J58: 6 | K58: 0 | L58: 1 | M58: 0 | N58: 0
A59: Q72 | B59: RWA | C59: HULL AND EAST YORKSHIRE HOSPITALS NHS TRUST | D59: RWA01 | E59: Hull Royal Infirmary - RWA01 | F59: 35 | G59: 1 | H59: 0 | I59: 35 | J59: 0 | K59: 0 | L59: 0 | M59: 0 | N59: 0
A60: Q72 | B60: RR8 | C60: LEEDS TEACHING HOSPITALS NHS TRUST | D60: RR801 | E60: Leeds General Infirmary - RR801 | F60: 139 | G60: 0.9712230216 | H60: 0.007194244604 | I60: 107 | J60: 28 | K60: 3 | L60: 1 | M60: 0 | N60: 0
A61: Q72 | B61: RR8 | C61: LEEDS TEACHING HOSPITALS NHS TRUST | D61: RR813 | E61: St James's University Hospital - RR813 | F61: 0 | G61: NA | H61: NA | I61: 0 | J61: 0 | K61: 0 | L61: 0 | M61: 0 | N61: 0
A62: Q72 | B62: RXF | C62: MID YORKSHIRE HOSPITALS NHS TRUST | D62: RXF05 | E62: Pinderfields General Hospital - RXF05 | F62: 62 | G62: 0.9677419355 | H62: 0.01612903226 | I62: 40 | J62: 20 | K62: 1 | L62: 0 | M62: 1 | N62: 0
A63: Q72 | B63: RJL | C63: NORTHERN LINCOLNSHIRE AND GOOLE NHS FOUNDATION TRUST | D63: RJL30 | E63: Diana, Princess Of Wales Hospital - RJL30 | F63: 0 | G63: NA | H63: NA | I63: 0 | J63: 0 | K63: 0 | L63: 0 | M63: 0 | N63: 0
A64: Q72 | B64: RJL | C64: NORTHERN LINCOLNSHIRE AND GOOLE NHS FOUNDATION TRUST | D64: RJL32 | E64: Scunthorpe General Hospital - RJL32 | F64: 32 | G64: 0.875 | H64: 0 | I64: 24 | J64: 4 | K64: 4 | L64: 0 | M64: 0 | N64: 0
A65: Q72 | B65: RHQ | C65: SHEFFIELD TEACHING HOSPITALS NHS FOUNDATION TRUST | D65: RHQHH | E65: Royal Hallamshire Hospital - RHQHH | F65: 184 | G65: 0.9184782609 | H65: 0.01086956522 | I65: 129 | J65: 40 | K65: 8 | L65: 1 | M65: 1 | N65: 5
A66: Q72 | B66: RFR | C66: THE ROTHERHAM NHS FOUNDATION TRUST | D66: RFRPA | E66: Rotherham District General Hospital - RFRPA | F66: 100 | G66: 0.96 | H66: 0.02 | I66: 78 | J66: 18 | K66: 0 | L66: 2 | M66: 0 | N66: 2
A67: Q72 | B67: RCB | C67: YORK TEACHING HOSPITAL NHS FOUNDATION TRUST | D67: RCBCA | E67: Scarborough General Hospital - RCBCA | F67: 6 | G67: 1 | H67: 0 | I67: 4 | J67: 2 | K67: 0 | L67: 0 | M67: 0 | N67: 0
A68: Q72 | B68: RCB | C68: YORK TEACHING HOSPITAL NHS FOUNDATION TRUST | D68: RCB55 | E68: York Hospital - RCB55 | F68: 88 | G68: 0.9886363636 | H68: 0 | I68: 79 | J68: 8 | K68: 1 | L68: 0 | M68: 0 | N68: 0
A69: Q74 | B69: RLN | C69: CITY HOSPITALS SUNDERLAND NHS FOUNDATION TRUST | D69: RLNGL | E69: Sunderland Royal Hospital - RLNGL | F69: 113 | G69: 1 | H69: 0 | I69: 102 | J69: 11 | K69: 0 | L69: 0 | M69: 0 | N69: 0
A70: Q74 | B70: RXP | C70: COUNTY DURHAM AND DARLINGTON NHS FOUNDATION TRUST | D70: RXPDA | E70: Darlington Memorial Hospital - RXPDA | F70: 49 | G70: 0.9795918367 | H70: 0 | I70: 35 | J70: 13 | K70: 0 | L70: 0 | M70: 0 | N70: 1
A71: Q74 | B71: RXP | C71: COUNTY DURHAM AND DARLINGTON NHS FOUNDATION TRUST | D71: RXPCP | E71: University Hospital Of North Durham - RXPCP | F71: 62 | G71: 1 | H71: 0 | I71: 48 | J71: 14 | K71: 0 | L71: 0 | M71: 0 | N71: 0
A72: Q74 | B72: RR7 | C72: GATESHEAD HEALTH NHS FOUNDATION TRUST | D72: RR7EN | E72: Queen Elizabeth Hospital - RR7EN | F72: 43 | G72: 0.976744186 | H72: 0.02325581395 | I72: 36 | J72: 6 | K72: 0 | L72: 0 | M72: 1 | N72: 0
A73: Q74 | B73: RNL | C73: NORTH CUMBRIA UNIVERSITY HOSPITALS NHS TRUST | D73: RNLAY | E73: Cumberland Infirmary - RNLAY | F73: 23 | G73: 1 | H73: 0 | I73: 19 | J73: 4 | K73: 0 | L73: 0 | M73: 0 | N73: 0
A74: Q74 | B74: RNL | C74: NORTH CUMBRIA UNIVERSITY HOSPITALS NHS TRUST | D74: RNLBX | E74: West Cumberland Hospital - RNLBX | F74: 80 | G74: 1 | H74: 0 | I74: 64 | J74: 16 | K74: 0 | L74: 0 | M74: 0 | N74: 0
A75: Q74 | B75: RVW | C75: NORTH TEES AND HARTLEPOOL NHS FOUNDATION TRUST | D75: RVWAE | E75: University Hospital Of North Tees - RVWAE | F75: 12 | G75: 0.9166666667 | H75: 0 | I75: 8 | J75: 3 | K75: 1 | L75: 0 | M75: 0 | N75: 0
A76: Q74 | B76: RTF | C76: NORTHUMBRIA HEALTHCARE NHS FOUNDATION TRUST | D76: RTFDJ | E76: Alnwick Infirmary - RTFDJ | F76: 0 | G76: NA | H76: NA | I76: 0 | J76: 0 | K76: 0 | L76: 0 | M76: 0 | N76: 0
A77: Q74 | B77: RTF | C77: NORTHUMBRIA HEALTHCARE NHS FOUNDATION TRUST | D77: RTFDH | E77: Berwick Infirmary - RTFDH | F77: 0 | G77: NA | H77: NA | I77: 0 | J77: 0 | K77: 0 | L77: 0 | M77: 0 | N77: 0
A78: Q74 | B78: RTF | C78: NORTHUMBRIA HEALTHCARE NHS FOUNDATION TRUST | D78: RTFDR | E78: Hexham General Hospital - RTFDR | F78: 2 | G78: * | H78: * | I78: * | J78: * | K78: * | L78: * | M78: * | N78: *
A79: Q74 | B79: RTF | C79: NORTHUMBRIA HEALTHCARE NHS FOUNDATION TRUST | D79: RTF86 | E79: The Northumbria - RTF86 | F79: 45 | G79: 0.9555555556 | H79: 0.04444444444 | I79: * | J79: * | K79: * | L79: * | M79: * | N79: *
A80: Q74 | B80: RTR | C80: SOUTH TEES HOSPITALS NHS FOUNDATION TRUST | D80: RTR45 | E80: Friarage Hospital Site - RTR45 | F80: 0 | G80: NA | H80: NA | I80: 0 | J80: 0 | K80: 0 | L80: 0 | M80: 0 | N80: 0
A81: Q74 | B81: RTR | C81: SOUTH TEES HOSPITALS NHS FOUNDATION TRUST | D81: RTRAT | E81: The James Cook University Hospital - RTRAT | F81: 45 | G81: 0.9777777778 | H81: 0 | I81: 40 | J81: 4 | K81: 0 | L81: 0 | M81: 0 | N81: 1
A82: Q74 | B82: RE9 | C82: SOUTH TYNESIDE NHS FOUNDATION TRUST | D82: RE9GA | E82: South Tyneside District Hospital - RE9GA | F82: 15 | G82: 0.9333333333 | H82: 0 | I82: 12 | J82: 2 | K82: 0 | L82: 0 | M82: 0 | N82: 1
A83: Q74 | B83: RTD | C83: THE NEWCASTLE UPON TYNE HOSPITALS NHS FOUNDATION TRUST | D83: RTD02 | E83: The Royal Victoria Infirmary - RTD02 | F83: 169 | G83: 0.9763313609 | H83: 0.005917159763 | I83: 145 | J83: 20 | K83: 2 | L83: 0 | M83: 1 | N83: 1
A84: Q74 | B84: RTX | C84: UNIVERSITY HOSPITALS OF MORECAMBE BAY NHS FOUNDATION TRUST | D84: RTXBU | E84: Furness General Hospital - RTXBU | F84: 22 | G84: 1 | H84: 0 | I84: 19 | J84: 3 | K84: 0 | L84: 0 | M84: 0 | N84: 0
A85: Q74 | B85: RTX | C85: UNIVERSITY HOSPITALS OF MORECAMBE BAY NHS FOUNDATION TRUST | D85: RTX02 | E85: Royal Lancaster Infirmary - RTX02 | F85: 8 | G85: 1 | H85: 0 | I85: 6 | J85: 2 | K85: 0 | L85: 0 | M85: 0 | N85: 0
A86: Q75 | B86: RJR | C86: COUNTESS OF CHESTER HOSPITAL NHS FOUNDATION TRUST | D86: RJR05 | E86: Countess Of Chester Hospital - RJR05 | F86: 52 | G86: 0.9423076923 | H86: 0.01923076923 | I86: 39 | J86: 10 | K86: 2 | L86: 1 | M86: 0 | N86: 0
A87: Q75 | B87: RJN | C87: EAST CHESHIRE NHS TRUST | D87: RJN71 | E87: Macclesfield District General Hospital - RJN71 | F87: 57 | G87: 0.9649122807 | H87: 0 | I87: 51 | J87: 4 | K87: 1 | L87: 0 | M87: 0 | N87: 1
A88: Q75 | B88: REP | C88: LIVERPOOL WOMEN'S NHS FOUNDATION TRUST | D88: REP01 | E88: Liverpool Womens Hospital - REP01 | F88: 2 | G88: * | H88: * | I88: * | J88: * | K88: * | L88: * | M88: * | N88: *
A89: Q75 | B89: RBT | C89: MID CHESHIRE HOSPITALS NHS FOUNDATION TRUST | D89: RBT20 | E89: Leighton Hospital - RBT20 | F89: 27 | G89: 0.962962963 | H89: 0 | I89: * | J89: * | K89: * | L89: * | M89: * | N89: *
A90: Q75 | B90: RVY | C90: SOUTHPORT AND ORMSKIRK HOSPITAL NHS TRUST | D90: RVY02 | E90: Ormskirk and District General Hospital - RVY02 | F90: 28 | G90: 0.9285714286 | H90: 0.03571428571 | I90: 23 | J90: 3 | K90: 1 | L90: 1 | M90: 0 | N90: 0
A91: Q75 | B91: RBN | C91: ST HELENS AND KNOWSLEY HOSPITAL SERVICES NHS TRUST | D91: RBN01 | E91: Whiston Hospital - RBN01 | F91: 32 | G91: 0.90625 | H91: 0.03125 | I91: 26 | J91: 3 | K91: 0 | L91: 0 | M91: 1 | N91: 2
A92: Q75 | B92: RWW | C92: WARRINGTON AND HALTON HOSPITALS NHS FOUNDATION TRUST | D92: RWWWH | E92: Warrington Hospital - RWWWH | F92: 81 | G92: 0.987654321 | H92: 0.01234567901 | I92: 70 | J92: 10 | K92: 0 | L92: 1 | M92: 0 | N92: 0
A93: Q75 | B93: RBL | C93: WIRRAL UNIVERSITY TEACHING HOSPITAL NHS FOUNDATION TRUST | D93: RBL14 | E93: Arrowe Park Hospital - RBL14 | F93: 82 | G93: 1 | H93: 0 | I93: 67 | J93: 15 | K93: 0 | L93: 0 | M93: 0 | N93: 0
A94: Q76 | B94: RJF | C94: BURTON HOSPITALS NHS FOUNDATION TRUST | D94: RJF02 | E94: Queen's Hospital, Burton Upon Trent - RJF02 | F94: 94 | G94: 1 | H94: 0 | I94: 85 | J94: 9 | K94: 0 | L94: 0 | M94: 0 | N94: 0
A95: Q76 | B95: RFS | C95: CHESTERFIELD ROYAL HOSPITAL NHS FOUNDATION TRUST | D95: RFSDA | E95: Chesterfield Royal Hospital - RFSDA | F95: 61 | G95: 0.9836065574 | H95: 0 | I95: 40 | J95: 20 | K95: 0 | L95: 0 | M95: 0 | N95: 1
A96: Q76 | B96: RTG | C96: DERBY TEACHING HOSPITALS NHS FOUNDATION TRUST | D96: RTGFG | E96: Royal Derby Hospital - RTGFG | F96: 177 | G96: 0.9661016949 | H96: 0.01129943503 | I96: 127 | J96: 44 | K96: 3 | L96: 1 | M96: 1 | N96: 1
A97: Q76 | B97: RX1 | C97: NOTTINGHAM UNIVERSITY HOSPITALS NHS TRUST | D97: RX1CC | E97: Nottingham University Hospitals NHS Trust - City Campus - RX1CC | F97: 56 | G97: 0.9821428571 | H97: 0 | I97: 37 | J97: 18 | K97: 1 | L97: 0 | M97: 0 | N97: 0
A98: Q76 | B98: RX1 | C98: NOTTINGHAM UNIVERSITY HOSPITALS NHS TRUST | D98: RX1RA | E98: Nottingham University Hospitals NHS Trust - Queen's Medical Centre Campus - RX1RA | F98: 67 | G98: 0.9850746269 | H98: 0.01492537313 | I98: 50 | J98: 16 | K98: 0 | L98: 1 | M98: 0 | N98: 0
A99: Q76 | B99: RK5 | C99: SHERWOOD FOREST HOSPITALS NHS FOUNDATION TRUST | D99: RK5BC | E99: King's Mill Hospital - RK5BC | F99: 72 | G99: 0.9444444444 | H99: 0.04166666667 | I99: 56 | J99: 12 | K99: 1 | L99: 3 | M99: 0 | N99: 0
A100: Q76 | B100: RXW | C100: SHREWSBURY AND TELFORD HOSPITAL NHS TRUST | D100: RXWMB | E100: Bridgnorth Hospital (Maternity) - RXWMB | F100: 8 | G100: 1 | H100: 0 | I100: 8 | J100: 0 | K100: 0 | L100: 0 | M100: 0 | N100: 0
A101: Q76 | B101: RXW | C101: SHREWSBURY AND TELFORD HOSPITAL NHS TRUST | D101: RXWML | E101: Ludlow Hospital (Maternity) - RXWML | F101: 7 | G101: 1 | H101: 0 | I101: 7 | J101: 0 | K101: 0 | L101: 0 | M101: 0 | N101: 0
A102: Q76 | B102: RXW | C102: SHREWSBURY AND TELFORD HOSPITAL NHS TRUST | D102: RXWMJ | E102: Robert Jones & Agnes Hunt Orthopaedic & District Hospital - RXWMJ | F102: 7 | G102: 1 | H102: 0 | I102: 7 | J102: 0 | K102: 0 | L102: 0 | M102: 0 | N102: 0
A103: Q76 | B103: RXW | C103: SHREWSBURY AND TELFORD HOSPITAL NHS TRUST | D103: RXWAS | E103: Royal Shrewsbury Hospital - RXWAS | F103: 21 | G103: 0.9523809524 | H103: 0 | I103: 18 | J103: 2 | K103: 1 | L103: 0 | M103: 0 | N103: 0
A104: Q76 | B104: RXW | C104: SHREWSBURY AND TELFORD HOSPITAL NHS TRUST | D104: RXWAT | E104: The Princess Royal Hospital - RXWAT | F104: 65 | G104: 0.9692307692 | H104: 0.01538461538 | I104: 57 | J104: 6 | K104: 0 | L104: 0 | M104: 1 | N104: 1
A105: Q76 | B105: RJE | C105: UNIVERSITY HOSPITALS OF NORTH MIDLANDS NHS TRUST | D105: RJE01 | E105: Royal Stoke University Hospital - RJE01 | F105: 27 | G105: 0.9259259259 | H105: 0 | I105: 22 | J105: 3 | K105: 1 | L105: 0 | M105: 0 | N105: 1
A106: Q77 | B106: RQ3 | C106: BIRMINGHAM WOMEN'S AND CHILDREN'S NHS FOUNDATION TRUST | D106: RQ370 | E106: Birmingham Women's Hospital - RQ370 | F106: 90 | G106: 0.9555555556 | H106: 0.01111111111 | I106: 57 | J106: 29 | K106: 2 | L106: 1 | M106: 0 | N106: 1
A107: Q77 | B107: RLT | C107: GEORGE ELIOT HOSPITAL NHS TRUST | D107: RLT01 | E107: George Eliot Hospital - Acute Services - RLT01 | F107: 114 | G107: 0.9649122807 | H107: 0.01754385965 | I107: 98 | J107: 12 | K107: 1 | L107: 1 | M107: 1 | N107: 1
A108: Q77 | B108: RR1 | C108: HEART OF ENGLAND NHS FOUNDATION TRUST | D108: RR105 | E108: Good Hope Hospital - RR105 | F108: 17 | G108: 1 | H108: 0 | I108: 16 | J108: 1 | K108: 0 | L108: 0 | M108: 0 | N108: 0
A109: Q77 | B109: RR1 | C109: HEART OF ENGLAND NHS FOUNDATION TRUST | D109: RR101 | E109: Heartlands Hospital - RR101 | F109: 141 | G109: 0.8865248227 | H109: 0.007092198582 | I109: 64 | J109: 61 | K109: 15 | L109: 0 | M109: 1 | N109: 0
A110: Q77 | B110: RR1 | C110: HEART OF ENGLAND NHS FOUNDATION TRUST | D110: RR109 | E110: Solihull Hospital - RR109 | F110: 15 | G110: 1 | H110: 0 | I110: 15 | J110: 0 | K110: 0 | L110: 0 | M110: 0 | N110: 0
A111: Q77 | B111: RXK | C111: SANDWELL AND WEST BIRMINGHAM HOSPITALS NHS TRUST | D111: RXK02 | E111: City Hospital - RXK02 | F111: 105 | G111: 0.8571428571 | H111: 0.04761904762 | I111: 53 | J111: 37 | K111: 6 | L111: 2 | M111: 3 | N111: 4
A112: Q77 | B112: RJC | C112: SOUTH WARWICKSHIRE NHS FOUNDATION TRUST | D112: RJC02 | E112: Warwick Hospital - RJC02 | F112: 74 | G112: 0.9594594595 | H112: 0.02702702703 | I112: 59 | J112: 12 | K112: 1 | L112: 1 | M112: 1 | N112: 0
A113: Q77 | B113: RNA | C113: THE DUDLEY GROUP NHS FOUNDATION TRUST | D113: RNA01 | E113: Russells Hall Hospital - RNA01 | F113: 170 | G113: 0.9529411765 | H113: 0.01176470588 | I113: 143 | J113: 19 | K113: 2 | L113: 1 | M113: 1 | N113: 4
A114: Q77 | B114: RL4 | C114: THE ROYAL WOLVERHAMPTON NHS TRUST | D114: RL403 | E114: New Cross Hospital - RL403 | F114: 89 | G114: 0.9101123596 | H114: 0.06741573034 | I114: 67 | J114: 14 | K114: 1 | L114: 4 | M114: 2 | N114: 1
A115: Q77 | B115: RKB | C115: UNIVERSITY HOSPITALS COVENTRY AND WARWICKSHIRE NHS TRUST | D115: RKB01 | E115: University Hospital (Coventry) - RKB01 | F115: 164 | G115: 0.9512195122 | H115: 0.01829268293 | I115: 105 | J115: 51 | K115: 1 | L115: 1 | M115: 2 | N115: 4
A116: Q77 | B116: RBK | C116: WALSALL HEALTHCARE NHS TRUST | D116: RBK02 | E116: Manor Hospital - RBK02 | F116: 35 | G116: 0.9142857143 | H116: 0.08571428571 | I116: 26 | J116: 6 | K116: 0 | L116: 3 | M116: 0 | N116: 0
A117: Q77 | B117: RWP | C117: WORCESTERSHIRE ACUTE HOSPITALS NHS TRUST | D117: RWP50 | E117: Worcestershire Royal Hospital - RWP50 | F117: 214 | G117: 0.9813084112 | H117: 0 | I117: 171 | J117: 39 | K117: 4 | L117: 0 | M117: 0 | N117: 0
A118: Q77 | B118: RLQ | C118: WYE VALLEY NHS TRUST | D118: RLQ01 | E118: Hereford County Hospital - RLQ01 | F118: 50 | G118: 0.98 | H118: 0 | I118: 40 | J118: 9 | K118: 0 | L118: 0 | M118: 0 | N118: 1
A119: Q78 | B119: RC1 | C119: BEDFORD HOSPITAL NHS TRUST | D119: RC110 | E119: Bedford Hospital South Wing - RC110 | F119: 67 | G119: 0.9701492537 | H119: 0 | I119: 57 | J119: 8 | K119: 2 | L119: 0 | M119: 0 | N119: 0
A120: Q78 | B120: RWH | C120: EAST AND NORTH HERTFORDSHIRE NHS TRUST | D120: RWH01 | E120: Lister Hospital - RWH01 | F120: 232 | G120: 0.875 | H120: 0.04310344828 | I120: 130 | J120: 73 | K120: 13 | L120: 8 | M120: 2 | N120: 6
A121: Q78 | B121: RNQ | C121: KETTERING GENERAL HOSPITAL NHS FOUNDATION TRUST | D121: RNQ51 | E121: Kettering General Hospital - RNQ51 | F121: 18 | G121: 1 | H121: 0 | I121: 15 | J121: 3 | K121: 0 | L121: 0 | M121: 0 | N121: 0
A122: Q78 | B122: RC9 | C122: LUTON AND DUNSTABLE UNIVERSITY HOSPITAL NHS FOUNDATION TRUST | D122: RC971 | E122: Luton and Dunstable Hospital - RC971 | F122: 113 | G122: 0.982300885 | H122: 0 | I122: 81 | J122: 30 | K122: 2 | L122: 0 | M122: 0 | N122: 0
A123: Q78 | B123: RD8 | C123: MILTON KEYNES UNIVERSITY HOSPITAL NHS FOUNDATION TRUST | D123: RD816 | E123: Milton Keynes Hospital - RD816 | F123: 24 | G123: 0.9583333333 | H123: 0.04166666667 | I123: 14 | J123: 9 | K123: 0 | L123: 0 | M123: 1 | N123: 0
A124: Q78 | B124: RNS | C124: NORTHAMPTON GENERAL HOSPITAL NHS TRUST | D124: RNS01 | E124: Northampton General Hospital (Acute) - RNS01 | F124: 83 | G124: 1 | H124: 0 | I124: 69 | J124: 14 | K124: 0 | L124: 0 | M124: 0 | N124: 0
A125: Q78 | B125: RWD | C125: UNITED LINCOLNSHIRE HOSPITALS NHS TRUST | D125: RWDLP | E125: Grantham and District Hospital - RWDLP | F125: 0 | G125: NA | H125: NA | I125: 0 | J125: 0 | K125: 0 | L125: 0 | M125: 0 | N125: 0
A126: Q78 | B126: RWD | C126: UNITED LINCOLNSHIRE HOSPITALS NHS TRUST | D126: RWDDA | E126: Lincoln County Hospital - RWDDA | F126: 27 | G126: 0.962962963 | H126: 0.03703703704 | I126: 20 | J126: 6 | K126: 0 | L126: 1 | M126: 0 | N126: 0
A127: Q78 | B127: RWD | C127: UNITED LINCOLNSHIRE HOSPITALS NHS TRUST | D127: RWDLA | E127: Pilgrim Hospital - RWDLA | F127: 10 | G127: 0.9 | H127: 0 | I127: 7 | J127: 2 | K127: 1 | L127: 0 | M127: 0 | N127: 0
A128: Q78 | B128: RWE | C128: UNIVERSITY HOSPITALS OF LEICESTER NHS TRUST | D128: RWEAK | E128: Leicester General Hospital - RWEAK | F128: 139 | G128: 0.9424460432 | H128: 0.05035971223 | I128: 103 | J128: 28 | K128: 1 | L128: 3 | M128: 4 | N128: 0
A129: Q78 | B129: RWE | C129: UNIVERSITY HOSPITALS OF LEICESTER NHS TRUST | D129: RWEAA | E129: Leicester Royal Infirmary - RWEAA | F129: 264 | G129: 0.9242424242 | H129: 0.02651515152 | I129: 182 | J129: 62 | K129: 7 | L129: 2 | M129: 5 | N129: 6
A130: Q78 | B130: RWE | C130: UNIVERSITY HOSPITALS OF LEICESTER NHS TRUST | D130: RWE10 | E130: St Mary's Hospital - RWE10 | F130: 27 | G130: 1 | H130: 0 | I130: 26 | J130: 1 | K130: 0 | L130: 0 | M130: 0 | N130: 0
A131: Q78 | B131: RWG | C131: WEST HERTFORDSHIRE HOSPITALS NHS TRUST | D131: RWG02 | E131: Watford General Hospital - RWG02 | F131: 103 | G131: 0.9514563107 | H131: 0.009708737864 | I131: 67 | J131: 31 | K131: 3 | L131: 1 | M131: 0 | N131: 1
A132: Q79 | B132: RDD | C132: BASILDON AND THURROCK UNIVERSITY HOSPITALS NHS FOUNDATION TRUST | D132: RDDH0 | E132: Basildon University Hospital - RDDH0 | F132: 158 | G132: 0.9873417722 | H132: 0.006329113924 | I132: 123 | J132: 33 | K132: 1 | L132: 0 | M132: 1 | N132: 0
A133: Q79 | B133: RGT | C133: CAMBRIDGE UNIVERSITY HOSPITALS NHS FOUNDATION TRUST | D133: RGT32 | E133: Rosie Hospital - RGT32 | F133: 215 | G133: 0.976744186 | H133: 0.009302325581 | I133: 143 | J133: 67 | K133: 3 | L133: 2 | M133: 0 | N133: 0
A134: Q79 | B134: RDE | C134: COLCHESTER HOSPITAL UNIVERSITY NHS FOUNDATION TRUST | D134: RDEE2 | E134: Clacton and District Hospital - RDEE2 | F134: 0 | G134: NA | H134: NA | I134: 0 | J134: 0 | K134: 0 | L134: 0 | M134: 0 | N134: 0
A135: Q79 | B135: RDE | C135: COLCHESTER HOSPITAL UNIVERSITY NHS FOUNDATION TRUST | D135: RDEE4 | E135: Colchester General Hospital - RDEE4 | F135: 57 | G135: 0.9824561404 | H135: 0.01754385965 | I135: 42 | J135: 14 | K135: 0 | L135: 0 | M135: 1 | N135: 0
A136: Q79 | B136: RGQ | C136: IPSWICH HOSPITAL NHS TRUST | D136: RGQ02 | E136: The Ipswich Hospital NHS Trust - RGQ02 | F136: 125 | G136: 0.944 | H136: 0.016 | I136: 99 | J136: 19 | K136: 4 | L136: 2 | M136: 0 | N136: 1
A137: Q79 | B137: RGP | C137: JAMES PAGET UNIVERSITY HOSPITALS NHS FOUNDATION TRUST | D137: RGP75 | E137: James Paget University Hospital - RGP75 | F137: 40 | G137: 0.975 | H137: 0 | I137: 33 | J137: 6 | K137: 0 | L137: 0 | M137: 0 | N137: 1
A138: Q79 | B138: RQ8 | C138: MID ESSEX HOSPITAL SERVICES NHS TRUST | D138: RQ8L0 | E138: Broomfield Hospital - RQ8L0 | F138: 47 | G138: 0.8936170213 | H138: 0.08510638298 | I138: 37 | J138: 5 | K138: 1 | L138: 3 | M138: 1 | N138: 0
A139: Q79 | B139: RM1 | C139: NORFOLK AND NORWICH UNIVERSITY HOSPITALS NHS FOUNDATION TRUST | D139: RM102 | E139: Norfolk and Norwich University Hospital - RM102 | F139: 34 | G139: 0.9705882353 | H139: 0.02941176471 | I139: 31 | J139: 2 | K139: 0 | L139: 1 | M139: 0 | N139: 0
A140: Q79 | B140: RGN | C140: NORTH WEST ANGLIA NHS FOUNDATION TRUST | D140: RGN90 | E140: Hinchingbrooke Hospital - RGN90 | F140: 44 | G140: 0.9772727273 | H140: 0.02272727273 | I140: 40 | J140: 3 | K140: 0 | L140: 1 | M140: 0 | N140: 0
A141: Q79 | B141: RGN | C141: NORTH WEST ANGLIA NHS FOUNDATION TRUST | D141: RGN80 | E141: Peterborough City Hospital - RGN80 | F141: 145 | G141: 0.9448275862 | H141: 0.0275862069 | I141: 120 | J141: 17 | K141: 2 | L141: 2 | M141: 2 | N141: 2
A142: Q79 | B142: RAJ | C142: SOUTHEND UNIVERSITY HOSPITAL NHS FOUNDATION TRUST | D142: RAJ01 | E142: Southend Hospital - RAJ01 | F142: 20 | G142: 1 | H142: 0 | I142: * | J142: * | K142: * | L142: * | M142: * | N142: *
A143: Q79 | B143: RQW | C143: THE PRINCESS ALEXANDRA HOSPITAL NHS TRUST | D143: RQWG0 | E143: Princess Alexandra Hospital - RQWG0 | F143: 165 | G143: 0.9757575758 | H143: 0.006060606061 | I143: 155 | J143: 6 | K143: 0 | L143: 0 | M143: 1 | N143: 3
A144: Q79 | B144: RCX | C144: THE QUEEN ELIZABETH HOSPITAL, KING'S LYNN, NHS FOUNDATION TRUST | D144: RCX70 | E144: The Queen Elizabeth Hospital - RCX70 | F144: 90 | G144: 0.9888888889 | H144: 0.01111111111 | I144: 62 | J144: 27 | K144: 0 | L144: 1 | M144: 0 | N144: 0
A145: Q79 | B145: RGR | C145: WEST SUFFOLK NHS FOUNDATION TRUST | D145: RGR50 | E145: West Suffolk Hospital - RGR50 | F145: 2 | G145: * | H145: * | I145: * | J145: * | K145: * | L145: * | M145: * | N145: *
A146: Q80 | B146: RVJ | C146: NORTH BRISTOL NHS TRUST | D146: RVJ21 | E146: Cossham Hospital - RVJ21 | F146: 12 | G146: 0.9166666667 | H146: 0 | I146: 11 | J146: 0 | K146: 1 | L146: 0 | M146: 0 | N146: 0
A147: Q80 | B147: RVJ | C147: NORTH BRISTOL NHS TRUST | D147: RVJ01 | E147: Southmead Hospital - RVJ01 | F147: 83 | G147: 0.9036144578 | H147: 0.0843373494 | I147: 62 | J147: 13 | K147: 1 | L147: 4 | M147: 3 | N147: 0
A148: Q80 | B148: RBZ | C148: NORTHERN DEVON HEALTHCARE NHS TRUST | D148: RBZ12 | E148: North Devon District Hospital - RBZ12 | F148: 33 | G148: 1 | H148: 0 | I148: 31 | J148: 2 | K148: 0 | L148: 0 | M148: 0 | N148: 0
A149: Q80 | B149: RK9 | C149: PLYMOUTH HOSPITALS NHS TRUST | D149: RK950 | E149: Derriford Hospital - RK950 | F149: 148 | G149: 0.9932432432 | H149: 0.006756756757 | I149: 104 | J149: 43 | K149: 0 | L149: 1 | M149: 0 | N149: 0
A150: Q80 | B150: REF | C150: ROYAL CORNWALL HOSPITALS NHS TRUST | D150: REF12 | E150: Royal Cornwall Hospital (Treliske) - REF12 | F150: 131 | G150: 0.9541984733 | H150: 0.02290076336 | I150: 96 | J150: 29 | K150: 2 | L150: 2 | M150: 1 | N150: 1
A151: Q80 | B151: RH8 | C151: ROYAL DEVON AND EXETER NHS FOUNDATION TRUST | D151: RH854 | E151: Honiton Hospital - RH 854 | F151: 0 | G151: NA | H151: NA | I151: 0 | J151: 0 | K151: 0 | L151: 0 | M151: 0 | N151: 0
A152: Q80 | B152: RH8 | C152: ROYAL DEVON AND EXETER NHS FOUNDATION TRUST | D152: RH833 | E152: Okehampton Community Hospital - RH833 | F152: 0 | G152: NA | H152: NA | I152: 0 | J152: 0 | K152: 0 | L152: 0 | M152: 0 | N152: 0
A153: Q80 | B153: RH8 | C153: ROYAL DEVON AND EXETER NHS FOUNDATION TRUST | D153: RH801 | E153: Royal Devon and Exeter Hospital (Wonford) - RH801 | F153: 2 | G153: * | H153: * | I153: * | J153: * | K153: * | L153: * | M153: * | N153: *
A154: Q80 | B154: RH8 | C154: ROYAL DEVON AND EXETER NHS FOUNDATION TRUST | D154: RH853 | E154: Tiverton and District Hospital - RH853 | F154: 0 | G154: NA | H154: NA | I154: 0 | J154: 0 | K154: 0 | L154: 0 | M154: 0 | N154: 0
A155: Q80 | B155: RBA | C155: TAUNTON AND SOMERSET NHS FOUNDATION TRUST | D155: RBAC3 | E155: Bridgwater Hospital - RBAC3 | F155: 1 | G155: * | H155: * | I155: * | J155: * | K155: * | L155: * | M155: * | N155: *
A156: Q80 | B156: RBA | C156: TAUNTON AND SOMERSET NHS FOUNDATION TRUST | D156: RBA11 | E156: Musgrove Park Hospital - RBA11 | F156: 58 | G156: 0.9482758621 | H156: 0.01724137931 | I156: * | J156: * | K156: * | L156: * | M156: * | N156: *
A157: Q80 | B157: RA9 | C157: TORBAY AND SOUTH DEVON NHS FOUNDATION TRUST | D157: RA901 | E157: Torbay Hospital - RA901 | F157: 14 | G157: 0.8571428571 | H157: 0.07142857143 | I157: 9 | J157: 3 | K157: 1 | L157: 1 | M157: 0 | N157: 0
A158: Q80 | B158: RA7 | C158: UNIVERSITY HOSPITALS BRISTOL NHS FOUNDATION TRUST | D158: RA707 | E158: St Michael's Hospital - RA707 | F158: 66 | G158: 0.9090909091 | H158: 0.04545454545 | I158: 46 | J158: 14 | K158: 1 | L158: 0 | M158: 3 | N158: 2
A159: Q80 | B159: RA3 | C159: WESTON AREA HEALTH NHS TRUST | D159: RA301 | E159: Weston General Hospital - RA301 | F159: 6 | G159: 1 | H159: 0 | I159: * | J159: * | K159: * | L159: * | M159: * | N159: *
A160: Q80 | B160: RA4 | C160: YEOVIL DISTRICT HOSPITAL NHS FOUNDATION TRUST | D160: RA430 | E160: Yeovil District Hospital - RA430 | F160: 11 | G160: 1 | H160: 0 | I160: 11 | J160: 0 | K160: 0 | L160: 0 | M160: 0 | N160: 0
A161: Q81 | B161: RTK | C161: ASHFORD AND ST PETER'S HOSPITALS NHS FOUNDATION TRUST | D161: RTK02 | E161: Ashford Hospital - RTK02 | F161: 0 | G161: NA | H161: NA | I161: 0 | J161: 0 | K161: 0 | L161: 0 | M161: 0 | N161: 0
A162: Q81 | B162: RXH | C162: BRIGHTON AND SUSSEX UNIVERSITY HOSPITALS NHS TRUST | D162: RXH09 | E162: Princess Royal Hospital - RXH09 | F162: 43 | G162: 0.976744186 | H162: 0.02325581395 | I162: 38 | J162: 4 | K162: 0 | L162: 1 | M162: 0 | N162: 0
A163: Q81 | B163: RXH | C163: BRIGHTON AND SUSSEX UNIVERSITY HOSPITALS NHS TRUST | D163: RXH01 | E163: Royal Sussex County Hospital - RXH01 | F163: 36 | G163: 0.9166666667 | H163: 0.05555555556 | I163: 29 | J163: 4 | K163: 1 | L163: 1 | M163: 1 | N163: 0
A164: Q81 | B164: RN7 | C164: DARTFORD AND GRAVESHAM NHS TRUST | D164: RN707 | E164: Darent Valley Hospital - RN707 | F164: 69 | G164: 0.9855072464 | H164: 0 | I164: 62 | J164: 6 | K164: 1 | L164: 0 | M164: 0 | N164: 0
A165: Q81 | B165: RVV | C165: EAST KENT HOSPITALS UNIVERSITY NHS FOUNDATION TRUST | D165: RVV09 | E165: Queen Elizabeth The Queen Mother Hospital - RVV09 | F165: 56 | G165: 0.9821428571 | H165: 0 | I165: 50 | J165: 5 | K165: 0 | L165: 0 | M165: 0 | N165: 1
A166: Q81 | B166: RVV | C166: EAST KENT HOSPITALS UNIVERSITY NHS FOUNDATION TRUST | D166: RVV01 | E166: William Harvey Hospital (Ashford) - RVV01 | F166: 83 | G166: 0.9638554217 | H166: 0.03614457831 | I166: 68 | J166: 12 | K166: 0 | L166: 2 | M166: 1 | N166: 0
A167: Q81 | B167: RXC | C167: EAST SUSSEX HEALTHCARE NHS TRUST | D167: RXC01 | E167: Conquest Hospital - RXC01 | F167: 96 | G167: 0.96875 | H167: 0 | I167: 60 | J167: 33 | K167: 3 | L167: 0 | M167: 0 | N167: 0
A168: Q81 | B168: RXC | C168: EAST SUSSEX HEALTHCARE NHS TRUST | D168: RXC02 | E168: Eastbourne District General Hospital - RXC02 | F168: 18 | G168: 1 | H168: 0 | I168: 18 | J168: 0 | K168: 0 | L168: 0 | M168: 0 | N168: 0
A169: Q81 | B169: RDU | C169: FRIMLEY HEALTH NHS FOUNDATION TRUST | D169: RDU01 | E169: Frimley Park Hospital - RDU01 | F169: 106 | G169: 0.9056603774 | H169: 0.009433962264 | I169: 74 | J169: 22 | K169: 1 | L169: 1 | M169: 0 | N169: 8
A170: Q81 | B170: RDU | C170: FRIMLEY HEALTH NHS FOUNDATION TRUST | D170: RDU50 | E170: Wexham Park Hospital - RDU50 | F170: 45 | G170: 0.8222222222 | H170: 0.06666666667 | I170: 25 | J170: 12 | K170: 5 | L170: 2 | M170: 1 | N170: 0
A171: Q81 | B171: RWF | C171: MAIDSTONE AND TUNBRIDGE WELLS NHS TRUST | D171: RWF03 | E171: Maidstone District General Hospital - RWF03 | F171: 0 | G171: NA | H171: NA | I171: 0 | J171: 0 | K171: 0 | L171: 0 | M171: 0 | N171: 0
A172: Q81 | B172: RWF | C172: MAIDSTONE AND TUNBRIDGE WELLS NHS TRUST | D172: RWFTW | E172: The Tunbridge Wells Hospital - RWFTW | F172: 32 | G172: 0.8125 | H172: 0 | I172: 24 | J172: 2 | K172: 0 | L172: 0 | M172: 0 | N172: 6
A173: Q81 | B173: RPA | C173: MEDWAY NHS FOUNDATION TRUST | D173: RPA02 | E173: Medway Maritime Hospital - RPA02 | F173: 164 | G173: 0.9756097561 | H173: 0.006097560976 | I173: 143 | J173: 17 | K173: 2 | L173: 1 | M173: 0 | N173: 1
A174: Q81 | B174: RA2 | C174: ROYAL SURREY COUNTY HOSPITAL NHS FOUNDATION TRUST | D174: RA201 | E174: Royal Surrey County Hospital - RA201 | F174: 147 | G174: 0.9727891156 | H174: 0.02040816327 | I174: 130 | J174: 13 | K174: 1 | L174: 1 | M174: 2 | N174: 0
A175: Q81 | B175: RTP | C175: SURREY AND SUSSEX HEALTHCARE NHS TRUST | D175: RTP04 | E175: East Surrey Hospital - RTP04 | F175: 78 | G175: 0.9102564103 | H175: 0.03846153846 | I175: 52 | J175: 19 | K175: 4 | L175: 3 | M175: 0 | N175: 0
A176: Q81 | B176: RYR | C176: WESTERN SUSSEX HOSPITALS NHS FOUNDATION TRUST | D176: RYR16 | E176: St Richard's Hospital - RYR16 | F176: 104 | G176: 1 | H176: 0 | I176: 90 | J176: 14 | K176: 0 | L176: 0 | M176: 0 | N176: 0
A177: Q81 | B177: RYR | C177: WESTERN SUSSEX HOSPITALS NHS FOUNDATION TRUST | D177: RYR18 | E177: Worthing Hospital - RYR18 | F177: 113 | G177: 0.9646017699 | H177: 0.01769911504 | I177: 79 | J177: 30 | K177: 2 | L177: 0 | M177: 2 | N177: 0
A178: Q82 | B178: RXQ | C178: BUCKINGHAMSHIRE HEALTHCARE NHS TRUST | D178: RXQ02 | E178: Stoke Mandeville Hospital - RXQ02 | F178: 195 | G178: 0.9743589744 | H178: 0 | I178: 143 | J178: 47 | K178: 4 | L178: 0 | M178: 0 | N178: 1
A179: Q82 | B179: RTE | C179: GLOUCESTERSHIRE HOSPITALS NHS FOUNDATION TRUST | D179: RTE03 | E179: Gloucestershire Royal Hospital - RTE03 | F179: 0 | G179: NA | H179: NA | I179: 0 | J179: 0 | K179: 0 | L179: 0 | M179: 0 | N179: 0
A180: Q82 | B180: RTE | C180: GLOUCESTERSHIRE HOSPITALS NHS FOUNDATION TRUST | D180: RTE26 | E180: Stroud General Hospital - RTE26 | F180: 0 | G180: NA | H180: NA | I180: 0 | J180: 0 | K180: 0 | L180: 0 | M180: 0 | N180: 0
A181: Q82 | B181: RN3 | C181: GREAT WESTERN HOSPITALS NHS FOUNDATION TRUST | D181: RN325 | E181: The Great Western Hospital - RN325 | F181: 13 | G181: 1 | H181: 0 | I181: 10 | J181: 3 | K181: 0 | L181: 0 | M181: 0 | N181: 0
A182: Q82 | B182: RTH | C182: OXFORD UNIVERSITY HOSPITALS NHS FOUNDATION TRUST | D182: RTH19 | E182: Chipping Norton Community Hospital - RTH19 | F182: 0 | G182: NA | H182: NA | I182: 0 | J182: 0 | K182: 0 | L182: 0 | M182: 0 | N182: 0
A183: Q82 | B183: RTH | C183: OXFORD UNIVERSITY HOSPITALS NHS FOUNDATION TRUST | D183: RTH05 | E183: Horton General Hospital - RTH05 | F183: 0 | G183: NA | H183: NA | I183: 0 | J183: 0 | K183: 0 | L183: 0 | M183: 0 | N183: 0
A184: Q82 | B184: RTH | C184: OXFORD UNIVERSITY HOSPITALS NHS FOUNDATION TRUST | D184: RTH08 | E184: John Radcliffe Hospital - RTH08 | F184: 67 | G184: 0.9402985075 | H184: 0.01492537313 | I184: 51 | J184: 12 | K184: 1 | L184: 1 | M184: 0 | N184: 2
A185: Q82 | B185: RTH | C185: OXFORD UNIVERSITY HOSPITALS NHS FOUNDATION TRUST | D185: RTH16 | E185: Wallingford Community Hospital - RTH16 | F185: 0 | G185: NA | H185: NA | I185: 0 | J185: 0 | K185: 0 | L185: 0 | M185: 0 | N185: 0
A186: Q82 | B186: RTH | C186: OXFORD UNIVERSITY HOSPITALS NHS FOUNDATION TRUST | D186: RTH21 | E186: Wantage Community Hospital - RTH21 | F186: 0 | G186: NA | H186: NA | I186: 0 | J186: 0 | K186: 0 | L186: 0 | M186: 0 | N186: 0
A187: Q82 | B187: RHW | C187: ROYAL BERKSHIRE NHS FOUNDATION TRUST | D187: RHW01 | E187: Royal Berkshire Hospital - RHW01 | F187: 175 | G187: 0.9542857143 | H187: 0.005714285714 | I187: 112 | J187: 55 | K187: 4 | L187: 1 | M187: 0 | N187: 3
A188: Q82 | B188: RD1 | C188: ROYAL UNITED HOSPITALS BATH NHS FOUNDATION TRUST | D188: RD102 | E188: Chippenham Community Hospital -RD102 | F188: 17 | G188: 1 | H188: 0 | I188: * | J188: * | K188: * | L188: * | M188: * | N188: *
A189: Q82 | B189: RD1 | C189: ROYAL UNITED HOSPITALS BATH NHS FOUNDATION TRUST | D189: RD129 | E189: Paulton Memorial Hospital - RD129 | F189: 3 | G189: * | H189: * | I189: * | J189: * | K189: * | L189: * | M189: * | N189: *
A190: Q82 | B190: RD1 | C190: ROYAL UNITED HOSPITALS BATH NHS FOUNDATION TRUST | D190: RD130 | E190: Princess Anne Wing RUH - RD130 | F190: 51 | G190: 0.9803921569 | H190: 0.01960784314 | I190: 39 | J190: 11 | K190: 0 | L190: 1 | M190: 0 | N190: 0
A191: Q82 | B191: RNZ | C191: SALISBURY NHS FOUNDATION TRUST | D191: RNZ02 | E191: Salisbury District Hospital - RNZ02 | F191: 0 | G191: NA | H191: NA | I191: 0 | J191: 0 | K191: 0 | L191: 0 | M191: 0 | N191: 0
A192: Q83 | B192: RMC | C192: BOLTON NHS FOUNDATION TRUST | D192: RMC01 | E192: Royal Bolton Hospital - RMC01 | F192: 150 | G192: 0.9266666667 | H192: 0.006666666667 | I192: 111 | J192: 28 | K192: 9 | L192: 0 | M192: 1 | N192: 1
A193: Q83 | B193: RY2 | C193: BRIDGEWATER COMMUNITY HEALTHCARE NHS FOUNDATION TRUST | D193: RY28P | E193: Health Care Resource Centre - RY28P | F193: 0 | G193: NA | H193: NA | I193: 0 | J193: 0 | K193: 0 | L193: 0 | M193: 0 | N193: 0
A194: Q83 | B194: RW3 | C194: CENTRAL MANCHESTER UNIVERSITY HOSPITALS NHS FOUNDATION TRUST | D194: RW3SM | E194: St Mary's Hospital - RW3SM | F194: 346 | G194: 0.9537572254 | H194: 0.01445086705 | I194: 271 | J194: 59 | K194: 9 | L194: 4 | M194: 1 | N194: 2
A195: Q83 | B195: RW6 | C195: PENNINE ACUTE HOSPITALS NHS TRUST | D195: RW602 | E195: North Manchester General Hospital - RW602 | F195: 116 | G195: 0.9827586207 | H195: 0.008620689655 | I195: 102 | J195: 12 | K195: 0 | L195: 0 | M195: 1 | N195: 1
A196: Q83 | B196: RW6 | C196: PENNINE ACUTE HOSPITALS NHS TRUST | D196: RW603 | E196: Royal Oldham Hospital - RW603 | F196: 98 | G196: 0.887755102 | H196: 0.1020408163 | I196: 64 | J196: 23 | K196: 0 | L196: 6 | M196: 4 | N196: 1
A197: Q83 | B197: RWJ | C197: STOCKPORT NHS FOUNDATION TRUST | D197: RWJ09 | E197: Stepping Hill Hospital - RWJ09 | F197: 97 | G197: 0.9690721649 | H197: 0.0206185567 | I197: 77 | J197: 17 | K197: 1 | L197: 1 | M197: 1 | N197: 0
A198: Q83 | B198: RMP | C198: TAMESIDE AND GLOSSOP INTEGRATED CARE NHS FOUNDATION TRUST | D198: RMP01 | E198: Tameside General Hospital - RMP01 | F198: 48 | G198: 0.9583333333 | H198: 0.02083333333 | I198: 29 | J198: 17 | K198: 1 | L198: 0 | M198: 1 | N198: 0
A199: Q83 | B199: RM2 | C199: UNIVERSITY HOSPITAL OF SOUTH MANCHESTER NHS FOUNDATION TRUST | D199: RM202 | E199: Wythenshawe Hospital - RM202 | F199: 16 | G199: 1 | H199: 0 | I199: 15 | J199: 1 | K199: 0 | L199: 0 | M199: 0 | N199: 0
A200: Q83 | B200: RRF | C200: WRIGHTINGTON, WIGAN AND LEIGH NHS FOUNDATION TRUST | D200: RRF02 | E200: Royal Albert Edward Infirmary - RRF02 | F200: 44 | G200: 0.9772727273 | H200: 0 | I200: 36 | J200: 7 | K200: 1 | L200: 0 | M200: 0 | N200: 0
A201: Q84 | B201: RXL | C201: BLACKPOOL TEACHING HOSPITALS NHS FOUNDATION TRUST | D201: RXL01 | E201: Blackpool Victoria Hospital - RXL01 | F201: 93 | G201: 0.9247311828 | H201: 0.02150537634 | I201: 64 | J201: 22 | K201: 4 | L201: 1 | M201: 1 | N201: 1
A202: Q84 | B202: RXR | C202: EAST LANCASHIRE HOSPITALS NHS TRUST | D202: RXR20 | E202: Royal Blackburn Hospital - RXR20 | F202: 68 | G202: 0.9705882353 | H202: 0.02941176471 | I202: 64 | J202: 2 | K202: 0 | L202: 1 | M202: 1 | N202: 0
A203: Q84 | B203: RXN | C203: LANCASHIRE TEACHING HOSPITALS NHS FOUNDATION TRUST | D203: RXN01 | E203: Chorley and South Ribble Hospital - RXN01 | F203: 3 | G203: * | H203: * | I203: * | J203: * | K203: * | L203: * | M203: * | N203: *
A204: Q84 | B204: RXN | C204: LANCASHIRE TEACHING HOSPITALS NHS FOUNDATION TRUST | D204: RXN02 | E204: Royal Preston Hospital - RXN02 | F204: 52 | G204: 0.9807692308 | H204: 0.01923076923 | I204: * | J204: * | K204: * | L204: * | M204: * | N204: *

Sheet Region (Local Office) Q4
B6: Sort data by:
A9: Region (LO) Code | B9: Region (Local Office) | C9: Total Responses | D9: Percentage Recommended | E9: Percentage Not Recommended | F9: Breakdown of Responses
F10: Extremely Likely | G10: Likely | H10: Neither | I10: Unlikely | J10: Extremely Unlikely | K10: Don't Know
B11: England (including Independent Sector providers) | C11: 5527 | D11: 0.982087932 | E11: 0.007599059164 | F11: 4660 | G11: 768 | H11: 47 | I11: 20 | J11: 22 | K11: 10
B12: England (excluding Independent Sector providers) | C12: 5471 | D12: 0.9819045878 | E12: 0.007676841528 | F12: 4608 | G12: 764 | H12: 47 | I12: 20 | J12: 22 | K12: 10
B13: Selection (excluding suppressed data) | C13: =SUBTOTAL(9,C14:C40) -> 5527 | D13: =IFERROR((F13+G13)/SUM(F13:K13), "-") -> 0.982087932 | E13: =IFERROR((I13+J13)/SUM(F13:K13), "-") -> 0.007599059164 | F13: =SUBTOTAL(9,F14:F40) -> 4660 | G13: 768 | H13: 47 | I13: 20 | J13: 22 | K13: 10
A14: Q70 | B14: NHS England Wessex | C14: 234 | D14: 0.9786324786 | E14: 0.01282051282 | F14: 190 | G14: 39 | H14: 2 | I14: 1 | J14: 2 | K14: 0
A15: Q71 | B15: NHS England London | C15: 886 | D15: 0.9729119639 | E15: 0.01354401806 | F15: 716 | G15: 146 | H15: 7 | I15: 3 | J15: 9 | K15: 5
A16: Q72 | B16: NHS England Yorkshire & Humber | C16: 629 | D16: 0.987281399 | E16: 0.003179650238 | F16: 524 | G16: 97 | H16: 5 | I16: 2 | J16: 0 | K16: 1
A17: Q74 | B17: NHS England Cumbria & North East | C17: 242 | D17: 0.9834710744 | E17: 0.004132231405 | F17: 217 | G17: 21 | H17: 3 | I17: 1 | J17: 0 | K17: 0
A18: Q75 | B18: NHS England Cheshire & Merseyside | C18: 102 | D18: 0.9803921569 | E18: 0.009803921569 | F18: 88 | G18: 12 | H18: 1 | I18: 0 | J18: 1 | K18: 0
A19: Q76 | B19: NHS England North Midlands | C19: 458 | D19: 0.9890829694 | E19: 0 | F19: 390 | G19: 63 | H19: 5 | I19: 0 | J19: 0 | K19: 0
A20: Q77 | B20: NHS England West Midlands | C20: 432 | D20: 0.9976851852 | E20: 0 | F20: 380 | G20: 51 | H20: 0 | I20: 0 | J20: 0 | K20: 1
A21: Q78 | B21: NHS England Central Midlands | C21: 601 | D21: 0.9850249584 | E21: 0.004991680532 | F21: 517 | G21: 75 | H21: 6 | I21: 3 | J21: 0 | K21: 0
A22: Q79 | B22: NHS England East | C22: 491 | D22: 0.9959266802 | E22: 0.002036659878 | F22: 430 | G22: 59 | H22: 1 | I22: 0 | J22: 1 | K22: 0
A23: Q80 | B23: NHS England South West | C23: 326 | D23: 0.9693251534 | E23: 0.02147239264 | F23: 253 | G23: 63 | H23: 3 | I23: 4 | J23: 3 | K23: 0
A24: Q81 | B24: NHS England South East | C24: 381 | D24: 0.968503937 | E24: 0.01049868766 | F24: 319 | G24: 50 | H24: 6 | I24: 4 | J24: 0 | K24: 2
A25: Q82 | B25: NHS England South Central | C25: 230 | D25: 0.9826086957 | E25: 0.004347826087 | F25: 192 | G25: 34 | H25: 3 | I25: 0 | J25: 1 | K25: 0
A26: Q83 | B26: NHS England Greater Manchester | C26: 306 | D26: 0.977124183 | E26: 0.006535947712 | F26: 259 | G26: 40 | H26: 4 | I26: 1 | J26: 1 | K26: 1
A27: Q84 | B27: NHS England Lancashire | C27: 153 | D27: 0.9607843137 | E27: 0.03267973856 | F27: 133 | G27: 14 | H27: 1 | I27: 1 | J27: 4 | K27: 0
A28: zIS1 | B28: Independent Sector Provider | C28: 56 | D28: 1 | E28: 0 | F28: 52 | G28: 4 | H28: 0 | I28: 0 | J28: 0 | K28: 0

Sheet Trusts Q4
B6: Sort data by:
A9: Region (LO) Code | B9: Trust Code | C9: Trust Name | D9: Total Responses | E9: Percentage Recommended | F9: Percentage Not Recommended | G9: Breakdown of Responses | M9: Mode of Collection
G10: Extremely Likely | H10: Likely | I10: Neither | J10: Unlikely | K10: Extremely Unlikely | L10: Don't Know | M10: SMS/Text / Smartphone App | N10: Electronic tablet/kiosk at point of discharge | O10: Paper / postcard at point of discharge | P10: Paper survey sent to the patients home | Q10: Telephone survey once patient is home | R10: Online survey once patient is home | S10: Other
C11: England (including Independent Sector providers) | D11: 5527 | E11: 0.982087932 | F11: 0.007599059164 | G11: 4660 | H11: 768 | I11: 47 | J11: 20 | K11: 22 | L11: 10 | M11: 666 | N11: 574 | O11: 3885 | P11: 135 | Q11: 20 | R11: 204 | S11: 43
C12: England (excluding Independent Sector providers) | D12: 5471 | E12: 0.9819045878 | F12: 0.007676841528 | G12: 4608 | H12: 764 | I12: 47 | J12: 20 | K12: 22 | L12: 10 | M12: 666 | N12: 518 | O12: 3885 | P12: 135 | Q12: 20 | R12: 204 | S12: 43
C13: Selection (excluding suppressed data) | D13: =SUBTOTAL(9,D14:D299) -> 5527 | E13: =IFERROR((G13+H13)/SUM(G13:L13), "-") -> 0.9820775421 | F13: =IFERROR((J13+K13)/SUM(G13:L13), "-") -> 0.007681053402 | G13: =SUBTOTAL(9,G14:G299) -> 4610 | H13: 760 | I13: 46 | J13: 20 | K13: 22 | L13: 10 | M13: 666 | N13: 571 | O13: 3835 | P13: 135 | Q13: 20 | R13: 198 | S13: 43
A14: Q70 | B14: R1F | C14: ISLE OF WIGHT NHS TRUST | D14: 0 | E14: NA | F14: NA | G14: 0 | H14: 0 | I14: 0 | J14: 0 | K14: 0 | L14: 0 | M14: 0 | N14: 0 | O14: 0 | P14: 0 | Q14: 0 | R14: 0 | S14: 0
A15: Q70 | B15: RDZ | C15: THE ROYAL BOURNEMOUTH AND CHRISTCHURCH HOSPITALS NHS FOUNDATION TRUST | D15: 16 | E15: 1 | F15: 0 | G15: 15 | H15: 1 | I15: 0 | J15: 0 | K15: 0 | L15: 0 | M15: 0 | N15: 0 | O15: 16 | P15: 0 | Q15: 0 | R15: 0 | S15: 0
A16: Q70 | B16: RD3 | C16: POOLE HOSPITAL NHS FOUNDATION TRUST | D16: 17 | E16: 0.9411764706 | F16: 0.05882352941 | G16: 9 | H16: 7 | I16: 0 | J16: 1 | K16: 0 | L16: 0 | M16: 17 | N16: 0 | O16: 0 | P16: 0 | Q16: 0 | R16: 0 | S16: 0
A17: Q70 | B17: RBD | C17: DORSET COUNTY HOSPITAL NHS FOUNDATION TRUST | D17: 31 | E17: 0.935483871 | F17: 0.03225806452 | G17: 28 | H17: 1 | I17: 1 | J17: 0 | K17: 1 | L17: 0 | M17: 31 | N17: 0 | O17: 0 | P17: 0 | Q17: 0 | R17: 0 | S17: 0
A18: Q70 | B18: RN5 | C18: HAMPSHIRE HOSPITALS NHS FOUNDATION TRUST | D18: 43 | E18: 1 | F18: 0 | G18: 42 | H18: 1 | I18: 0 | J18: 0 | K18: 0 | L18: 0 | M18: 3 | N18: 0 | O18: 40 | P18: 0 | Q18: 0 | R18: 0 | S18: 0
A19: Q70 | B19: RHU | C19: PORTSMOUTH HOSPITALS NHS TRUST | D19: 56 | E19: 1 | F19: 0 | G19: 45 | H19: 11 | I19: 0 | J19: 0 | K19: 0 | L19: 0 | M19: 0 | N19: 0 | O19: 55 | P19: 0 | Q19: 0 | R19: 1 | S19: 0
A20: Q70 | B20: RHM | C20: UNIVERSITY HOSPITAL SOUTHAMPTON NHS FOUNDATION TRUST | D20: 71 | E20: 0.9718309859 | F20: 0.01408450704 | G20: 51 | H20: 18 | I20: 1 | J20: 0 | K20: 1 | L20: 0 | M20: 0 | N20: 0 | O20: 69 | P20: 0 | Q20: 0 | R20: 0 | S20: 2
A21: Q71 | B21: RJ1 | C21: GUY'S AND ST THOMAS' NHS FOUNDATION TRUST | D21: 0 | E21: NA | F21: NA | G21: 0 | H21: 0 | I21: 0 | J21: 0 | K21: 0 | L21: 0 | M21: 0 | N21: 0 | O21: 0 | P21: 0 | Q21: 0 | R21: 0 | S21: 0
A22: Q71 | B22: RJ6 | C22: CROYDON HEALTH SERVICES NHS TRUST | D22: 1 | E22: * | F22: * | G22: * | H22: * | I22: * | J22: * | K22: * | L22: * | M22: * | N22: * | O22: * | P22: * | Q22: * | R22: * | S22: *
A23: Q71 | B23: RRV | C23: UNIVERSITY COLLEGE LONDON HOSPITALS NHS FOUNDATION TRUST | D23: 6 | E23: 1 | F23: 0 | G23: * | H23: * | I23: * | J23: * | K23: * | L23: * | M23: * | N23: * | O23: * | P23: * | Q23: * | R23: * | S23: *
A24: Q71 | B24: RJ7 | C24: ST GEORGE'S UNIVERSITY HOSPITALS NHS FOUNDATION TRUST | D24: 8 | E24: 1 | F24: 0 | G24: 7 | H24: 1 | I24: 0 | J24: 0 | K24: 0 | L24: 0 | M24: 0 | N24: 8 | O24: 0 | P24: 0 | Q24: 0 | R24: 0 | S24: 0
A25: Q71 | B25: RVR | C25: EPSOM AND ST HELIER UNIVERSITY HOSPITALS NHS TRUST | D25: 11 | E25: 1 | F25: 0 | G25: 11 | H25: 0 | I25: 0 | J25: 0 | K25: 0 | L25: 0 | M25: 0 | N25: 0 | O25: 11 | P25: 0 | Q25: 0 | R25: 0 | S25: 0
A26: Q71 | B26: RAX | C26: KINGSTON HOSPITAL NHS FOUNDATION TRUST | D26: 12 | E26: 1 | F26: 0 | G26: 11 | H26: 1 | I26: 0 | J26: 0 | K26: 0 | L26: 0 | M26: 0 | N26: 12 | O26: 0 | P26: 0 | Q26: 0 | R26: 0 | S26: 0
A27: Q71 | B27: RAS | C27: THE HILLINGDON HOSPITALS NHS FOUNDATION TRUST | D27: 17 | E27: 1 | F27: 0 | G27: 14 | H27: 3 | I27: 0 | J27: 0 | K27: 0 | L27: 0 | M27: 0 | N27: 0 | O27: 17 | P27: 0 | Q27: 0 | R27: 0 | S27: 0
A28: Q71 | B28: RJZ | C28: KING'S COLLEGE HOSPITAL NHS FOUNDATION TRUST | D28: 21 | E28: 0.8571428571 | F28: 0 | G28: 15 | H28: 3 | I28: 2 | J28: 0 | K28: 0 | L28: 1 | M28: 0 | N28: 16 | O28: 5 | P28: 0 | Q28: 0 | R28: 0 | S28: 0
A29: Q71 | B29: RAL | C29: ROYAL FREE LONDON NHS FOUNDATION TRUST | D29: 27 | E29: 1 | F29: 0 | G29: 22 | H29: 5 | I29: 0 | J29: 0 | K29: 0 | L29: 0 | M29: 0 | N29: 0 | O29: 27 | P29: 0 | Q29: 0 | R29: 0 | S29: 0
A30: Q71 | B30: R1H | C30: BARTS HEALTH NHS TRUST | D30: 28 | E30: 1 | F30: 0 | G30: 20 | H30: 8 | I30: 0 | J30: 0 | K30: 0 | L30: 0 | M30: 0 | N30: 16 | O30: 11 | P30: 0 | Q30: 0 | R30: 1 | S30: 0
A31: Q71 | B31: R1K | C31: LONDON NORTH WEST HEALTHCARE NHS TRUST | D31: 29 | E31: 1 | F31: 0 | G31: 23 | H31: 6 | I31: 0 | J31: 0 | K31: 0 | L31: 0 | M31: 0 | N31: 29 | O31: 0 | P31: 0 | Q31: 0 | R31: 0 | S31: 0
A32: Q71 | B32: RKE | C32: THE WHITTINGTON HOSPITAL NHS TRUST | D32: 48 | E32: 1 | F32: 0 | G32: 44 | H32: 4 | I32: 0 | J32: 0 | K32: 0 | L32: 0 | M32: 0 | N32: 18 | O32: 30 | P32: 0 | Q32: 0 | R32: 0 | S32: 0
A33: Q71 | B33: RQM | C33: CHELSEA AND WESTMINSTER HOSPITAL NHS FOUNDATION TRUST | D33: 52 | E33: 0.9038461538 | F33: 0.09615384615 | G33: 38 | H33: 9 | I33: 0 | J33: 2 | K33: 3 | L33: 0 | M33: 30 | N33: 0 | O33: 22 | P33: 0 | Q33: 0 | R33: 0 | S33: 0
A34: Q71 | B34: RAP | C34: NORTH MIDDLESEX UNIVERSITY HOSPITAL NHS TRUST | D34: 83 | E34: 0.9759036145 | F34: 0.01204819277 | G34: 71 | H34: 10 | I34: 1 | J34: 0 | K34: 1 | L34: 0 | M34: 0 | N34: 0 | O34: 83 | P34: 0 | Q34: 0 | R34: 0 | S34: 0
A35: Q71 | B35: RJ2 | C35: LEWISHAM AND GREENWICH NHS TRUST | D35: 97 | E35: 0.9793814433 | F35: 0 | G35: 79 | H35: 16 | I35: 1 | J35: 0 | K35: 0 | L35: 1 | M35: 0 | N35: 0 | O35: 97 | P35: 0 | Q35: 0 | R35: 0 | S35: 0
A36: Q71 | B36: RQX | C36: HOMERTON UNIVERSITY HOSPITAL NHS FOUNDATION TRUST | D36: 102 | E36: 0.9607843137 | F36: 0.02941176471 | G36: 73 | H36: 25 | I36: 0 | J36: 0 | K36: 3 | L36: 1 | M36: 0 | N36: 6 | O36: 96 | P36: 0 | Q36: 0 | R36: 0 | S36: 0
A37: Q71 | B37: RYJ | C37: IMPERIAL COLLEGE HEALTHCARE NHS TRUST | D37: 116 | E37: 0.974137931 | F37: 0.008620689655 | G37: 82 | H37: 31 | I37: 2 | J37: 1 | K37: 0 | L37: 0 | M37: 56 | N37: 0 | O37: 60 | P37: 0 | Q37: 0 | R37: 0 | S37: 0
A38: Q71 | B38: RF4 | C38: BARKING, HAVERING AND REDBRIDGE UNIVERSITY HOSPITALS NHS TRUST | D38: 228 | E38: 0.9780701754 | F38: 0.008771929825 | G38: 199 | H38: 24 | I38: 1 | J38: 0 | K38: 2 | L38: 2 | M38: 0 | N38: 3 | O38: 225 | P38: 0 | Q38: 0 | R38: 0 | S38: 0
A39: Q72 | B39: RWA | C39: HULL AND EAST YORKSHIRE HOSPITALS NHS TRUST | D39: 1 | E39: * | F39: * | G39: * | H39: * | I39: * | J39: * | K39: * | L39: * | M39: * | N39: * | O39: * | P39: * | Q39: * | R39: * | S39: *
A40: Q72 | B40: RR8 | C40: LEEDS TEACHING HOSPITALS NHS TRUST | D40: 2 | E40: * | F40: * | G40: * | H40: * | I40: * | J40: * | K40: * | L40: * | M40: * | N40: * | O40: * | P40: * | Q40: * | R40: * | S40: *
A41: Q72 | B41: RAE | C41: BRADFORD TEACHING HOSPITALS NHS FOUNDATION TRUST | D41: 16 | E41: 1 | F41: 0 | G41: 14 | H41: 2 | I41: 0 | J41: 0 | K41: 0 | L41: 0 | M41: 0 | N41: 0 | O41: 16 | P41: 0 | Q41: 0 | R41: 0 | S41: 0
A42: Q72 | B42: RCF | C42: AIREDALE NHS FOUNDATION TRUST | D42: 17 | E42: 1 | F42: 0 | G42: 14 | H42: 3 | I42: 0 | J42: 0 | K42: 0 | L42: 0 | M42: 0 | N42: 0 | O42: 17 | P42: 0 | Q42: 0 | R42: 0 | S42: 0
A43: Q72 | B43: RJL | C43: NORTHERN LINCOLNSHIRE AND GOOLE NHS FOUNDATION TRUST | D43: 18 | E43: 0.8888888889 | F43: 0 | G43: 10 | H43: 6 | I43: 1 | J43: 0 | K43: 0 | L43: 1 | M43: 0 | N43: 0 | O43: 0 | P43: 0 | Q43: 18 | R43: 0 | S43: 0
A44: Q72 | B44: RCD | C44: HARROGATE AND DISTRICT NHS FOUNDATION TRUST | D44: 24 | E44: 0.9166666667 | F44: 0 | G44: 19 | H44: 3 | I44: 2 | J44: 0 | K44: 0 | L44: 0 | M44: 0 | N44: 0 | O44: 24 | P44: 0 | Q44: 0 | R44: 0 | S44: 0
A45: Q72 | B45: RHQ | C45: SHEFFIELD TEACHING HOSPITALS NHS FOUNDATION TRUST | D45: 49 | E45: 0.9795918367 | F45: 0 | G45: 44 | H45: 4 | I45: 1 | J45: 0 | K45: 0 | L45: 0 | M45: 0 | N45: 0 | O45: 48 | P45: 0 | Q45: 0 | R45: 1 | S45: 0
A46: Q72 | B46: RXF | C46: MID YORKSHIRE HOSPITALS NHS TRUST | D46: 49 | E46: 1 | F46: 0 | G46: 42 | H46: 7 | I46: 0 | J46: 0 | K46: 0 | L46: 0 | M46: 42 | N46: 7 | O46: 0 | P46: 0 | Q46: 0 | R46: 0 | S46: 0
A47: Q72 | B47: RFF | C47: BARNSLEY HOSPITAL NHS FOUNDATION TRUST | D47: 57 | E47: 1 | F47: 0 | G47: 46 | H47: 11 | I47: 0 | J47: 0 | K47: 0 | L47: 0 | M47: 0 | N47: 0 | O47: 57 | P47: 0 | Q47: 0 | R47: 0 | S47: 0
A48: Q72 | B48: RP5 | C48: DONCASTER AND BASSETLAW TEACHING HOSPITALS NHS FOUNDATION TRUST | D48: 60 | E48: 0.9666666667 | F48: 0.01666666667 | G48: 55 | H48: 3 | I48: 1 | J48: 1 | K48: 0 | L48: 0 | M48: 0 | N48: 0 | O48: 60 | P48: 0 | Q48: 0 | R48: 0 | S48: 0
A49: Q72 | B49: RCB | C49: YORK TEACHING HOSPITAL NHS FOUNDATION TRUST | D49: 78 | E49: 0.9871794872 | F49: 0.01282051282 | G49: 64 | H49: 13 | I49: 0 | J49: 1 | K49: 0 | L49: 0 | M49: 0 | N49: 0 | O49: 78 | P49: 0 | Q49: 0 | R49: 0 | S49: 0
A50: Q72 | B50: RFR | C50: THE ROTHERHAM NHS FOUNDATION TRUST | D50: 84 | E50: 1 | F50: 0 | G50: 72 | H50: 12 | I50: 0 | J50: 0 | K50: 0 | L50: 0 | M50: 0 | N50: 0 | O50: 84 | P50: 0 | Q50: 0 | R50: 0 | S50: 0
A51: Q72 | B51: RWY | C51: CALDERDALE AND HUDDERSFIELD NHS FOUNDATION TRUST | D51: 174 | E51: 1 | F51: 0 | G51: 142 | H51: 32 | I51: 0 | J51: 0 | K51: 0 | L51: 0 | M51: 0 | N51: 174 | O51: 0 | P51: 0 | Q51: 0 | R51: 0 | S51: 0
A52: Q74 | B52: RLN | C52: CITY HOSPITALS SUNDERLAND NHS FOUNDATION TRUST | D52: 0 | E52: NA | F52: NA | G52: 0 | H52: 0 | I52: 0 | J52: 0 | K52: 0 | L52: 0 | M52: 0 | N52: 0 | O52: 0 | P52: 0 | Q52: 0 | R52: 0 | S52: 0
A53: Q74 | B53: RTR | C53: SOUTH TEES HOSPITALS NHS FOUNDATION TRUST | D53: 2 | E53: * | F53: * | G53: * | H53: * | I53: * | J53: * | K53: * | L53: * | M53: * | N53: * | O53: * | P53: * | Q53: * | R53: * | S53: *
A54: Q74 | B54: RTD | C54: THE NEWCASTLE UPON TYNE HOSPITALS NHS FOUNDATION TRUST | D54: 3 | E54: * | F54: * | G54: * | H54: * | I54: * | J54: * | K54: * | L54: * | M54: * | N54: * | O54: * | P54: * | Q54: * | R54: * | S54: *
A55: Q74 | B55: RE9 | C55: SOUTH TYNESIDE NHS FOUNDATION TRUST | D55: 5 | E55: 1 | F55: 0 | G55: 5 | H55: 0 | I55: 0 | J55: 0 | K55: 0 | L55: 0 | M55: 0 | N55: 0 | O55: 5 | P55: 0 | Q55: 0 | R55: 0 | S55: 0
A56: Q74 | B56: RR7 | C56: GATESHEAD HEALTH NHS FOUNDATION TRUST | D56: 7 | E56: 1 | F56: 0 | G56: 7 | H56: 0 | I56: 0 | J56: 0 | K56: 0 | L56: 0 | M56: 0 | N56: 0 | O56: 7 | P56: 0 | Q56: 0 | R56: 0 | S56: 0
A57: Q74 | B57: RNL | C57: NORTH CUMBRIA UNIVERSITY HOSPITALS NHS TRUST | D57: 12 | E57: 1 | F57: 0 | G57: 11 | H57: 1 | I57: 0 | J57: 0 | K57: 0 | L57: 0 | M57: 0 | N57: 0 | O57: 12 | P57: 0 | Q57: 0 | R57: 0 | S57: 0
A58: Q74 | B58: RXP | C58: COUNTY DURHAM AND DARLINGTON NHS FOUNDATION TRUST | D58: 20 | E58: 1 | F58: 0 | G58: 16 | H58: 4 | I58: 0 | J58: 0 | K58: 0 | L58: 0 | M58: 0 | N58: 0 | O58: 20 | P58: 0 | Q58: 0 | R58: 0 | S58: 0
A59: Q74 | B59: RVW | C59: NORTH TEES AND HARTLEPOOL NHS FOUNDATION TRUST | D59: 25 | E59: 0.96 | F59: 0 | G59: 20 | H59: 4 | I59: 1 | J59: 0 | K59: 0 | L59: 0 | M59: 0 | N59: 0 | O59: 25 | P59: 0 | Q59: 0 | R59: 0 | S59: 0
A60: Q74 | B60: RTX | C60: UNIVERSITY HOSPITALS OF MORECAMBE BAY NHS FOUNDATION TRUST | D60: 51 | E60: 1 | F60: 0 | G60: 50 | H60: 1 | I60: 0 | J60: 0 | K60: 0 | L60: 0 | M60: 0 | N60: 0 | O60: 51 | P60: 0 | Q60: 0 | R60: 0 | S60: 0
A61: Q74 | B61: RTF | C61: NORTHUMBRIA HEALTHCARE NHS FOUNDATION TRUST | D61: 117 | E61: 0.9829059829 | F61: 0.008547008547 | G61: 104 | H61: 11 | I61: 1 | J61: 1 | K61: 0 | L61: 0 | M61: 0 | N61: 0 | O61: 117 | P61: 0 | Q61: 0 | R61: 0 | S61: 0
A62: Q75 | B62: REP | C62: LIVERPOOL WOMEN'S NHS FOUNDATION TRUST | D62: 0 | E62: NA | F62: NA | G62: 0 | H62: 0 | I62: 0 | J62: 0 | K62: 0 | L62: 0 | M62: 0 | N62: 0 | O62: 0 | P62: 0 | Q62: 0 | R62: 0 | S62: 0
A63: Q75 | B63: RVY | C63: SOUTHPORT AND ORMSKIRK HOSPITAL NHS TRUST | D63: 0 | E63: NA | F63: NA | G63: 0 | H63: 0 | I63: 0 | J63: 0 | K63: 0 | L63: 0 | M63: 0 | N63: 0 | O63: 0 | P63: 0 | Q63: 0 | R63: 0 | S63: 0
A64: Q75 | B64: RBL | C64: WIRRAL UNIVERSITY TEACHING HOSPITAL NHS FOUNDATION TRUST | D64: 1 | E64: * | F64: * | G64: * | H64: * | I64: * | J64: * | K64: * | L64: * | M64: * | N64: * | O64: * | P64: * | Q64: * | R64: * | S64: *
A65: Q75 | B65: RBN | C65: ST HELENS AND KNOWSLEY HOSPITAL SERVICES NHS TRUST | D65: 2 | E65: * | F65: * | G65: * | H65: * | I65: * | J65: * | K65: * | L65: * | M65: * | N65: * | O65: * | P65: * | Q65: * | R65: * | S65: *
A66: Q75 | B66: RJN | C66: EAST CHESHIRE NHS TRUST | D66: 4 | E66: * | F66: * | G66: * | H66: * | I66: * | J66: * | K66: * | L66: * | M66: * | N66: * | O66: * | P66: * | Q66: * | R66: * | S66: *
A67: Q75 | B67: RBT | C67: MID CHESHIRE HOSPITALS NHS FOUNDATION TRUST | D67: 12 | E67: 1 | F67: 0 | G67: 12 | H67: 0 | I67: 0 | J67: 0 | K67: 0 | L67: 0 | M67: 0 | N67: 0 | O67: 12 | P67: 0 | Q67: 0 | R67: 0 | S67: 0
A68: Q75 | B68: RWW | C68: WARRINGTON AND HALTON HOSPITALS NHS FOUNDATION TRUST | D68: 30 | E68: 0.9666666667 | F68: 0.03333333333 | G68: 24 | H68: 5 | I68: 0 | J68: 0 | K68: 1 | L68: 0 | M68: 0 | N68: 0 | O68: 30 | P68: 0 | Q68: 0 | R68: 0 | S68: 0
A69: Q75 | B69: RJR | C69: COUNTESS OF CHESTER HOSPITAL NHS FOUNDATION TRUST | D69: 53 | E69: 0.9811320755 | F69: 0 | G69: 46 | H69: 6 | I69: 1 | J69: 0 | K69: 0 | L69: 0 | M69: 33 | N69: 0 | O69: 20 | P69: 0 | Q69: 0 | R69: 0 | S69: 0
A70: Q76 | B70: RFS | C70: CHESTERFIELD ROYAL HOSPITAL NHS FOUNDATION TRUST | D70: 0 | E70: NA | F70: NA | G70: 0 | H70: 0 | I70: 0 | J70: 0 | K70: 0 | L70: 0 | M70: 0 | N70: 0 | O70: 0 | P70: 0 | Q70: 0 | R70: 0 | S70: 0
A71: Q76 | B71: RXW | C71: SHREWSBURY AND TELFORD HOSPITAL NHS TRUST | D71: 13 | E71: 1 | F71: 0 | G71: 12 | H71: 1 | I71: 0 | J71: 0 | K71: 0 | L71: 0 | M71: 0 | N71: 0 | O71: 13 | P71: 0 | Q71: 0 | R71: 0 | S71: 0
A72: Q76 | B72: RJF | C72: BURTON HOSPITALS NHS FOUNDATION TRUST | D72: 22 | E72: 1 | F72: 0 | G72: 21 | H72: 1 | I72: 0 | J72: 0 | K72: 0 | L72: 0 | M72: 0 | N72: 0 | O72: 22 | P72: 0 | Q72: 0 | R72: 0 | S72: 0
A73: Q76 | B73: RK5 | C73: SHERWOOD FOREST HOSPITALS NHS FOUNDATION TRUST | D73: 41 | E73: 0.9756097561 | F73: 0 | G73: 32 | H73: 8 | I73: 1 | J73: 0 | K73: 0 | L73: 0 | M73: 6 | N73: 0 | O73: 35 | P73: 0 | Q73: 0 | R73: 0 | S73: 0
A74: Q76 | B74: RJE | C74: UNIVERSITY HOSPITALS OF NORTH MIDLANDS NHS TRUST | D74: 90 | E74: 1 | F74: 0 | G74: 85 | H74: 5 | I74: 0 | J74: 0 | K74: 0 | L74: 0 | M74: 0 | N74: 0 | O74: 90 | P74: 0 | Q74: 0 | R74: 0 | S74: 0
A75: Q76 | B75: RTG | C75: DERBY TEACHING HOSPITALS NHS FOUNDATION TRUST | D75: 106 | E75: 0.9905660377 | F75: 0 | G75: 88 | H75: 17 | I75: 1 | J75: 0 | K75: 0 | L75: 0 | M75: 0 | N75: 0 | O75: 106 | P75: 0 | Q75: 0 | R75: 0 | S75: 0
A76: Q76 | B76: RX1 | C76: NOTTINGHAM UNIVERSITY HOSPITALS NHS TRUST | D76: 186 | E76: 0.9838709677 | F76: 0 | G76: 152 | H76: 31 | I76: 3 | J76: 0 | K76: 0 | L76: 0 | M76: 0 | N76: 0 | O76: 186 | P76: 0 | Q76: 0 | R76: 0 | S76: 0
A77: Q77 | B77: RR1 | C77: HEART OF ENGLAND NHS FOUNDATION TRUST | D77: 0 | E77: NA | F77: NA | G77: 0 | H77: 0 | I77: 0 | J77: 0 | K77: 0 | L77: 0 | M77: 0 | N77: 0 | O77: 0 | P77: 0 | Q77: 0 | R77: 0 | S77: 0
A78: Q77 | B78: RXK | C78: SANDWELL AND WEST BIRMINGHAM HOSPITALS NHS TRUST | D78: 2 | E78: * | F78: * | G78: * | H78: * | I78: * | J78: * | K78: * | L78: * | M78: * | N78: * | O78: * | P78: * | Q78: * | R78: * | S78: *
A79: Q77 | B79: RJC | C79: SOUTH WARWICKSHIRE NHS FOUNDATION TRUST | D79: 3 | E79: * | F79: * | G79: * | H79: * | I79: * | J79: * | K79: * | L79: * | M79: * | N79: * | O79: * | P79: * | Q79: * | R79: * | S79: *
A80: Q77 | B80: RBK | C80: WALSALL HEALTHCARE NHS TRUST | D80: 13 | E80: 1 | F80: 0 | G80: 11 | H80: 2 | I80: 0 | J80: 0 | K80: 0 | L80: 0 | M80: 13 | N80: 0 | O80: 0 | P80: 0 | Q80: 0 | R80: 0 | S80: 0
A81: Q77 | B81: RL4 | C81: THE ROYAL WOLVERHAMPTON NHS TRUST | D81: 20 | E81: 0.95 | F81: 0 | G81: 14 | H81: 5 | I81: 0 | J81: 0 | K81: 0 | L81: 1 | M81: 0 | N81: 0 | O81: 20 | P81: 0 | Q81: 0 | R81: 0 | S81: 0
A82: Q77 | B82: RLQ | C82: WYE VALLEY NHS TRUST | D82: 35 | E82: 1 | F82: 0 | G82: 33 | H82: 2 | I82: 0 | J82: 0 | K82: 0 | L82: 0 | M82: 0 | N82: 35 | O82: 0 | P82: 0 | Q82: 0 | R82: 0 | S82: 0
A83: Q77 | B83: RWP | C83: WORCESTERSHIRE ACUTE HOSPITALS NHS TRUST | D83: 44 | E83: 1 | F83: 0 | G83: 42 | H83: 2 | I83: 0 | J83: 0 | K83: 0 | L83: 0 | M83: 0 | N83: 0 | O83: 44 | P83: 0 | Q83: 0 | R83: 0 | S83: 0
A84: Q77 | B84: RLT | C84: GEORGE ELIOT HOSPITAL NHS TRUST | D84: 50 | E84: 1 | F84: 0 | G84: 44 | H84: 6 | I84: 0 | J84: 0 | K84: 0 | L84: 0 | M84: 19 | N84: 0 | O84: 31 | P84: 0 | Q84: 0 | R84: 0 | S84: 0
A85: Q77 | B85: RQ3 | C85: BIRMINGHAM WOMEN'S AND CHILDREN'S NHS FOUNDATION TRUST | D85: 53 | E85: 1 | F85: 0 | G85: 45 | H85: 8 | I85: 0 | J85: 0 | K85: 0 | L85: 0 | M85: 0 | N85: 0 | O85: 53 | P85: 0 | Q85: 0 | R85: 0 | S85: 0
A86: Q77 | B86: RNA | C86: THE DUDLEY GROUP NHS FOUNDATION TRUST | D86: 89 | E86: 1 | F86: 0 | G86: 85 | H86: 4 | I86: 0 | J86: 0 | K86: 0 | L86: 0 | M86: 0 | N86: 0 | O86: 89 | P86: 0 | Q86: 0 | R86: 0 | S86: 0
A87: Q77 | B87: RKB | C87: UNIVERSITY HOSPITALS COVENTRY AND WARWICKSHIRE NHS TRUST | D87: 123 | E87: 1 | F87: 0 | G87: 103 | H87: 20 | I87: 0 | J87: 0 | K87: 0 | L87: 0 | M87: 0 | N87: 0 | O87: 123 | P87: 0 | Q87: 0 | R87: 0 | S87: 0
A88: Q78 | B88: RC9 | C88: LUTON AND DUNSTABLE UNIVERSITY HOSPITAL NHS FOUNDATION TRUST | D88: 0 | E88: NA | F88: NA | G88: 0 | H88: 0 | I88: 0 | J88: 0 | K88: 0 | L88: 0 | M88: 0 | N88: 0 | O88: 0 | P88: 0 | Q88: 0 | R88: 0 | S88: 0
A89: Q78 | B89: RWH | C89: EAST AND NORTH HERTFORDSHIRE NHS TRUST | D89: 0 | E89: NA | F89: NA | G89: 0 | H89: 0 | I89: 0 | J89: 0 | K89: 0 | L89: 0 | M89: 0 | N89: 0 | O89: 0 | P89: 0 | Q89: 0 | R89: 0 | S89: 0
A90: Q78 | B90: RWG | C90: WEST HERTFORDSHIRE HOSPITALS NHS TRUST | D90: 6 | E90: 0.8333333333 | F90: 0 | G90: 4 | H90: 1 | I90: 1 | J90: 0 | K90: 0 | L90: 0 | M90: 0 | N90: 0 | O90: 6 | P90: 0 | Q90: 0 | R90: 0 | S90: 0
A91: Q78 | B91: RD8 | C91: MILTON KEYNES UNIVERSITY HOSPITAL NHS FOUNDATION TRUST | D91: 12 | E91: 1 | F91: 0 | G91: 7 | H91: 5 | I91: 0 | J91: 0 | K91: 0 | L91: 0 | M91: 0 | N91: 0 | O91: 7 | P91: 0 | Q91: 0 | R91: 5 | S91: 0
A92: Q78 | B92: RWD | C92: UNITED LINCOLNSHIRE HOSPITALS NHS TRUST | D92: 20 | E92: 0.85 | F92: 0.1 | G92: 16 | H92: 1 | I92: 1 | J92: 2 | K92: 0 | L92: 0 | M92: 0 | N92: 0 | O92: 20 | P92: 0 | Q92: 0 | R92: 0 | S92: 0
A93: Q78 | B93: RNQ | C93: KETTERING GENERAL HOSPITAL NHS FOUNDATION TRUST | D93: 28 | E93: 1 | F93: 0 | G93: 27 | H93: 1 | I93: 0 | J93: 0 | K93: 0 | L93: 0 | M93: 0 | N93: 0 | O93: 28 | P93: 0 | Q93: 0 | R93: 0 | S93: 0
A94: Q78 | B94: RC1 | C94: BEDFORD HOSPITAL NHS TRUST | D94: 46 | E94: 0.9565217391 | F94: 0 | G94: 37 | H94: 7 | I94: 2 | J94: 0 | K94: 0 | L94: 0 | M94: 34 | N94: 0 | O94: 0 | P94: 0 | Q94: 0 | R94: 12 | S94: 0
A95: Q78 | B95: RNS | C95: NORTHAMPTON GENERAL HOSPITAL NHS TRUST | D95: 175 | E95: 0.9828571429 | F95: 0.005714285714 | G95: 142 | H95: 30 | I95: 2 | J95: 1 | K95: 0 | L95: 0 | M95: 0 | N95: 0 | O95: 0 | P95: 0 | Q95: 0 | R95: 175 | S95: 0
A96: Q78 | B96: RWE | C96: UNIVERSITY HOSPITALS OF LEICESTER NHS TRUST | D96: 314 | E96: 1 | F96: 0 | G96: 284 | H96: 30 | I96: 0 | J96: 0 | K96: 0 | L96: 0 | M96: 0 | N96: 7 | O96: 307 | P96: 0 | Q96: 0 | R96: 0 | S96: 0
A97: Q79 | B97: RDE | C97: COLCHESTER HOSPITAL UNIVERSITY NHS FOUNDATION TRUST | D97: 3 | E97: * | F97: * | G97: * | H97: * | I97: * | J97: * | K97: * | L97: * | M97: * | N97: * | O97: * | P97: * | Q97: * | R97: * | S97: *
A98: Q79 | B98: RAJ | C98: SOUTHEND UNIVERSITY HOSPITAL NHS FOUNDATION TRUST | D98: 4 | E98: * | F98: * | G98: * | H98: * | I98: * | J98: * | K98: * | L98: * | M98: * | N98: * | O98: * | P98: * | Q98: * | R98: * | S98: *
A99: Q79 | B99: RCX | C99: THE QUEEN ELIZABETH HOSPITAL, KING'S LYNN, NHS FOUNDATION TRUST | D99: 8 | E99: 1 | F99: 0 | G99: 7 | H99: 1 | I99: 0 | J99: 0 | K99: 0 | L99: 0 | M99: 0 | N99: 0 | O99: 7 | P99: 0 | Q99: 0 | R99: 1 | S99: 0
A100: Q79 | B100: RGT | C100: CAMBRIDGE UNIVERSITY HOSPITALS NHS FOUNDATION TRUST | D100: 11 | E100: 1 | F100: 0 | G100: 8 | H100: 3 | I100: 0 | J100: 0 | K100: 0 | L100: 0 | M100: 0 | N100: 0 | O100: 11 | P100: 0 | Q100: 0 | R100: 0 | S100: 0
A101: Q79 | B101: RM1 | C101: NORFOLK AND NORWICH UNIVERSITY HOSPITALS NHS FOUNDATION TRUST | D101: 23 | E101: 1 | F101: 0 | G101: 21 | H101: 2 | I101: 0 | J101: 0 | K101: 0 | L101: 0 | M101: 0 | N101: 0 | O101: 23 | P101: 0 | Q101: 0 | R101: 0 | S101: 0
A102: Q79 | B102: RQ8 | C102: MID ESSEX HOSPITAL SERVICES NHS TRUST | D102: 30 | E102: 0.9666666667 | F102: 0.03333333333 | G102: 23 | H102: 6 | I102: 0 | J102: 0 | K102: 1 | L102: 0 | M102: 30 | N102: 0 | O102: 0 | P102: 0 | Q102: 0 | R102: 0 | S102: 0
A103: Q79 | B103: RQW | C103: THE PRINCESS ALEXANDRA HOSPITAL NHS TRUST | D103: 41 | E103: 1 | F103: 0 | G103: 39 | H103: 2 | I103: 0 | J103: 0 | K103: 0 | L103: 0 | M103: 0 | N103: 0 | O103: 0 | P103: 0 | Q103: 0 | R103: 0 | S103: 41
A104: Q79 | B104: RDD | C104: BASILDON AND THURROCK UNIVERSITY HOSPITALS NHS FOUNDATION TRUST | D104: 42 | E104: 1 | F104: 0 | G104: 38 | H104: 4 | I104: 0 | J104: 0 | K104: 0 | L104: 0 | M104: 0 | N104: 0 | O104: 42 | P104: 0 | Q104: 0 | R104: 0 | S104: 0
A105: Q79 | B105: RGR | C105: WEST SUFFOLK NHS FOUNDATION TRUST | D105: 46 | E105: 0.9782608696 | F105: 0 | G105: 37 | H105: 8 | I105: 1 | J105: 0 | K105: 0 | L105: 0 | M105: 0 | N105: 46 | O105: 0 | P105: 0 | Q105: 0 | R105: 0 | S105: 0
A106: Q79 | B106: RGP | C106: JAMES PAGET UNIVERSITY HOSPITALS NHS FOUNDATION TRUST | D106: 58 | E106: 1 | F106: 0 | G106: 54 | H106: 4 | I106: 0 | J106: 0 | K106: 0 | L106: 0 | M106: 0 | N106: 0 | O106: 58 | P106: 0 | Q106: 0 | R106: 0 | S106: 0
A107: Q79 | B107: RGN | C107: NORTH WEST ANGLIA NHS FOUNDATION TRUST | D107: 95 | E107: 1 | F107: 0 | G107: 80 | H107: 15 | I107: 0 | J107: 0 | K107: 0 | L107: 0 | M107: 0 | N107: 0 | O107: 95 | P107: 0 | Q107: 0 | R107: 0 | S107: 0
A108: Q79 | B108: RGQ | C108: IPSWICH HOSPITAL NHS TRUST | D108: 130 | E108: 1 | F108: 0 | G108: 116 | H108: 14 | I108: 0 | J108: 0 | K108: 0 | L108: 0 | M108: 0 | N108: 128 | O108: 2 | P108: 0 | Q108: 0 | R108: 0 | S108: 0
A109: Q80 | B109: RA4 | C109: YEOVIL DISTRICT HOSPITAL NHS FOUNDATION TRUST | D109: 0 | E109: NA | F109: NA | G109: 0 | H109: 0 | I109: 0 | J109: 0 | K109: 0 | L109: 0 | M109: 0 | N109: 0 | O109: 0 | P109: 0 | Q109: 0 | R109: 0 | S109: 0
A110: Q80 | B110: RH8 | C110: ROYAL DEVON AND EXETER NHS FOUNDATION TRUST | D110: 0 | E110: NA | F110: NA | G110: 0 | H110: 0 | I110: 0 | J110: 0 | K110: 0 | L110: 0 | M110: 0 | N110: 0 | O110: 0 | P110: 0 | Q110: 0 | R110: 0 | S110: 0
A111: Q80 | B111: RBZ | C111: NORTHERN DEVON HEALTHCARE NHS TRUST | D111: 1 | E111: * | F111: * | G111: * | H111: * | I111: * | J111: * | K111: * | L111: * | M111: * | N111: * | O111: * | P111: * | Q111: * | R111: * | S111: *
A112: Q80 | B112: RA9 | C112: TORBAY AND SOUTH DEVON NHS FOUNDATION TRUST | D112: 11 | E112: 1 | F112: 0 | G112: * | H112: * | I112: * | J112: * | K112: * | L112: * | M112: * | N112: * | O112: * | P112: * | Q112: * | R112: * | S112: *
A113: Q80 | B113: RBA | C113: TAUNTON AND SOMERSET NHS FOUNDATION TRUST | D113: 15 | E113: 1 | F113: 0 | G113: 13 | H113: 2 | I113: 0 | J113: 0 | K113: 0 | L113: 0 | M113: 0 | N113: 0 | O113: 15 | P113: 0 | Q113: 0 | R113: 0 | S113: 0
A114: Q80 | B114: REF | C114: ROYAL CORNWALL HOSPITALS NHS TRUST | D114: 15 | E114: 1 | F114: 0 | G114: 11 | H114: 4 | I114: 0 | J114: 0 | K114: 0 | L114: 0 | M114: 0 | N114: 0 | O114: 15 | P114: 0 | Q114: 0 | R114: 0 | S114: 0
A115: Q80 | B115: RA7 | C115: UNIVERSITY HOSPITALS BRISTOL NHS FOUNDATION TRUST | D115: 51 | E115: 1 | F115: 0 | G115: 46 | H115: 5 | I115: 0 | J115: 0 | K115: 0 | L115: 0 | M115: 0 | N115: 0 | O115: 51 | P115: 0 | Q115: 0 | R115: 0 | S115: 0
A116: Q80 | B116: RA3 | C116: WESTON AREA HEALTH NHS TRUST | D116: 54 | E116: 1 | F116: 0 | G116: 43 | H116: 11 | I116: 0 | J116: 0 | K116: 0 | L116: 0 | M116: 0 | N116: 0 | O116: 54 | P116: 0 | Q116: 0 | R116: 0 | S116: 0
A117: Q80 | B117: RK9 | C117: PLYMOUTH HOSPITALS NHS TRUST | D117: 88 | E117: 0.9886363636 | F117: 0 | G117: 66 | H117: 21 | I117: 1 | J117: 0 | K117: 0 | L117: 0 | M117: 0 | N117: 1 | O117: 87 | P117: 0 | Q117: 0 | R117: 0 | S117: 0
A118: Q80 | B118: RVJ | C118: NORTH BRISTOL NHS TRUST | D118: 91 | E118: 0.9010989011 | F118: 0.07692307692 | G118: 66 | H118: 16 | I118: 2 | J118: 4 | K118: 3 | L118: 0 | M118: 72 | N118: 0 | O118: 19 | P118: 0 | Q118: 0 | R118: 0 | S118: 0
A119: Q81 | B119: RN7 | C119: DARTFORD AND GRAVESHAM NHS TRUST | D119: 0 | E119: NA | F119: NA | G119: 0 | H119: 0 | I119: 0 | J119: 0 | K119: 0 | L119: 0 | M119: 0 | N119: 0 | O119: 0 | P119: 0 | Q119: 0 | R119: 0 | S119: 0
A120: Q81 | B120: RTK | C120: ASHFORD AND ST PETER'S HOSPITALS NHS FOUNDATION TRUST | D120: 0 | E120: NA | F120: NA | G120: 0 | H120: 0 | I120: 0 | J120: 0 | K120: 0 | L120: 0 | M120: 0 | N120: 0 | O120: 0 | P120: 0 | Q120: 0 | R120: 0 | S120: 0
A121: Q81 | B121: RPA | C121: MEDWAY NHS FOUNDATION TRUST | D121: 4 | E121: * | F121: * | G121: * | H121: * | I121: * | J121: * | K121: * | L121: * | M121: * | N121: * | O121: * | P121: * | Q121: * | R121: * | S121: *
A122: Q81 | B122: RWF | C122: MAIDSTONE AND TUNBRIDGE WELLS NHS TRUST | D122: 9 | E122: 1 | F122: 0 | G122: * | H122: * | I122: * | J122: * | K122: * | L122: * | M122: * | N122: * | O122: * | P122: * | Q122: * | R122: * | S122: *
A123: Q81 | B123: RXC | C123: EAST SUSSEX HEALTHCARE NHS TRUST | D123: 9 | E123: 0.7777777778 | F123: 0 | G123: 6 | H123: 1 | I123: 2 | J123: 0 | K123: 0 | L123: 0 | M123: 0 | N123: 9 | O123: 0 | P123: 0 | Q123: 0 | R123: 0 | S123: 0
A124: Q81 | B124: RYR | C124: WESTERN SUSSEX HOSPITALS NHS FOUNDATION TRUST | D124: 15 | E124: 1 | F124: 0 | G124: 12 | H124: 3 | I124: 0 | J124: 0 | K124: 0 | L124: 0 | M124: 0 | N124: 0 | O124: 15 | P124: 0 | Q124: 0 | R124: 0 | S124: 0
A125: Q81 | B125: RVV | C125: EAST KENT HOSPITALS UNIVERSITY NHS FOUNDATION TRUST | D125: 20 | E125: 1 | F125: 0 | G125: 19 | H125: 1 | I125: 0 | J125: 0 | K125: 0 | L125: 0 | M125: 0 | N125: 0 | O125: 0 | P125: 20 | Q125: 0 | R125: 0 | S125: 0
A126: Q81 | B126: RXH | C126: BRIGHTON AND SUSSEX UNIVERSITY HOSPITALS NHS TRUST | D126: 57 | E126: 0.9649122807 | F126: 0 | G126: 46 | H126: 9 | I126: 1 | J126: 0 | K126: 0 | L126: 1 | M126: 57 | N126: 0 | O126: 0 | P126: 0 | Q126: 0 | R126: 0 | S126: 0
A127: Q81 | B127: RA2 | C127: ROYAL SURREY COUNTY HOSPITAL NHS FOUNDATION TRUST | D127: 65 | E127: 0.9230769231 | F127: 0.04615384615 | G127: 52 | H127: 8 | I127: 2 | J127: 3 | K127: 0 | L127: 0 | M127: 59 | N127: 0 | O127: 6 | P127: 0 | Q127: 0 | R127: 0 | S127: 0
A128: Q81 | B128: RTP | C128: SURREY AND SUSSEX HEALTHCARE NHS TRUST | D128: 78 | E128: 0.9615384615 | F128: 0.01282051282 | G128: 59 | H128: 16 | I128: 1 | J128: 1 | K128: 0 | L128: 1 | M128: 0 | N128: 0 | O128: 77 | P128: 0 | Q128: 0 | R128: 1 | S128: 0
A129: Q81 | B129: RDU | C129: FRIMLEY HEALTH NHS FOUNDATION TRUST | D129: 124 | E129: 1 | F129: 0 | G129: 112 | H129: 12 | I129: 0 | J129: 0 | K129: 0 | L129: 0 | M129: 0 | N129: 0 | O129: 124 | P129: 0 | Q129: 0 | R129: 0 | S129: 0
A130: Q82 | B130: RTE | C130: GLOUCESTERSHIRE HOSPITALS NHS FOUNDATION TRUST | D130: 0 | E130: NA | F130: NA | G130: 0 | H130: 0 | I130: 0 | J130: 0 | K130: 0 | L130: 0 | M130: 0 | N130: 0 | O130: 0 | P130: 0 | Q130: 0 | R130: 0 | S130: 0
A131: Q82 | B131: RN3 | C131: GREAT WESTERN HOSPITALS NHS FOUNDATION TRUST | D131: 15 | E131: 1 | F131: 0 | G131: 11 | H131: 4 | I131: 0 | J131: 0 | K131: 0 | L131: 0 | M131: 0 | N131: 0 | O131: 15 | P131: 0 | Q131: 0 | R131: 0 | S131: 0
A132: Q82 | B132: RNZ | C132: SALISBURY NHS FOUNDATION TRUST | D132: 22 | E132: 1 | F132: 0 | G132: 19 | H132: 3 | I132: 0 | J132: 0 | K132: 0 | L132: 0 | M132: 0 | N132: 0 | O132: 22 | P132: 0 | Q132: 0 | R132: 0 | S132: 0
A133: Q82 | B133: RHW | C133: ROYAL BERKSHIRE NHS FOUNDATION TRUST | D133: 28 | E133: 1 | F133: 0 | G133: 19 | H133: 9 | I133: 0 | J133: 0 | K133: 0 | L133: 0 | M133: 0 | N133: 0 | O133: 28 | P133: 0 | Q133: 0 | R133: 0 | S133: 0
A134: Q82 | B134: RTH | C134: OXFORD UNIVERSITY HOSPITALS NHS FOUNDATION TRUST | D134: 43 | E134: 0.976744186 | F134: 0 | G134: 36 | H134: 6 | I134: 1 | J134: 0 | K134: 0 | L134: 0 | M134: 0 | N134: 0 | O134: 0 | P134: 42 | Q134: 0 | R134: 1 | S134: 0
A135: Q82 | B135: RXQ | C135: BUCKINGHAMSHIRE HEALTHCARE NHS TRUST | D135: 50 | E135: 0.98 | F135: 0 | G135: 40 | H135: 9 | I135: 1 | J135: 0 | K135: 0 | L135: 0 | M135: 0 | N135: 0 | O135: 50 | P135: 0 | Q135: 0 | R135: 0 | S135: 0
A136: Q82 | B136: RD1 | C136: ROYAL UNITED HOSPITALS BATH NHS FOUNDATION TRUST | D136: 72 | E136: 0.9722222222 | F136: 0.01388888889 | G136: 67 | H136: 3 | I136: 1 | J136: 0 | K136: 1 | L136: 0 | M136: 0 | N136: 0 | O136: 72 | P136: 0 | Q136: 0 | R136: 0 | S136: 0
A137: Q83 | B137: RMP | C137: TAMESIDE AND GLOSSOP INTEGRATED CARE NHS FOUNDATION TRUST | D137: 13 | E137: 1 | F137: 0 | G137: 10 | H137: 3 | I137: 0 | J137: 0 | K137: 0 | L137: 0 | M137: 0 | N137: 0 | O137: 13 | P137: 0 | Q137: 0 | R137: 0 | S137: 0
A138: Q83 | B138: RW3 | C138: CENTRAL MANCHESTER UNIVERSITY HOSPITALS NHS FOUNDATION TRUST | D138: 13 | E138: 0.9230769231 | F138: 0 | G138: 10 | H138: 2 | I138: 1 | J138: 0 | K138: 0 | L138: 0 | M138: 0 | N138: 0 | O138: 13 | P138: 0 | Q138: 0 | R138: 0 | S138: 0
A139: Q83 | B139: RWJ | C139: STOCKPORT NHS FOUNDATION TRUST | D139: 20 | E139: 1 | F139: 0 | G139: 16 | H139: 4 | I139: 0 | J139: 0 | K139: 0 | L139: 0 | M139: 0 | N139: 0 | O139: 0 | P139: 20 | Q139: 0 | R139: 0 | S139: 0
A140: Q83 | B140: RY2 | C140: BRIDGEWATER COMMUNITY HEALTHCARE NHS FOUNDATION TRUST | D140: 22 | E140: 1 | F140: 0 | G140: 20 | H140: 2 | I140: 0 | J140: 0 | K140: 0 | L140: 0 | M140: 0 | N140: 0 | O140: 22 | P140: 0 | Q140: 0 | R140: 0 | S140: 0
A141: Q83 | B141: RW6 | C141: PENNINE ACUTE HOSPITALS NHS TRUST | D141: 39 | E141: 0.9487179487 | F141: 0.02564102564 | G141: 34 | H141: 3 | I141: 0 | J141: 1 | K141: 0 | L141: 1 | M141: 14 | N141: 0 | O141: 25 | P141: 0 | Q141: 0 | R141: 0 | S141: 0
A142: Q83 | B142: RRF | C142: WRIGHTINGTON, WIGAN AND LEIGH NHS FOUNDATION TRUST | D142: 41 | E142: 1 | F142: 0 | G142: 28 | H142: 13 | I142: 0 | J142: 0 | K142: 0 | L142: 0 | M142: 0 | N142: 0 | O142: 41 | P142: 0 | Q142: 0 | R142: 0 | S142: 0
A143: Q83 | B143: RM2 | C143: UNIVERSITY HOSPITAL OF SOUTH MANCHESTER NHS FOUNDATION TRUST | D143: 62 | E143: 1 | F143: 0 | G143: 57 | H143: 5 | I143: 0 | J143: 0 | K143: 0 | L143: 0 | M143: 0 | N143: 0 | O143: 62 | P143: 0 | Q143: 0 | R143: 0 | S143: 0
A144: Q83 | B144: RMC | C144: BOLTON NHS FOUNDATION TRUST | D144: 96 | E144: 0.9583333333 | F144: 0.01041666667 | G144: 84 | H144: 8 | I144: 3 | J144: 0 | K144: 1 | L144: 0 | M144: 43 | N144: 0 | O144: 0 | P144: 53 | Q144: 0 | R144: 0 | S144: 0
A145: Q84 | B145: RXL | C145: BLACKPOOL TEACHING HOSPITALS NHS FOUNDATION TRUST | D145: 11 | E145: 1 | F145: 0 | G145: 9 | H145: 2 | I145: 0 | J145: 0 | K145: 0 | L145: 0 | M145: 0 | N145: 0 | O145: 11 | P145: 0 | Q145: 0 | R145: 0 | S145: 0
A146: Q84 | B146: RXR | C146: EAST LANCASHIRE HOSPITALS NHS TRUST | D146: 68 | E146: 0.9558823529 | F146: 0.04411764706 | G146: 61 | H146: 4 | I146: 0 | J146: 1 | K146: 2 | L146: 0 | M146: 35 | N146: 0 | O146: 33 | P146: 0 | Q146: 0 | R146: 0 | S146: 0
A147: Q84 | B147: RXN | C147: LANCASHIRE TEACHING HOSPITALS NHS FOUNDATION TRUST | D147: 74 | E147: 0.9594594595 | F147: 0.02702702703 | G147: 63 | H147: 8 | I147: 1 | J147: 0 | K147: 2 | L147: 0 | M147: 72 | N147: 0 | O147: 0 | P147: 0 | Q147: 2 | R147: 0 | S147: 0
A148: zIS1 | B148: NDE | C148: ONE TO ONE (NORTH WEST) LIMITED | D148: 56 | E148: 1 | F148: 0 | G148: 52 | H148: 4 | I148: 0 | J148: 0 | K148: 0 | L148: 0 | M148: 0 | N148: 56 | O148: 0 | P148: 0 | Q148: 0 | R148: 0 | S148: 0

Sheet BSQ1 (hidden)
B1: Sort | C1: Region (LO) | D1: Region (LO) | E1: Trusts | F1: Trusts | G1: Sites | H1: Sites | J1: Sort ranges: | K1: Sort range… | L1: Sort range… | M1: Sort range… | N1: Reference Region List: | O1: Code… | P1: Name… | Q1: Linked Region List: | R1: Code… | S1: Name… | T1: Reference Lists: | U1: Code… | V1: Code… | W1: Name… | X1: Code… | Y1: Name… | Z1: Trusts Linked Lists: | AA1: Code… | AB1: Name… | AC1: Site Linked Lists: | AD1: Code… | AE1: Name… | AF1: Code… | AG1: Name…
A2: Region (LO) | B2: 1 | C2: 1 | D2: 1 | E2: - | F2: - | G2: - | H2: - | K2: Region (LO) Code | L2: Region (LO) Code | M2: Region (LO) Code | O2: Q72 | P2: NHS England Yorkshire & Humber | R2: Q70 | S2: NHS England Central Midlands | U2: Q70 | V2: RBD | W2: DORSET COUNTY HOSPITAL NHS FOUNDATION TRUST | X2: RBD01 | Y2: Dorset County Hospital - RBD01 | AA2: NDE | AB2: AIREDALE NHS FOUNDATION TRUST | AD2: NDE | AE2: AIREDALE NHS FOUNDATION TRUST | AF2: NDEXXX | AG2: Airedale General Hospital - RCF22
A3: Trusts | B3: 1 | C3: 1 | D3: 1 | E3: 1 | F3: 1 | G3: - | H3: - | K3: Region (Local Office) | L3: Trust Code | M3: Trust Code | O3: Q74 | P3: NHS England Cumbria & North East | R3: Q71 | S3: NHS England Cheshire & Merseyside | U3: Q70 | V3: RN5 | W3: HAMPSHIRE HOSPITALS NHS FOUNDATION TRUST | X3: RN542 | Y3: Andover War Memorial Hospital - RN542 | AA3: R1F | AB3: ASHFORD AND ST PETER'S HOSPITALS NHS FOUNDATION TRUST | AD3: R1F | AE3: ASHFORD AND ST PETER'S HOSPITALS NHS FOUNDATION TRUST | AF3: R1F01 | AG3: Alexandra Hospital - RWP01
A4: Sites | B4: 1 | C4: 1 | D4: 1 | E4: 1 | F4: 1 | G4: 1 | H4: 1 | K4: Total Responses | L4: Trust Name | M4: Trust Name | O4: Q75 | P4: NHS England Cheshire & Merseyside | R4: Q72 | S4: NHS England Cumbria & North East | U4: Q70 | V4: RN5 | W4: HAMPSHIRE HOSPITALS NHS FOUNDATION TRUST | X4: RN506 | Y4: Basingstoke and North Hampshire Hospital - RN506 | AA4: R1H | AB4: BARKING, HAVERING AND REDBRIDGE UNIVERSITY HOSPITALS NHS TRUST | AD4: R1H | AE4: BARKING, HAVERING AND REDBRIDGE UNIVERSITY HOSPITALS NHS TRUST | AF4: R1H12 | AG4: Andover War Memorial Hospital - RN542
K5: Percentage Recommended | L5: Total Responses | M5: Site Code | O5: Q83 | P5: NHS England Greater Manchester | R5: Q74 | S5: NHS England East | U5: Q70 | V5: RN5 | W5: HAMPSHIRE HOSPITALS NHS FOUNDATION TRUST | X5: RN541 | Y5: Royal Hampshire County Hospital - RN541 | AA5: R1K | AB5: BARNSLEY HOSPITAL NHS FOUNDATION TRUST | AD5: R1K | AE5: BARNSLEY HOSPITAL NHS FOUNDATION TRUST | AF5: R1HKH | AG5: Arrowe Park Hospital - RBL14
K6: Percentage Not Recommended | L6: Percentage Recommended | M6: Site Name | O6: Q84 | P6: NHS England Lancashire | R6: Q75 | S6: NHS England Greater Manchester | U6: Q70 | V6: R1F | W6: ISLE OF WIGHT NHS TRUST | X6: R1F01 | Y6: St Mary's Hospital - R1F01 | AA6: RA2 | AB6: BARTS HEALTH NHS TRUST | AD6: RA2 | AE6: BARTS HEALTH NHS TRUST | AF6: R1HNH | AG6: Ashford Hospital - RTK02
K7: Extremely Likely | L7: Percentage Not Recommended | M7: Total Responses | O7: Q76 | P7: NHS England North Midlands | R7: Q76 | S7: NHS England Lancashire | U7: Q70 | V7: RD3 | W7: POOLE HOSPITAL NHS FOUNDATION TRUST | X7: RD304 | Y7: Poole General Hospital NHS Trust HQ - RD304 | AA7: RA3 | AB7: BASILDON AND THURROCK UNIVERSITY HOSPITALS NHS FOUNDATION TRUST | AD7: RA3 | AE7: BASILDON AND THURROCK UNIVERSITY HOSPITALS NHS FOUNDATION TRUST | AF7: R1K01 | AG7: Barnet Hospital - RAL26
K8: Likely | L8: Extremely Likely | M8: Percentage Recommended | O8: Q77 | P8: NHS England West Midlands | R8: Q77 | S8: NHS England London | U8: Q70 | V8: RHU | W8: PORTSMOUTH HOSPITALS NHS TRUST | X8: RHU10 | Y8: Gosport War Memorial Hospital - RHU10 | AA8: RA4 | AB8: BEDFORD HOSPITAL NHS TRUST | AD8: RA4 | AE8: BEDFORD HOSPITAL NHS TRUST | AF8: R1K02 | AG8: Barnsley Hospital NHS Foundation Trust HQ - RFFAA
K9: Neither | L9: Likely | M9: Percentage Not Recommended | O9: Q78 | P9: NHS England Central Midlands | R9: Q78 | S9: NHS England North Midlands | U9: Q70 | V9: RHU | W9: PORTSMOUTH HOSPITALS NHS TRUST | X9: RHU04 | Y9: Petersfield Community Hospital - RHU04 | AA9: RA7 | AB9: BIRMINGHAM WOMEN'S AND CHILDREN'S NHS FOUNDATION TRUST | AD9: RA7 | AE9: BIRMINGHAM WOMEN'S AND CHILDREN'S NHS FOUNDATION TRUST | AF9: R1K04 | AG9: Basildon University Hospital - RDDH0
K10: Unlikely | L10: Neither | M10: Extremely Likely | O10: Q79 | P10: NHS England East | R10: Q79 | S10: NHS England South Central | U10: Q70 | V10: RHU | W10: PORTSMOUTH HOSPITALS NHS TRUST | X10: RHU03 | Y10: Queen Alexandra Hospital - RHU03 | AA10: RA9 | AB10: BLACKPOOL TEACHING HOSPITALS NHS FOUNDATION TRUST | AD10: RA9 | AE10: BLACKPOOL TEACHING HOSPITALS NHS FOUNDATION TRUST | AF10: R1KXXX | AG10: Basingstoke and North Hampshire Hospital - RN506
K11: Extremely Unlikely | L11: Unlikely | M11: Likely | O11: Q80 | P11: NHS England South West | R11: Q80 | S11: NHS England South East | U11: Q70 | V11: RHU | W11: PORTSMOUTH HOSPITALS NHS TRUST | X11: RHU02 | Y11: St Mary's Hospital - RHU02 | AA11: RAE | AB11: BOLTON NHS FOUNDATION TRUST | AD11: RAE | AE11: BOLTON NHS FOUNDATION TRUST | AF11: RA201 | AG11: Bassetlaw Hospital - RP5BA
K12: Don't Know | L12: Extremely Unlikely | M12: Neither | O12: Q81 | P12: NHS England South East | R12: Q81 | S12: NHS England South West | U12: Q70 | V12: RDZ | W12: THE ROYAL BOURNEMOUTH AND CHRISTCHURCH HOSPITALS NHS FOUNDATION TRUST | X12: RDZ20 | Y12: Royal Bournemouth General Hospital - RDZ20 | AA12: RAJ | AB12: BRADFORD TEACHING HOSPITALS NHS FOUNDATION TRUST | AD12: RAJ | AE12: BRADFORD TEACHING HOSPITALS NHS FOUNDATION TRUST | AF12: RA301 | AG12: Bedford Hospital South Wing - RC110
L13: Don't Know | M13: Unlikely | O13: Q82 | P13: NHS England South Central | R13: Q82 | S13: NHS England Wessex | U13: Q70 | V13: RHM | W13: UNIVERSITY HOSPITAL SOUTHAMPTON NHS FOUNDATION TRUST | X13: RHM01 | Y13: Southampton General Hospital - RHM01 | AA13: RAL | AB13: BRIDGEWATER COMMUNITY HEALTHCARE NHS FOUNDATION TRUST | AD13: RAL | AE13: BRIDGEWATER COMMUNITY HEALTHCARE NHS FOUNDATION TRUST | AF13: RA430 | AG13: Birmingham Women's Hospital - RQ370
L14: SMS/Text / Smartphone App | M14: Extremely Unlikely | O14: Q70 | P14: NHS England Wessex | R14: Q83 | S14: NHS England West Midlands | U14: Q71 | V14: RF4 | W14: BARKING, HAVERING AND REDBRIDGE UNIVERSITY HOSPITALS NHS TRUST | X14: RF4QH | Y14: Queen's Hospital - RF4QH | AA14: RAP | AB14: BRIGHTON AND SUSSEX UNIVERSITY HOSPITALS NHS TRUST | AD14: RAP | AE14: BRIGHTON AND SUSSEX UNIVERSITY HOSPITALS NHS TRUST | AF14: RA707 | AG14: Blackpool Victoria Hospital - RXL01
L15: Electronic tablet/kiosk at point of discharge | M15: Don't Know | O15: Q71 | P15: NHS England London | R15: Q84 | S15: NHS England Yorkshire & Humber | U15: Q71 | V15: R1H | W15: BARTS HEALTH NHS TRUST | X15: R1HNH | Y15: Newham General Hospital - R1HNH | AA15: RAS | AB15: BUCKINGHAMSHIRE HEALTHCARE NHS TRUST | AD15: RAS | AE15: BUCKINGHAMSHIRE HEALTHCARE NHS TRUST | AF15: RA901 | AG15: Bradford Royal Infirmary - RAE01
L16: Paper / postcard at point of discharge | O16: zIS1 | P16: Independent Sector Provider | R16: zIS1 | S16: Independent Sector Provider | U16: Q71 | V16: R1H | W16: BARTS HEALTH NHS TRUST | X16: R1H12 | Y16: The Royal London Hospital - R1H12 | AA16: RAX | AB16: BURTON HOSPITALS NHS FOUNDATION TRUST | AD16: RAX | AE16: BURTON HOSPITALS NHS FOUNDATION TRUST | AF16: RAE01 | AG16: Bridgwater Hospital - RBAC3
L17: Paper survey, sent to the patients home | U17: Q71 | V17: R1H | W17: BARTS HEALTH NHS TRUST | X17: R1HKH | Y17: Whipps Cross University Hospital - R1HKH | AA17: RBA | AB17: CALDERDALE AND HUDDERSFIELD NHS FOUNDATION TRUST | AD17: RBA | AE17: CALDERDALE AND HUDDERSFIELD NHS FOUNDATION TRUST | AF17: RAEXXX | AG17: Broomfield Hospital - RQ8L0
